Workbook

Sheet MENU
L4: =+TABLAS!A95 -> 2-3-1-4-5-6-8-7-9-10-11-T
L5: =+TABLAS!A129 -> 2-3-1-5-4-6-8-7-9-10-11-T
L6: =+TABLAS!A163 -> 2-3-1-5-4-6-7-8-9-10-11-T
L7: =+TABLAS!A198 -> 8-7-6-3-1-5-2-4-9-10-11-T
L8: =+TABLAS!A233 -> 2-1-3-5-4-6-7-8-9-10-11-T
L9: =+TABLAS!A268 -> 2-3-1-5-4-6-7-8-9-10-11-T
L10: =+TABLAS!A298 -> 2-1-3-5-4-6-8-7-9-10-11-T
L11: =+TABLAS!A328 -> 2-1-3-5-4-6-8-7-9-10-11-T
L12: =+TABLAS!A358 -> 2-3-1-5-4-6-7-8-9-10-11-T
L13: =+TABLAS!A389 -> 2-1-3-5-4-6-7-8-9-10-11-T
L14: =+TABLAS!A419 -> 2-3-1-4-5-6-7-8-9-10-11-T
L15: =+TABLAS!A450 -> 2-1-3-4-5-6-7-8-9-10-11-T
L16: =+TABLAS!A480 -> 2-3-1-4-5-6-7-8-9-10-11-T
L17: =+TABLAS!A512 -> 2-3-1-4-5-6-7-8-9-10-11-T
L18: =+TABLAS!A542 -> 2-3-1-4-5-6-7-8-9-10-11-T
H27: CONTROL DE MESES
H29: =+TABLAS!A95 -> 2-3-1-4-5-6-8-7-9-10-11-T
C30: =+ITSVIH!J15 -> __ENE_NOV_2024

Sheet Datos (hidden)
B9: ANO | D9: MESES | F9: COD_RED | G9: DESC_RED | H9: CONCATENAR | J9: COD_RED | K9: COD_MIC | L9: DESC_MICRO | M9: CONCATENAR | O9: COD_ESTAB | P9: DESC_ESTAB | Q9: COD_RED | R9: COD_MIC | S9: COD_PROV | T9: COD_DIST | U9: REDMIC | V9: CONCATENAR | X9: COD_PROV | Y9: DESC_PROV | Z9: CONCATENAR | AB9: COD_PROV | AC9: COD_DIST | AD9: DESC_DIST | AE9: PROVDIST | AF9: CONCATENAR
B10: 2024 | D10: 01-Enero | F10: 00 | G10: NO TIENE ASIGNADO NINGUNA RED | H10: =CONCATENATE(F10," - ",G10) -> 00 - NO TIENE ASIGNADO NINGUNA RED | J10: 00 | K10: 00 | L10: NO PERTENECE A NINGUNA MICRORED | M10: =CONCATENATE(J10,K10," - ",L10) -> 0000 - NO PERTENECE A NINGUNA MICRORED | O10: 000000000 | P10: (All) | Q10: 00 | R10: 00 | U10: =CONCATENATE(Q10,R10) -> 0000 | V10: =CONCATENATE(O10," - ",P10) -> 000000000 - (All) | X10: 00 | Y10: (All) | Z10: =CONCATENATE(X10," - ",Y10) -> 00 - (All) | AB10: 01 | AC10: 00 | AD10: (All) | AE10: =CONCATENATE(AB10,AC10) -> 0100 | AF10: =CONCATENATE(AB10,AC10," - ",AD10) -> 0100 - (All)
D11: 02-Febrero | F11: 01 | G11: CUSCO SUR | H11: =CONCATENATE(F11," - ",G11) -> 01 - CUSCO SUR | J11: 00 | K11: 99 | L11: (All) | M11: 0099 - (All) | O11: 000028190 | P11: SAMUE CUSCO | Q11: 00 | R11: 00 | S11: 01 | T11: 01 | U11: =CONCATENATE(Q11,R11) -> 0000 | V11: =CONCATENATE(O11," - ",P11) -> 000028190 - SAMUE CUSCO | X11: 01 | Y11: CUSCO | Z11: =CONCATENATE(X11," - ",Y11) -> 01 - CUSCO | AB11: 01 | AC11: 01 | AD11: CUSCO | AE11: =CONCATENATE(AB11,AC11) -> 0101 | AF11: =CONCATENATE(AB11,AC11," - ",AD11) -> 0101 - CUSCO
D12: 03-Marzo | F12: 02 | G12: CUSCO NORTE | H12: 02 - CUSCO NORTE | J12: 01 | K12: 00 | L12: NO PERTENECE A NINGUNA MICRORED | M12: 0100 - NO PERTENECE A NINGUNA MICRORED | O12: 000002289 | P12: HOSPITAL DE APOYO DEPARTAMENTAL CUSCO | Q12: 00 | R12: 00 | S12: 01 | T12: 01 | U12: 0000 | V12: 000002289 - HOSPITAL DE APOYO DEPARTAMENTAL CUSCO | X12: 02 | Y12: ACOMAYO | Z12: =CONCATENATE(X12," - ",Y12) -> 02 - ACOMAYO | AB12: 01 | AC12: 02 | AD12: CCORCA | AE12: 0102 | AF12: 0102 - CCORCA
D13: 04-Abril | F13: 03 | G13: LA CONVENCION | H13: 03 - LA CONVENCION | J13: 01 | K13: 16 | L13: CUSCO | M13: 0116 - CUSCO | O13: 000002305 | P13: ANTONIO LORENA DEL CUSCO | Q13: 00 | R13: 00 | S13: 01 | T13: 06 | U13: 0000 | V13: 000002305 - ANTONIO LORENA DEL CUSCO | X13: 03 | Y13: ANTA | Z13: 03 - ANTA | AB13: 01 | AC13: 03 | AD13: POROY | AE13: 0103 | AF13: 0103 - POROY
D14: 05-Mayo | F14: 04 | G14: CANAS-CANCHIS-ESPINAR | H14: 04 - CANAS-CANCHIS-ESPINAR | J14: 01 | K14: 03 | L14: PARURO | M14: 0103 - PARURO | O14: 999999999 | P14: (All) | Q14: 00 | R14: 99 | U14: 0099 | V14: 999999999 - (All) | X14: 04 | Y14: CALCA | Z14: 04 - CALCA | AB14: 01 | AC14: 04 | AD14: SAN JERONIMO | AE14: 0104 | AF14: 0104 - SAN JERONIMO
D15: 06-Junio | F15: 05 | G15: KIMBIRI PICHARI | H15: 05 - KIMBIRI PICHARI | J15: 01 | K15: 06 | L15: PAUCARTAMBO | M15: 0106 - PAUCARTAMBO | O15: 000025210 | P15: TUPAC AMARU | Q15: 01 | R15: 00 | S15: 01 | T15: 05 | U15: 0100 | V15: 000025210 - TUPAC AMARU | X15: 05 | Y15: CANAS | Z15: 05 - CANAS | AB15: 01 | AC15: 05 | AD15: SAN SEBASTIAN | AE15: 0105 | AF15: 0105 - SAN SEBASTIAN
D16: 07-Julio | F16: 06 | G16: CHUMBIVILCAS | H16: 06 - CHUMBIVILCAS | J16: 01 | K16: 12 | L16: URCOS | M16: 0112 - URCOS | O16: 000000000 | P16: (All) | Q16: 01 | R16: 03 | U16: 0103 | V16: 000000000 - (All) | X16: 06 | Y16: CANCHIS | Z16: 06 - CANCHIS | AB16: 01 | AC16: 06 | AD16: SANTIAGO | AE16: 0106 | AF16: 0106 - SANTIAGO
D17: 08-Agosto | F17: 99 | G17: (All) | H17: 99 - (All) | J17: 01 | K17: 13 | L17: ACOMAYO | M17: 0113 - ACOMAYO | O17: 000002499 | P17: PARURO | Q17: 01 | R17: 03 | S17: 10 | T17: 01 | U17: 0103 | V17: 000002499 - PARURO | X17: 07 | Y17: CHUMBIVILCAS | Z17: 07 - CHUMBIVILCAS | AB17: 01 | AC17: 07 | AD17: SAYLLA | AE17: 0107 | AF17: 0107 - SAYLLA
D18: 09-Setiembre | J18: 01 | K18: 15 | L18: OCONGATE | M18: 0115 - OCONGATE | O18: 000002500 | P18: ACCHA | Q18: 01 | R18: 03 | S18: 10 | T18: 02 | U18: 0103 | V18: 000002500 - ACCHA | X18: 08 | Y18: ESPINAR | Z18: 08 - ESPINAR | AB18: 01 | AC18: 08 | AD18: WANCHAQ | AE18: 0108 | AF18: 0108 - WANCHAQ
D19: 10-Octubre | J19: 01 | K19: 99 | L19: (All) | M19: 0199 - (All) | O19: 000002501 | P19: CCAPI | Q19: 01 | R19: 03 | S19: 10 | T19: 03 | U19: 0103 | V19: 000002501 - CCAPI | X19: 09 | Y19: LA CONVENCION | Z19: 09 - LA CONVENCION | AB19: 02 | AC19: 00 | AD19: (All) | AE19: 0200 | AF19: 0200 - (All)
D20: 11-Noviembre | F20: EJECUTORAS | J20: 02 | K20: 01 | L20: BELEMPAMPA | M20: 0201 - BELEMPAMPA | O20: 000002502 | P20: CCOYABAMBA | Q20: 01 | R20: 03 | S20: 10 | T20: 03 | U20: 0103 | V20: 000002502 - CCOYABAMBA | X20: 10 | Y20: PARURO | Z20: 10 - PARURO | AB20: 02 | AC20: 01 | AD20: ACOMAYO | AE20: 0201 | AF20: 0201 - ACOMAYO
D21: 12-Diciembre | F21: COD_RED | G21: DESC_RED | H21: CONCATENAR | J21: 02 | K21: 02 | L21: WANCHAQ | M21: 0202 - WANCHAQ | O21: 000002503 | P21: COLCHA | Q21: 01 | R21: 03 | S21: 10 | T21: 04 | U21: 0103 | V21: 000002503 - COLCHA | X21: 11 | Y21: PAUCARTAMBO | Z21: 11 - PAUCARTAMBO | AB21: 02 | AC21: 02 | AD21: ACOPIA | AE21: 0202 | AF21: 0202 - ACOPIA
F22: 01 | G22: HOSPITAL REGIONAL CUSCO | H22: =CONCATENATE(F22," - ",G22) -> 01 - HOSPITAL REGIONAL CUSCO | J22: 02 | K22: 03 | L22: ANTA | M22: 0203 - ANTA | O22: 000002504 | P22: HUANOQUITE | Q22: 01 | R22: 03 | S22: 10 | T22: 05 | U22: 0103 | V22: 000002504 - HUANOQUITE | X22: 12 | Y22: QUISPICANCHI | Z22: 12 - QUISPICANCHI | AB22: 02 | AC22: 03 | AD22: ACOS | AE22: 0203 | AF22: 0203 - ACOS
F23: 02 | G23: HOSPITAL ANTONIO LORENA | H23: =CONCATENATE(F23," - ",G23) -> 02 - HOSPITAL ANTONIO LORENA | J23: 02 | K23: 04 | L23: LIMATAMBO | M23: 0204 - LIMATAMBO | O23: 000002505 | P23: OMACHA | Q23: 01 | R23: 03 | S23: 10 | T23: 06 | U23: 0103 | V23: 000002505 - OMACHA | X23: 13 | Y23: URUBAMBA | Z23: 13 - URUBAMBA | AB23: 02 | AC23: 04 | AD23: MOSOC LLACTA | AE23: 0204 | AF23: 0204 - MOSOC LLACTA
F24: 03 | G24: CUSCO NORTE | H24: 03 - CUSCO NORTE | J24: 02 | K24: 05 | L24: PISAC | M24: 0205 - PISAC | O24: 000002506 | P24: ANTAPALLPA | Q24: 01 | R24: 03 | S24: 10 | T24: 06 | U24: 0103 | V24: 000002506 - ANTAPALLPA | AB24: 02 | AC24: 05 | AD24: POMACANCHI | AE24: 0205 | AF24: 0205 - POMACANCHI
F25: 04 | G25: CUSCO SUR | H25: 04 - CUSCO SUR | J25: 02 | K25: 06 | L25: CALCA | M25: 0206 - CALCA | O25: 000002507 | P25: PACCARECTAMBO | Q25: 01 | R25: 03 | S25: 10 | T25: 07 | U25: 0103 | V25: 000002507 - PACCARECTAMBO | AB25: 02 | AC25: 06 | AD25: RONDOCAN | AE25: 0206 | AF25: 0206 - RONDOCAN
F26: 05 | G26: LA CONVENCION | H26: 05 - LA CONVENCION | J26: 02 | K26: 07 | L26: URUBAMBA | M26: 0207 - URUBAMBA | O26: 000002509 | P26: YAURISQUE | Q26: 01 | R26: 03 | S26: 10 | T26: 09 | U26: 0103 | V26: 000002509 - YAURISQUE | AB26: 02 | AC26: 07 | AD26: SANGARARA | AE26: 0207 | AF26: 0207 - SANGARARA
F27: 06 | G27: HOSPITAL QUILLABAMBA | H27: 06 - HOSPITAL QUILLABAMBA | J27: 02 | K27: 08 | L27: YANATILE | M27: 0208 - YANATILE | O27: 000006978 | P27: CCOCHIRIHUAY | Q27: 01 | R27: 03 | S27: 10 | T27: 04 | U27: 0103 | V27: 000006978 - CCOCHIRIHUAY | AB27: 03 | AC27: 00 | AD27: (All) | AE27: 0300 | AF27: 0300 - (All)
F28: 07 | G28: CANAS CANCHIS ESPINAR | H28: 07 - CANAS CANCHIS ESPINAR | J28: 02 | K28: 09 | L28: SIETE CUARTONES | M28: 0209 - SIETE CUARTONES | O28: 000007147 | P28: PUESTO DE SALUD DE HUASQUILLAY | Q28: 01 | R28: 03 | S28: 10 | T28: 06 | U28: 0103 | V28: 000007147 - PUESTO DE SALUD DE HUASQUILLAY | AB28: 03 | AC28: 01 | AD28: ANTA | AE28: 0301 | AF28: 0301 - ANTA
F29: 08 | G29: HOSPITAL SICUANI | H29: 08 - HOSPITAL SICUANI | J29: 02 | K29: 99 | L29: (All) | M29: 0299 - (All) | O29: 000012924 | P29: SAHUA SAHUA | Q29: 01 | R29: 03 | S29: 10 | T29: 06 | U29: 0103 | V29: 000012924 - SAHUA SAHUA | AB29: 03 | AC29: 02 | AD29: ANCAHUASI | AE29: 0302 | AF29: 0302 - ANCAHUASI
F30: 09 | G30: HOSPITAL ESPINAR | H30: 09 - HOSPITAL ESPINAR | J30: 03 | K30: 00 | L30: NO PERTENECE A NINGUNA MICRORED | M30: 0300 - NO PERTENECE A NINGUNA MICRORED | O30: 000000000 | P30: (All) | Q30: 01 | R30: 06 | U30: 0106 | V30: 000000000 - (All) | AB30: 03 | AC30: 03 | AD30: CACHIMAYO | AE30: 0303 | AF30: 0303 - CACHIMAYO
F31: 10 | G31: KIMBIRI PICHARI | H31: 10 - KIMBIRI PICHARI | J31: 03 | K31: 01 | L31: SANTA ANA | M31: 0301 - SANTA ANA | O31: 000002510 | P31: PAUCARTAMBO | Q31: 01 | R31: 06 | S31: 11 | T31: 01 | U31: 0106 | V31: 000002510 - PAUCARTAMBO | AB31: 03 | AC31: 04 | AD31: CHINCHAYPUJIO | AE31: 0304 | AF31: 0304 - CHINCHAYPUJIO
F32: 11 | G32: CHUMBIVILCAS | H32: 11 - CHUMBIVILCAS | J32: 03 | K32: 02 | L32: MARANURA | M32: 0302 - MARANURA | O32: 000002511 | P32: MOLLOMARCA | Q32: 01 | R32: 06 | S32: 11 | T32: 01 | U32: 0106 | V32: 000002511 - MOLLOMARCA | AB32: 03 | AC32: 05 | AD32: HUAROCONDO | AE32: 0305 | AF32: 0305 - HUAROCONDO
F33: 99 | G33: (ALL) | H33: =CONCATENATE(F33," - ",G33) -> 99 - (ALL) | J33: 03 | K33: 03 | L33: QUELLOUNO | M33: 0303 - QUELLOUNO | O33: 000002512 | P33: CAICAY | Q33: 01 | R33: 06 | S33: 11 | T33: 02 | U33: 0106 | V33: 000002512 - CAICAY | AB33: 03 | AC33: 06 | AD33: LIMATAMBO | AE33: 0306 | AF33: 0306 - LIMATAMBO
J34: 03 | K34: 04 | L34: KITENI | M34: 0304 - KITENI | O34: 000002513 | P34: HUASAC | Q34: 01 | R34: 06 | S34: 11 | T34: 02 | U34: 0106 | V34: 000002513 - HUASAC | AB34: 03 | AC34: 07 | AD34: MOLLEPATA | AE34: 0307 | AF34: 0307 - MOLLEPATA
J35: 03 | K35: 05 | L35: KAMISEA | M35: 0305 - KAMISEA | O35: 000002514 | P35: CHALLABAMBA | Q35: 01 | R35: 06 | S35: 11 | T35: 03 | U35: 0106 | V35: 000002514 - CHALLABAMBA | AB35: 03 | AC35: 08 | AD35: PUCYURA | AE35: 0308 | AF35: 0308 - PUCYURA
J36: 03 | K36: 06 | L36: PUCYURA | M36: 0306 - PUCYURA | O36: 000002516 | P36: COLQUEPATA | Q36: 01 | R36: 06 | S36: 11 | T36: 04 | U36: 0106 | V36: 000002516 - COLQUEPATA | AB36: 03 | AC36: 09 | AD36: ZURITE | AE36: 0309 | AF36: 0309 - ZURITE
J37: 03 | K37: 07 | L37: PALMA REAL | M37: 0307 - PALMA REAL | O37: 000002517 | P37: PICHIHUA COLQUEPATA | Q37: 01 | R37: 06 | S37: 11 | T37: 04 | U37: 0106 | V37: 000002517 - PICHIHUA COLQUEPATA | AB37: 04 | AC37: 00 | AD37: (All) | AE37: 0400 | AF37: 0400 - (All)
J38: 03 | K38: 99 | L38: (All) | M38: 0399 - (All) | O38: 000002518 | P38: VIZCOCHONI | Q38: 01 | R38: 06 | S38: 11 | T38: 04 | U38: 0106 | V38: 000002518 - VIZCOCHONI | AB38: 04 | AC38: 01 | AD38: CALCA | AE38: 0401 | AF38: 0401 - CALCA
J39: 04 | K39: 00 | L39: NO PERTENECE A NINGUNA MICRORED | M39: 0400 - NO PERTENECE A NINGUNA MICRORED | O39: 000002519 | P39: AYRE | Q39: 01 | R39: 06 | S39: 11 | T39: 04 | U39: 0106 | V39: 000002519 - AYRE | AB39: 04 | AC39: 02 | AD39: COYA | AE39: 0402 | AF39: 0402 - COYA
J40: 04 | K40: 01 | L40: YANAOCA | M40: 0401 - YANAOCA | O40: 000002520 | P40: HUANCARANI | Q40: 01 | R40: 06 | S40: 11 | T40: 05 | U40: 0106 | V40: 000002520 - HUANCARANI | AB40: 04 | AC40: 03 | AD40: LAMAY | AE40: 0403 | AF40: 0403 - LAMAY
J41: 04 | K41: 02 | L41: EL DESCANSO | M41: 0402 - EL DESCANSO | O41: 000002521 | P41: PILCOPATA | Q41: 01 | R41: 06 | S41: 11 | T41: 06 | U41: 0106 | V41: 000002521 - PILCOPATA | AB41: 04 | AC41: 04 | AD41: LARES | AE41: 0404 | AF41: 0404 - LARES
J42: 04 | K42: 03 | L42: COMBAPATA | M42: 0403 - COMBAPATA | O42: 000002522 | P42: PATRIA | Q42: 01 | R42: 06 | S42: 11 | T42: 06 | U42: 0106 | V42: 000002522 - PATRIA | AB42: 04 | AC42: 05 | AD42: PISAC | AE42: 0405 | AF42: 0405 - PISAC
J43: 04 | K43: 04 | L43: TECHO OBRERO | M43: 0404 - TECHO OBRERO | O43: 000006979 | P43: TOCRA | Q43: 01 | R43: 06 | S43: 11 | T43: 04 | U43: 0106 | V43: 000006979 - TOCRA | AB43: 04 | AC43: 06 | AD43: SAN SALVADOR | AE43: 0406 | AF43: 0406 - SAN SALVADOR
J44: 04 | K44: 05 | L44: PAMPAPHALLA | M44: 0405 - PAMPAPHALLA | O44: 000010077 | P44: PAUCARTAMBO -ESSALUD | Q44: 01 | R44: 06 | S44: 11 | T44: 01 | U44: 0106 | V44: 000010077 - PAUCARTAMBO -ESSALUD | AB44: 04 | AC44: 07 | AD44: TARAY | AE44: 0407 | AF44: 0407 - TARAY
J45: 04 | K45: 06 | L45: YAURI | M45: 0406 - YAURI | O45: 000033777 | P45: MENTAL COMUNITARIO VIRGEN DEL ROSARIO | Q45: 01 | R45: 06 | S45: 11 | T45: 01 | U45: 0106 | V45: 000033777 - MENTAL COMUNITARIO VIRGEN DEL ROSARIO | AB45: 04 | AC45: 08 | AD45: YANATILE | AE45: 0408 | AF45: 0408 - YANATILE
J46: 04 | K46: 99 | L46: (All) | M46: 0499 - (All) | O46: 000000000 | P46: (All) | Q46: 01 | R46: 12 | U46: 0112 | V46: 000000000 - (All) | AB46: 05 | AC46: 00 | AD46: (All) | AE46: 0500 | AF46: 0500 - (All)
J47: 05 | K47: 00 | L47: NO PERTENECE A NINGUNA MICRORED | M47: 0500 - NO PERTENECE A NINGUNA MICRORED | O47: 000002523 | P47: URCOS | Q47: 01 | R47: 12 | S47: 12 | T47: 01 | U47: 0112 | V47: 000002523 - URCOS | AB47: 05 | AC47: 01 | AD47: YANAOCA | AE47: 0501 | AF47: 0501 - YANAOCA
J48: 05 | K48: 01 | L48: KIMBIRI | M48: 0501 - KIMBIRI | O48: 000002525 | P48: ANDAHUAYLILLAS | Q48: 01 | R48: 12 | S48: 12 | T48: 02 | U48: 0112 | V48: 000002525 - ANDAHUAYLILLAS | AB48: 05 | AC48: 02 | AD48: CHECCA | AE48: 0502 | AF48: 0502 - CHECCA
J49: 05 | K49: 02 | L49: PICHARI | M49: 0502 - PICHARI | O49: 000002530 | P49: CUSIPATA | Q49: 01 | R49: 12 | S49: 12 | T49: 06 | U49: 0112 | V49: 000002530 - CUSIPATA | AB49: 05 | AC49: 03 | AD49: KUNTURKANKI | AE49: 0503 | AF49: 0503 - KUNTURKANKI
J50: 05 | K50: 99 | L50: (All) | M50: 0599 - (All) | O50: 000002532 | P50: HUARO | Q50: 01 | R50: 12 | S50: 12 | T50: 07 | U50: 0112 | V50: 000002532 - HUARO | AB50: 05 | AC50: 04 | AD50: LANGUI | AE50: 0504 | AF50: 0504 - LANGUI
J51: 06 | K51: 00 | L51: NO PERTENECE A NINGUNA MICRORED | M51: 0600 - NO PERTENECE A NINGUNA MICRORED | O51: 000002533 | P51: URPAY | Q51: 01 | R51: 12 | S51: 12 | T51: 07 | U51: 0112 | V51: 000002533 - URPAY | AB51: 05 | AC51: 05 | AD51: LAYO | AE51: 0505 | AF51: 0505 - LAYO
J52: 06 | K52: 09 | L52: SANTO TOMAS | M52: 0609 - SANTO TOMAS | O52: 000002534 | P52: LUCRE | Q52: 01 | R52: 12 | S52: 12 | T52: 08 | U52: 0112 | V52: 000002534 - LUCRE | AB52: 05 | AC52: 06 | AD52: PAMPAMARCA | AE52: 0506 | AF52: 0506 - PAMPAMARCA
J53: 06 | K53: 01 | L53: LIVITACA | M53: 0601 - LIVITACA | O53: 000002537 | P53: OROPESA | Q53: 01 | R53: 12 | S53: 12 | T53: 11 | U53: 0112 | V53: 000002537 - OROPESA | AB53: 05 | AC53: 07 | AD53: QUEHUE | AE53: 0507 | AF53: 0507 - QUEHUE
J54: 06 | K54: 99 | L54: (All) | M54: 0699 - (All) | O54: 000002538 | P54: QUIQUIJANA | Q54: 01 | R54: 12 | S54: 12 | T54: 12 | U54: 0112 | V54: 000002538 - QUIQUIJANA | AB54: 05 | AC54: 08 | AD54: TUPAC AMARU | AE54: 0508 | AF54: 0508 - TUPAC AMARU
J55: 99 | K55: 99 | L55: (All) | M55: 9999 - (All) | O55: 000002539 | P55: CCOLCA | Q55: 01 | R55: 12 | S55: 12 | T55: 12 | U55: 0112 | V55: 000002539 - CCOLCA | AB55: 06 | AC55: 00 | AD55: (All) | AE55: 0600 | AF55: 0600 - (All)
O56: 000006980 | P56: CHILLIHUANI | Q56: 01 | R56: 12 | S56: 12 | T56: 06 | U56: 0112 | V56: 000006980 - CHILLIHUANI | AB56: 06 | AC56: 01 | AD56: SICUANI | AE56: 0601 | AF56: 0601 - SICUANI
O57: 000008911 | P57: HUARA HUARA | Q57: 01 | R57: 12 | S57: 12 | T57: 05 | U57: 0112 | V57: 000008911 - HUARA HUARA | AB57: 06 | AC57: 02 | AD57: CHECACUPE | AE57: 0602 | AF57: 0602 - CHECACUPE
O58: 000011747 | P58: POSTA MEDICA POLICIAL PUCUTO | Q58: 01 | R58: 12 | S58: 12 | T58: 07 | U58: 0112 | V58: 000011747 - POSTA MEDICA POLICIAL PUCUTO | AB58: 06 | AC58: 03 | AD58: COMBAPATA | AE58: 0603 | AF58: 0603 - COMBAPATA
O59: 000026385 | P59: URCOS - ESSALUD | Q59: 01 | R59: 12 | S59: 12 | T59: 01 | U59: 0112 | V59: 000026385 - URCOS - ESSALUD | AB59: 06 | AC59: 04 | AD59: MARANGANI | AE59: 0604 | AF59: 0604 - MARANGANI
O60: 000030708 | P60: MENTAL COMUNITARIO HUARO | Q60: 01 | R60: 12 | S60: 12 | T60: 07 | U60: 0112 | V60: 000030708 - MENTAL COMUNITARIO HUARO | AB60: 06 | AC60: 05 | AD60: PITUMARCA | AE60: 0605 | AF60: 0605 - PITUMARCA
O61: 000000000 | P61: (All) | Q61: 01 | R61: 13 | U61: 0113 | V61: 000000000 - (All) | AB61: 06 | AC61: 06 | AD61: SAN PABLO | AE61: 0606 | AF61: 0606 - SAN PABLO
O62: 000002317 | P62: ACOMAYO | Q62: 01 | R62: 13 | S62: 02 | T62: 01 | U62: 0113 | V62: 000002317 - ACOMAYO | AB62: 06 | AC62: 07 | AD62: SAN PEDRO | AE62: 0607 | AF62: 0607 - SAN PEDRO
O63: 000002318 | P63: ACOPIA | Q63: 01 | R63: 13 | S63: 02 | T63: 02 | U63: 0113 | V63: 000002318 - ACOPIA | AB63: 06 | AC63: 08 | AD63: TINTA | AE63: 0608 | AF63: 0608 - TINTA
O64: 000002319 | P64: ACOS | Q64: 01 | R64: 13 | S64: 02 | T64: 03 | U64: 0113 | V64: 000002319 - ACOS | AB64: 07 | AC64: 00 | AD64: (All) | AE64: 0700 | AF64: 0700 - (All)
O65: 000002321 | P65: POMACANCHI | Q65: 01 | R65: 13 | S65: 02 | T65: 05 | U65: 0113 | V65: 000002321 - POMACANCHI | AB65: 07 | AC65: 01 | AD65: SANTO TOMAS | AE65: 0701 | AF65: 0701 - SANTO TOMAS
O66: 000002322 | P66: SAN JUAN DE POMACANCHI | Q66: 01 | R66: 13 | S66: 02 | T66: 05 | U66: 0113 | V66: 000002322 - SAN JUAN DE POMACANCHI | AB66: 07 | AC66: 02 | AD66: CAPACMARCA | AE66: 0702 | AF66: 0702 - CAPACMARCA
O67: 000002324 | P67: PUESTO DE SALUD SANGARARA | Q67: 01 | R67: 13 | S67: 02 | T67: 07 | U67: 0113 | V67: 000002324 - PUESTO DE SALUD SANGARARA | AB67: 07 | AC67: 03 | AD67: CHAMACA | AE67: 0703 | AF67: 0703 - CHAMACA
O68: 000002325 | P68: PUESTO DE SALUD MARCACONGA | Q68: 01 | R68: 13 | S68: 02 | T68: 07 | U68: 0113 | V68: 000002325 - PUESTO DE SALUD MARCACONGA | AB68: 07 | AC68: 04 | AD68: COLQUEMARCA | AE68: 0704 | AF68: 0704 - COLQUEMARCA
O69: 000002508 | P69: PILLPINTO | Q69: 01 | R69: 13 | S69: 10 | T69: 08 | U69: 0113 | V69: 000002508 - PILLPINTO | AB69: 07 | AC69: 05 | AD69: LIVITACA | AE69: 0705 | AF69: 0705 - LIVITACA
O70: 000010076 | P70: ACOMAYO - ESSALUD | Q70: 01 | R70: 13 | S70: 02 | T70: 01 | U70: 0113 | V70: 000010076 - ACOMAYO - ESSALUD | AB70: 07 | AC70: 06 | AD70: LLUSCO | AE70: 0706 | AF70: 0706 - LLUSCO
N71: 0 | O71: 000012926 | P71: SANTA LUCIA | Q71: 01 | R71: 13 | S71: 02 | T71: 05 | U71: 0113 | V71: 000012926 - SANTA LUCIA | AB71: 07 | AC71: 07 | AD71: QUIÑOTA | AE71: 0707 | AF71: 0707 - QUIÑOTA
N72: 1 | O72: 000000000 | P72: (All) | Q72: 01 | R72: 15 | U72: 0115 | V72: 000000000 - (All) | AB72: 07 | AC72: 08 | AD72: VELILLE | AE72: 0708 | AF72: 0708 - VELILLE
N73: 2 | O73: 000002524 | P73: PAMPACAMARA | Q73: 01 | R73: 15 | S73: 12 | T73: 05 | U73: 0115 | V73: 000002524 - PAMPACAMARA | AB73: 08 | AC73: 00 | AD73: (All) | AE73: 0800 | AF73: 0800 - (All)
N74: 3 | O74: 000002526 | P74: QUINCE MIL | Q74: 01 | R74: 15 | S74: 12 | T74: 03 | U74: 0115 | V74: 000002526 - QUINCE MIL | AB74: 08 | AC74: 01 | AD74: ESPINAR | AE74: 0801 | AF74: 0801 - ESPINAR
N75: 4 | O75: 000002527 | P75: CCARHUAYO | Q75: 01 | R75: 15 | S75: 12 | T75: 04 | U75: 0115 | V75: 000002527 - CCARHUAYO | AB75: 08 | AC75: 02 | AD75: CONDOROMA | AE75: =CONCATENATE(AB75,AC75) -> 0802 | AF75: =CONCATENATE(AB75,AC75," - ",AD75) -> 0802 - CONDOROMA
N76: 5 | O76: 000002528 | P76: CCATCCA | Q76: 01 | R76: 15 | S76: 12 | T76: 05 | U76: 0115 | V76: 000002528 - CCATCCA | AB76: 08 | AC76: 03 | AD76: COPORAQUE | AE76: 0803 | AF76: 0803 - COPORAQUE
N77: 6 | O77: 000002529 | P77: KCAURY | Q77: 01 | R77: 15 | S77: 12 | T77: 05 | U77: 0115 | V77: 000002529 - KCAURY | AB77: 08 | AC77: 04 | AD77: OCORURO | AE77: 0804 | AF77: 0804 - OCORURO
N78: 7 | O78: 000002535 | P78: MARCAPATA | Q78: 01 | R78: 15 | S78: 12 | T78: 09 | U78: 0115 | V78: 000002535 - MARCAPATA | AB78: 08 | AC78: 05 | AD78: PALLPATA | AE78: 0805 | AF78: 0805 - PALLPATA
N79: 9 | O79: 000002536 | P79: OCONGATE | Q79: 01 | R79: 15 | S79: 12 | T79: 10 | U79: 0115 | V79: 000002536 - OCONGATE | AB79: 08 | AC79: 06 | AD79: PICHIGUA | AE79: 0806 | AF79: 0806 - PICHIGUA
N80: 10 | O80: 000006977 | P80: TINKI | Q80: 01 | R80: 15 | S80: 12 | T80: 10 | U80: =CONCATENATE(Q80,R80) -> 0115 | V80: =CONCATENATE(O80," - ",P80) -> 000006977 - TINKI | AB80: 08 | AC80: 07 | AD80: SUYCKUTAMBO | AE80: 0807 | AF80: 0807 - SUYCKUTAMBO
N81: 11 | O81: 000007110 | P81: INCACANCHA | Q81: 01 | R81: 15 | S81: 12 | T81: 09 | U81: 0115 | V81: 000007110 - INCACANCHA | AB81: 08 | AC81: 08 | AD81: ALTO PICHIGUA | AE81: 0808 | AF81: 0808 - ALTO PICHIGUA
N82: 12 | O82: 000012931 | P82: CHICHINA | Q82: 01 | R82: 15 | S82: 12 | T82: 05 | U82: 0115 | V82: 000012931 - CHICHINA | AB82: 09 | AC82: 00 | AD82: (All) | AE82: 0900 | AF82: 0900 - (All)
N83: 13 | O83: 000016335 | P83: CCAPANA | Q83: 01 | R83: 15 | S83: 12 | T83: 05 | U83: 0115 | V83: 000016335 - CCAPANA | AB83: 09 | AC83: 01 | AD83: SANTA ANA | AE83: 0901 | AF83: 0901 - SANTA ANA
N84: 0 | O84: 000000000 | P84: (All) | Q84: 01 | R84: 16 | U84: 0116 | V84: 000000000 - (All) | AB84: 09 | AC84: 02 | AD84: ECHARATE | AE84: 0902 | AF84: 0902 - ECHARATE
N85: 1 | O85: 000002300 | P85: SAN JERONIMO | Q85: 01 | R85: 16 | S85: 01 | T85: 04 | U85: 0116 | V85: 000002300 - SAN JERONIMO | AB85: 09 | AC85: 03 | AD85: HUAYOPATA | AE85: 0903 | AF85: 0903 - HUAYOPATA
N86: 2 | O86: 000002301 | P86: SAN SEBASTIAN | Q86: 01 | R86: 16 | S86: 01 | T86: 05 | U86: 0116 | V86: 000002301 - SAN SEBASTIAN | AB86: 09 | AC86: 04 | AD86: MARANURA | AE86: 0904 | AF86: 0904 - MARANURA
N87: 3 | O87: 000002303 | P87: SANTA ROSA | Q87: 01 | R87: 16 | S87: 01 | T87: 05 | U87: 0116 | V87: 000002303 - SANTA ROSA | AB87: 09 | AC87: 05 | AD87: OCOBAMBA | AE87: 0905 | AF87: 0905 - OCOBAMBA
N88: 4 | O88: 000002314 | P88: SAYLLA | Q88: 01 | R88: 16 | S88: 01 | T88: 07 | U88: 0116 | V88: 000002314 - SAYLLA | AB88: 09 | AC88: 06 | AD88: QUELLOUNO | AE88: 0906 | AF88: 0906 - QUELLOUNO
N89: 5 | O89: 000002323 | P89: RONDOCAN | Q89: 01 | R89: 16 | S89: 02 | T89: 06 | U89: 0116 | V89: 000002323 - RONDOCAN | AB89: 09 | AC89: 07 | AD89: KIMBIRI | AE89: 0907 | AF89: 0907 - KIMBIRI
N90: 6 | O90: 000007699 | P90: CONCHACALLE | Q90: 01 | R90: 16 | S90: 01 | T90: 04 | U90: 0116 | V90: 000007699 - CONCHACALLE | AB90: 09 | AC90: 08 | AD90: SANTA TERESA | AE90: 0908 | AF90: 0908 - SANTA TERESA
N91: 7 | O91: 000010065 | P91: SAN SEBASTIAN ESSALUD | Q91: 01 | R91: 16 | S91: 01 | T91: 05 | U91: 0116 | V91: 000010065 - SAN SEBASTIAN ESSALUD | AB91: 09 | AC91: 09 | AD91: VILCABAMBA | AE91: 0909 | AF91: 0909 - VILCABAMBA
N92: 8 | O92: 000011743 | P92: POLICIAL "SANTA ROSA" CUSCO | Q92: 01 | R92: 16 | S92: 01 | T92: 05 | U92: 0116 | V92: 000011743 - POLICIAL "SANTA ROSA" CUSCO | AB92: 09 | AC92: 10 | AD92: PICHARI | AE92: 0910 | AF92: 0910 - PICHARI
N93: 9 | O93: 000018926 | P93: ESTABLECIMIENTO PENITENCIARIO CUSCO VARONES | Q93: 01 | R93: 16 | S93: 01 | T93: 04 | U93: 0116 | V93: 000018926 - ESTABLECIMIENTO PENITENCIARIO CUSCO VARONES | AB93: 09 | AC93: 11 | AD93: INKAWASI | AE93: 0911 | AF93: 0911 - INKAWASI
N94: 10 | O94: 000021187 | P94: ESTABLECIMIENTO PENITENCIARIO CUSCO MUJERES | Q94: 01 | R94: 16 | S94: 01 | T94: 04 | U94: 0116 | V94: 000021187 - ESTABLECIMIENTO PENITENCIARIO CUSCO MUJERES | AB94: 09 | AC94: 12 | AD94: VILLA VIRGEN | AE94: 0912 | AF94: 0912 - VILLA VIRGEN
N95: 0 | O95: 000026181 | P95: MENTAL SAN SEBASTIAN | Q95: 01 | R95: 16 | S95: 01 | T95: 05 | U95: 0116 | V95: 000026181 - MENTAL SAN SEBASTIAN | AB95: 09 | AC95: 13 | AD95: VILLA KINTIARINA | AE95: 0913 | AF95: 0913 - VILLA KINTIARINA
N96: 1 | O96: 000030727 | P96: PATRÓN SAN SEBASTIAN | Q96: 01 | R96: 16 | S96: 01 | T96: 04 | U96: 0116 | V96: 000030727 - PATRÓN SAN SEBASTIAN | AB96: 09 | AC96: 14 | AD96: MEGANTONI | AE96: 0914 | AF96: 0914 - MEGANTONI
N97: 2 | O97: 999999999 | P97: (All) | Q97: 01 | R97: 99 | U97: 0199 | V97: 999999999 - (All) | AB97: 09 | AC97: 15 | AD97: KUMPIRUSHIATO | AE97: 0915 | AF97: 0915 - KUMPIRUSHIATO
N98: 3 | O98: 000000000 | P98: (All) | Q98: 02 | R98: 01 | U98: 0201 | V98: 000000000 - (All) | AB98: 09 | AC98: 16 | AD98: CIELO PUNCO | AE98: 0916 | AF98: 0916 - CIELO PUNCO
O99: 000002292 | P99: INDEPENDENCIA | Q99: 02 | R99: 01 | S99: 01 | T99: 01 | U99: 0201 | V99: 000002292 - INDEPENDENCIA | AB99: 09 | AC99: 17 | AD99: MANITEA | AE99: 0917 | AF99: 0917 - MANITEA
N100: 4 | O100: 000002297 | P100: CCORCCA | Q100: 02 | R100: 01 | S100: 01 | T100: 02 | U100: 0201 | V100: 000002297 - CCORCCA | AB100: 09 | AC100: 18 | AD100: UNION ASHANINKA | AE100: 0918 | AF100: 0918 - UNION ASHANINKA
N101: 5 | O101: 000002306 | P101: BELEMPAMPA | Q101: 02 | R101: 01 | S101: 01 | T101: 06 | U101: 0201 | V101: 000002306 - BELEMPAMPA | AB101: 09 | AC101: 00 | AD101: (All) | AE101: 0900 | AF101: 0900 - (All)
N102: 6 | O102: 000002308 | P102: ZARZUELA ALTA | Q102: 02 | R102: 01 | S102: 01 | T102: 06 | U102: 0201 | V102: 000002308 - ZARZUELA ALTA | AB102: 10 | AC102: 01 | AD102: PARURO | AE102: 1001 | AF102: 1001 - PARURO
O103: 000002309 | P103: DIGNIDAD NACIONAL | Q103: 02 | R103: 01 | S103: 01 | T103: 06 | U103: 0201 | V103: 000002309 - DIGNIDAD NACIONAL | AB103: 10 | AC103: 02 | AD103: ACCHA | AE103: 1002 | AF103: 1002 - ACCHA
N104: 7 | O104: 000002313 | P104: OCCOPATA | Q104: 02 | R104: 01 | S104: 01 | T104: 06 | U104: 0201 | V104: 000002313 - OCCOPATA | AB104: 10 | AC104: 03 | AD104: CCAPI | AE104: 1003 | AF104: 1003 - CCAPI
N105: 8 | O105: 000010067 | P105: C.M. SANTIAGO ESSALUD | Q105: 02 | R105: 01 | S105: 01 | T105: 06 | U105: 0201 | V105: 000010067 - C.M. SANTIAGO ESSALUD | AB105: 10 | AC105: 04 | AD105: COLCHA | AE105: 1004 | AF105: 1004 - COLCHA
N106: 9 | O106: 000010920 | P106: QUINTA BRIGADA DE MONTAÑA | Q106: 02 | R106: 01 | S106: 01 | T106: 06 | U106: 0201 | V106: 000010920 - QUINTA BRIGADA DE MONTAÑA | AB106: 10 | AC106: 05 | AD106: HUANOQUITE | AE106: 1005 | AF106: 1005 - HUANOQUITE
N107: 10 | O107: 000026182 | P107: MENTAL SANTIAGO | Q107: 02 | R107: 01 | S107: 01 | T107: 06 | U107: 0201 | V107: 000026182 - MENTAL SANTIAGO | AB107: 10 | AC107: 06 | AD107: OMACHA | AE107: 1006 | AF107: 1006 - OMACHA
N108: 11 | O108: 000000000 | P108: (All) | Q108: 02 | R108: 02 | U108: 0202 | V108: 000000000 - (All) | AB108: 10 | AC108: 07 | AD108: PACCARITAMBO | AE108: 1007 | AF108: 1007 - PACCARITAMBO
N109: 0 | O109: 000002302 | P109: CCORAO | Q109: 02 | R109: 02 | S109: 01 | T109: 05 | U109: 0202 | V109: 000002302 - CCORAO | AB109: 10 | AC109: 08 | AD109: PILLPINTO | AE109: 1008 | AF109: 1008 - PILLPINTO
N110: 1 | O110: 000002307 | P110: MANCO CAPAC | Q110: 02 | R110: 02 | S110: 01 | T110: 06 | U110: 0202 | V110: 000002307 - MANCO CAPAC | AB110: 10 | AC110: 09 | AD110: YAURISQUE | AE110: 1009 | AF110: 1009 - YAURISQUE
O111: 000002310 | P111: CHOCCO | Q111: 02 | R111: 02 | S111: 01 | T111: 06 | U111: 0202 | V111: 000002310 - CHOCCO | AB111: 11 | AC111: 00 | AD111: (All) | AE111: 1100 | AF111: 1100 - (All)
O112: 000002315 | P112: WANCHAQ | Q112: 02 | R112: 02 | S112: 01 | T112: 08 | U112: 0202 | V112: 000002315 - WANCHAQ | AB112: 11 | AC112: 01 | AD112: PAUCARTAMBO | AE112: 1101 | AF112: 1101 - PAUCARTAMBO
N113: 2 | O113: 000002316 | P113: TTIO | Q113: 02 | R113: 02 | S113: 01 | T113: 08 | U113: 0202 | V113: 000002316 - TTIO | AB113: 11 | AC113: 02 | AD113: CAICAY | AE113: 1102 | AF113: 1102 - CAICAY
N114: 3 | O114: 000010041 | P114: ADOLFO GUEVARA VELASCO | Q114: 02 | R114: 02 | S114: 01 | T114: 08 | U114: 0202 | V114: 000010041 - ADOLFO GUEVARA VELASCO | AB114: 11 | AC114: 03 | AD114: CHALLABAMBA | AE114: 1103 | AF114: 1103 - CHALLABAMBA
N115: 4 | O115: 000026183 | P115: METROPOLITANO | Q115: 02 | R115: 02 | S115: 01 | T115: 08 | U115: 0202 | V115: 000026183 - METROPOLITANO | AB115: 11 | AC115: 04 | AD115: COLQUEPATA | AE115: 1104 | AF115: 1104 - COLQUEPATA
N116: 5 | O116: 000030730 | P116: PATRON SANTIAGO | Q116: 02 | R116: 02 | S116: 01 | T116: 08 | U116: 0202 | V116: 000030730 - PATRON SANTIAGO | AB116: 11 | AC116: 05 | AD116: HUANCARANI | AE116: 1105 | AF116: 1105 - HUANCARANI
N117: 6 | O117: 000000000 | P117: (All) | Q117: 02 | R117: 03 | U117: 0203 | V117: 000000000 - (All) | AB117: 11 | AC117: 06 | AD117: KOSÑIPATA | AE117: 1106 | AF117: 1106 - KOSÑIPATA
N118: 7 | O118: 000002326 | P118: ANTA | Q118: 02 | R118: 03 | S118: 03 | T118: 01 | U118: 0203 | V118: 000002326 - ANTA | AB118: 12 | AC118: 00 | AD118: (All) | AE118: 1200 | AF118: 1200 - (All)
N119: 0 | O119: 000002327 | P119: CHACAN | Q119: 02 | R119: 03 | S119: 03 | T119: 01 | U119: 0203 | V119: 000002327 - CHACAN | AB119: 12 | AC119: 01 | AD119: URCOS | AE119: 1201 | AF119: 1201 - URCOS
N120: 1 | O120: 000002328 | P120: COMPONE | Q120: 02 | R120: 03 | S120: 03 | T120: 01 | U120: 0203 | V120: 000002328 - COMPONE | AB120: 12 | AC120: 02 | AD120: ANDAHUAYLILLAS | AE120: 1202 | AF120: 1202 - ANDAHUAYLILLAS
N121: 2 | O121: 000002329 | P121: CONCHACALLA | Q121: 02 | R121: 03 | S121: 03 | T121: 01 | U121: 0203 | V121: 000002329 - CONCHACALLA | AB121: 12 | AC121: 03 | AD121: CAMANTI | AE121: 1203 | AF121: 1203 - CAMANTI
N122: 3 | O122: 000002330 | P122: ANCAHUASI | Q122: 02 | R122: 03 | S122: 03 | T122: 02 | U122: 0203 | V122: 000002330 - ANCAHUASI | AB122: 12 | AC122: 04 | AD122: CCARHUAYO | AE122: 1204 | AF122: 1204 - CCARHUAYO
N123: 4 | O123: 000002331 | P123: CACHIMAYO | Q123: 02 | R123: 03 | S123: 03 | T123: 03 | U123: 0203 | V123: 000002331 - CACHIMAYO | AB123: 12 | AC123: 05 | AD123: CCATCA | AE123: 1205 | AF123: 1205 - CCATCA
N124: 5 | O124: 000002332 | P124: CHINCHAYPUJIO | Q124: 02 | R124: 03 | S124: 03 | T124: 04 | U124: 0203 | V124: 000002332 - CHINCHAYPUJIO | AB124: 12 | AC124: 06 | AD124: CUSIPATA | AE124: 1206 | AF124: 1206 - CUSIPATA
N125: 6 | O125: 000002333 | P125: HUAROCONDO | Q125: 02 | R125: 03 | S125: 03 | T125: 05 | U125: 0203 | V125: 000002333 - HUAROCONDO | AB125: 12 | AC125: 07 | AD125: HUARO | AE125: 1207 | AF125: 1207 - HUARO
N126: 7 | O126: 000002334 | P126: HUAYLLACOCHA | Q126: 02 | R126: 03 | S126: 03 | T126: 05 | U126: 0203 | V126: 000002334 - HUAYLLACOCHA | AB126: 12 | AC126: 08 | AD126: LUCRE | AE126: 1208 | AF126: 1208 - LUCRE
O127: 000002339 | P127: PUCYURA ANTA | Q127: 02 | R127: 03 | S127: 03 | T127: 08 | U127: 0203 | V127: 000002339 - PUCYURA ANTA | AB127: 12 | AC127: 09 | AD127: MARCAPATA | AE127: 1209 | AF127: 1209 - MARCAPATA
N128: 8 | O128: 000002340 | P128: ZURITE | Q128: 02 | R128: 03 | S128: 03 | T128: 09 | U128: 0203 | V128: 000002340 - ZURITE | AB128: 12 | AC128: 10 | AD128: OCONGATE | AE128: 1210 | AF128: 1210 - OCONGATE
N129: 9 | O129: 000006972 | P129: PANTIPATA | Q129: 02 | R129: 03 | S129: 03 | T129: 04 | U129: 0203 | V129: 000006972 - PANTIPATA | AB129: 12 | AC129: 11 | AD129: OROPESA | AE129: 1211 | AF129: 1211 - OROPESA
N130: 10 | O130: 000027790 | P130: MENTAL COMUNITARIO ANTA | Q130: 02 | R130: 03 | S130: 03 | T130: 01 | U130: 0203 | V130: 000027790 - MENTAL COMUNITARIO ANTA | AB130: 12 | AC130: 12 | AD130: QUIQUIJANA | AE130: 1212 | AF130: 1212 - QUIQUIJANA
O131: 000029514 | P131: ESSALUD ANTA | Q131: 02 | R131: 03 | S131: 03 | T131: 01 | U131: 0203 | V131: 000029514 - ESSALUD ANTA | AB131: 13 | AC131: 00 | AD131: (All) | AE131: 1300 | AF131: 1300 - (All)
O132: 000000000 | P132: (All) | Q132: 02 | R132: 04 | U132: 0204 | V132: 000000000 - (All) | AB132: 13 | AC132: 01 | AD132: URUBAMBA | AE132: 1301 | AF132: 1301 - URUBAMBA
O133: 000002336 | P133: LIMATAMBO | Q133: 02 | R133: 04 | S133: 03 | T133: 06 | U133: 0204 | V133: 000002336 - LIMATAMBO | AB133: 13 | AC133: 02 | AD133: CHINCHERO | AE133: 1302 | AF133: 1302 - CHINCHERO
O134: 000002337 | P134: PAMPACONGA | Q134: 02 | R134: 04 | S134: 03 | T134: 06 | U134: 0204 | V134: 000002337 - PAMPACONGA | AB134: 13 | AC134: 03 | AD134: HUAYLLABAMBA | AE134: 1303 | AF134: 1303 - HUAYLLABAMBA
O135: 000002338 | P135: MOLLEPATA | Q135: 02 | R135: 04 | S135: 03 | T135: 07 | U135: 0204 | V135: 000002338 - MOLLEPATA | AB135: 13 | AC135: 04 | AD135: MACHUPICCHU | AE135: 1304 | AF135: 1304 - MACHUPICCHU
O136: 000010761 | P136: URATARI | Q136: 02 | R136: 04 | S136: 03 | T136: 06 | U136: 0204 | V136: 000010761 - URATARI | AB136: 13 | AC136: 05 | AD136: MARAS | AE136: 1305 | AF136: 1305 - MARAS
O137: 000021061 | P137: HUAMANPATA | Q137: 02 | R137: 04 | S137: 03 | T137: 07 | U137: 0204 | V137: 000021061 - HUAMANPATA | AB137: 13 | AC137: 06 | AD137: OLLANTAYTAMBO | AE137: 1306 | AF137: 1306 - OLLANTAYTAMBO
O138: 000000000 | P138: (All) | Q138: 02 | R138: 05 | U138: 0205 | V138: 000000000 - (All) | AB138: 13 | AC138: 07 | AD138: YUCAY | AE138: =CONCATENATE(AB138,AC138) -> 1307 | AF138: 1307 - YUCAY
O139: 000002343 | P139: COYA | Q139: 02 | R139: 05 | S139: 04 | T139: 02 | U139: 0205 | V139: 000002343 - COYA | AB139: 00 | AC139: 00 | AD139: (All) | AE139: =CONCATENATE(AB139,AC139) -> 0000 | AF139: 0000 - (All)
O140: 000002344 | P140: LAMAY | Q140: 02 | R140: 05 | S140: 04 | T140: 03 | U140: 0205 | V140: 000002344 - LAMAY
O141: 000002348 | P141: PISAC | Q141: 02 | R141: 05 | S141: 04 | T141: 05 | U141: 0205 | V141: 000002348 - PISAC
O142: 000002349 | P142: CUYO CHICO | Q142: 02 | R142: 05 | S142: 04 | T142: 05 | U142: 0205 | V142: 000002349 - CUYO CHICO
O143: 000002350 | P143: CUYO GRANDE | Q143: 02 | R143: 05 | S143: 04 | T143: 05 | U143: 0205 | V143: 000002350 - CUYO GRANDE
O144: 000002351 | P144: QUELLO QUELLO | Q144: 02 | R144: 05 | S144: 04 | T144: 05 | U144: 0205 | V144: 000002351 - QUELLO QUELLO
O145: 000002352 | P145: SAN SALVADOR | Q145: 02 | R145: 05 | S145: 04 | T145: 06 | U145: 0205 | V145: 000002352 - SAN SALVADOR
O146: 000002353 | P146: TARAY | Q146: 02 | R146: 05 | S146: 04 | T146: 07 | U146: 0205 | V146: 000002353 - TARAY
O147: 000002354 | P147: HUANCALLE | Q147: 02 | R147: 05 | S147: 04 | T147: 07 | U147: 0205 | V147: 000002354 - HUANCALLE
O148: 000006970 | P148: TIRACANCHA | Q148: 02 | R148: 05 | S148: 04 | T148: 06 | U148: 0205 | V148: 000006970 - TIRACANCHA
O149: 000006975 | P149: SAYLLAFAYA | Q149: 02 | R149: 05 | S149: 04 | T149: 03 | U149: 0205 | V149: 000006975 - SAYLLAFAYA
O150: 000007145 | P150: HUAMA | Q150: 02 | R150: 05 | S150: 04 | T150: 03 | U150: =CONCATENATE(Q150,R150) -> 0205 | V150: =CONCATENATE(O150," - ",P150) -> 000007145 - HUAMA
O151: 000007146 | P151: POQUES | Q151: 02 | R151: 05 | S151: 04 | T151: 03 | U151: 0205 | V151: 000007146 - POQUES
O152: 000025368 | P152: HUARQUI | Q152: 02 | R152: 05 | S152: 04 | T152: 03 | U152: 0205 | V152: 000025368 - HUARQUI
O153: 000000000 | P153: (All) | Q153: 02 | R153: 06 | U153: 0206 | V153: 000000000 - (All)
O154: 000002341 | P154: CALCA | Q154: 02 | R154: 06 | S154: 04 | T154: 01 | U154: 0206 | V154: 000002341 - CALCA
O155: 000002342 | P155: AMPARAES | Q155: 02 | R155: 06 | S155: 04 | T155: 04 | U155: 0206 | V155: 000002342 - AMPARAES
O156: 000002345 | P156: CCACHIN | Q156: 02 | R156: 06 | S156: 04 | T156: 04 | U156: 0206 | V156: 000002345 - CCACHIN
O157: 000002346 | P157: CHOQUECANCHA | Q157: 02 | R157: 06 | S157: 04 | T157: 04 | U157: 0206 | V157: 000002346 - CHOQUECANCHA
O158: 000002347 | P158: LARES | Q158: 02 | R158: 06 | S158: 04 | T158: 04 | U158: 0206 | V158: 000002347 - LARES
O159: 000002361 | P159: SUYO | Q159: 02 | R159: 06 | S159: 04 | T159: 04 | U159: 0206 | V159: 000002361 - SUYO
O160: 000002515 | P160: PAROBAMBA | Q160: 02 | R160: 06 | S160: 11 | T160: 03 | U160: 0206 | V160: 000002515 - PAROBAMBA
O161: 000007143 | P161: OTOCANI | Q161: 02 | R161: 06 | S161: 11 | T161: 03 | U161: 0206 | V161: 000007143 - OTOCANI
O162: 000007144 | P162: PATABAMBA | Q162: 02 | R162: 06 | S162: 04 | T162: 07 | U162: 0206 | V162: 000007144 - PATABAMBA
O163: 000010069 | P163: ESSALUD CALCA | Q163: 02 | R163: 06 | S163: 04 | T163: 01 | U163: 0206 | V163: 000010069 - ESSALUD CALCA
O164: 000010759 | P164: HUARAN | Q164: 02 | R164: 06 | S164: 04 | T164: 01 | U164: 0206 | V164: 000010759 - HUARAN
O165: 000010762 | P165: ACCHA ALTA - PAMPALLACTA | Q165: 02 | R165: 06 | S165: 04 | T165: 01 | U165: 0206 | V165: 000010762 - ACCHA ALTA - PAMPALLACTA
O166: 000026273 | P166: MENTAL COMUNITARIO VIRGEN ASUNTA DE CALCA | Q166: 02 | R166: 06 | S166: 04 | T166: 01 | U166: 0206 | V166: 000026273 - MENTAL COMUNITARIO VIRGEN ASUNTA DE CALCA
O167: 000000000 | P167: (All) | Q167: 02 | R167: 07 | U167: 0207 | V167: 000000000 - (All)
O168: 000002540 | P168: URUBAMBA | Q168: 02 | R168: 07 | S168: 13 | T168: 01 | U168: 0207 | V168: 000002540 - URUBAMBA
O169: 000002541 | P169: YANAHUARA | Q169: 02 | R169: 07 | S169: 13 | T169: 01 | U169: 0207 | V169: 000002541 - YANAHUARA
O170: 000002543 | P170: CHINCHERO | Q170: 02 | R170: 07 | S170: 13 | T170: 02 | U170: 0207 | V170: 000002543 - CHINCHERO
O171: 000002544 | P171: OCCOTUAN | Q171: 02 | R171: 07 | S171: 13 | T171: 02 | U171: 0207 | V171: 000002544 - OCCOTUAN
O172: 000002545 | P172: HUAYLLABAMBA | Q172: 02 | R172: 07 | S172: 13 | T172: 03 | U172: 0207 | V172: 000002545 - HUAYLLABAMBA
O173: 000002546 | P173: MACHUPICCHU | Q173: 02 | R173: 07 | S173: 13 | T173: 04 | U173: 0207 | V173: 000002546 - MACHUPICCHU
O174: 000002547 | P174: COLLPANI | Q174: 02 | R174: 07 | S174: 13 | T174: 04 | U174: 0207 | V174: 000002547 - COLLPANI
O175: 000002548 | P175: MARAS | Q175: 02 | R175: 07 | S175: 13 | T175: 05 | U175: 0207 | V175: 000002548 - MARAS
O176: 000002549 | P176: OLLANTAYTAMBO | Q176: 02 | R176: 07 | S176: 13 | T176: 06 | U176: 0207 | V176: 000002549 - OLLANTAYTAMBO
O177: 000002550 | P177: CHILLCA | Q177: 02 | R177: 07 | S177: 13 | T177: 06 | U177: 0207 | V177: 000002550 - CHILLCA
O178: 000002551 | P178: YUCAY | Q178: 02 | R178: 07 | S178: 13 | T178: 07 | U178: 0207 | V178: 000002551 - YUCAY
O179: 000006974 | P179: CAMINO INCA HUAYLLABAMBA | Q179: 02 | R179: 07 | S179: 13 | T179: 04 | U179: 0207 | V179: 000006974 - CAMINO INCA HUAYLLABAMBA
O180: 000010060 | P180: CAS URUBAMBA -ESSALUD | Q180: 02 | R180: 07 | S180: 13 | T180: 01 | U180: 0207 | V180: 000010060 - CAS URUBAMBA -ESSALUD
O181: 000010073 | P181: MACHU PICCHU - ESSALUD | Q181: 02 | R181: 07 | S181: 13 | T181: 04 | U181: 0207 | V181: 000010073 - MACHU PICCHU - ESSALUD
O182: 000010758 | P182: CRUZPATA | Q182: 02 | R182: 07 | S182: 13 | T182: 05 | U182: 0207 | V182: 000010758 - CRUZPATA
O183: 000010760 | P183: PATACANCHA | Q183: 02 | R183: 07 | S183: 13 | T183: 06 | U183: 0207 | V183: 000010760 - PATACANCHA
O184: 000030666 | P184: MENTAL COMUNITARIO URUBAMBA | Q184: 02 | R184: 07 | S184: 13 | T184: 01 | U184: 0207 | V184: 000030666 - MENTAL COMUNITARIO URUBAMBA
O185: 000000000 | P185: (All) | Q185: 02 | R185: 08 | U185: 0208 | V185: 000000000 - (All)
O186: 000002355 | P186: LA QUEBRADA | Q186: 02 | R186: 08 | S186: 04 | T186: 08 | U186: 0208 | V186: 000002355 - LA QUEBRADA
O187: 000002356 | P187: CCORIMAYO | Q187: 02 | R187: 08 | S187: 04 | T187: 08 | U187: 0208 | V187: 000002356 - CCORIMAYO
O188: 000002357 | P188: COLCCA YANATILE | Q188: 02 | R188: 08 | S188: 04 | T188: 08 | U188: 0208 | V188: 000002357 - COLCCA YANATILE
O189: 000002358 | P189: MUYUPAY | Q189: 02 | R189: 08 | S189: 04 | T189: 08 | U189: 0208 | V189: 000002358 - MUYUPAY
O190: 000002359 | P190: PUTUCUSI | Q190: 02 | R190: 08 | S190: 04 | T190: 08 | U190: 0208 | V190: 000002359 - PUTUCUSI
O191: 000002360 | P191: QUESQUENTO | Q191: 02 | R191: 08 | S191: 04 | T191: 08 | U191: 0208 | V191: 000002360 - QUESQUENTO
O192: 000002362 | P192: HUACHIBAMBA | Q192: 02 | R192: 08 | S192: 04 | T192: 08 | U192: 0208 | V192: 000002362 - HUACHIBAMBA
O193: 000002464 | P193: VERSALLES | Q193: 02 | R193: 08 | S193: 09 | T193: 05 | U193: 0208 | V193: 000002464 - VERSALLES
O194: 000002467 | P194: PUENTE SANTIAGO | Q194: 02 | R194: 08 | S194: 09 | T194: 06 | U194: 0208 | V194: 000002467 - PUENTE SANTIAGO
O195: 000006971 | P195: COMBAPATA YANATILE | Q195: 02 | R195: 08 | S195: 04 | T195: 08 | U195: 0208 | V195: 000006971 - COMBAPATA YANATILE
O196: 000006973 | P196: BELLAVISTA | Q196: 02 | R196: 08 | S196: 04 | T196: 08 | U196: 0208 | V196: 000006973 - BELLAVISTA
O197: 000007142 | P197: CHANCAMAYO | Q197: 02 | R197: 08 | S197: 04 | T197: 08 | U197: 0208 | V197: 000007142 - CHANCAMAYO
O198: 000000000 | P198: (All) | Q198: 02 | R198: 09 | U198: 0209 | V198: 000000000 - (All)
O199: 000002290 | P199: SAN PEDRO CUSCO | Q199: 02 | R199: 09 | S199: 01 | T199: 01 | U199: 0209 | V199: 000002290 - SAN PEDRO CUSCO
O200: 000002291 | P200: SIETE CUARTONES | Q200: 02 | R200: 09 | S200: 01 | T200: 01 | U200: 0209 | V200: 000002291 - SIETE CUARTONES
O201: 000002293 | P201: MIRAFLORES | Q201: 02 | R201: 09 | S201: 01 | T201: 01 | U201: 0209 | V201: 000002293 - MIRAFLORES
O202: 000002294 | P202: PICCHU LA RINCONADA | Q202: 02 | R202: 09 | S202: 01 | T202: 01 | U202: 0209 | V202: 000002294 - PICCHU LA RINCONADA
O203: 000002295 | P203: BUENA VISTA | Q203: 02 | R203: 09 | S203: 01 | T203: 01 | U203: 0209 | V203: 000002295 - BUENA VISTA
O204: 000002299 | P204: POROY | Q204: 02 | R204: 09 | S204: 01 | T204: 03 | U204: 0209 | V204: 000002299 - POROY
O205: 999999999 | P205: (All) | Q205: 02 | R205: 99 | U205: 0299 | V205: 999999999 - (All)
O206: 000002421 | P206: QUILLABAMBA | Q206: 03 | R206: 00 | S206: 09 | T206: 01 | U206: 0300 | V206: 000002421 - QUILLABAMBA
O207: 000000000 | P207: (All) | Q207: 03 | R207: 01 | U207: 0301 | V207: 000000000 - (All)
O208: 000002422 | P208: HUAYANAY | Q208: 03 | R208: 01 | S208: 09 | T208: 01 | U208: 0301 | V208: 000002422 - HUAYANAY
... 236 more rows

Sheet TABLAS (hidden)
C8: Valores | I8: Tabla | J8: =IF(I9="(Todas)","CUSCO ","") -> 
C9: RED | D9: 03 - LA CONVENCION | I9: =IF(MID(D9,1,2)="99","(All)",MID(D9,1,2)) -> 03 | J9: =IF(I9="(All)"," ",I9) -> 03 | M9: =LEN(MID(D9,5,90)) -> 14 | O9: =IF(MID(D9,6,5)="(All)","",D9) -> 03 - LA CONVENCION
C10: Micro RED | D10: 0399 - (All) | I10: =IF(MID(D10,3,2)="99","(All)",MID(D10,1,4)) -> (All) | M10: =LEN(MID(D10,7,90)) -> 6 | O10: =IF(MID(D10,8,5)="(All)","",D10) -> 
C11: Establecimiento | D11: 999999999 - (All) | I11: =IF(OR(MID(D11,1,9)="999999999",MID(D11,1,9)="000000000"),"(All)",MID(D11,1,9)) -> (All) | M11: =LEN(MID(D11,12,90)) -> 6 | O11: =IF(MID(D11,13,5)="(All)","",D11) -> 
C12: Provincia | D12: 00 - (All) | I12: =IF(MID(D12,1,2)="00","(All)",MID(D12,1,2)) -> (All) | M12: =LEN(MID(D12,6,90)) -> 5 | O12: =IF(MID(D12,6,5)="(All)","",D12) -> 
C13: Distrito | D13: 0000 - (All) | I13: =IF(OR(MID(D13,1,4)="0000",MID(D13,3,2)="00"),"(All)",MID(D13,1,4)) -> (All) | M13: =LEN(MID(D13,8,90)) -> 5 | O13: =IF(MID(D13,8,5)="(All)","",D13) -> 
C14: Ejecutora | D14: 99 - (ALL) | I14: =IF(MID(D14,1,2)="99","(All)",MID(D14,1,2)) -> (All) | M14: =LEN(MID(D14,5,90)) -> 6 | O14: =IF(MID(D14,6,5)="(All)","",D14) -> 
C16: Año | D16: 2024 | I16: =+D16 -> 2024 | J16: =IF(I16="(Todas)"," ",I16) -> 2024
B20: 1 | C20: 1 | D20: 1 | E20: 1 | F20: 1 | G20: 1 | H20: 1 | I20: 1 | J20: 1 | K20: 1 | L20: 1 | M20: 0 | N20: =SUM(B20:M20) -> 11
B21: =IF(B20=1,"ENERO","") -> ENERO | C21: =IF(C20=1,"FEBRERO","") -> FEBRERO | D21: =IF(D20=1,"MARZO","") -> MARZO | E21: =IF(E20=1,"ABRIL","") -> ABRIL | F21: =IF(F20=1,"MAYO","") -> MAYO | G21: =IF(G20=1,"JUNIO","") -> JUNIO | H21: =IF(H20=1,"JULIO","") -> JULIO | I21: =IF(I20=1,"AGOSTO","") -> AGOSTO | J21: =IF(J20=1,"SETIEMBRE","") -> SETIEMBRE | K21: =IF(K20=1,"OCTUBRE","") -> OCTUBRE | L21: =IF(L20=1,"NOVIEMBRE","") -> NOVIEMBRE | M21: =IF(M20=1,"DICIEMBRE","") ->  | N21: =IF(B20=1,B21,IF(C20=1,C21,IF(D20=1,D21,IF(E20=1,E21,IF(F20=1,F21,IF(G20=1,G21,IF(H20=1,H21,IF(I20=1,I21,IF(J20=1,J21,IF(K20=1,K21,IF(L20=1,L21,IF(M20=1,M21,"")))))))))))) -> ENERO
N22: =IF(N20=1,N21,"") -> 
B23: 2 | C23: 4 | D23: 6 | E23: 8 | F23: 10 | G23: 12 | H23: 14 | I23: 16 | J23: 18 | K23: 20 | L23: 22 | N23: =MIN(B23:M23) -> 2 | O23: =MAX(B23:M23) -> 22 | P23: =MAX(C23:N23) -> 22
B24: =IF(B23=2,"ENE","") -> ENE | C24: =IF(C23=4,"FEB","") -> FEB | D24: =IF(D23=6,"MAR","") -> MAR | E24: =IF(E23=8,"ABR","") -> ABR | F24: =IF(F23=10,"MAY","") -> MAY | G24: =IF(G23=12,"JUN","") -> JUN | H24: =IF(H23=14,"JUL","") -> JUL | I24: =IF(I23=16,"AGO","") -> AGO | J24: =IF(J23=18,"SET","") -> SET | K24: =IF(K23=20,"OCT","") -> OCT | L24: =IF(L23=22,"NOV","") -> NOV | M24: =IF(M23=24,"DIC","") ->  | N24: =IF(N23=B23,B24,IF(N23=C23,C24,IF(N23=D23,D24,IF(N23=E23,E24,IF(N23=F23,F24,IF(N23=G23,G24,IF(N23=H23,H24,IF(N23=I23,I24,IF(N23=J23,J24,IF(N23=K23,K24,IF(N23=L23,L24,IF(N23=M23,M24,"")))))))))))) -> ENE | O24: =IF(O23=C23,C24,IF(O23=D23,D24,IF(O23=E23,E24,IF(O23=F23,F24,IF(O23=G23,G24,IF(O23=H23,H24,IF(O23=I23,I24,IF(O23=J23,J24,IF(O23=K23,K24,IF(O23=L23,L24,IF(O23=M23,M24,""))))))))))) -> NOV | P24: =IF(P23=D23,D24,IF(P23=E23,E24,IF(P23=F23,F24,IF(P23=G23,G24,IF(P23=H23,H24,IF(P23=I23,I24,IF(P23=J23,J24,IF(P23=K23,K24,IF(P23=L23,L24,IF(P23=M23,M24,IF(P23=N23,N24,""))))))))))) -> NOV
N25: =CONCATENATE(N24," - ",O24) -> ENE - NOV
N26: =IF(N23=O23,N22,N25) -> ENE - NOV
A66: ITSVIH0011F
A67: anno | B67: 2024
A68: cod_red | B68: 03
A69: codmic | B69: (Todas)
A70: cod_prov | B70: (Todas)
A71: coddist | B71: (Todas)
A72: cod_estab | B72: (Todas)
A73: cod_eje | B73: (Todas)
AK74: d_du | AL74: d_du | AM74: d_du | AN74: d_du | AO74: d_du | AP74: t_du | AQ74: t_du | AR74: t_du | AS74: t_du | AT74: t_du | AU74: c_du | AV74: c_du | AW74: ct_du | AX74: ct_du
B75: Valores
A76: Etiquetas de fila | B76: BAS001 | C76: BAS002 | D76: BAS003 | E76: BAS004 | F76: BAS005 | G76: BAS006 | H76: BAS007 | I76: BAS008 | J76: BAS009 | K76: BAS010 | L76: BAS011 | M76: BAS012 | N76: BAS013 | O76: BAS014 | P76: BAS015 | Q76: BAS016 | R76: BAS017 | S76: BAS018 | T76: BAS019 | U76: BAS020 | V76: BAS021 | W76: BAS022 | X76: BAS023 | Y76: BAS024 | Z76: BAS025 | AA76: BAS026 | AB76: BAS027 | AC76: BAS028 | AD76: BAS029 | AE76: BAS030 | AF76: BAS031 | AG76: BAS032 | AH76: BAS033 | AI76: BAS034 | AJ76: BAS035 | AK76: BAS036 | AL76: BAS037 | AM76: BAS038 | AN76: BAS039 | AO76: BAS040 | AP76: BAS041 | AQ76: BAS042 | AR76: BAS043 | AS76: BAS044 | AT76: BAS045 | AU76: BAS046 | AV76: BAS047 | AW76: BAS048 | AX76: BAS049 | AY76: BAS050 | AZ76: BAS051 | BA76: BAS052 | BB76: BAS053 | BC76: BAS054 | BD76: BAS055 | BE76: BAS056 | BF76: BAS057 | BG76: BAS058 | BH76: BAS059 | BI76: BAS060 | BJ76: BAS061 | BK76: BAS062 | BL76: BAS063 | BM76: BAS064 | BN76: BAS065 | BO76: BAS066 | BP76: BAS067 | BQ76: BAS068 | BR76: BAS069 | BS76: BAS070 | BT76: BAS071 | BU76: BAS072 | BV76: BAS073 | BW76: BAS074 | BX76: BAS075 | BY76: BAS076 | BZ76: BAS077 | CA76: BAS078 | CB76: BAS079 | CC76: BAS080 | CD76: BAS081 | CE76: BAS082 | CF76: BAS083 | CG76: BAS084 | CH76: BAS085 | CI76: BAS086 | CJ76: BAS087 | CK76: BAS088 | CL76: BAS089 | CM76: BAS090 | CN76: BAS091 | CO76: BAS092 | CP76: BAS093 | CQ76: BAS094 | CR76: BAS095 | CS76: BAS096 | CT76: BAS097 | CU76: BAS098 | CV76: BAS099 | CW76: BAS100 | CX76: BAS101 | CY76: BAS102 | CZ76: BAS103 | DA76: BAS104 | DB76: BAS105 | DC76: BAS106 | DD76: BAS107 | DE76: BAS108 | DF76: BAS109 | DG76: BAS110 | DH76: BAS111 | DI76: BAS112 | DJ76: BAS113 | DK76: BAS114 | DL76: BAS115 | DM76: BAS116 | DN76: BAS117 | DO76: BAS118 | DP76: BAS119 | DQ76: BAS120 | DR76: BAS121 | DS76: BAS122 | DT76: BAS123 | DU76: BAS124 | DV76: BAS125 | DW76: BAS126 | DX76: BAS127 | DY76: BAS128 | DZ76: BAS129 | EA76: BAS130 | EB76: BAS131 | EC76: BAS132 | ED76: BAS133 | EE76: BAS134 | EF76: BAS135 | EG76: BAS136 | EH76: BAS137 | EI76: BAS138 | EJ76: BAS139 | EK76: BAS140 | EL76: BAS141 | EM76: BAS142 | EN76: BAS143 | EO76: BAS144 | EP76: BAS145 | EQ76: BAS146 | ER76: BAS147 | ES76: BAS148 | ET76: BAS149 | EU76: BAS150 | EV76: BAS151 | EW76: BAS152 | EX76: BAS153 | EY76: BAS154 | EZ76: BAS155 | FA76: BAS156 | FB76: BAS157 | FC76: BAS158 | FD76: BAS159 | FE76: BAS160 | FF76: BAS161 | FG76: BAS162 | FH76: BAS163 | FI76: BAS164 | FJ76: BAS165 | FK76: BAS166 | FL76: BAS167 | FM76: BAS168 | FN76: BAS169 | FO76: BAS170 | FP76: BAS171 | FQ76: BAS172 | FR76: BAS173 | FS76: BAS174 | FT76: BAS175 | FU76: BAS176 | FV76: BAS177 | FW76: BAS178 | FX76: BAS179 | FY76: BAS180 | FZ76: BAS181 | GA76: BAS182 | GB76: BAS183 | GC76: BAS184 | GD76: BAS185 | GE76: BAS186 | GF76: BAS187 | GG76: BAS188 | GH76: BAS189 | GI76: BAS190 | GJ76: BAS191 | GK76: BAS192 | GL76: BAS193 | GM76: BAS194 | GN76: BAS195 | GO76: BAS196 | GP76: BAS197 | GQ76: BAS198 | GR76: BAS199 | GS76: BAS200 | GT76: BAS201 | GU76: BAS202 | GV76: BAS203 | GW76: BAS204 | GX76: BAS205 | GY76: BAS206 | GZ76: BAS207 | HA76: BAS208 | HB76: BAS209 | HC76: BAS210 | HD76: BAS211 | HE76: BAS212 | HF76: BAS213 | HG76: BAS214 | HH76: BAS215 | HI76: BAS216 | HJ76: BAS217 | HK76: BAS218 | HL76: BAS219 | HM76: BAS220 | HN76: BAS221 | HO76: BAS222 | HP76: BAS223 | HQ76: BAS224 | HR76: BAS225 | HS76: BAS226 | HT76: BAS227 | HU76: BAS228 | HV76: BAS229 | HW76: BAS230
A77: 2 | B77: 0 | C77: 0 | D77: 0 | E77: 0 | F77: 0 | G77: 0 | H77: 0 | I77: 0 | J77: 0 | K77: 0 | L77: 0 | M77: 0 | N77: 0 | O77: 0 | P77: 0 | Q77: 0 | R77: 0 | S77: 0 | T77: 0 | U77: 0 | V77: 0 | W77: 0 | X77: 0 | Y77: 0 | Z77: 0 | AA77: 0 | AB77: 0 | AC77: 0 | AD77: 0 | AE77: 0 | AF77: 0 | AG77: 0 | AH77: 0 | AI77: 0 | AJ77: 0 | AK77: 0 | AL77: 0 | AM77: 0 | AN77: 0 | AO77: 0 | AP77: 0 | AQ77: 0 | AR77: 0 | AS77: 0 | AT77: 0 | AU77: 0 | AV77: 0 | AW77: 0 | AX77: 0 | AY77: 0 | AZ77: 0 | BA77: 0 | BB77: 0 | BC77: 0 | BD77: 0 | BE77: 0 | BF77: 0 | BG77: 0 | BH77: 0 | BI77: 0 | BJ77: 4 | BK77: 0 | BL77: 0 | BM77: 0 | BN77: 0 | BO77: 0 | BP77: 0 | BQ77: 6 | BR77: 0 | BS77: 0 | BT77: 1 | BU77: 0 | BV77: 0 | BW77: 0 | BX77: 0 | BY77: 0 | BZ77: 0 | CA77: 0 | CB77: 0 | CC77: 0 | CD77: 0 | CE77: 0 | CF77: 0 | CG77: 0 | CH77: 0 | CI77: 0 | CJ77: 0 | CK77: 5 | CL77: 0 | CM77: 0 | CN77: 0 | CO77: 1 | CP77: 0 | CQ77: 0 | CR77: 0 | CS77: 0 | CT77: 0 | CU77: 0 | CV77: 0 | CW77: 0 | CX77: 0 | CY77: 1 | CZ77: 1 | DA77: 0 | DB77: 0 | DC77: 0 | DD77: 0 | DE77: 0 | DF77: 0 | DG77: 0 | DH77: 0 | DI77: 1 | DJ77: 0 | DK77: 0 | DL77: 0 | DM77: 0 | DN77: 0 | DO77: 0 | DP77: 0 | DQ77: 0 | DR77: 0 | DS77: 0 | DT77: 0 | DU77: 0 | DV77: 0 | DW77: 0 | DX77: 0 | DY77: 0 | DZ77: 0 | EA77: 0 | EB77: 0 | EC77: 0 | ED77: 0 | EE77: 0 | EF77: 0 | EG77: 0 | EH77: 0 | EI77: 0 | EJ77: 0 | EK77: 0 | EL77: 0 | EM77: 0 | EN77: 0 | EO77: 0 | EP77: 0 | EQ77: 0 | ER77: 0 | ES77: 0 | ET77: 0 | EU77: 0 | EV77: 0 | EW77: 0 | EX77: 0 | EY77: 0 | EZ77: 0 | FA77: 0 | FB77: 0 | FC77: 0 | FD77: 0 | FE77: 0 | FF77: 0 | FG77: 0 | FH77: 0 | FI77: 0 | FJ77: 0 | FK77: 0 | FL77: 0 | FM77: 0 | FN77: 0 | FO77: 0 | FP77: 0 | FQ77: 0 | FR77: 0 | FS77: 0 | FT77: 0 | FU77: 0 | FV77: 0 | FW77: 0 | FX77: 0 | FY77: 0 | FZ77: 0 | GA77: 0 | GB77: 0 | GC77: 0 | GD77: 0 | GE77: 0 | GF77: 0 | GG77: 0 | GH77: 0 | GI77: 0 | GJ77: 1 | GK77: 0 | GL77: 0 | GM77: 0 | GN77: 0 | GO77: 0 | GP77: 0 | GQ77: 0 | GR77: 0 | GS77: 0 | GT77: 0 | GU77: 0 | GV77: 0 | GW77: 0 | GX77: 0 | GY77: 0 | GZ77: 0 | HA77: 0 | HB77: 0 | HC77: 0 | HD77: 0 | HE77: 0 | HF77: 0 | HG77: 0 | HH77: 0 | HI77: 0 | HJ77: 0 | HK77: 0 | HL77: 0 | HM77: 0 | HN77: 0 | HO77: 0 | HP77: 0 | HQ77: 0 | HR77: 0 | HS77: 0 | HT77: 0 | HU77: 0 | HV77: 0 | HW77: 0
A78: 3 | B78: 0 | C78: 0 | D78: 0 | E78: 0 | F78: 0 | G78: 0 | H78: 0 | I78: 0 | J78: 0 | K78: 0 | L78: 0 | M78: 0 | N78: 0 | O78: 0 | P78: 0 | Q78: 0 | R78: 0 | S78: 0 | T78: 0 | U78: 0 | V78: 0 | W78: 0 | X78: 0 | Y78: 0 | Z78: 0 | AA78: 0 | AB78: 0 | AC78: 0 | AD78: 0 | AE78: 0 | AF78: 0 | AG78: 0 | AH78: 0 | AI78: 0 | AJ78: 0 | AK78: 0 | AL78: 0 | AM78: 0 | AN78: 0 | AO78: 0 | AP78: 0 | AQ78: 0 | AR78: 0 | AS78: 0 | AT78: 0 | AU78: 0 | AV78: 0 | AW78: 0 | AX78: 0 | AY78: 0 | AZ78: 0 | BA78: 0 | BB78: 0 | BC78: 0 | BD78: 0 | BE78: 0 | BF78: 0 | BG78: 0 | BH78: 0 | BI78: 0 | BJ78: 3 | BK78: 0 | BL78: 0 | BM78: 0 | BN78: 0 | BO78: 0 | BP78: 0 | BQ78: 4 | BR78: 0 | BS78: 0 | BT78: 0 | BU78: 0 | BV78: 0 | BW78: 0 | BX78: 0 | BY78: 0 | BZ78: 0 | CA78: 0 | CB78: 0 | CC78: 0 | CD78: 0 | CE78: 0 | CF78: 0 | CG78: 0 | CH78: 0 | CI78: 0 | CJ78: 0 | CK78: 4 | CL78: 0 | CM78: 0 | CN78: 0 | CO78: 0 | CP78: 0 | CQ78: 0 | CR78: 0 | CS78: 0 | CT78: 0 | CU78: 0 | CV78: 0 | CW78: 0 | CX78: 0 | CY78: 1 | CZ78: 1 | DA78: 0 | DB78: 0 | DC78: 0 | DD78: 0 | DE78: 0 | DF78: 0 | DG78: 0 | DH78: 0 | DI78: 1 | DJ78: 0 | DK78: 0 | DL78: 0 | DM78: 0 | DN78: 0 | DO78: 0 | DP78: 0 | DQ78: 0 | DR78: 0 | DS78: 0 | DT78: 0 | DU78: 0 | DV78: 0 | DW78: 0 | DX78: 0 | DY78: 0 | DZ78: 0 | EA78: 0 | EB78: 0 | EC78: 0 | ED78: 0 | EE78: 0 | EF78: 0 | EG78: 0 | EH78: 0 | EI78: 0 | EJ78: 0 | EK78: 0 | EL78: 0 | EM78: 0 | EN78: 0 | EO78: 0 | EP78: 0 | EQ78: 0 | ER78: 0 | ES78: 0 | ET78: 0 | EU78: 0 | EV78: 0 | EW78: 0 | EX78: 0 | EY78: 0 | EZ78: 0 | FA78: 0 | FB78: 0 | FC78: 0 | FD78: 0 | FE78: 0 | FF78: 0 | FG78: 0 | FH78: 0 | FI78: 0 | FJ78: 0 | FK78: 0 | FL78: 0 | FM78: 0 | FN78: 0 | FO78: 0 | FP78: 0 | FQ78: 0 | FR78: 0 | FS78: 0 | FT78: 0 | FU78: 0 | FV78: 0 | FW78: 0 | FX78: 0 | FY78: 0 | FZ78: 0 | GA78: 0 | GB78: 0 | GC78: 0 | GD78: 0 | GE78: 0 | GF78: 0 | GG78: 0 | GH78: 0 | GI78: 0 | GJ78: 0 | GK78: 1 | GL78: 0 | GM78: 0 | GN78: 1 | GO78: 0 | GP78: 0 | GQ78: 0 | GR78: 0 | GS78: 0 | GT78: 0 | GU78: 0 | GV78: 0 | GW78: 0 | GX78: 0 | GY78: 0 | GZ78: 0 | HA78: 0 | HB78: 0 | HC78: 0 | HD78: 0 | HE78: 0 | HF78: 0 | HG78: 0 | HH78: 0 | HI78: 0 | HJ78: 0 | HK78: 0 | HL78: 0 | HM78: 0 | HN78: 0 | HO78: 0 | HP78: 0 | HQ78: 0 | HR78: 0 | HS78: 0 | HT78: 0 | HU78: 0 | HV78: 0 | HW78: 0
A79: 1 | B79: 0 | C79: 0 | D79: 0 | E79: 0 | F79: 0 | G79: 0 | H79: 0 | I79: 0 | J79: 1 | K79: 1 | L79: 0 | M79: 0 | N79: 0 | O79: 0 | P79: 0 | Q79: 0 | R79: 0 | S79: 0 | T79: 0 | U79: 0 | V79: 0 | W79: 0 | X79: 0 | Y79: 0 | Z79: 0 | AA79: 0 | AB79: 0 | AC79: 0 | AD79: 0 | AE79: 0 | AF79: 0 | AG79: 0 | AH79: 0 | AI79: 0 | AJ79: 0 | AK79: 0 | AL79: 0 | AM79: 0 | AN79: 0 | AO79: 0 | AP79: 0 | AQ79: 0 | AR79: 0 | AS79: 0 | AT79: 0 | AU79: 0 | AV79: 0 | AW79: 0 | AX79: 0 | AY79: 0 | AZ79: 0 | BA79: 0 | BB79: 0 | BC79: 0 | BD79: 0 | BE79: 0 | BF79: 0 | BG79: 0 | BH79: 0 | BI79: 0 | BJ79: 0 | BK79: 0 | BL79: 0 | BM79: 0 | BN79: 0 | BO79: 0 | BP79: 0 | BQ79: 5 | BR79: 0 | BS79: 0 | BT79: 2 | BU79: 0 | BV79: 0 | BW79: 0 | BX79: 0 | BY79: 0 | BZ79: 0 | CA79: 0 | CB79: 0 | CC79: 0 | CD79: 0 | CE79: 0 | CF79: 0 | CG79: 0 | CH79: 0 | CI79: 0 | CJ79: 0 | CK79: 6 | CL79: 0 | CM79: 0 | CN79: 0 | CO79: 2 | CP79: 0 | CQ79: 0 | CR79: 0 | CS79: 0 | CT79: 0 | CU79: 0 | CV79: 0 | CW79: 0 | CX79: 0 | CY79: 0 | CZ79: 0 | DA79: 0 | DB79: 0 | DC79: 0 | DD79: 0 | DE79: 0 | DF79: 0 | DG79: 0 | DH79: 0 | DI79: 0 | DJ79: 0 | DK79: 0 | DL79: 0 | DM79: 0 | DN79: 0 | DO79: 0 | DP79: 0 | DQ79: 0 | DR79: 0 | DS79: 0 | DT79: 0 | DU79: 0 | DV79: 0 | DW79: 0 | DX79: 0 | DY79: 0 | DZ79: 0 | EA79: 0 | EB79: 0 | EC79: 0 | ED79: 0 | EE79: 0 | EF79: 0 | EG79: 0 | EH79: 0 | EI79: 0 | EJ79: 0 | EK79: 0 | EL79: 0 | EM79: 0 | EN79: 0 | EO79: 0 | EP79: 0 | EQ79: 0 | ER79: 0 | ES79: 0 | ET79: 0 | EU79: 0 | EV79: 0 | EW79: 0 | EX79: 0 | EY79: 0 | EZ79: 0 | FA79: 0 | FB79: 0 | FC79: 0 | FD79: 0 | FE79: 0 | FF79: 0 | FG79: 0 | FH79: 0 | FI79: 0 | FJ79: 0 | FK79: 0 | FL79: 0 | FM79: 0 | FN79: 0 | FO79: 0 | FP79: 0 | FQ79: 0 | FR79: 0 | FS79: 0 | FT79: 0 | FU79: 0 | FV79: 0 | FW79: 0 | FX79: 0 | FY79: 0 | FZ79: 0 | GA79: 0 | GB79: 0 | GC79: 0 | GD79: 0 | GE79: 0 | GF79: 0 | GG79: 0 | GH79: 0 | GI79: 0 | GJ79: 0 | GK79: 0 | GL79: 0 | GM79: 0 | GN79: 0 | GO79: 0 | GP79: 0 | GQ79: 0 | GR79: 0 | GS79: 0 | GT79: 0 | GU79: 0 | GV79: 0 | GW79: 0 | GX79: 0 | GY79: 0 | GZ79: 0 | HA79: 0 | HB79: 0 | HC79: 0 | HD79: 0 | HE79: 0 | HF79: 0 | HG79: 0 | HH79: 0 | HI79: 0 | HJ79: 0 | HK79: 0 | HL79: 0 | HM79: 0 | HN79: 0 | HO79: 0 | HP79: 0 | HQ79: 0 | HR79: 0 | HS79: 0 | HT79: 0 | HU79: 0 | HV79: 0 | HW79: 0
A80: 4 | B80: 1 | C80: 1 | D80: 1 | E80: 1 | F80: 0 | G80: 0 | H80: 0 | I80: 0 | J80: 1 | K80: 1 | L80: 1 | M80: 1 | N80: 0 | O80: 0 | P80: 0 | Q80: 0 | R80: 0 | S80: 0 | T80: 0 | U80: 0 | V80: 0 | W80: 0 | X80: 0 | Y80: 0 | Z80: 0 | AA80: 0 | AB80: 0 | AC80: 0 | AD80: 0 | AE80: 0 | AF80: 0 | AG80: 0 | AH80: 0 | AI80: 0 | AJ80: 0 | AK80: 0 | AL80: 0 | AM80: 0 | AN80: 0 | AO80: 0 | AP80: 0 | AQ80: 0 | AR80: 0 | AS80: 0 | AT80: 0 | AU80: 0 | AV80: 0 | AW80: 0 | AX80: 0 | AY80: 0 | AZ80: 0 | BA80: 0 | BB80: 0 | BC80: 0 | BD80: 0 | BE80: 0 | BF80: 0 | BG80: 0 | BH80: 0 | BI80: 0 | BJ80: 1 | BK80: 0 | BL80: 0 | BM80: 0 | BN80: 0 | BO80: 0 | BP80: 0 | BQ80: 6 | BR80: 1 | BS80: 2 | BT80: 5 | BU80: 0 | BV80: 0 | BW80: 0 | BX80: 0 | BY80: 0 | BZ80: 0 | CA80: 0 | CB80: 0 | CC80: 0 | CD80: 0 | CE80: 0 | CF80: 0 | CG80: 0 | CH80: 0 | CI80: 0 | CJ80: 0 | CK80: 5 | CL80: 0 | CM80: 0 | CN80: 0 | CO80: 4 | CP80: 0 | CQ80: 0 | CR80: 0 | CS80: 0 | CT80: 0 | CU80: 0 | CV80: 0 | CW80: 0 | CX80: 0 | CY80: 1 | CZ80: 0 | DA80: 0 | DB80: 0 | DC80: 0 | DD80: 0 | DE80: 0 | DF80: 0 | DG80: 0 | DH80: 0 | DI80: 0 | DJ80: 0 | DK80: 0 | DL80: 0 | DM80: 0 | DN80: 0 | DO80: 0 | DP80: 0 | DQ80: 0 | DR80: 0 | DS80: 0 | DT80: 0 | DU80: 0 | DV80: 0 | DW80: 0 | DX80: 0 | DY80: 0 | DZ80: 0 | EA80: 0 | EB80: 0 | EC80: 0 | ED80: 0 | EE80: 0 | EF80: 1 | EG80: 0 | EH80: 1 | EI80: 0 | EJ80: 0 | EK80: 0 | EL80: 0 | EM80: 0 | EN80: 0 | EO80: 0 | EP80: 0 | EQ80: 0 | ER80: 1 | ES80: 0 | ET80: 1 | EU80: 0 | EV80: 0 | EW80: 0 | EX80: 0 | EY80: 0 | EZ80: 0 | FA80: 0 | FB80: 0 | FC80: 0 | FD80: 1 | FE80: 0 | FF80: 1 | FG80: 0 | FH80: 0 | FI80: 0 | FJ80: 0 | FK80: 0 | FL80: 0 | FM80: 0 | FN80: 0 | FO80: 0 | FP80: 0 | FQ80: 0 | FR80: 0 | FS80: 0 | FT80: 0 | FU80: 0 | FV80: 0 | FW80: 0 | FX80: 0 | FY80: 0 | FZ80: 0 | GA80: 0 | GB80: 0 | GC80: 0 | GD80: 0 | GE80: 0 | GF80: 0 | GG80: 0 | GH80: 0 | GI80: 0 | GJ80: 0 | GK80: 1 | GL80: 0 | GM80: 0 | GN80: 1 | GO80: 0 | GP80: 0 | GQ80: 0 | GR80: 0 | GS80: 0 | GT80: 0 | GU80: 0 | GV80: 0 | GW80: 0 | GX80: 0 | GY80: 0 | GZ80: 0 | HA80: 0 | HB80: 0 | HC80: 0 | HD80: 0 | HE80: 0 | HF80: 0 | HG80: 0 | HH80: 0 | HI80: 0 | HJ80: 0 | HK80: 0 | HL80: 0 | HM80: 0 | HN80: 0 | HO80: 0 | HP80: 0 | HQ80: 0 | HR80: 0 | HS80: 0 | HT80: 0 | HU80: 0 | HV80: 0 | HW80: 0
A81: 5 | B81: 0 | C81: 0 | D81: 0 | E81: 0 | F81: 0 | G81: 0 | H81: 0 | I81: 0 | J81: 0 | K81: 0 | L81: 0 | M81: 0 | N81: 0 | O81: 0 | P81: 0 | Q81: 0 | R81: 0 | S81: 0 | T81: 0 | U81: 0 | V81: 0 | W81: 0 | X81: 0 | Y81: 0 | Z81: 0 | AA81: 0 | AB81: 0 | AC81: 0 | AD81: 0 | AE81: 0 | AF81: 0 | AG81: 0 | AH81: 0 | AI81: 0 | AJ81: 0 | AK81: 0 | AL81: 0 | AM81: 0 | AN81: 0 | AO81: 0 | AP81: 0 | AQ81: 0 | AR81: 0 | AS81: 0 | AT81: 0 | AU81: 0 | AV81: 0 | AW81: 0 | AX81: 0 | AY81: 0 | AZ81: 0 | BA81: 0 | BB81: 0 | BC81: 0 | BD81: 0 | BE81: 0 | BF81: 0 | BG81: 0 | BH81: 0 | BI81: 0 | BJ81: 0 | BK81: 0 | BL81: 0 | BM81: 0 | BN81: 0 | BO81: 0 | BP81: 0 | BQ81: 4 | BR81: 0 | BS81: 0 | BT81: 0 | BU81: 0 | BV81: 0 | BW81: 0 | BX81: 0 | BY81: 0 | BZ81: 0 | CA81: 0 | CB81: 1 | CC81: 0 | CD81: 0 | CE81: 0 | CF81: 0 | CG81: 0 | CH81: 0 | CI81: 0 | CJ81: 0 | CK81: 4 | CL81: 0 | CM81: 0 | CN81: 0 | CO81: 0 | CP81: 0 | CQ81: 0 | CR81: 0 | CS81: 0 | CT81: 0 | CU81: 0 | CV81: 0 | CW81: 0 | CX81: 0 | CY81: 1 | CZ81: 0 | DA81: 0 | DB81: 0 | DC81: 0 | DD81: 0 | DE81: 0 | DF81: 0 | DG81: 0 | DH81: 0 | DI81: 0 | DJ81: 0 | DK81: 0 | DL81: 0 | DM81: 0 | DN81: 0 | DO81: 0 | DP81: 0 | DQ81: 0 | DR81: 0 | DS81: 0 | DT81: 0 | DU81: 0 | DV81: 0 | DW81: 0 | DX81: 0 | DY81: 0 | DZ81: 0 | EA81: 0 | EB81: 0 | EC81: 0 | ED81: 0 | EE81: 0 | EF81: 0 | EG81: 0 | EH81: 0 | EI81: 0 | EJ81: 0 | EK81: 0 | EL81: 0 | EM81: 0 | EN81: 0 | EO81: 0 | EP81: 0 | EQ81: 0 | ER81: 0 | ES81: 0 | ET81: 0 | EU81: 0 | EV81: 0 | EW81: 0 | EX81: 0 | EY81: 0 | EZ81: 0 | FA81: 0 | FB81: 0 | FC81: 0 | FD81: 0 | FE81: 0 | FF81: 0 | FG81: 0 | FH81: 0 | FI81: 0 | FJ81: 0 | FK81: 0 | FL81: 0 | FM81: 0 | FN81: 0 | FO81: 0 | FP81: 0 | FQ81: 0 | FR81: 0 | FS81: 0 | FT81: 0 | FU81: 0 | FV81: 0 | FW81: 0 | FX81: 0 | FY81: 0 | FZ81: 0 | GA81: 0 | GB81: 0 | GC81: 0 | GD81: 0 | GE81: 0 | GF81: 0 | GG81: 0 | GH81: 0 | GI81: 0 | GJ81: 1 | GK81: 0 | GL81: 0 | GM81: 0 | GN81: 0 | GO81: 0 | GP81: 0 | GQ81: 0 | GR81: 0 | GS81: 0 | GT81: 0 | GU81: 0 | GV81: 0 | GW81: 0 | GX81: 0 | GY81: 0 | GZ81: 0 | HA81: 0 | HB81: 0 | HC81: 0 | HD81: 0 | HE81: 0 | HF81: 0 | HG81: 0 | HH81: 0 | HI81: 0 | HJ81: 0 | HK81: 0 | HL81: 0 | HM81: 0 | HN81: 0 | HO81: 0 | HP81: 0 | HQ81: 0 | HR81: 0 | HS81: 0 | HT81: 0 | HU81: 0 | HV81: 0 | HW81: 0
A82: 6 | B82: 0 | C82: 0 | D82: 0 | E82: 0 | F82: 0 | G82: 0 | H82: 0 | I82: 0 | J82: 0 | K82: 0 | L82: 0 | M82: 0 | N82: 0 | O82: 0 | P82: 0 | Q82: 0 | R82: 0 | S82: 0 | T82: 0 | U82: 0 | V82: 0 | W82: 0 | X82: 0 | Y82: 0 | Z82: 0 | AA82: 0 | AB82: 0 | AC82: 0 | AD82: 0 | AE82: 0 | AF82: 0 | AG82: 0 | AH82: 0 | AI82: 0 | AJ82: 0 | AK82: 0 | AL82: 0 | AM82: 0 | AN82: 0 | AO82: 0 | AP82: 0 | AQ82: 0 | AR82: 0 | AS82: 0 | AT82: 0 | AU82: 0 | AV82: 0 | AW82: 0 | AX82: 0 | AY82: 0 | AZ82: 0 | BA82: 0 | BB82: 0 | BC82: 0 | BD82: 0 | BE82: 0 | BF82: 0 | BG82: 0 | BH82: 0 | BI82: 0 | BJ82: 1 | BK82: 0 | BL82: 0 | BM82: 0 | BN82: 0 | BO82: 0 | BP82: 0 | BQ82: 6 | BR82: 0 | BS82: 0 | BT82: 0 | BU82: 0 | BV82: 0 | BW82: 0 | BX82: 0 | BY82: 0 | BZ82: 0 | CA82: 0 | CB82: 1 | CC82: 0 | CD82: 0 | CE82: 0 | CF82: 0 | CG82: 0 | CH82: 0 | CI82: 0 | CJ82: 0 | CK82: 6 | CL82: 0 | CM82: 0 | CN82: 0 | CO82: 0 | CP82: 0 | CQ82: 0 | CR82: 0 | CS82: 0 | CT82: 0 | CU82: 0 | CV82: 0 | CW82: 0 | CX82: 0 | CY82: 1 | CZ82: 1 | DA82: 0 | DB82: 0 | DC82: 0 | DD82: 0 | DE82: 0 | DF82: 0 | DG82: 0 | DH82: 0 | DI82: 1 | DJ82: 0 | DK82: 0 | DL82: 0 | DM82: 0 | DN82: 0 | DO82: 0 | DP82: 0 | DQ82: 0 | DR82: 0 | DS82: 0 | DT82: 0 | DU82: 0 | DV82: 0 | DW82: 0 | DX82: 0 | DY82: 0 | DZ82: 0 | EA82: 0 | EB82: 0 | EC82: 0 | ED82: 0 | EE82: 0 | EF82: 0 | EG82: 0 | EH82: 0 | EI82: 0 | EJ82: 0 | EK82: 0 | EL82: 0 | EM82: 0 | EN82: 0 | EO82: 0 | EP82: 0 | EQ82: 0 | ER82: 0 | ES82: 0 | ET82: 0 | EU82: 0 | EV82: 0 | EW82: 0 | EX82: 0 | EY82: 0 | EZ82: 0 | FA82: 0 | FB82: 0 | FC82: 0 | FD82: 0 | FE82: 0 | FF82: 0 | FG82: 0 | FH82: 0 | FI82: 0 | FJ82: 0 | FK82: 0 | FL82: 0 | FM82: 0 | FN82: 0 | FO82: 0 | FP82: 0 | FQ82: 0 | FR82: 0 | FS82: 0 | FT82: 0 | FU82: 0 | FV82: 0 | FW82: 0 | FX82: 0 | FY82: 0 | FZ82: 0 | GA82: 0 | GB82: 0 | GC82: 0 | GD82: 0 | GE82: 0 | GF82: 0 | GG82: 0 | GH82: 2 | GI82: 0 | GJ82: 0 | GK82: 1 | GL82: 0 | GM82: 0 | GN82: 1 | GO82: 0 | GP82: 0 | GQ82: 0 | GR82: 0 | GS82: 0 | GT82: 0 | GU82: 0 | GV82: 0 | GW82: 0 | GX82: 0 | GY82: 0 | GZ82: 0 | HA82: 0 | HB82: 0 | HC82: 0 | HD82: 0 | HE82: 0 | HF82: 0 | HG82: 0 | HH82: 0 | HI82: 0 | HJ82: 0 | HK82: 0 | HL82: 0 | HM82: 0 | HN82: 0 | HO82: 0 | HP82: 0 | HQ82: 0 | HR82: 0 | HS82: 0 | HT82: 0 | HU82: 0 | HV82: 0 | HW82: 0
A83: 8 | B83: 1 | C83: 1 | D83: 1 | E83: 1 | F83: 0 | G83: 0 | H83: 0 | I83: 0 | J83: 1 | K83: 1 | L83: 1 | M83: 1 | N83: 0 | O83: 0 | P83: 0 | Q83: 0 | R83: 0 | S83: 0 | T83: 0 | U83: 0 | V83: 0 | W83: 0 | X83: 0 | Y83: 0 | Z83: 0 | AA83: 0 | AB83: 0 | AC83: 0 | AD83: 0 | AE83: 0 | AF83: 0 | AG83: 0 | AH83: 0 | AI83: 0 | AJ83: 0 | AK83: 0 | AL83: 0 | AM83: 0 | AN83: 0 | AO83: 0 | AP83: 0 | AQ83: 0 | AR83: 0 | AS83: 0 | AT83: 0 | AU83: 0 | AV83: 0 | AW83: 0 | AX83: 0 | AY83: 0 | AZ83: 0 | BA83: 0 | BB83: 0 | BC83: 0 | BD83: 0 | BE83: 0 | BF83: 0 | BG83: 0 | BH83: 0 | BI83: 0 | BJ83: 0 | BK83: 0 | BL83: 0 | BM83: 0 | BN83: 0 | BO83: 0 | BP83: 0 | BQ83: 4 | BR83: 0 | BS83: 0 | BT83: 0 | BU83: 0 | BV83: 0 | BW83: 0 | BX83: 0 | BY83: 0 | BZ83: 0 | CA83: 0 | CB83: 0 | CC83: 0 | CD83: 0 | CE83: 0 | CF83: 0 | CG83: 0 | CH83: 0 | CI83: 0 | CJ83: 0 | CK83: 4 | CL83: 0 | CM83: 0 | CN83: 0 | CO83: 0 | CP83: 0 | CQ83: 0 | CR83: 0 | CS83: 0 | CT83: 0 | CU83: 0 | CV83: 0 | CW83: 0 | CX83: 0 | CY83: 0 | CZ83: 0 | DA83: 0 | DB83: 0 | DC83: 0 | DD83: 0 | DE83: 0 | DF83: 0 | DG83: 0 | DH83: 0 | DI83: 0 | DJ83: 0 | DK83: 0 | DL83: 0 | DM83: 0 | DN83: 0 | DO83: 0 | DP83: 0 | DQ83: 0 | DR83: 0 | DS83: 0 | DT83: 0 | DU83: 0 | DV83: 0 | DW83: 0 | DX83: 0 | DY83: 0 | DZ83: 0 | EA83: 0 | EB83: 0 | EC83: 0 | ED83: 0 | EE83: 0 | EF83: 0 | EG83: 0 | EH83: 0 | EI83: 0 | EJ83: 0 | EK83: 0 | EL83: 0 | EM83: 0 | EN83: 0 | EO83: 0 | EP83: 0 | EQ83: 0 | ER83: 0 | ES83: 0 | ET83: 0 | EU83: 0 | EV83: 0 | EW83: 0 | EX83: 0 | EY83: 0 | EZ83: 0 | FA83: 0 | FB83: 0 | FC83: 0 | FD83: 0 | FE83: 0 | FF83: 0 | FG83: 0 | FH83: 0 | FI83: 0 | FJ83: 0 | FK83: 0 | FL83: 0 | FM83: 0 | FN83: 0 | FO83: 0 | FP83: 0 | FQ83: 0 | FR83: 0 | FS83: 0 | FT83: 0 | FU83: 0 | FV83: 0 | FW83: 0 | FX83: 0 | FY83: 0 | FZ83: 0 | GA83: 0 | GB83: 0 | GC83: 0 | GD83: 0 | GE83: 0 | GF83: 0 | GG83: 0 | GH83: 0 | GI83: 0 | GJ83: 0 | GK83: 0 | GL83: 0 | GM83: 0 | GN83: 0 | GO83: 0 | GP83: 0 | GQ83: 0 | GR83: 0 | GS83: 0 | GT83: 0 | GU83: 0 | GV83: 0 | GW83: 0 | GX83: 0 | GY83: 0 | GZ83: 0 | HA83: 0 | HB83: 0 | HC83: 0 | HD83: 0 | HE83: 0 | HF83: 0 | HG83: 0 | HH83: 0 | HI83: 0 | HJ83: 0 | HK83: 0 | HL83: 0 | HM83: 0 | HN83: 0 | HO83: 0 | HP83: 0 | HQ83: 0 | HR83: 0 | HS83: 0 | HT83: 0 | HU83: 0 | HV83: 0 | HW83: 0
A84: 7 | B84: 0 | C84: 0 | D84: 0 | E84: 0 | F84: 0 | G84: 0 | H84: 0 | I84: 0 | J84: 0 | K84: 0 | L84: 0 | M84: 0 | N84: 0 | O84: 0 | P84: 0 | Q84: 0 | R84: 0 | S84: 0 | T84: 0 | U84: 0 | V84: 0 | W84: 0 | X84: 0 | Y84: 0 | Z84: 0 | AA84: 0 | AB84: 0 | AC84: 0 | AD84: 0 | AE84: 0 | AF84: 0 | AG84: 0 | AH84: 0 | AI84: 0 | AJ84: 0 | AK84: 0 | AL84: 0 | AM84: 0 | AN84: 0 | AO84: 0 | AP84: 0 | AQ84: 0 | AR84: 0 | AS84: 0 | AT84: 0 | AU84: 0 | AV84: 0 | AW84: 0 | AX84: 0 | AY84: 0 | AZ84: 0 | BA84: 0 | BB84: 0 | BC84: 0 | BD84: 0 | BE84: 0 | BF84: 0 | BG84: 0 | BH84: 0 | BI84: 0 | BJ84: 0 | BK84: 0 | BL84: 0 | BM84: 0 | BN84: 0 | BO84: 0 | BP84: 0 | BQ84: 3 | BR84: 0 | BS84: 0 | BT84: 0 | BU84: 0 | BV84: 0 | BW84: 0 | BX84: 0 | BY84: 0 | BZ84: 0 | CA84: 0 | CB84: 0 | CC84: 0 | CD84: 0 | CE84: 0 | CF84: 0 | CG84: 0 | CH84: 0 | CI84: 0 | CJ84: 0 | CK84: 3 | CL84: 0 | CM84: 0 | CN84: 0 | CO84: 0 | CP84: 0 | CQ84: 0 | CR84: 0 | CS84: 0 | CT84: 0 | CU84: 0 | CV84: 0 | CW84: 0 | CX84: 0 | CY84: 0 | CZ84: 0 | DA84: 0 | DB84: 0 | DC84: 0 | DD84: 0 | DE84: 0 | DF84: 0 | DG84: 0 | DH84: 0 | DI84: 0 | DJ84: 0 | DK84: 0 | DL84: 0 | DM84: 0 | DN84: 0 | DO84: 0 | DP84: 0 | DQ84: 0 | DR84: 0 | DS84: 0 | DT84: 0 | DU84: 0 | DV84: 0 | DW84: 0 | DX84: 0 | DY84: 0 | DZ84: 0 | EA84: 0 | EB84: 0 | EC84: 0 | ED84: 0 | EE84: 0 | EF84: 0 | EG84: 0 | EH84: 0 | EI84: 0 | EJ84: 0 | EK84: 0 | EL84: 0 | EM84: 0 | EN84: 0 | EO84: 0 | EP84: 0 | EQ84: 0 | ER84: 0 | ES84: 0 | ET84: 0 | EU84: 0 | EV84: 0 | EW84: 0 | EX84: 0 | EY84: 0 | EZ84: 0 | FA84: 0 | FB84: 0 | FC84: 0 | FD84: 0 | FE84: 0 | FF84: 0 | FG84: 0 | FH84: 0 | FI84: 0 | FJ84: 0 | FK84: 0 | FL84: 0 | FM84: 0 | FN84: 0 | FO84: 0 | FP84: 0 | FQ84: 0 | FR84: 0 | FS84: 0 | FT84: 0 | FU84: 0 | FV84: 0 | FW84: 0 | FX84: 0 | FY84: 0 | FZ84: 0 | GA84: 0 | GB84: 0 | GC84: 0 | GD84: 0 | GE84: 0 | GF84: 0 | GG84: 0 | GH84: 0 | GI84: 0 | GJ84: 1 | GK84: 0 | GL84: 0 | GM84: 0 | GN84: 0 | GO84: 0 | GP84: 0 | GQ84: 0 | GR84: 0 | GS84: 0 | GT84: 0 | GU84: 0 | GV84: 0 | GW84: 0 | GX84: 0 | GY84: 0 | GZ84: 0 | HA84: 0 | HB84: 0 | HC84: 0 | HD84: 0 | HE84: 0 | HF84: 0 | HG84: 0 | HH84: 0 | HI84: 0 | HJ84: 0 | HK84: 0 | HL84: 0 | HM84: 0 | HN84: 0 | HO84: 0 | HP84: 0 | HQ84: 0 | HR84: 0 | HS84: 0 | HT84: 0 | HU84: 0 | HV84: 0 | HW84: 0
A85: 9 | B85: 0 | C85: 0 | D85: 0 | E85: 0 | F85: 0 | G85: 0 | H85: 0 | I85: 0 | J85: 0 | K85: 0 | L85: 0 | M85: 0 | N85: 0 | O85: 0 | P85: 0 | Q85: 0 | R85: 0 | S85: 0 | T85: 0 | U85: 0 | V85: 0 | W85: 0 | X85: 0 | Y85: 0 | Z85: 0 | AA85: 0 | AB85: 0 | AC85: 0 | AD85: 0 | AE85: 0 | AF85: 0 | AG85: 0 | AH85: 0 | AI85: 0 | AJ85: 0 | AK85: 0 | AL85: 0 | AM85: 0 | AN85: 0 | AO85: 0 | AP85: 0 | AQ85: 0 | AR85: 0 | AS85: 0 | AT85: 0 | AU85: 0 | AV85: 0 | AW85: 0 | AX85: 0 | AY85: 0 | AZ85: 0 | BA85: 0 | BB85: 0 | BC85: 0 | BD85: 0 | BE85: 0 | BF85: 0 | BG85: 0 | BH85: 0 | BI85: 0 | BJ85: 0 | BK85: 0 | BL85: 0 | BM85: 0 | BN85: 0 | BO85: 0 | BP85: 0 | BQ85: 6 | BR85: 0 | BS85: 0 | BT85: 3 | BU85: 0 | BV85: 0 | BW85: 0 | BX85: 0 | BY85: 0 | BZ85: 0 | CA85: 0 | CB85: 0 | CC85: 0 | CD85: 0 | CE85: 0 | CF85: 0 | CG85: 0 | CH85: 0 | CI85: 0 | CJ85: 0 | CK85: 5 | CL85: 0 | CM85: 0 | CN85: 0 | CO85: 3 | CP85: 0 | CQ85: 0 | CR85: 0 | CS85: 0 | CT85: 0 | CU85: 0 | CV85: 0 | CW85: 0 | CX85: 0 | CY85: 1 | CZ85: 1 | DA85: 0 | DB85: 0 | DC85: 0 | DD85: 0 | DE85: 0 | DF85: 0 | DG85: 0 | DH85: 0 | DI85: 1 | DJ85: 0 | DK85: 0 | DL85: 0 | DM85: 0 | DN85: 0 | DO85: 0 | DP85: 0 | DQ85: 0 | DR85: 0 | DS85: 0 | DT85: 0 | DU85: 0 | DV85: 0 | DW85: 0 | DX85: 0 | DY85: 0 | DZ85: 0 | EA85: 0 | EB85: 0 | EC85: 0 | ED85: 0 | EE85: 0 | EF85: 0 | EG85: 0 | EH85: 0 | EI85: 0 | EJ85: 0 | EK85: 0 | EL85: 0 | EM85: 0 | EN85: 0 | EO85: 0 | EP85: 0 | EQ85: 0 | ER85: 0 | ES85: 0 | ET85: 0 | EU85: 0 | EV85: 0 | EW85: 0 | EX85: 0 | EY85: 0 | EZ85: 0 | FA85: 0 | FB85: 0 | FC85: 0 | FD85: 0 | FE85: 0 | FF85: 0 | FG85: 0 | FH85: 0 | FI85: 0 | FJ85: 0 | FK85: 0 | FL85: 0 | FM85: 0 | FN85: 0 | FO85: 0 | FP85: 0 | FQ85: 0 | FR85: 0 | FS85: 0 | FT85: 0 | FU85: 0 | FV85: 0 | FW85: 0 | FX85: 0 | FY85: 0 | FZ85: 0 | GA85: 0 | GB85: 0 | GC85: 0 | GD85: 0 | GE85: 0 | GF85: 0 | GG85: 0 | GH85: 0 | GI85: 0 | GJ85: 0 | GK85: 0 | GL85: 0 | GM85: 0 | GN85: 0 | GO85: 0 | GP85: 0 | GQ85: 0 | GR85: 0 | GS85: 0 | GT85: 0 | GU85: 0 | GV85: 0 | GW85: 0 | GX85: 0 | GY85: 0 | GZ85: 0 | HA85: 0 | HB85: 0 | HC85: 0 | HD85: 0 | HE85: 0 | HF85: 0 | HG85: 0 | HH85: 0 | HI85: 0 | HJ85: 0 | HK85: 0 | HL85: 0 | HM85: 0 | HN85: 0 | HO85: 0 | HP85: 0 | HQ85: 0 | HR85: 0 | HS85: 0 | HT85: 0 | HU85: 0 | HV85: 0 | HW85: 0
A86: 10 | B86: 0 | C86: 0 | D86: 0 | E86: 0 | F86: 0 | G86: 0 | H86: 0 | I86: 0 | J86: 0 | K86: 0 | L86: 0 | M86: 0 | N86: 0 | O86: 0 | P86: 0 | Q86: 0 | R86: 0 | S86: 0 | T86: 0 | U86: 0 | V86: 0 | W86: 0 | X86: 0 | Y86: 0 | Z86: 0 | AA86: 0 | AB86: 0 | AC86: 0 | AD86: 0 | AE86: 0 | AF86: 0 | AG86: 0 | AH86: 0 | AI86: 0 | AJ86: 0 | AK86: 0 | AL86: 0 | AM86: 0 | AN86: 0 | AO86: 0 | AP86: 0 | AQ86: 0 | AR86: 0 | AS86: 0 | AT86: 0 | AU86: 0 | AV86: 0 | AW86: 0 | AX86: 0 | AY86: 0 | AZ86: 0 | BA86: 0 | BB86: 0 | BC86: 0 | BD86: 0 | BE86: 0 | BF86: 0 | BG86: 0 | BH86: 0 | BI86: 0 | BJ86: 0 | BK86: 0 | BL86: 0 | BM86: 0 | BN86: 0 | BO86: 0 | BP86: 0 | BQ86: 3 | BR86: 0 | BS86: 0 | BT86: 0 | BU86: 0 | BV86: 0 | BW86: 0 | BX86: 0 | BY86: 0 | BZ86: 0 | CA86: 0 | CB86: 0 | CC86: 0 | CD86: 0 | CE86: 0 | CF86: 0 | CG86: 0 | CH86: 0 | CI86: 0 | CJ86: 0 | CK86: 4 | CL86: 0 | CM86: 0 | CN86: 0 | CO86: 0 | CP86: 0 | CQ86: 0 | CR86: 0 | CS86: 0 | CT86: 0 | CU86: 0 | CV86: 0 | CW86: 0 | CX86: 0 | CY86: 0 | CZ86: 0 | DA86: 0 | DB86: 0 | DC86: 0 | DD86: 0 | DE86: 0 | DF86: 0 | DG86: 0 | DH86: 0 | DI86: 0 | DJ86: 0 | DK86: 0 | DL86: 0 | DM86: 0 | DN86: 0 | DO86: 0 | DP86: 0 | DQ86: 0 | DR86: 0 | DS86: 0 | DT86: 0 | DU86: 0 | DV86: 0 | DW86: 0 | DX86: 0 | DY86: 0 | DZ86: 0 | EA86: 0 | EB86: 0 | EC86: 0 | ED86: 0 | EE86: 0 | EF86: 0 | EG86: 0 | EH86: 0 | EI86: 0 | EJ86: 0 | EK86: 0 | EL86: 0 | EM86: 0 | EN86: 0 | EO86: 0 | EP86: 0 | EQ86: 0 | ER86: 0 | ES86: 0 | ET86: 0 | EU86: 0 | EV86: 0 | EW86: 0 | EX86: 0 | EY86: 0 | EZ86: 0 | FA86: 0 | FB86: 0 | FC86: 0 | FD86: 0 | FE86: 0 | FF86: 0 | FG86: 0 | FH86: 0 | FI86: 0 | FJ86: 0 | FK86: 0 | FL86: 0 | FM86: 0 | FN86: 0 | FO86: 0 | FP86: 0 | FQ86: 0 | FR86: 0 | FS86: 0 | FT86: 0 | FU86: 0 | FV86: 0 | FW86: 0 | FX86: 0 | FY86: 0 | FZ86: 0 | GA86: 0 | GB86: 0 | GC86: 0 | GD86: 0 | GE86: 0 | GF86: 0 | GG86: 0 | GH86: 0 | GI86: 0 | GJ86: 0 | GK86: 0 | GL86: 0 | GM86: 0 | GN86: 0 | GO86: 0 | GP86: 0 | GQ86: 0 | GR86: 0 | GS86: 0 | GT86: 0 | GU86: 0 | GV86: 0 | GW86: 0 | GX86: 0 | GY86: 0 | GZ86: 0 | HA86: 0 | HB86: 0 | HC86: 0 | HD86: 0 | HE86: 0 | HF86: 0 | HG86: 0 | HH86: 0 | HI86: 0 | HJ86: 0 | HK86: 0 | HL86: 0 | HM86: 0 | HN86: 0 | HO86: 0 | HP86: 0 | HQ86: 0 | HR86: 0 | HS86: 0 | HT86: 0 | HU86: 0 | HV86: 0 | HW86: 0
A87: 11 | B87: 0 | C87: 0 | D87: 0 | E87: 0 | F87: 0 | G87: 0 | H87: 0 | I87: 0 | J87: 0 | K87: 0 | L87: 0 | M87: 0 | N87: 0 | O87: 0 | P87: 0 | Q87: 0 | R87: 0 | S87: 0 | T87: 0 | U87: 0 | V87: 0 | W87: 0 | X87: 0 | Y87: 0 | Z87: 0 | AA87: 0 | AB87: 0 | AC87: 0 | AD87: 0 | AE87: 0 | AF87: 0 | AG87: 0 | AH87: 0 | AI87: 0 | AJ87: 0 | AK87: 0 | AL87: 0 | AM87: 0 | AN87: 0 | AO87: 0 | AP87: 0 | AQ87: 0 | AR87: 0 | AS87: 0 | AT87: 0 | AU87: 0 | AV87: 0 | AW87: 0 | AX87: 0 | AY87: 0 | AZ87: 0 | BA87: 0 | BB87: 0 | BC87: 0 | BD87: 0 | BE87: 0 | BF87: 0 | BG87: 0 | BH87: 0 | BI87: 0 | BJ87: 0 | BK87: 0 | BL87: 0 | BM87: 0 | BN87: 0 | BO87: 0 | BP87: 0 | BQ87: 3 | BR87: 0 | BS87: 0 | BT87: 0 | BU87: 0 | BV87: 0 | BW87: 0 | BX87: 0 | BY87: 0 | BZ87: 0 | CA87: 0 | CB87: 0 | CC87: 0 | CD87: 0 | CE87: 0 | CF87: 0 | CG87: 0 | CH87: 0 | CI87: 0 | CJ87: 0 | CK87: 3 | CL87: 0 | CM87: 1 | CN87: 0 | CO87: 0 | CP87: 0 | CQ87: 0 | CR87: 0 | CS87: 0 | CT87: 0 | CU87: 0 | CV87: 0 | CW87: 0 | CX87: 0 | CY87: 0 | CZ87: 0 | DA87: 0 | DB87: 0 | DC87: 0 | DD87: 0 | DE87: 0 | DF87: 0 | DG87: 0 | DH87: 0 | DI87: 0 | DJ87: 0 | DK87: 0 | DL87: 0 | DM87: 0 | DN87: 0 | DO87: 0 | DP87: 0 | DQ87: 0 | DR87: 0 | DS87: 0 | DT87: 0 | DU87: 0 | DV87: 0 | DW87: 0 | DX87: 0 | DY87: 0 | DZ87: 0 | EA87: 0 | EB87: 0 | EC87: 0 | ED87: 0 | EE87: 0 | EF87: 0 | EG87: 0 | EH87: 0 | EI87: 0 | EJ87: 0 | EK87: 0 | EL87: 0 | EM87: 0 | EN87: 0 | EO87: 0 | EP87: 0 | EQ87: 0 | ER87: 0 | ES87: 0 | ET87: 0 | EU87: 0 | EV87: 0 | EW87: 0 | EX87: 0 | EY87: 0 | EZ87: 0 | FA87: 0 | FB87: 0 | FC87: 0 | FD87: 0 | FE87: 0 | FF87: 0 | FG87: 0 | FH87: 0 | FI87: 0 | FJ87: 0 | FK87: 0 | FL87: 0 | FM87: 0 | FN87: 0 | FO87: 0 | FP87: 0 | FQ87: 0 | FR87: 0 | FS87: 0 | FT87: 0 | FU87: 0 | FV87: 0 | FW87: 0 | FX87: 0 | FY87: 0 | FZ87: 0 | GA87: 0 | GB87: 0 | GC87: 0 | GD87: 0 | GE87: 0 | GF87: 0 | GG87: 0 | GH87: 0 | GI87: 0 | GJ87: 0 | GK87: 0 | GL87: 0 | GM87: 0 | GN87: 0 | GO87: 0 | GP87: 0 | GQ87: 0 | GR87: 0 | GS87: 0 | GT87: 0 | GU87: 0 | GV87: 0 | GW87: 0 | GX87: 0 | GY87: 0 | GZ87: 0 | HA87: 0 | HB87: 0 | HC87: 0 | HD87: 0 | HE87: 0 | HF87: 0 | HG87: 0 | HH87: 0 | HI87: 0 | HJ87: 0 | HK87: 0 | HL87: 0 | HM87: 0 | HN87: 0 | HO87: 0 | HP87: 0 | HQ87: 0 | HR87: 0 | HS87: 0 | HT87: 0 | HU87: 0 | HV87: 0 | HW87: 0
A88: T | B88: 2 | C88: 2 | D88: 2 | E88: 2 | F88: 0 | G88: 0 | H88: 0 | I88: 0 | J88: 3 | K88: 3 | L88: 2 | M88: 2 | N88: 0 | O88: 0 | P88: 0 | Q88: 0 | R88: 0 | S88: 0 | T88: 0 | U88: 0 | V88: 0 | W88: 0 | X88: 0 | Y88: 0 | Z88: 0 | AA88: 0 | AB88: 0 | AC88: 0 | AD88: 0 | AE88: 0 | AF88: 0 | AG88: 0 | AH88: 0 | AI88: 0 | AJ88: 0 | AK88: 0 | AL88: 0 | AM88: 0 | AN88: 0 | AO88: 0 | AP88: 0 | AQ88: 0 | AR88: 0 | AS88: 0 | AT88: 0 | AU88: 0 | AV88: 0 | AW88: 0 | AX88: 0 | AY88: 0 | AZ88: 0 | BA88: 0 | BB88: 0 | BC88: 0 | BD88: 0 | BE88: 0 | BF88: 0 | BG88: 0 | BH88: 0 | BI88: 0 | BJ88: 9 | BK88: 0 | BL88: 0 | BM88: 0 | BN88: 0 | BO88: 0 | BP88: 0 | BQ88: 50 | BR88: 1 | BS88: 2 | BT88: 11 | BU88: 0 | BV88: 0 | BW88: 0 | BX88: 0 | BY88: 0 | BZ88: 0 | CA88: 0 | CB88: 2 | CC88: 0 | CD88: 0 | CE88: 0 | CF88: 0 | CG88: 0 | CH88: 0 | CI88: 0 | CJ88: 0 | CK88: 49 | CL88: 0 | CM88: 1 | CN88: 0 | CO88: 10 | CP88: 0 | CQ88: 0 | CR88: 0 | CS88: 0 | CT88: 0 | CU88: 0 | CV88: 0 | CW88: 0 | CX88: 0 | CY88: 6 | CZ88: 4 | DA88: 0 | DB88: 0 | DC88: 0 | DD88: 0 | DE88: 0 | DF88: 0 | DG88: 0 | DH88: 0 | DI88: 4 | DJ88: 0 | DK88: 0 | DL88: 0 | DM88: 0 | DN88: 0 | DO88: 0 | DP88: 0 | DQ88: 0 | DR88: 0 | DS88: 0 | DT88: 0 | DU88: 0 | DV88: 0 | DW88: 0 | DX88: 0 | DY88: 0 | DZ88: 0 | EA88: 0 | EB88: 0 | EC88: 0 | ED88: 0 | EE88: 0 | EF88: 1 | EG88: 0 | EH88: 1 | EI88: 0 | EJ88: 0 | EK88: 0 | EL88: 0 | EM88: 0 | EN88: 0 | EO88: 0 | EP88: 0 | EQ88: 0 | ER88: 1 | ES88: 0 | ET88: 1 | EU88: 0 | EV88: 0 | EW88: 0 | EX88: 0 | EY88: 0 | EZ88: 0 | FA88: 0 | FB88: 0 | FC88: 0 | FD88: 1 | FE88: 0 | FF88: 1 | FG88: 0 | FH88: 0 | FI88: 0 | FJ88: 0 | FK88: 0 | FL88: 0 | FM88: 0 | FN88: 0 | FO88: 0 | FP88: 0 | FQ88: 0 | FR88: 0 | FS88: 0 | FT88: 0 | FU88: 0 | FV88: 0 | FW88: 0 | FX88: 0 | FY88: 0 | FZ88: 0 | GA88: 0 | GB88: 0 | GC88: 0 | GD88: 0 | GE88: 0 | GF88: 0 | GG88: 0 | GH88: 2 | GI88: 0 | GJ88: 3 | GK88: 3 | GL88: 0 | GM88: 0 | GN88: 3 | GO88: 0 | GP88: 0 | GQ88: 0 | GR88: 0 | GS88: 0 | GT88: 0 | GU88: 0 | GV88: 0 | GW88: 0 | GX88: 0 | GY88: 0 | GZ88: 0 | HA88: 0 | HB88: 0 | HC88: 0 | HD88: 0 | HE88: 0 | HF88: 0 | HG88: 0 | HH88: 0 | HI88: 0 | HJ88: 0 | HK88: 0 | HL88: 0 | HM88: 0 | HN88: 0 | HO88: 0 | HP88: 0 | HQ88: 0 | HR88: 0 | HS88: 0 | HT88: 0 | HU88: 0 | HV88: 0 | HW88: 0
A93: TOTAL
A94: =COUNT(A77:A91) -> 11 | B94: =SUM(B77:B91) -> 4 | C94: =SUM(C77:C91) -> 4 | D94: 4 | E94: 4 | F94: 0 | G94: 0 | H94: 0 | I94: 0 | J94: 6 | K94: 6 | L94: 4 | M94: 4 | N94: 0 | O94: 0 | P94: 0 | Q94: 0 | R94: 0 | S94: 0 | T94: 0 | U94: 0 | V94: 0 | W94: 0 | X94: 0 | Y94: 0 | Z94: 0 | AA94: 0 | AB94: 0 | AC94: 0 | AD94: 0 | AE94: 0 | AF94: 0 | AG94: 0 | AH94: 0 | AI94: 0 | AJ94: 0 | AK94: 0 | AL94: 0 | AM94: 0 | AN94: 0 | AO94: 0 | AP94: 0 | AQ94: 0 | AR94: 0 | AS94: 0 | AT94: 0 | AU94: 0 | AV94: 0 | AW94: 0 | AX94: 0 | AY94: 0 | AZ94: 0 | BA94: 0 | BB94: 0 | BC94: 0 | BD94: 0 | BE94: 0 | BF94: 0 | BG94: 0 | BH94: 0 | BI94: 0 | BJ94: 18 | BK94: 0 | BL94: 0 | BM94: 0 | BN94: 0 | BO94: =SUM(BO77:BO91) -> 0 | BP94: 0 | BQ94: 100 | BR94: 2 | BS94: 4 | BT94: 22 | BU94: 0 | BV94: 0 | BW94: 0 | BX94: 0 | BY94: 0 | BZ94: 0 | CA94: 0 | CB94: 4 | CC94: 0 | CD94: 0 | CE94: 0 | CF94: 0 | CG94: 0 | CH94: 0 | CI94: 0 | CJ94: 0 | CK94: 98 | CL94: 0 | CM94: 2 | CN94: 0 | CO94: 20 | CP94: 0 | CQ94: 0 | CR94: 0 | CS94: 0 | CT94: 0 | CU94: 0 | CV94: 0 | CW94: 0 | CX94: 0 | CY94: 12 | CZ94: 8 | DA94: 0 | DB94: 0 | DC94: 0 | DD94: 0 | DE94: 0 | DF94: 0 | DG94: 0 | DH94: 0 | DI94: 8 | DJ94: 0 | DK94: 0 | DL94: 0 | DM94: 0 | DN94: 0 | DO94: 0 | DP94: 0 | DQ94: 0 | DR94: 0 | DS94: 0 | DT94: 0 | DU94: 0 | DV94: 0 | DW94: 0 | DX94: 0 | DY94: 0 | DZ94: 0 | EA94: =SUM(EA77:EA91) -> 0 | EB94: 0 | EC94: 0 | ED94: 0 | EE94: 0 | EF94: 2 | EG94: 0 | EH94: 2 | EI94: 0 | EJ94: 0 | EK94: 0 | EL94: 0 | EM94: 0 | EN94: 0 | EO94: 0 | EP94: 0 | EQ94: 0 | ER94: 2 | ES94: 0 | ET94: 2 | EU94: 0 | EV94: 0 | EW94: 0 | EX94: 0 | EY94: 0 | EZ94: 0 | FA94: 0 | FB94: 0 | FC94: 0 | FD94: 2 | FE94: 0 | FF94: 2 | FG94: 0 | FH94: 0 | FI94: 0 | FJ94: 0 | FK94: 0 | FL94: 0 | FM94: 0 | FN94: 0 | FO94: 0 | FP94: 0 | FQ94: 0 | FR94: 0 | FS94: 0 | FT94: 0 | FU94: 0 | FV94: 0 | FW94: 0 | FX94: 0 | FY94: 0 | FZ94: 0 | GA94: 0 | GB94: 0 | GC94: 0 | GD94: 0 | GE94: 0 | GF94: 0 | GG94: 0 | GH94: 4 | GI94: 0 | GJ94: 6 | GK94: 6 | GL94: 0 | GM94: =SUM(GM77:GM91) -> 0 | GN94: 6 | GO94: 0 | GP94: 0 | GQ94: 0 | GR94: 0 | GS94: 0 | GT94: 0 | GU94: 0 | GV94: 0 | GW94: 0 | GX94: 0 | GY94: 0 | GZ94: 0 | HA94: 0 | HB94: 0 | HC94: 0 | HD94: 0 | HE94: 0 | HF94: 0 | HG94: 0 | HH94: 0 | HI94: 0 | HJ94: 0 | HK94: 0 | HL94: 0 | HM94: 0 | HN94: 0 | HO94: =SUM(HO77:HO91) -> 0 | HP94: 0 | HQ94: 0 | HR94: 0 | HS94: 0 | HT94: 0 | HU94: 0 | HV94: 0 | HW94: 0
A95: =CONCATENATE(A77,"-",A78,"-",A79,"-",A80,"-",A81,"-",A82,"-",A83,"-",A84,"-",A85,"-",A86,"-",A87,"-",A88) -> 2-3-1-4-5-6-8-7-9-10-11-T
B96: BAS001 | C96: BAS002 | D96: BAS003 | E96: BAS004 | F96: BAS005 | G96: BAS006 | H96: BAS007 | I96: BAS008 | J96: BAS009 | K96: BAS010 | L96: BAS011 | M96: BAS012 | N96: BAS013 | O96: BAS014 | P96: BAS015 | Q96: BAS016 | R96: BAS017 | S96: BAS018 | T96: BAS019 | U96: BAS020 | V96: BAS021 | W96: BAS022 | X96: BAS023 | Y96: BAS024 | Z96: BAS025 | AA96: BAS026 | AB96: BAS027 | AC96: BAS028 | AD96: BAS029 | AE96: BAS030 | AF96: BAS031 | AG96: BAS032 | AH96: BAS033 | AI96: BAS034 | AJ96: BAS035 | AK96: BAS036 | AL96: BAS037 | AM96: BAS038 | AN96: BAS039 | AO96: BAS040 | AP96: BAS041 | AQ96: BAS042 | AR96: BAS043 | AS96: BAS044 | AT96: BAS045 | AU96: BAS046 | AV96: BAS047 | AW96: BAS048 | AX96: BAS049 | AY96: BAS050 | AZ96: BAS051 | BA96: BAS052 | BB96: BAS053 | BC96: BAS054 | BD96: BAS055 | BE96: BAS056 | BF96: BAS057 | BG96: BAS058 | BH96: BAS059 | BI96: BAS060 | BJ96: BAS061 | BK96: BAS062 | BL96: BAS063 | BM96: BAS064 | BN96: BAS065 | BO96: BAS066 | BP96: BAS067 | BQ96: BAS068 | BR96: BAS069 | BS96: BAS070 | BT96: BAS071 | BU96: BAS072 | BV96: BAS073 | BW96: BAS074 | BX96: BAS075 | BY96: BAS076 | BZ96: BAS077 | CA96: BAS078 | CB96: BAS079 | CC96: BAS080 | CD96: BAS081 | CE96: BAS082 | CF96: BAS083 | CG96: BAS084 | CH96: BAS085 | CI96: BAS086 | CJ96: BAS087 | CK96: BAS088 | CL96: BAS089 | CM96: BAS090 | CN96: BAS091 | CO96: BAS092 | CP96: BAS093 | CQ96: BAS094 | CR96: BAS095 | CS96: BAS096 | CT96: BAS097 | CU96: BAS098 | CV96: BAS099 | CW96: BAS100 | CX96: BAS101 | CY96: BAS102 | CZ96: BAS103 | DA96: BAS104 | DB96: BAS105 | DC96: BAS106 | DD96: BAS107 | DE96: BAS108 | DF96: BAS109 | DG96: BAS110 | DH96: BAS111 | DI96: BAS112 | DJ96: BAS113 | DK96: BAS114 | DL96: BAS115 | DM96: BAS116 | DN96: BAS117 | DO96: BAS118 | DP96: BAS119 | DQ96: BAS120 | DR96: BAS121 | DS96: BAS122 | DT96: BAS123 | DU96: BAS124 | DV96: BAS125 | DW96: BAS126 | DX96: BAS127 | DY96: BAS128 | DZ96: BAS129 | EA96: BAS130 | EB96: BAS131 | EC96: BAS132 | ED96: BAS133 | EE96: BAS134 | EF96: BAS135 | EG96: BAS136 | EH96: BAS137 | EI96: BAS138 | EJ96: BAS139 | EK96: BAS140 | EL96: BAS141 | EM96: BAS142 | EN96: BAS143 | EO96: BAS144 | EP96: BAS145 | EQ96: BAS146 | ER96: BAS147 | ES96: BAS148 | ET96: BAS149 | EU96: BAS150 | EV96: BAS151 | EW96: BAS152 | EX96: BAS153 | EY96: BAS154 | EZ96: BAS155 | FA96: BAS156 | FB96: BAS157 | FC96: BAS158 | FD96: BAS159 | FE96: BAS160 | FF96: BAS161 | FG96: BAS162 | FH96: BAS163 | FI96: BAS164 | FJ96: BAS165 | FK96: BAS166 | FL96: BAS167 | FM96: BAS168 | FN96: BAS169 | FO96: BAS170 | FP96: BAS171 | FQ96: BAS172 | FR96: BAS173 | FS96: BAS174 | FT96: BAS175 | FU96: BAS176 | FV96: BAS177 | FW96: BAS178 | FX96: BAS179 | FY96: BAS180 | FZ96: BAS181 | GA96: BAS182 | GB96: BAS183 | GC96: BAS184 | GD96: BAS185 | GE96: BAS186 | GF96: BAS187 | GG96: BAS188 | GH96: BAS189 | GI96: BAS190 | GJ96: BAS191 | GK96: BAS192 | GL96: BAS193 | GM96: BAS194 | GN96: BAS195 | GO96: BAS196 | GP96: BAS197 | GQ96: BAS198 | GR96: BAS199 | GS96: BAS200 | GT96: BAS201 | GU96: BAS202 | GV96: BAS203 | GW96: BAS204 | GX96: BAS205 | GY96: BAS206 | GZ96: BAS207 | HA96: BAS208 | HB96: BAS209 | HC96: BAS210 | HD96: BAS211 | HE96: BAS212 | HF96: BAS213 | HG96: BAS214 | HH96: BAS215 | HI96: BAS216 | HJ96: BAS217 | HK96: BAS218 | HL96: BAS219 | HM96: BAS220 | HN96: BAS221 | HO96: BAS222 | HP96: BAS223 | HQ96: BAS224 | HR96: BAS225 | HS96: BAS226 | HT96: BAS227 | HU96: BAS228 | HV96: BAS229 | HW96: BAS230
B97: =IF(B96=B76,"SI","NO") -> SI | C97: =IF(C96=C76,"SI","NO") -> SI | D97: SI | E97: SI | F97: SI | G97: SI | H97: SI | I97: SI | J97: SI | K97: SI | L97: SI | M97: SI | N97: SI | O97: SI | P97: SI | Q97: SI | R97: SI | S97: SI | T97: SI | U97: SI | V97: SI | W97: SI | X97: SI | Y97: SI | Z97: SI | AA97: SI | AB97: SI | AC97: SI | AD97: SI | AE97: SI | AF97: SI | AG97: SI | AH97: SI | AI97: SI | AJ97: SI | AK97: SI | AL97: SI | AM97: SI | AN97: SI | AO97: SI | AP97: SI | AQ97: SI | AR97: SI | AS97: SI | AT97: SI | AU97: SI | AV97: SI | AW97: SI | AX97: SI | AY97: SI | AZ97: SI | BA97: SI | BB97: SI | BC97: SI | BD97: SI | BE97: SI | BF97: SI | BG97: SI | BH97: SI | BI97: SI | BJ97: SI | BK97: SI | BL97: SI | BM97: SI | BN97: SI | BO97: =IF(BO96=BO76,"SI","NO") -> SI | BP97: SI | BQ97: SI | BR97: SI | BS97: SI | BT97: SI | BU97: SI | BV97: SI | BW97: SI | BX97: SI | BY97: SI | BZ97: SI | CA97: SI | CB97: SI | CC97: SI | CD97: SI | CE97: SI | CF97: SI | CG97: SI | CH97: SI | CI97: SI | CJ97: SI | CK97: SI | CL97: SI | CM97: SI | CN97: SI | CO97: SI | CP97: SI | CQ97: SI | CR97: SI | CS97: SI | CT97: SI | CU97: SI | CV97: SI | CW97: SI | CX97: SI | CY97: SI | CZ97: SI | DA97: SI | DB97: SI | DC97: SI | DD97: SI | DE97: SI | DF97: SI | DG97: SI | DH97: SI | DI97: SI | DJ97: SI | DK97: SI | DL97: SI | DM97: SI | DN97: SI | DO97: SI | DP97: SI | DQ97: SI | DR97: SI | DS97: SI | DT97: SI | DU97: SI | DV97: SI | DW97: SI | DX97: SI | DY97: SI | DZ97: SI | EA97: =IF(EA96=EA76,"SI","NO") -> SI | EB97: SI | EC97: SI | ED97: SI | EE97: SI | EF97: SI | EG97: SI | EH97: SI | EI97: SI | EJ97: SI | EK97: SI | EL97: SI | EM97: SI | EN97: SI | EO97: SI | EP97: SI | EQ97: SI | ER97: SI | ES97: SI | ET97: SI | EU97: SI | EV97: SI | EW97: SI | EX97: SI | EY97: SI | EZ97: SI | FA97: SI | FB97: SI | FC97: SI | FD97: SI | FE97: SI | FF97: SI | FG97: SI | FH97: SI | FI97: SI | FJ97: SI | FK97: SI | FL97: SI | FM97: SI | FN97: SI | FO97: SI | FP97: SI | FQ97: SI | FR97: SI | FS97: SI | FT97: SI | FU97: SI | FV97: SI | FW97: SI | FX97: SI | FY97: SI | FZ97: SI | GA97: SI | GB97: SI | GC97: SI | GD97: SI | GE97: SI | GF97: SI | GG97: SI | GH97: SI | GI97: SI | GJ97: SI | GK97: SI | GL97: SI | GM97: =IF(GM96=GM76,"SI","NO") -> SI | GN97: SI | GO97: SI | GP97: SI | GQ97: SI | GR97: SI | GS97: SI | GT97: SI | GU97: SI | GV97: SI | GW97: SI | GX97: SI | GY97: SI | GZ97: SI | HA97: SI | HB97: SI | HC97: SI | HD97: SI | HE97: SI | HF97: SI | HG97: SI | HH97: SI | HI97: SI | HJ97: SI | HK97: SI | HL97: SI | HM97: SI | HN97: SI | HO97: =IF(HO96=HO76,"SI","NO") -> SI | HP97: SI | HQ97: SI | HR97: SI | HS97: SI | HT97: SI | HU97: SI | HV97: SI | HW97: SI
A99: ITSVIH0011M
A100: anno | B100: 2024
A101: cod_red | B101: 03
A102: codmic | B102: (Todas)
A103: cod_prov | B103: (Todas)
A104: coddist | B104: (Todas)
A105: cod_estab | B105: (Todas)
A106: cod_eje | B106: (Todas)
B108: Valores
A109: Etiquetas de fila | B109: BAS001 | C109: BAS002 | D109: BAS003 | E109: BAS004 | F109: BAS005 | G109: BAS006 | H109: BAS007 | I109: BAS008 | J109: BAS009 | K109: BAS010 | L109: BAS011 | M109: BAS012 | N109: BAS013 | O109: BAS014 | P109: BAS015 | Q109: BAS016 | R109: BAS017 | S109: BAS018 | T109: BAS019 | U109: BAS020 | V109: BAS021 | W109: BAS022 | X109: BAS023 | Y109: BAS024 | Z109: BAS025 | AA109: BAS026 | AB109: BAS027 | AC109: BAS028 | AD109: BAS029 | AE109: BAS030 | AF109: BAS031 | AG109: BAS032 | AH109: BAS033 | AI109: BAS034 | AJ109: BAS035 | AK109: BAS036 | AL109: BAS037 | AM109: BAS038 | AN109: BAS039 | AO109: BAS040 | AP109: BAS041 | AQ109: BAS042 | AR109: BAS043 | AS109: BAS044 | AT109: BAS045 | AU109: BAS046 | AV109: BAS047 | AW109: BAS048 | AX109: BAS049 | AY109: BAS050 | AZ109: BAS051 | BA109: BAS052 | BB109: BAS053 | BC109: BAS054 | BD109: BAS055 | BE109: BAS056 | BF109: BAS057 | BG109: BAS058 | BH109: BAS059 | BI109: BAS060 | BJ109: BAS061 | BK109: BAS062 | BL109: BAS063 | BM109: BAS064 | BN109: BAS065 | BO109: BAS066 | BP109: BAS067 | BQ109: BAS068 | BR109: BAS069 | BS109: BAS070 | BT109: BAS071 | BU109: BAS072 | BV109: BAS073 | BW109: BAS074 | BX109: BAS075 | BY109: BAS076 | BZ109: BAS077 | CA109: BAS078 | CB109: BAS079 | CC109: BAS080 | CD109: BAS081 | CE109: BAS082 | CF109: BAS083 | CG109: BAS084 | CH109: BAS085 | CI109: BAS086 | CJ109: BAS087 | CK109: BAS088 | CL109: BAS089 | CM109: BAS090 | CN109: BAS091 | CO109: BAS092 | CP109: BAS093 | CQ109: BAS094 | CR109: BAS095 | CS109: BAS096 | CT109: BAS097 | CU109: BAS098 | CV109: BAS099 | CW109: BAS100 | CX109: BAS101 | CY109: BAS102 | CZ109: BAS103 | DA109: BAS104 | DB109: BAS105 | DC109: BAS106 | DD109: BAS107 | DE109: BAS108 | DF109: BAS109 | DG109: BAS110 | DH109: BAS111 | DI109: BAS112 | DJ109: BAS113 | DK109: BAS114 | DL109: BAS115 | DM109: BAS116 | DN109: BAS117 | DO109: BAS118 | DP109: BAS119 | DQ109: BAS120 | DR109: BAS121 | DS109: BAS122 | DT109: BAS123 | DU109: BAS124 | DV109: BAS125 | DW109: BAS126 | DX109: BAS127 | DY109: BAS128 | DZ109: BAS129 | EA109: BAS130 | EB109: BAS131 | EC109: BAS132 | ED109: BAS133 | EE109: BAS134 | EF109: BAS135 | EG109: BAS136 | EH109: BAS137 | EI109: BAS138 | EJ109: BAS139 | EK109: BAS140 | EL109: BAS141 | EM109: BAS142 | EN109: BAS143 | EO109: BAS144 | EP109: BAS145 | EQ109: BAS146 | ER109: BAS147 | ES109: BAS148 | ET109: BAS149 | EU109: BAS150 | EV109: BAS151 | EW109: BAS152 | EX109: BAS153 | EY109: BAS154 | EZ109: BAS155 | FA109: BAS156 | FB109: BAS157 | FC109: BAS158 | FD109: BAS159 | FE109: BAS160 | FF109: BAS161 | FG109: BAS162 | FH109: BAS163 | FI109: BAS164 | FJ109: BAS165 | FK109: BAS166 | FL109: BAS167 | FM109: BAS168 | FN109: BAS169 | FO109: BAS170 | FP109: BAS171 | FQ109: BAS172 | FR109: BAS173 | FS109: BAS174 | FT109: BAS175 | FU109: BAS176 | FV109: BAS177 | FW109: BAS178 | FX109: BAS179 | FY109: BAS180 | FZ109: BAS181 | GA109: BAS182 | GB109: BAS183 | GC109: BAS184 | GD109: BAS185 | GE109: BAS186 | GF109: BAS187 | GG109: BAS188 | GH109: BAS189 | GI109: BAS190 | GJ109: BAS191 | GK109: BAS192 | GL109: BAS193 | GM109: BAS194 | GN109: BAS195 | GO109: BAS196 | GP109: BAS197 | GQ109: BAS198 | GR109: BAS199 | GS109: BAS200 | GT109: BAS201 | GU109: BAS202 | GV109: BAS203 | GW109: BAS204 | GX109: BAS205 | GY109: BAS206 | GZ109: BAS207 | HA109: BAS208 | HB109: BAS209 | HC109: BAS210 | HD109: BAS211 | HE109: BAS212 | HF109: BAS213 | HG109: BAS214 | HH109: BAS215 | HI109: BAS216 | HJ109: BAS217 | HK109: BAS218 | HL109: BAS219 | HM109: BAS220 | HN109: BAS221 | HO109: BAS222 | HP109: BAS223 | HQ109: BAS224 | HR109: BAS225 | HS109: BAS226 | HT109: BAS227 | HU109: BAS228 | HV109: BAS229 | HW109: BAS230
A110: 2 | B110: 0 | C110: 0 | D110: 0 | E110: 0 | F110: 0 | G110: 0 | H110: 0 | I110: 0 | J110: 0 | K110: 0 | L110: 0 | M110: 0 | N110: 0 | O110: 0 | P110: 0 | Q110: 0 | R110: 0 | S110: 0 | T110: 0 | U110: 0 | V110: 0 | W110: 0 | X110: 0 | Y110: 0 | Z110: 0 | AA110: 0 | AB110: 0 | AC110: 0 | AD110: 0 | AE110: 0 | AF110: 0 | AG110: 0 | AH110: 0 | AI110: 0 | AJ110: 0 | AK110: 0 | AL110: 0 | AM110: 0 | AN110: 0 | AO110: 0 | AP110: 0 | AQ110: 0 | AR110: 0 | AS110: 0 | AT110: 0 | AU110: 0 | AV110: 0 | AW110: 0 | AX110: 0 | AY110: 0 | AZ110: 0 | BA110: 0 | BB110: 0 | BC110: 0 | BD110: 0 | BE110: 0 | BF110: 0 | BG110: 0 | BH110: 0 | BI110: 0 | BJ110: 6 | BK110: 0 | BL110: 0 | BM110: 0 | BN110: 0 | BO110: 0 | BP110: 0 | BQ110: 6 | BR110: 0 | BS110: 0 | BT110: 0 | BU110: 0 | BV110: 0 | BW110: 0 | BX110: 0 | BY110: 0 | BZ110: 0 | CA110: 0 | CB110: 0 | CC110: 0 | CD110: 0 | CE110: 0 | CF110: 0 | CG110: 0 | CH110: 0 | CI110: 0 | CJ110: 0 | CK110: 6 | CL110: 0 | CM110: 0 | CN110: 0 | CO110: 0 | CP110: 0 | CQ110: 0 | CR110: 0 | CS110: 0 | CT110: 0 | CU110: 0 | CV110: 0 | CW110: 0 | CX110: 0 | CY110: 0 | CZ110: 0 | DA110: 0 | DB110: 0 | DC110: 0 | DD110: 0 | DE110: 0 | DF110: 0 | DG110: 0 | DH110: 0 | DI110: 0 | DJ110: 0 | DK110: 0 | DL110: 0 | DM110: 0 | DN110: 0 | DO110: 0 | DP110: 0 | DQ110: 0 | DR110: 0 | DS110: 0 | DT110: 0 | DU110: 0 | DV110: 0 | DW110: 0 | DX110: 0 | DY110: 0 | DZ110: 0 | EA110: 0 | EB110: 0 | EC110: 0 | ED110: 0 | EE110: 0 | EF110: 0 | EG110: 0 | EH110: 0 | EI110: 0 | EJ110: 0 | EK110: 0 | EL110: 0 | EM110: 0 | EN110: 0 | EO110: 0 | EP110: 0 | EQ110: 0 | ER110: 0 | ES110: 0 | ET110: 0 | EU110: 0 | EV110: 0 | EW110: 0 | EX110: 0 | EY110: 0 | EZ110: 0 | FA110: 0 | FB110: 0 | FC110: 0 | FD110: 0 | FE110: 0 | FF110: 0 | FG110: 0 | FH110: 0 | FI110: 0 | FJ110: 0 | FK110: 0 | FL110: 0 | FM110: 0 | FN110: 0 | FO110: 0 | FP110: 0 | FQ110: 0 | FR110: 0 | FS110: 0 | FT110: 0 | FU110: 0 | FV110: 0 | FW110: 0 | FX110: 0 | FY110: 0 | FZ110: 0 | GA110: 0 | GB110: 0 | GC110: 0 | GD110: 0 | GE110: 0 | GF110: 0 | GG110: 0 | GH110: 0 | GI110: 0 | GJ110: 0 | GK110: 0 | GL110: 0 | GM110: 0 | GN110: 0 | GO110: 0 | GP110: 0 | GQ110: 0 | GR110: 0 | GS110: 0 | GT110: 0 | GU110: 0 | GV110: 0 | GW110: 0 | GX110: 0 | GY110: 0 | GZ110: 0 | HA110: 0 | HB110: 0 | HC110: 0 | HD110: 0 | HE110: 0 | HF110: 0 | HG110: 0 | HH110: 0 | HI110: 0 | HJ110: 0 | HK110: 0 | HL110: 0 | HM110: 0 | HN110: 0 | HO110: 0 | HP110: 0 | HQ110: 0 | HR110: 0 | HS110: 0 | HT110: 0 | HU110: 0 | HV110: 0 | HW110: 0
A111: 3 | B111: 0 | C111: 0 | D111: 0 | E111: 0 | F111: 0 | G111: 0 | H111: 0 | I111: 0 | J111: 0 | K111: 0 | L111: 0 | M111: 0 | N111: 0 | O111: 0 | P111: 0 | Q111: 0 | R111: 0 | S111: 0 | T111: 0 | U111: 0 | V111: 0 | W111: 0 | X111: 0 | Y111: 0 | Z111: 0 | AA111: 0 | AB111: 0 | AC111: 0 | AD111: 0 | AE111: 0 | AF111: 0 | AG111: 0 | AH111: 0 | AI111: 0 | AJ111: 0 | AK111: 0 | AL111: 0 | AM111: 0 | AN111: 0 | AO111: 0 | AP111: 0 | AQ111: 0 | AR111: 0 | AS111: 0 | AT111: 0 | AU111: 0 | AV111: 0 | AW111: 0 | AX111: 0 | AY111: 0 | AZ111: 0 | BA111: 0 | BB111: 0 | BC111: 0 | BD111: 0 | BE111: 0 | BF111: 0 | BG111: 0 | BH111: 0 | BI111: 0 | BJ111: 8 | BK111: 0 | BL111: 0 | BM111: 0 | BN111: 0 | BO111: 0 | BP111: 0 | BQ111: 8 | BR111: 0 | BS111: 0 | BT111: 0 | BU111: 0 | BV111: 0 | BW111: 0 | BX111: 0 | BY111: 0 | BZ111: 0 | CA111: 0 | CB111: 0 | CC111: 0 | CD111: 0 | CE111: 0 | CF111: 0 | CG111: 0 | CH111: 0 | CI111: 0 | CJ111: 0 | CK111: 9 | CL111: 0 | CM111: 0 | CN111: 0 | CO111: 0 | CP111: 0 | CQ111: 0 | CR111: 0 | CS111: 0 | CT111: 0 | CU111: 0 | CV111: 0 | CW111: 0 | CX111: 0 | CY111: 0 | CZ111: 0 | DA111: 0 | DB111: 0 | DC111: 0 | DD111: 0 | DE111: 0 | DF111: 0 | DG111: 0 | DH111: 0 | DI111: 0 | DJ111: 0 | DK111: 0 | DL111: 0 | DM111: 0 | DN111: 0 | DO111: 0 | DP111: 0 | DQ111: 0 | DR111: 0 | DS111: 0 | DT111: 0 | DU111: 0 | DV111: 0 | DW111: 0 | DX111: 0 | DY111: 0 | DZ111: 0 | EA111: 0 | EB111: 0 | EC111: 0 | ED111: 0 | EE111: 0 | EF111: 0 | EG111: 0 | EH111: 0 | EI111: 0 | EJ111: 0 | EK111: 0 | EL111: 0 | EM111: 0 | EN111: 0 | EO111: 0 | EP111: 0 | EQ111: 0 | ER111: 0 | ES111: 0 | ET111: 0 | EU111: 0 | EV111: 0 | EW111: 0 | EX111: 0 | EY111: 0 | EZ111: 0 | FA111: 0 | FB111: 0 | FC111: 0 | FD111: 0 | FE111: 0 | FF111: 0 | FG111: 0 | FH111: 0 | FI111: 0 | FJ111: 0 | FK111: 0 | FL111: 0 | FM111: 0 | FN111: 0 | FO111: 0 | FP111: 0 | FQ111: 0 | FR111: 0 | FS111: 0 | FT111: 0 | FU111: 0 | FV111: 0 | FW111: 0 | FX111: 0 | FY111: 0 | FZ111: 0 | GA111: 0 | GB111: 0 | GC111: 0 | GD111: 0 | GE111: 0 | GF111: 0 | GG111: 0 | GH111: 0 | GI111: 0 | GJ111: 0 | GK111: 1 | GL111: 0 | GM111: 0 | GN111: 1 | GO111: 0 | GP111: 0 | GQ111: 0 | GR111: 0 | GS111: 0 | GT111: 0 | GU111: 0 | GV111: 0 | GW111: 0 | GX111: 0 | GY111: 0 | GZ111: 0 | HA111: 0 | HB111: 0 | HC111: 0 | HD111: 0 | HE111: 0 | HF111: 0 | HG111: 0 | HH111: 0 | HI111: 0 | HJ111: 0 | HK111: 0 | HL111: 0 | HM111: 0 | HN111: 0 | HO111: 0 | HP111: 0 | HQ111: 0 | HR111: 0 | HS111: 0 | HT111: 0 | HU111: 0 | HV111: 0 | HW111: 0
A112: 1 | B112: 0 | C112: 0 | D112: 0 | E112: 0 | F112: 0 | G112: 0 | H112: 0 | I112: 0 | J112: 0 | K112: 0 | L112: 0 | M112: 0 | N112: 0 | O112: 0 | P112: 0 | Q112: 0 | R112: 0 | S112: 0 | T112: 0 | U112: 0 | V112: 0 | W112: 0 | X112: 0 | Y112: 0 | Z112: 0 | AA112: 0 | AB112: 0 | AC112: 0 | AD112: 0 | AE112: 0 | AF112: 0 | AG112: 0 | AH112: 0 | AI112: 0 | AJ112: 0 | AK112: 0 | AL112: 0 | AM112: 0 | AN112: 0 | AO112: 0 | AP112: 0 | AQ112: 0 | AR112: 0 | AS112: 0 | AT112: 0 | AU112: 0 | AV112: 0 | AW112: 0 | AX112: 0 | AY112: 0 | AZ112: 0 | BA112: 0 | BB112: 0 | BC112: 0 | BD112: 0 | BE112: 0 | BF112: 0 | BG112: 0 | BH112: 0 | BI112: 0 | BJ112: 0 | BK112: 0 | BL112: 0 | BM112: 0 | BN112: 0 | BO112: 0 | BP112: 0 | BQ112: 6 | BR112: 0 | BS112: 0 | BT112: 3 | BU112: 0 | BV112: 0 | BW112: 0 | BX112: 0 | BY112: 0 | BZ112: 0 | CA112: 0 | CB112: 0 | CC112: 0 | CD112: 0 | CE112: 0 | CF112: 0 | CG112: 0 | CH112: 0 | CI112: 0 | CJ112: 0 | CK112: 6 | CL112: 0 | CM112: 0 | CN112: 0 | CO112: 3 | CP112: 0 | CQ112: 0 | CR112: 0 | CS112: 0 | CT112: 0 | CU112: 0 | CV112: 0 | CW112: 0 | CX112: 0 | CY112: 0 | CZ112: 0 | DA112: 0 | DB112: 0 | DC112: 0 | DD112: 0 | DE112: 0 | DF112: 0 | DG112: 0 | DH112: 0 | DI112: 0 | DJ112: 0 | DK112: 0 | DL112: 0 | DM112: 0 | DN112: 0 | DO112: 0 | DP112: 0 | DQ112: 0 | DR112: 0 | DS112: 0 | DT112: 0 | DU112: 0 | DV112: 0 | DW112: 0 | DX112: 0 | DY112: 0 | DZ112: 0 | EA112: 0 | EB112: 0 | EC112: 0 | ED112: 0 | EE112: 0 | EF112: 0 | EG112: 0 | EH112: 0 | EI112: 0 | EJ112: 0 | EK112: 0 | EL112: 0 | EM112: 0 | EN112: 0 | EO112: 0 | EP112: 0 | EQ112: 0 | ER112: 0 | ES112: 0 | ET112: 0 | EU112: 0 | EV112: 0 | EW112: 0 | EX112: 0 | EY112: 0 | EZ112: 0 | FA112: 0 | FB112: 0 | FC112: 0 | FD112: 0 | FE112: 0 | FF112: 0 | FG112: 0 | FH112: 0 | FI112: 0 | FJ112: 0 | FK112: 0 | FL112: 0 | FM112: 0 | FN112: 0 | FO112: 0 | FP112: 0 | FQ112: 0 | FR112: 0 | FS112: 0 | FT112: 0 | FU112: 0 | FV112: 0 | FW112: 0 | FX112: 0 | FY112: 0 | FZ112: 0 | GA112: 0 | GB112: 0 | GC112: 0 | GD112: 0 | GE112: 0 | GF112: 0 | GG112: 0 | GH112: 0 | GI112: 0 | GJ112: 0 | GK112: 0 | GL112: 0 | GM112: 0 | GN112: 0 | GO112: 0 | GP112: 0 | GQ112: 0 | GR112: 0 | GS112: 0 | GT112: 0 | GU112: 0 | GV112: 0 | GW112: 0 | GX112: 0 | GY112: 0 | GZ112: 0 | HA112: 0 | HB112: 0 | HC112: 0 | HD112: 0 | HE112: 0 | HF112: 0 | HG112: 0 | HH112: 0 | HI112: 0 | HJ112: 0 | HK112: 0 | HL112: 0 | HM112: 0 | HN112: 0 | HO112: 0 | HP112: 0 | HQ112: 0 | HR112: 0 | HS112: 0 | HT112: 0 | HU112: 0 | HV112: 0 | HW112: 0
A113: 5 | B113: 0 | C113: 0 | D113: 0 | E113: 0 | F113: 0 | G113: 0 | H113: 0 | I113: 0 | J113: 0 | K113: 0 | L113: 0 | M113: 0 | N113: 0 | O113: 0 | P113: 0 | Q113: 0 | R113: 0 | S113: 0 | T113: 0 | U113: 0 | V113: 0 | W113: 0 | X113: 0 | Y113: 0 | Z113: 0 | AA113: 0 | AB113: 0 | AC113: 0 | AD113: 0 | AE113: 0 | AF113: 0 | AG113: 0 | AH113: 0 | AI113: 0 | AJ113: 0 | AK113: 0 | AL113: 0 | AM113: 0 | AN113: 0 | AO113: 0 | AP113: 0 | AQ113: 0 | AR113: 0 | AS113: 0 | AT113: 0 | AU113: 0 | AV113: 0 | AW113: 0 | AX113: 0 | AY113: 0 | AZ113: 0 | BA113: 0 | BB113: 0 | BC113: 0 | BD113: 0 | BE113: 0 | BF113: 0 | BG113: 0 | BH113: 0 | BI113: 0 | BJ113: 0 | BK113: 0 | BL113: 0 | BM113: 0 | BN113: 0 | BO113: 0 | BP113: 0 | BQ113: 15 | BR113: 0 | BS113: 0 | BT113: 1 | BU113: 0 | BV113: 0 | BW113: 0 | BX113: 0 | BY113: 0 | BZ113: 0 | CA113: 0 | CB113: 0 | CC113: 0 | CD113: 0 | CE113: 0 | CF113: 0 | CG113: 0 | CH113: 0 | CI113: 0 | CJ113: 0 | CK113: 15 | CL113: 0 | CM113: 0 | CN113: 0 | CO113: 1 | CP113: 0 | CQ113: 0 | CR113: 0 | CS113: 0 | CT113: 0 | CU113: 0 | CV113: 0 | CW113: 0 | CX113: 0 | CY113: 0 | CZ113: 0 | DA113: 0 | DB113: 0 | DC113: 0 | DD113: 0 | DE113: 0 | DF113: 0 | DG113: 0 | DH113: 0 | DI113: 0 | DJ113: 0 | DK113: 0 | DL113: 0 | DM113: 0 | DN113: 0 | DO113: 0 | DP113: 0 | DQ113: 0 | DR113: 0 | DS113: 0 | DT113: 0 | DU113: 0 | DV113: 0 | DW113: 0 | DX113: 0 | DY113: 0 | DZ113: 0 | EA113: 0 | EB113: 0 | EC113: 0 | ED113: 0 | EE113: 0 | EF113: 0 | EG113: 0 | EH113: 0 | EI113: 0 | EJ113: 0 | EK113: 0 | EL113: 0 | EM113: 0 | EN113: 0 | EO113: 0 | EP113: 0 | EQ113: 0 | ER113: 0 | ES113: 0 | ET113: 0 | EU113: 0 | EV113: 0 | EW113: 0 | EX113: 0 | EY113: 0 | EZ113: 0 | FA113: 0 | FB113: 0 | FC113: 0 | FD113: 0 | FE113: 0 | FF113: 0 | FG113: 0 | FH113: 0 | FI113: 0 | FJ113: 0 | FK113: 0 | FL113: 0 | FM113: 0 | FN113: 0 | FO113: 0 | FP113: 0 | FQ113: 0 | FR113: 0 | FS113: 0 | FT113: 0 | FU113: 0 | FV113: 0 | FW113: 0 | FX113: 0 | FY113: 0 | FZ113: 0 | GA113: 0 | GB113: 0 | GC113: 0 | GD113: 0 | GE113: 0 | GF113: 0 | GG113: 0 | GH113: 0 | GI113: 0 | GJ113: 0 | GK113: 2 | GL113: 0 | GM113: 0 | GN113: 2 | GO113: 0 | GP113: 0 | GQ113: 0 | GR113: 0 | GS113: 0 | GT113: 0 | GU113: 0 | GV113: 0 | GW113: 0 | GX113: 0 | GY113: 0 | GZ113: 0 | HA113: 0 | HB113: 0 | HC113: 0 | HD113: 0 | HE113: 0 | HF113: 0 | HG113: 0 | HH113: 0 | HI113: 0 | HJ113: 0 | HK113: 0 | HL113: 0 | HM113: 0 | HN113: 0 | HO113: 0 | HP113: 0 | HQ113: 0 | HR113: 0 | HS113: 0 | HT113: 0 | HU113: 0 | HV113: 0 | HW113: 0
A114: 4 | B114: 0 | C114: 0 | D114: 0 | E114: 0 | F114: 0 | G114: 0 | H114: 0 | I114: 0 | J114: 0 | K114: 0 | L114: 0 | M114: 0 | N114: 0 | O114: 0 | P114: 0 | Q114: 0 | R114: 0 | S114: 0 | T114: 0 | U114: 0 | V114: 0 | W114: 0 | X114: 0 | Y114: 0 | Z114: 0 | AA114: 0 | AB114: 0 | AC114: 0 | AD114: 0 | AE114: 0 | AF114: 0 | AG114: 0 | AH114: 0 | AI114: 0 | AJ114: 0 | AK114: 0 | AL114: 0 | AM114: 0 | AN114: 0 | AO114: 0 | AP114: 0 | AQ114: 0 | AR114: 0 | AS114: 0 | AT114: 0 | AU114: 0 | AV114: 0 | AW114: 0 | AX114: 0 | AY114: 0 | AZ114: 0 | BA114: 0 | BB114: 0 | BC114: 0 | BD114: 0 | BE114: 0 | BF114: 0 | BG114: 0 | BH114: 0 | BI114: 0 | BJ114: 5 | BK114: 0 | BL114: 0 | BM114: 0 | BN114: 0 | BO114: 0 | BP114: 0 | BQ114: 11 | BR114: 0 | BS114: 0 | BT114: 9 | BU114: 0 | BV114: 0 | BW114: 0 | BX114: 0 | BY114: 0 | BZ114: 0 | CA114: 0 | CB114: 0 | CC114: 0 | CD114: 0 | CE114: 0 | CF114: 0 | CG114: 0 | CH114: 0 | CI114: 0 | CJ114: 0 | CK114: 11 | CL114: 0 | CM114: 0 | CN114: 0 | CO114: 9 | CP114: 0 | CQ114: 0 | CR114: 0 | CS114: 0 | CT114: 0 | CU114: 0 | CV114: 0 | CW114: 0 | CX114: 0 | CY114: 0 | CZ114: 0 | DA114: 0 | DB114: 0 | DC114: 0 | DD114: 0 | DE114: 0 | DF114: 0 | DG114: 0 | DH114: 0 | DI114: 0 | DJ114: 0 | DK114: 0 | DL114: 0 | DM114: 0 | DN114: 0 | DO114: 0 | DP114: 0 | DQ114: 0 | DR114: 0 | DS114: 0 | DT114: 0 | DU114: 0 | DV114: 0 | DW114: 0 | DX114: 0 | DY114: 0 | DZ114: 0 | EA114: 0 | EB114: 0 | EC114: 0 | ED114: 0 | EE114: 0 | EF114: 0 | EG114: 0 | EH114: 0 | EI114: 0 | EJ114: 0 | EK114: 0 | EL114: 0 | EM114: 0 | EN114: 0 | EO114: 0 | EP114: 0 | EQ114: 0 | ER114: 0 | ES114: 0 | ET114: 0 | EU114: 0 | EV114: 0 | EW114: 0 | EX114: 0 | EY114: 0 | EZ114: 0 | FA114: 0 | FB114: 0 | FC114: 0 | FD114: 0 | FE114: 0 | FF114: 0 | FG114: 0 | FH114: 0 | FI114: 0 | FJ114: 0 | FK114: 0 | FL114: 0 | FM114: 0 | FN114: 0 | FO114: 0 | FP114: 0 | FQ114: 0 | FR114: 0 | FS114: 0 | FT114: 0 | FU114: 0 | FV114: 0 | FW114: 0 | FX114: 0 | FY114: 0 | FZ114: 0 | GA114: 0 | GB114: 0 | GC114: 0 | GD114: 0 | GE114: 0 | GF114: 0 | GG114: 0 | GH114: 0 | GI114: 0 | GJ114: 0 | GK114: 0 | GL114: 0 | GM114: 0 | GN114: 0 | GO114: 0 | GP114: 0 | GQ114: 0 | GR114: 0 | GS114: 0 | GT114: 0 | GU114: 0 | GV114: 0 | GW114: 0 | GX114: 0 | GY114: 0 | GZ114: 0 | HA114: 0 | HB114: 0 | HC114: 0 | HD114: 0 | HE114: 0 | HF114: 0 | HG114: 0 | HH114: 0 | HI114: 0 | HJ114: 0 | HK114: 0 | HL114: 0 | HM114: 0 | HN114: 0 | HO114: 0 | HP114: 0 | HQ114: 0 | HR114: 0 | HS114: 0 | HT114: 0 | HU114: 0 | HV114: 0 | HW114: 0
A115: 6 | B115: 0 | C115: 0 | D115: 0 | E115: 0 | F115: 0 | G115: 0 | H115: 0 | I115: 0 | J115: 0 | K115: 0 | L115: 0 | M115: 0 | N115: 0 | O115: 0 | P115: 0 | Q115: 0 | R115: 0 | S115: 0 | T115: 0 | U115: 0 | V115: 0 | W115: 0 | X115: 0 | Y115: 0 | Z115: 0 | AA115: 0 | AB115: 0 | AC115: 0 | AD115: 0 | AE115: 0 | AF115: 0 | AG115: 0 | AH115: 0 | AI115: 0 | AJ115: 0 | AK115: 0 | AL115: 0 | AM115: 0 | AN115: 0 | AO115: 0 | AP115: 0 | AQ115: 0 | AR115: 0 | AS115: 0 | AT115: 0 | AU115: 0 | AV115: 0 | AW115: 0 | AX115: 0 | AY115: 0 | AZ115: 0 | BA115: 0 | BB115: 0 | BC115: 0 | BD115: 0 | BE115: 0 | BF115: 0 | BG115: 0 | BH115: 0 | BI115: 0 | BJ115: 0 | BK115: 0 | BL115: 0 | BM115: 0 | BN115: 0 | BO115: 0 | BP115: 0 | BQ115: 4 | BR115: 0 | BS115: 0 | BT115: 0 | BU115: 0 | BV115: 0 | BW115: 0 | BX115: 0 | BY115: 0 | BZ115: 0 | CA115: 0 | CB115: 0 | CC115: 0 | CD115: 0 | CE115: 0 | CF115: 0 | CG115: 0 | CH115: 0 | CI115: 0 | CJ115: 0 | CK115: 4 | CL115: 0 | CM115: 0 | CN115: 0 | CO115: 0 | CP115: 0 | CQ115: 0 | CR115: 0 | CS115: 0 | CT115: 0 | CU115: 0 | CV115: 0 | CW115: 0 | CX115: 0 | CY115: 0 | CZ115: 0 | DA115: 0 | DB115: 0 | DC115: 0 | DD115: 0 | DE115: 0 | DF115: 0 | DG115: 0 | DH115: 0 | DI115: 0 | DJ115: 0 | DK115: 0 | DL115: 0 | DM115: 0 | DN115: 0 | DO115: 0 | DP115: 0 | DQ115: 0 | DR115: 0 | DS115: 0 | DT115: 0 | DU115: 0 | DV115: 0 | DW115: 0 | DX115: 0 | DY115: 0 | DZ115: 0 | EA115: 0 | EB115: 0 | EC115: 0 | ED115: 0 | EE115: 0 | EF115: 0 | EG115: 0 | EH115: 0 | EI115: 0 | EJ115: 0 | EK115: 0 | EL115: 0 | EM115: 0 | EN115: 0 | EO115: 0 | EP115: 0 | EQ115: 0 | ER115: 0 | ES115: 0 | ET115: 0 | EU115: 0 | EV115: 0 | EW115: 0 | EX115: 0 | EY115: 0 | EZ115: 0 | FA115: 0 | FB115: 0 | FC115: 0 | FD115: 0 | FE115: 0 | FF115: 0 | FG115: 0 | FH115: 0 | FI115: 0 | FJ115: 0 | FK115: 0 | FL115: 0 | FM115: 0 | FN115: 0 | FO115: 0 | FP115: 0 | FQ115: 0 | FR115: 0 | FS115: 0 | FT115: 0 | FU115: 0 | FV115: 0 | FW115: 0 | FX115: 0 | FY115: 0 | FZ115: 0 | GA115: 0 | GB115: 0 | GC115: 0 | GD115: 0 | GE115: 0 | GF115: 0 | GG115: 0 | GH115: 1 | GI115: 0 | GJ115: 0 | GK115: 0 | GL115: 0 | GM115: 0 | GN115: 0 | GO115: 0 | GP115: 0 | GQ115: 0 | GR115: 0 | GS115: 0 | GT115: 0 | GU115: 0 | GV115: 0 | GW115: 0 | GX115: 0 | GY115: 0 | GZ115: 0 | HA115: 0 | HB115: 0 | HC115: 0 | HD115: 0 | HE115: 0 | HF115: 0 | HG115: 0 | HH115: 0 | HI115: 0 | HJ115: 0 | HK115: 0 | HL115: 0 | HM115: 0 | HN115: 0 | HO115: 0 | HP115: 0 | HQ115: 0 | HR115: 0 | HS115: 0 | HT115: 0 | HU115: 0 | HV115: 0 | HW115: 0
A116: 8 | B116: 0 | C116: 0 | D116: 0 | E116: 0 | F116: 0 | G116: 0 | H116: 0 | I116: 0 | J116: 0 | K116: 0 | L116: 0 | M116: 0 | N116: 0 | O116: 0 | P116: 0 | Q116: 0 | R116: 0 | S116: 0 | T116: 0 | U116: 0 | V116: 0 | W116: 0 | X116: 0 | Y116: 0 | Z116: 0 | AA116: 0 | AB116: 0 | AC116: 0 | AD116: 0 | AE116: 0 | AF116: 0 | AG116: 0 | AH116: 0 | AI116: 0 | AJ116: 0 | AK116: 0 | AL116: 0 | AM116: 0 | AN116: 0 | AO116: 0 | AP116: 0 | AQ116: 0 | AR116: 0 | AS116: 0 | AT116: 0 | AU116: 0 | AV116: 0 | AW116: 0 | AX116: 0 | AY116: 0 | AZ116: 0 | BA116: 0 | BB116: 0 | BC116: 0 | BD116: 0 | BE116: 0 | BF116: 0 | BG116: 0 | BH116: 0 | BI116: 0 | BJ116: 0 | BK116: 0 | BL116: 0 | BM116: 0 | BN116: 0 | BO116: 0 | BP116: 0 | BQ116: 5 | BR116: 0 | BS116: 0 | BT116: 1 | BU116: 0 | BV116: 0 | BW116: 0 | BX116: 0 | BY116: 0 | BZ116: 0 | CA116: 0 | CB116: 0 | CC116: 0 | CD116: 0 | CE116: 0 | CF116: 0 | CG116: 0 | CH116: 0 | CI116: 0 | CJ116: 0 | CK116: 5 | CL116: 0 | CM116: 0 | CN116: 0 | CO116: 1 | CP116: 0 | CQ116: 0 | CR116: 0 | CS116: 0 | CT116: 0 | CU116: 0 | CV116: 0 | CW116: 0 | CX116: 0 | CY116: 0 | CZ116: 0 | DA116: 0 | DB116: 0 | DC116: 0 | DD116: 0 | DE116: 0 | DF116: 0 | DG116: 0 | DH116: 0 | DI116: 0 | DJ116: 0 | DK116: 0 | DL116: 0 | DM116: 0 | DN116: 0 | DO116: 0 | DP116: 0 | DQ116: 0 | DR116: 0 | DS116: 0 | DT116: 0 | DU116: 0 | DV116: 0 | DW116: 0 | DX116: 0 | DY116: 0 | DZ116: 0 | EA116: 0 | EB116: 0 | EC116: 0 | ED116: 0 | EE116: 0 | EF116: 0 | EG116: 0 | EH116: 0 | EI116: 0 | EJ116: 0 | EK116: 0 | EL116: 0 | EM116: 0 | EN116: 0 | EO116: 0 | EP116: 0 | EQ116: 0 | ER116: 0 | ES116: 0 | ET116: 0 | EU116: 0 | EV116: 0 | EW116: 0 | EX116: 0 | EY116: 0 | EZ116: 0 | FA116: 0 | FB116: 0 | FC116: 0 | FD116: 0 | FE116: 0 | FF116: 0 | FG116: 0 | FH116: 0 | FI116: 0 | FJ116: 0 | FK116: 0 | FL116: 0 | FM116: 0 | FN116: 0 | FO116: 0 | FP116: 0 | FQ116: 0 | FR116: 0 | FS116: 0 | FT116: 0 | FU116: 0 | FV116: 0 | FW116: 0 | FX116: 0 | FY116: 0 | FZ116: 0 | GA116: 0 | GB116: 0 | GC116: 0 | GD116: 0 | GE116: 0 | GF116: 0 | GG116: 0 | GH116: 0 | GI116: 0 | GJ116: 0 | GK116: 0 | GL116: 0 | GM116: 0 | GN116: 0 | GO116: 0 | GP116: 0 | GQ116: 0 | GR116: 0 | GS116: 0 | GT116: 0 | GU116: 0 | GV116: 0 | GW116: 0 | GX116: 0 | GY116: 0 | GZ116: 0 | HA116: 0 | HB116: 0 | HC116: 0 | HD116: 0 | HE116: 0 | HF116: 0 | HG116: 0 | HH116: 0 | HI116: 0 | HJ116: 0 | HK116: 0 | HL116: 0 | HM116: 0 | HN116: 0 | HO116: 0 | HP116: 0 | HQ116: 0 | HR116: 0 | HS116: 0 | HT116: 0 | HU116: 0 | HV116: 0 | HW116: 0
A117: 7 | B117: 0 | C117: 0 | D117: 0 | E117: 0 | F117: 0 | G117: 0 | H117: 0 | I117: 0 | J117: 0 | K117: 0 | L117: 0 | M117: 0 | N117: 0 | O117: 0 | P117: 0 | Q117: 0 | R117: 0 | S117: 0 | T117: 0 | U117: 0 | V117: 0 | W117: 0 | X117: 0 | Y117: 0 | Z117: 0 | AA117: 0 | AB117: 0 | AC117: 0 | AD117: 0 | AE117: 0 | AF117: 0 | AG117: 0 | AH117: 0 | AI117: 0 | AJ117: 0 | AK117: 0 | AL117: 0 | AM117: 0 | AN117: 0 | AO117: 0 | AP117: 0 | AQ117: 0 | AR117: 0 | AS117: 0 | AT117: 0 | AU117: 0 | AV117: 0 | AW117: 0 | AX117: 0 | AY117: 0 | AZ117: 0 | BA117: 0 | BB117: 0 | BC117: 0 | BD117: 0 | BE117: 0 | BF117: 0 | BG117: 0 | BH117: 0 | BI117: 0 | BJ117: 0 | BK117: 0 | BL117: 0 | BM117: 0 | BN117: 0 | BO117: 0 | BP117: 0 | BQ117: 4 | BR117: 0 | BS117: 0 | BT117: 1 | BU117: 0 | BV117: 0 | BW117: 0 | BX117: 0 | BY117: 0 | BZ117: 0 | CA117: 0 | CB117: 0 | CC117: 0 | CD117: 0 | CE117: 0 | CF117: 0 | CG117: 0 | CH117: 0 | CI117: 0 | CJ117: 0 | CK117: 4 | CL117: 0 | CM117: 0 | CN117: 0 | CO117: 1 | CP117: 0 | CQ117: 0 | CR117: 0 | CS117: 0 | CT117: 0 | CU117: 0 | CV117: 0 | CW117: 0 | CX117: 0 | CY117: 0 | CZ117: 0 | DA117: 0 | DB117: 0 | DC117: 0 | DD117: 0 | DE117: 0 | DF117: 0 | DG117: 0 | DH117: 0 | DI117: 0 | DJ117: 0 | DK117: 0 | DL117: 0 | DM117: 0 | DN117: 0 | DO117: 0 | DP117: 0 | DQ117: 0 | DR117: 0 | DS117: 0 | DT117: 0 | DU117: 0 | DV117: 0 | DW117: 0 | DX117: 0 | DY117: 0 | DZ117: 0 | EA117: 0 | EB117: 0 | EC117: 0 | ED117: 0 | EE117: 0 | EF117: 0 | EG117: 0 | EH117: 0 | EI117: 0 | EJ117: 0 | EK117: 0 | EL117: 0 | EM117: 0 | EN117: 0 | EO117: 0 | EP117: 0 | EQ117: 0 | ER117: 0 | ES117: 0 | ET117: 0 | EU117: 0 | EV117: 0 | EW117: 0 | EX117: 0 | EY117: 0 | EZ117: 0 | FA117: 0 | FB117: 0 | FC117: 0 | FD117: 0 | FE117: 0 | FF117: 0 | FG117: 0 | FH117: 0 | FI117: 0 | FJ117: 0 | FK117: 0 | FL117: 0 | FM117: 0 | FN117: 0 | FO117: 0 | FP117: 0 | FQ117: 0 | FR117: 0 | FS117: 0 | FT117: 0 | FU117: 0 | FV117: 0 | FW117: 0 | FX117: 0 | FY117: 0 | FZ117: 0 | GA117: 0 | GB117: 0 | GC117: 0 | GD117: 0 | GE117: 0 | GF117: 0 | GG117: 0 | GH117: 1 | GI117: 0 | GJ117: 0 | GK117: 1 | GL117: 0 | GM117: 0 | GN117: 1 | GO117: 0 | GP117: 0 | GQ117: 0 | GR117: 0 | GS117: 0 | GT117: 0 | GU117: 0 | GV117: 0 | GW117: 0 | GX117: 0 | GY117: 0 | GZ117: 0 | HA117: 0 | HB117: 0 | HC117: 0 | HD117: 0 | HE117: 0 | HF117: 0 | HG117: 0 | HH117: 0 | HI117: 0 | HJ117: 0 | HK117: 0 | HL117: 0 | HM117: 0 | HN117: 0 | HO117: 0 | HP117: 0 | HQ117: 0 | HR117: 0 | HS117: 0 | HT117: 0 | HU117: 0 | HV117: 0 | HW117: 0
A118: 9 | B118: 0 | C118: 0 | D118: 0 | E118: 0 | F118: 0 | G118: 0 | H118: 0 | I118: 0 | J118: 0 | K118: 0 | L118: 0 | M118: 0 | N118: 0 | O118: 0 | P118: 0 | Q118: 0 | R118: 0 | S118: 0 | T118: 0 | U118: 0 | V118: 0 | W118: 0 | X118: 0 | Y118: 0 | Z118: 0 | AA118: 0 | AB118: 0 | AC118: 0 | AD118: 0 | AE118: 0 | AF118: 0 | AG118: 0 | AH118: 0 | AI118: 0 | AJ118: 0 | AK118: 0 | AL118: 0 | AM118: 0 | AN118: 0 | AO118: 0 | AP118: 0 | AQ118: 0 | AR118: 0 | AS118: 0 | AT118: 0 | AU118: 0 | AV118: 0 | AW118: 0 | AX118: 0 | AY118: 0 | AZ118: 0 | BA118: 0 | BB118: 0 | BC118: 0 | BD118: 0 | BE118: 0 | BF118: 0 | BG118: 0 | BH118: 0 | BI118: 0 | BJ118: 0 | BK118: 0 | BL118: 0 | BM118: 0 | BN118: 0 | BO118: 0 | BP118: 0 | BQ118: 6 | BR118: 0 | BS118: 0 | BT118: 0 | BU118: 0 | BV118: 0 | BW118: 0 | BX118: 0 | BY118: 0 | BZ118: 0 | CA118: 0 | CB118: 0 | CC118: 0 | CD118: 0 | CE118: 0 | CF118: 0 | CG118: 0 | CH118: 0 | CI118: 0 | CJ118: 0 | CK118: 6 | CL118: 0 | CM118: 0 | CN118: 0 | CO118: 0 | CP118: 0 | CQ118: 0 | CR118: 0 | CS118: 0 | CT118: 0 | CU118: 0 | CV118: 0 | CW118: 0 | CX118: 0 | CY118: 0 | CZ118: 0 | DA118: 0 | DB118: 0 | DC118: 0 | DD118: 0 | DE118: 0 | DF118: 0 | DG118: 0 | DH118: 0 | DI118: 0 | DJ118: 0 | DK118: 0 | DL118: 0 | DM118: 0 | DN118: 0 | DO118: 0 | DP118: 0 | DQ118: 0 | DR118: 0 | DS118: 0 | DT118: 0 | DU118: 0 | DV118: 0 | DW118: 0 | DX118: 0 | DY118: 0 | DZ118: 0 | EA118: 0 | EB118: 0 | EC118: 0 | ED118: 0 | EE118: 0 | EF118: 0 | EG118: 0 | EH118: 0 | EI118: 0 | EJ118: 0 | EK118: 0 | EL118: 0 | EM118: 0 | EN118: 0 | EO118: 0 | EP118: 0 | EQ118: 0 | ER118: 0 | ES118: 0 | ET118: 0 | EU118: 0 | EV118: 0 | EW118: 0 | EX118: 0 | EY118: 0 | EZ118: 0 | FA118: 0 | FB118: 0 | FC118: 0 | FD118: 0 | FE118: 0 | FF118: 0 | FG118: 0 | FH118: 0 | FI118: 0 | FJ118: 0 | FK118: 0 | FL118: 0 | FM118: 0 | FN118: 0 | FO118: 0 | FP118: 0 | FQ118: 0 | FR118: 0 | FS118: 0 | FT118: 0 | FU118: 0 | FV118: 0 | FW118: 0 | FX118: 0 | FY118: 0 | FZ118: 0 | GA118: 0 | GB118: 0 | GC118: 0 | GD118: 0 | GE118: 0 | GF118: 0 | GG118: 0 | GH118: 0 | GI118: 0 | GJ118: 0 | GK118: 0 | GL118: 0 | GM118: 0 | GN118: 0 | GO118: 0 | GP118: 0 | GQ118: 0 | GR118: 0 | GS118: 0 | GT118: 0 | GU118: 0 | GV118: 0 | GW118: 0 | GX118: 0 | GY118: 0 | GZ118: 0 | HA118: 0 | HB118: 0 | HC118: 0 | HD118: 0 | HE118: 0 | HF118: 0 | HG118: 0 | HH118: 0 | HI118: 0 | HJ118: 0 | HK118: 0 | HL118: 0 | HM118: 0 | HN118: 0 | HO118: 0 | HP118: 0 | HQ118: 0 | HR118: 0 | HS118: 0 | HT118: 0 | HU118: 0 | HV118: 0 | HW118: 0
A119: 10 | B119: 0 | C119: 0 | D119: 0 | E119: 0 | F119: 0 | G119: 0 | H119: 0 | I119: 0 | J119: 0 | K119: 0 | L119: 0 | M119: 0 | N119: 0 | O119: 0 | P119: 0 | Q119: 0 | R119: 0 | S119: 0 | T119: 0 | U119: 0 | V119: 0 | W119: 0 | X119: 0 | Y119: 0 | Z119: 0 | AA119: 0 | AB119: 0 | AC119: 0 | AD119: 0 | AE119: 0 | AF119: 0 | AG119: 0 | AH119: 0 | AI119: 0 | AJ119: 0 | AK119: 0 | AL119: 0 | AM119: 0 | AN119: 0 | AO119: 0 | AP119: 0 | AQ119: 0 | AR119: 0 | AS119: 0 | AT119: 0 | AU119: 0 | AV119: 0 | AW119: 0 | AX119: 0 | AY119: 0 | AZ119: 0 | BA119: 0 | BB119: 0 | BC119: 0 | BD119: 0 | BE119: 0 | BF119: 0 | BG119: 0 | BH119: 0 | BI119: 0 | BJ119: 0 | BK119: 0 | BL119: 0 | BM119: 0 | BN119: 0 | BO119: 0 | BP119: 0 | BQ119: 8 | BR119: 0 | BS119: 0 | BT119: 1 | BU119: 0 | BV119: 0 | BW119: 0 | BX119: 0 | BY119: 0 | BZ119: 0 | CA119: 0 | CB119: 0 | CC119: 0 | CD119: 0 | CE119: 0 | CF119: 0 | CG119: 0 | CH119: 0 | CI119: 0 | CJ119: 0 | CK119: 8 | CL119: 0 | CM119: 0 | CN119: 0 | CO119: 1 | CP119: 0 | CQ119: 0 | CR119: 0 | CS119: 0 | CT119: 0 | CU119: 0 | CV119: 0 | CW119: 0 | CX119: 0 | CY119: 0 | CZ119: 0 | DA119: 0 | DB119: 0 | DC119: 0 | DD119: 0 | DE119: 0 | DF119: 0 | DG119: 0 | DH119: 0 | DI119: 0 | DJ119: 0 | DK119: 0 | DL119: 0 | DM119: 0 | DN119: 0 | DO119: 0 | DP119: 0 | DQ119: 0 | DR119: 0 | DS119: 0 | DT119: 0 | DU119: 0 | DV119: 0 | DW119: 0 | DX119: 0 | DY119: 0 | DZ119: 0 | EA119: 0 | EB119: 0 | EC119: 0 | ED119: 0 | EE119: 0 | EF119: 0 | EG119: 0 | EH119: 0 | EI119: 0 | EJ119: 0 | EK119: 0 | EL119: 0 | EM119: 0 | EN119: 0 | EO119: 0 | EP119: 0 | EQ119: 0 | ER119: 0 | ES119: 0 | ET119: 0 | EU119: 0 | EV119: 0 | EW119: 0 | EX119: 0 | EY119: 0 | EZ119: 0 | FA119: 0 | FB119: 0 | FC119: 0 | FD119: 0 | FE119: 0 | FF119: 0 | FG119: 0 | FH119: 0 | FI119: 0 | FJ119: 0 | FK119: 0 | FL119: 0 | FM119: 0 | FN119: 0 | FO119: 0 | FP119: 0 | FQ119: 0 | FR119: 0 | FS119: 0 | FT119: 0 | FU119: 0 | FV119: 0 | FW119: 0 | FX119: 0 | FY119: 0 | FZ119: 0 | GA119: 0 | GB119: 0 | GC119: 0 | GD119: 0 | GE119: 0 | GF119: 0 | GG119: 0 | GH119: 0 | GI119: 0 | GJ119: 0 | GK119: 0 | GL119: 0 | GM119: 0 | GN119: 0 | GO119: 0 | GP119: 0 | GQ119: 0 | GR119: 0 | GS119: 0 | GT119: 0 | GU119: 0 | GV119: 0 | GW119: 0 | GX119: 0 | GY119: 0 | GZ119: 0 | HA119: 0 | HB119: 0 | HC119: 0 | HD119: 0 | HE119: 0 | HF119: 0 | HG119: 0 | HH119: 0 | HI119: 0 | HJ119: 0 | HK119: 0 | HL119: 0 | HM119: 0 | HN119: 0 | HO119: 0 | HP119: 0 | HQ119: 0 | HR119: 0 | HS119: 0 | HT119: 0 | HU119: 0 | HV119: 0 | HW119: 0
A120: 11 | B120: 0 | C120: 0 | D120: 0 | E120: 0 | F120: 0 | G120: 0 | H120: 0 | I120: 0 | J120: 0 | K120: 0 | L120: 0 | M120: 0 | N120: 0 | O120: 0 | P120: 0 | Q120: 0 | R120: 0 | S120: 0 | T120: 0 | U120: 0 | V120: 0 | W120: 0 | X120: 0 | Y120: 0 | Z120: 0 | AA120: 0 | AB120: 0 | AC120: 0 | AD120: 0 | AE120: 0 | AF120: 0 | AG120: 0 | AH120: 0 | AI120: 0 | AJ120: 0 | AK120: 0 | AL120: 0 | AM120: 0 | AN120: 0 | AO120: 0 | AP120: 0 | AQ120: 0 | AR120: 0 | AS120: 0 | AT120: 0 | AU120: 0 | AV120: 0 | AW120: 0 | AX120: 0 | AY120: 0 | AZ120: 0 | BA120: 0 | BB120: 0 | BC120: 0 | BD120: 0 | BE120: 0 | BF120: 0 | BG120: 0 | BH120: 0 | BI120: 0 | BJ120: 0 | BK120: 0 | BL120: 0 | BM120: 0 | BN120: 0 | BO120: 0 | BP120: 0 | BQ120: 6 | BR120: 0 | BS120: 0 | BT120: 2 | BU120: 0 | BV120: 0 | BW120: 0 | BX120: 0 | BY120: 0 | BZ120: 0 | CA120: 0 | CB120: 0 | CC120: 0 | CD120: 0 | CE120: 0 | CF120: 0 | CG120: 0 | CH120: 0 | CI120: 0 | CJ120: 0 | CK120: 5 | CL120: 0 | CM120: 0 | CN120: 0 | CO120: 1 | CP120: 0 | CQ120: 0 | CR120: 0 | CS120: 0 | CT120: 0 | CU120: 0 | CV120: 0 | CW120: 0 | CX120: 0 | CY120: 0 | CZ120: 0 | DA120: 0 | DB120: 0 | DC120: 0 | DD120: 0 | DE120: 0 | DF120: 0 | DG120: 0 | DH120: 0 | DI120: 0 | DJ120: 0 | DK120: 0 | DL120: 0 | DM120: 0 | DN120: 0 | DO120: 0 | DP120: 0 | DQ120: 0 | DR120: 0 | DS120: 0 | DT120: 0 | DU120: 0 | DV120: 0 | DW120: 0 | DX120: 0 | DY120: 0 | DZ120: 0 | EA120: 0 | EB120: 0 | EC120: 0 | ED120: 0 | EE120: 0 | EF120: 0 | EG120: 0 | EH120: 0 | EI120: 0 | EJ120: 0 | EK120: 0 | EL120: 0 | EM120: 0 | EN120: 0 | EO120: 0 | EP120: 0 | EQ120: 0 | ER120: 0 | ES120: 0 | ET120: 0 | EU120: 0 | EV120: 0 | EW120: 0 | EX120: 0 | EY120: 0 | EZ120: 0 | FA120: 0 | FB120: 0 | FC120: 0 | FD120: 0 | FE120: 0 | FF120: 0 | FG120: 0 | FH120: 0 | FI120: 0 | FJ120: 0 | FK120: 0 | FL120: 0 | FM120: 0 | FN120: 0 | FO120: 0 | FP120: 0 | FQ120: 0 | FR120: 0 | FS120: 0 | FT120: 0 | FU120: 0 | FV120: 0 | FW120: 0 | FX120: 0 | FY120: 0 | FZ120: 0 | GA120: 0 | GB120: 0 | GC120: 0 | GD120: 0 | GE120: 0 | GF120: 0 | GG120: 0 | GH120: 0 | GI120: 0 | GJ120: 0 | GK120: 0 | GL120: 0 | GM120: 0 | GN120: 0 | GO120: 0 | GP120: 0 | GQ120: 0 | GR120: 0 | GS120: 0 | GT120: 0 | GU120: 0 | GV120: 0 | GW120: 0 | GX120: 0 | GY120: 0 | GZ120: 0 | HA120: 0 | HB120: 0 | HC120: 0 | HD120: 0 | HE120: 0 | HF120: 0 | HG120: 0 | HH120: 0 | HI120: 0 | HJ120: 0 | HK120: 0 | HL120: 0 | HM120: 0 | HN120: 0 | HO120: 0 | HP120: 0 | HQ120: 0 | HR120: 0 | HS120: 0 | HT120: 0 | HU120: 0 | HV120: 0 | HW120: 0
A121: T | B121: 0 | C121: 0 | D121: 0 | E121: 0 | F121: 0 | G121: 0 | H121: 0 | I121: 0 | J121: 0 | K121: 0 | L121: 0 | M121: 0 | N121: 0 | O121: 0 | P121: 0 | Q121: 0 | R121: 0 | S121: 0 | T121: 0 | U121: 0 | V121: 0 | W121: 0 | X121: 0 | Y121: 0 | Z121: 0 | AA121: 0 | AB121: 0 | AC121: 0 | AD121: 0 | AE121: 0 | AF121: 0 | AG121: 0 | AH121: 0 | AI121: 0 | AJ121: 0 | AK121: 0 | AL121: 0 | AM121: 0 | AN121: 0 | AO121: 0 | AP121: 0 | AQ121: 0 | AR121: 0 | AS121: 0 | AT121: 0 | AU121: 0 | AV121: 0 | AW121: 0 | AX121: 0 | AY121: 0 | AZ121: 0 | BA121: 0 | BB121: 0 | BC121: 0 | BD121: 0 | BE121: 0 | BF121: 0 | BG121: 0 | BH121: 0 | BI121: 0 | BJ121: 19 | BK121: 0 | BL121: 0 | BM121: 0 | BN121: 0 | BO121: 0 | BP121: 0 | BQ121: 79 | BR121: 0 | BS121: 0 | BT121: 18 | BU121: 0 | BV121: 0 | BW121: 0 | BX121: 0 | BY121: 0 | BZ121: 0 | CA121: 0 | CB121: 0 | CC121: 0 | CD121: 0 | CE121: 0 | CF121: 0 | CG121: 0 | CH121: 0 | CI121: 0 | CJ121: 0 | CK121: 79 | CL121: 0 | CM121: 0 | CN121: 0 | CO121: 17 | CP121: 0 | CQ121: 0 | CR121: 0 | CS121: 0 | CT121: 0 | CU121: 0 | CV121: 0 | CW121: 0 | CX121: 0 | CY121: 0 | CZ121: 0 | DA121: 0 | DB121: 0 | DC121: 0 | DD121: 0 | DE121: 0 | DF121: 0 | DG121: 0 | DH121: 0 | DI121: 0 | DJ121: 0 | DK121: 0 | DL121: 0 | DM121: 0 | DN121: 0 | DO121: 0 | DP121: 0 | DQ121: 0 | DR121: 0 | DS121: 0 | DT121: 0 | DU121: 0 | DV121: 0 | DW121: 0 | DX121: 0 | DY121: 0 | DZ121: 0 | EA121: 0 | EB121: 0 | EC121: 0 | ED121: 0 | EE121: 0 | EF121: 0 | EG121: 0 | EH121: 0 | EI121: 0 | EJ121: 0 | EK121: 0 | EL121: 0 | EM121: 0 | EN121: 0 | EO121: 0 | EP121: 0 | EQ121: 0 | ER121: 0 | ES121: 0 | ET121: 0 | EU121: 0 | EV121: 0 | EW121: 0 | EX121: 0 | EY121: 0 | EZ121: 0 | FA121: 0 | FB121: 0 | FC121: 0 | FD121: 0 | FE121: 0 | FF121: 0 | FG121: 0 | FH121: 0 | FI121: 0 | FJ121: 0 | FK121: 0 | FL121: 0 | FM121: 0 | FN121: 0 | FO121: 0 | FP121: 0 | FQ121: 0 | FR121: 0 | FS121: 0 | FT121: 0 | FU121: 0 | FV121: 0 | FW121: 0 | FX121: 0 | FY121: 0 | FZ121: 0 | GA121: 0 | GB121: 0 | GC121: 0 | GD121: 0 | GE121: 0 | GF121: 0 | GG121: 0 | GH121: 2 | GI121: 0 | GJ121: 0 | GK121: 4 | GL121: 0 | GM121: 0 | GN121: 4 | GO121: 0 | GP121: 0 | GQ121: 0 | GR121: 0 | GS121: 0 | GT121: 0 | GU121: 0 | GV121: 0 | GW121: 0 | GX121: 0 | GY121: 0 | GZ121: 0 | HA121: 0 | HB121: 0 | HC121: 0 | HD121: 0 | HE121: 0 | HF121: 0 | HG121: 0 | HH121: 0 | HI121: 0 | HJ121: 0 | HK121: 0 | HL121: 0 | HM121: 0 | HN121: 0 | HO121: 0 | HP121: 0 | HQ121: 0 | HR121: 0 | HS121: 0 | HT121: 0 | HU121: 0 | HV121: 0 | HW121: 0
A127: TOTAL
A128: =COUNT(A110:A125) -> 11 | B128: =SUM(B110:B125) -> 0 | C128: =SUM(C110:C125) -> 0 | D128: 0 | E128: 0 | F128: 0 | G128: 0 | H128: 0 | I128: 0 | J128: 0 | K128: 0 | L128: 0 | M128: 0 | N128: 0 | O128: 0 | P128: 0 | Q128: 0 | R128: 0 | S128: 0 | T128: 0 | U128: 0 | V128: 0 | W128: 0 | X128: 0 | Y128: 0 | Z128: 0 | AA128: 0 | AB128: 0 | AC128: 0 | AD128: 0 | AE128: 0 | AF128: 0 | AG128: 0 | AH128: 0 | AI128: 0 | AJ128: 0 | AK128: 0 | AL128: 0 | AM128: 0 | AN128: 0 | AO128: 0 | AP128: 0 | AQ128: 0 | AR128: 0 | AS128: 0 | AT128: 0 | AU128: 0 | AV128: 0 | AW128: 0 | AX128: 0 | AY128: 0 | AZ128: 0 | BA128: 0 | BB128: 0 | BC128: 0 | BD128: 0 | BE128: 0 | BF128: 0 | BG128: 0 | BH128: 0 | BI128: 0 | BJ128: 38 | BK128: 0 | BL128: 0 | BM128: 0 | BN128: 0 | BO128: =SUM(BO110:BO125) -> 0 | BP128: 0 | BQ128: 158 | BR128: 0 | BS128: 0 | BT128: 36 | BU128: 0 | BV128: 0 | BW128: 0 | BX128: 0 | BY128: 0 | BZ128: 0 | CA128: 0 | CB128: 0 | CC128: 0 | CD128: 0 | CE128: 0 | CF128: 0 | CG128: 0 | CH128: 0 | CI128: 0 | CJ128: 0 | CK128: 158 | CL128: 0 | CM128: 0 | CN128: 0 | CO128: 34 | CP128: 0 | CQ128: 0 | CR128: 0 | CS128: 0 | CT128: 0 | CU128: 0 | CV128: 0 | CW128: 0 | CX128: 0 | CY128: 0 | CZ128: 0 | DA128: 0 | DB128: 0 | DC128: 0 | DD128: 0 | DE128: 0 | DF128: 0 | DG128: 0 | DH128: 0 | DI128: 0 | DJ128: 0 | DK128: 0 | DL128: 0 | DM128: 0 | DN128: 0 | DO128: 0 | DP128: 0 | DQ128: 0 | DR128: 0 | DS128: 0 | DT128: 0 | DU128: 0 | DV128: 0 | DW128: 0 | DX128: 0 | DY128: 0 | DZ128: 0 | EA128: =SUM(EA110:EA125) -> 0 | EB128: 0 | EC128: 0 | ED128: 0 | EE128: 0 | EF128: 0 | EG128: 0 | EH128: 0 | EI128: 0 | EJ128: 0 | EK128: 0 | EL128: 0 | EM128: 0 | EN128: 0 | EO128: 0 | EP128: 0 | EQ128: 0 | ER128: 0 | ES128: 0 | ET128: 0 | EU128: 0 | EV128: 0 | EW128: 0 | EX128: 0 | EY128: 0 | EZ128: 0 | FA128: 0 | FB128: 0 | FC128: 0 | FD128: 0 | FE128: 0 | FF128: 0 | FG128: 0 | FH128: 0 | FI128: 0 | FJ128: 0 | FK128: 0 | FL128: 0 | FM128: 0 | FN128: 0 | FO128: 0 | FP128: 0 | FQ128: 0 | FR128: 0 | FS128: 0 | FT128: 0 | FU128: 0 | FV128: 0 | FW128: 0 | FX128: 0 | FY128: 0 | FZ128: 0 | GA128: 0 | GB128: 0 | GC128: 0 | GD128: 0 | GE128: 0 | GF128: 0 | GG128: 0 | GH128: 4 | GI128: 0 | GJ128: 0 | GK128: 8 | GL128: 0 | GM128: =SUM(GM110:GM125) -> 0 | GN128: 8 | GO128: 0 | GP128: 0 | GQ128: 0 | GR128: 0 | GS128: 0 | GT128: 0 | GU128: 0 | GV128: 0 | GW128: 0 | GX128: 0 | GY128: 0 | GZ128: 0 | HA128: 0 | HB128: 0 | HC128: 0 | HD128: 0 | HE128: 0 | HF128: 0 | HG128: 0 | HH128: 0 | HI128: 0 | HJ128: 0 | HK128: 0 | HL128: 0 | HM128: 0 | HN128: 0 | HO128: =SUM(HO110:HO125) -> 0 | HP128: 0 | HQ128: 0 | HR128: 0 | HS128: 0 | HT128: 0 | HU128: 0 | HV128: 0 | HW128: =SUM(HW110:HW125) -> 0
A129: =CONCATENATE(A110,"-",A111,"-",A112,"-",A113,"-",A114,"-",A115,"-",A116,"-",A117,"-",A118,"-",A119,"-",A120,"-",A121) -> 2-3-1-5-4-6-8-7-9-10-11-T
B130: BAS001 | C130: BAS002 | D130: BAS003 | E130: BAS004 | F130: BAS005 | G130: BAS006 | H130: BAS007 | I130: BAS008 | J130: BAS009 | K130: BAS010 | L130: BAS011 | M130: BAS012 | N130: BAS013 | O130: BAS014 | P130: BAS015 | Q130: BAS016 | R130: BAS017 | S130: BAS018 | T130: BAS019 | U130: BAS020 | V130: BAS021 | W130: BAS022 | X130: BAS023 | Y130: BAS024 | Z130: BAS025 | AA130: BAS026 | AB130: BAS027 | AC130: BAS028 | AD130: BAS029 | AE130: BAS030 | AF130: BAS031 | AG130: BAS032 | AH130: BAS033 | AI130: BAS034 | AJ130: BAS035 | AK130: BAS036 | AL130: BAS037 | AM130: BAS038 | AN130: BAS039 | AO130: BAS040 | AP130: BAS041 | AQ130: BAS042 | AR130: BAS043 | AS130: BAS044 | AT130: BAS045 | AU130: BAS046 | AV130: BAS047 | AW130: BAS048 | AX130: BAS049 | AY130: BAS050 | AZ130: BAS051 | BA130: BAS052 | BB130: BAS053 | BC130: BAS054 | BD130: BAS055 | BE130: BAS056 | BF130: BAS057 | BG130: BAS058 | BH130: BAS059 | BI130: BAS060 | BJ130: BAS061 | BK130: BAS062 | BL130: BAS063 | BM130: BAS064 | BN130: BAS065 | BO130: BAS066 | BP130: BAS067 | BQ130: BAS068 | BR130: BAS069 | BS130: BAS070 | BT130: BAS071 | BU130: BAS072 | BV130: BAS073 | BW130: BAS074 | BX130: BAS075 | BY130: BAS076 | BZ130: BAS077 | CA130: BAS078 | CB130: BAS079 | CC130: BAS080 | CD130: BAS081 | CE130: BAS082 | CF130: BAS083 | CG130: BAS084 | CH130: BAS085 | CI130: BAS086 | CJ130: BAS087 | CK130: BAS088 | CL130: BAS089 | CM130: BAS090 | CN130: BAS091 | CO130: BAS092 | CP130: BAS093 | CQ130: BAS094 | CR130: BAS095 | CS130: BAS096 | CT130: BAS097 | CU130: BAS098 | CV130: BAS099 | CW130: BAS100 | CX130: BAS101 | CY130: BAS102 | CZ130: BAS103 | DA130: BAS104 | DB130: BAS105 | DC130: BAS106 | DD130: BAS107 | DE130: BAS108 | DF130: BAS109 | DG130: BAS110 | DH130: BAS111 | DI130: BAS112 | DJ130: BAS113 | DK130: BAS114 | DL130: BAS115 | DM130: BAS116 | DN130: BAS117 | DO130: BAS118 | DP130: BAS119 | DQ130: BAS120 | DR130: BAS121 | DS130: BAS122 | DT130: BAS123 | DU130: BAS124 | DV130: BAS125 | DW130: BAS126 | DX130: BAS127 | DY130: BAS128 | DZ130: BAS129 | EA130: BAS130 | EB130: BAS131 | EC130: BAS132 | ED130: BAS133 | EE130: BAS134 | EF130: BAS135 | EG130: BAS136 | EH130: BAS137 | EI130: BAS138 | EJ130: BAS139 | EK130: BAS140 | EL130: BAS141 | EM130: BAS142 | EN130: BAS143 | EO130: BAS144 | EP130: BAS145 | EQ130: BAS146 | ER130: BAS147 | ES130: BAS148 | ET130: BAS149 | EU130: BAS150 | EV130: BAS151 | EW130: BAS152 | EX130: BAS153 | EY130: BAS154 | EZ130: BAS155 | FA130: BAS156 | FB130: BAS157 | FC130: BAS158 | FD130: BAS159 | FE130: BAS160 | FF130: BAS161 | FG130: BAS162 | FH130: BAS163 | FI130: BAS164 | FJ130: BAS165 | FK130: BAS166 | FL130: BAS167 | FM130: BAS168 | FN130: BAS169 | FO130: BAS170 | FP130: BAS171 | FQ130: BAS172 | FR130: BAS173 | FS130: BAS174 | FT130: BAS175 | FU130: BAS176 | FV130: BAS177 | FW130: BAS178 | FX130: BAS179 | FY130: BAS180 | FZ130: BAS181 | GA130: BAS182 | GB130: BAS183 | GC130: BAS184 | GD130: BAS185 | GE130: BAS186 | GF130: BAS187 | GG130: BAS188 | GH130: BAS189 | GI130: BAS190 | GJ130: BAS191 | GK130: BAS192 | GL130: BAS193 | GM130: BAS194 | GN130: BAS195 | GO130: BAS196 | GP130: BAS197 | GQ130: BAS198 | GR130: BAS199 | GS130: BAS200 | GT130: BAS201 | GU130: BAS202 | GV130: BAS203 | GW130: BAS204 | GX130: BAS205 | GY130: BAS206 | GZ130: BAS207 | HA130: BAS208 | HB130: BAS209 | HC130: BAS210 | HD130: BAS211 | HE130: BAS212 | HF130: BAS213 | HG130: BAS214 | HH130: BAS215 | HI130: BAS216 | HJ130: BAS217 | HK130: BAS218 | HL130: BAS219 | HM130: BAS220 | HN130: BAS221 | HO130: BAS222 | HP130: BAS223 | HQ130: BAS224 | HR130: BAS225 | HS130: BAS226 | HT130: BAS227 | HU130: BAS228 | HV130: BAS229 | HW130: BAS230
B131: =IF(B130=B109,"SI","NO") -> SI | C131: =IF(C130=C109,"SI","NO") -> SI | D131: SI | E131: SI | F131: SI | G131: SI | H131: SI | I131: SI | J131: SI | K131: SI | L131: SI | M131: SI | N131: SI | O131: SI | P131: SI | Q131: SI | R131: SI | S131: SI | T131: SI | U131: SI | V131: SI | W131: SI | X131: SI | Y131: SI | Z131: SI | AA131: SI | AB131: SI | AC131: SI | AD131: SI | AE131: SI | AF131: SI | AG131: SI | AH131: SI | AI131: SI | AJ131: SI | AK131: SI | AL131: SI | AM131: SI | AN131: SI | AO131: SI | AP131: SI | AQ131: SI | AR131: SI | AS131: SI | AT131: SI | AU131: SI | AV131: SI | AW131: SI | AX131: SI | AY131: SI | AZ131: SI | BA131: SI | BB131: SI | BC131: SI | BD131: SI | BE131: SI | BF131: SI | BG131: SI | BH131: SI | BI131: SI | BJ131: SI | BK131: SI | BL131: SI | BM131: SI | BN131: SI | BO131: =IF(BO130=BO109,"SI","NO") -> SI | BP131: SI | BQ131: SI | BR131: SI | BS131: SI | BT131: SI | BU131: SI | BV131: SI | BW131: SI | BX131: SI | BY131: SI | BZ131: SI | CA131: SI | CB131: SI | CC131: SI | CD131: SI | CE131: SI | CF131: SI | CG131: SI | CH131: SI | CI131: SI | CJ131: SI | CK131: SI | CL131: SI | CM131: SI | CN131: SI | CO131: SI | CP131: SI | CQ131: SI | CR131: SI | CS131: SI | CT131: SI | CU131: SI | CV131: SI | CW131: SI | CX131: SI | CY131: SI | CZ131: SI | DA131: SI | DB131: SI | DC131: SI | DD131: SI | DE131: SI | DF131: SI | DG131: SI | DH131: SI | DI131: SI | DJ131: SI | DK131: SI | DL131: SI | DM131: SI | DN131: SI | DO131: SI | DP131: SI | DQ131: SI | DR131: SI | DS131: SI | DT131: SI | DU131: SI | DV131: SI | DW131: SI | DX131: SI | DY131: SI | DZ131: SI | EA131: =IF(EA130=EA109,"SI","NO") -> SI | EB131: SI | EC131: SI | ED131: SI | EE131: SI | EF131: SI | EG131: SI | EH131: SI | EI131: SI | EJ131: SI | EK131: SI | EL131: SI | EM131: SI | EN131: SI | EO131: SI | EP131: SI | EQ131: SI | ER131: SI | ES131: SI | ET131: SI | EU131: SI | EV131: SI | EW131: SI | EX131: SI | EY131: SI | EZ131: SI | FA131: SI | FB131: SI | FC131: SI | FD131: SI | FE131: SI | FF131: SI | FG131: SI | FH131: SI | FI131: SI | FJ131: SI | FK131: SI | FL131: SI | FM131: SI | FN131: SI | FO131: SI | FP131: SI | FQ131: SI | FR131: SI | FS131: SI | FT131: SI | FU131: SI | FV131: SI | FW131: SI | FX131: SI | FY131: SI | FZ131: SI | GA131: SI | GB131: SI | GC131: SI | GD131: SI | GE131: SI | GF131: SI | GG131: SI | GH131: SI | GI131: SI | GJ131: SI | GK131: SI | GL131: SI | GM131: =IF(GM130=GM109,"SI","NO") -> SI | GN131: SI | GO131: SI | GP131: SI | GQ131: SI | GR131: SI | GS131: SI | GT131: SI | GU131: SI | GV131: SI | GW131: SI | GX131: SI | GY131: SI | GZ131: SI | HA131: SI | HB131: SI | HC131: SI | HD131: SI | HE131: SI | HF131: SI | HG131: SI | HH131: SI | HI131: SI | HJ131: SI | HK131: SI | HL131: SI | HM131: SI | HN131: SI | HO131: =IF(HO130=HO109,"SI","NO") -> SI | HP131: SI | HQ131: SI | HR131: SI | HS131: SI | HT131: SI | HU131: SI | HV131: SI | HW131: =IF(HW130=HW109,"SI","NO") -> SI
A133: FITSVIH1217F
A134: anno | B134: 2024
A135: cod_red | B135: 03
A136: codmic | B136: (Todas)
A137: cod_prov | B137: (Todas)
A138: coddist | B138: (Todas)
A139: cod_estab | B139: (Todas)
A140: cod_eje | B140: (Todas)
B142: Valores
A143: Etiquetas de fila | B143: BAS001 | C143: BAS002 | D143: BAS003 | E143: BAS004 | F143: BAS005 | G143: BAS006 | H143: BAS007 | I143: BAS008 | J143: BAS009 | K143: BAS010 | L143: BAS011 | M143: BAS012 | N143: BAS013 | O143: BAS014 | P143: BAS015 | Q143: BAS016 | R143: BAS017 | S143: BAS018 | T143: BAS019 | U143: BAS020 | V143: BAS021 | W143: BAS022 | X143: BAS023 | Y143: BAS024 | Z143: BAS025 | AA143: BAS026 | AB143: BAS027 | AC143: BAS028 | AD143: BAS029 | AE143: BAS030 | AF143: BAS031 | AG143: BAS032 | AH143: BAS033 | AI143: BAS034 | AJ143: BAS035 | AK143: BAS036 | AL143: BAS037 | AM143: BAS038 | AN143: BAS039 | AO143: BAS040 | AP143: BAS041 | AQ143: BAS042 | AR143: BAS043 | AS143: BAS044 | AT143: BAS045 | AU143: BAS046 | AV143: BAS047 | AW143: BAS048 | AX143: BAS049 | AY143: BAS050 | AZ143: BAS051 | BA143: BAS052 | BB143: BAS053 | BC143: BAS054 | BD143: BAS055 | BE143: BAS056 | BF143: BAS057 | BG143: BAS058 | BH143: BAS059 | BI143: BAS060 | BJ143: BAS061 | BK143: BAS062 | BL143: BAS063 | BM143: BAS064 | BN143: BAS065 | BO143: BAS066 | BP143: BAS067 | BQ143: BAS068 | BR143: BAS069 | BS143: BAS070 | BT143: BAS071 | BU143: BAS072 | BV143: BAS073 | BW143: BAS074 | BX143: BAS075 | BY143: BAS076 | BZ143: BAS077 | CA143: BAS078 | CB143: BAS079 | CC143: BAS080 | CD143: BAS081 | CE143: BAS082 | CF143: BAS083 | CG143: BAS084 | CH143: BAS085 | CI143: BAS086 | CJ143: BAS087 | CK143: BAS088 | CL143: BAS089 | CM143: BAS090 | CN143: BAS091 | CO143: BAS092 | CP143: BAS093 | CQ143: BAS094 | CR143: BAS095 | CS143: BAS096 | CT143: BAS097 | CU143: BAS098 | CV143: BAS099 | CW143: BAS100 | CX143: BAS101 | CY143: BAS102 | CZ143: BAS103 | DA143: BAS104 | DB143: BAS105 | DC143: BAS106 | DD143: BAS107 | DE143: BAS108 | DF143: BAS109 | DG143: BAS110 | DH143: BAS111 | DI143: BAS112 | DJ143: BAS113 | DK143: BAS114 | DL143: BAS115 | DM143: BAS116 | DN143: BAS117 | DO143: BAS118 | DP143: BAS119 | DQ143: BAS120 | DR143: BAS121 | DS143: BAS122 | DT143: BAS123 | DU143: BAS124 | DV143: BAS125 | DW143: BAS126 | DX143: BAS127 | DY143: BAS128 | DZ143: BAS129 | EA143: BAS130 | EB143: BAS131 | EC143: BAS132 | ED143: BAS133 | EE143: BAS134 | EF143: BAS135 | EG143: BAS136 | EH143: BAS137 | EI143: BAS138 | EJ143: BAS139 | EK143: BAS140 | EL143: BAS141 | EM143: BAS142 | EN143: BAS143 | EO143: BAS144 | EP143: BAS145 | EQ143: BAS146 | ER143: BAS147 | ES143: BAS148 | ET143: BAS149 | EU143: BAS150 | EV143: BAS151 | EW143: BAS152 | EX143: BAS153 | EY143: BAS154 | EZ143: BAS155 | FA143: BAS156 | FB143: BAS157 | FC143: BAS158 | FD143: BAS159 | FE143: BAS160 | FF143: BAS161 | FG143: BAS162 | FH143: BAS163 | FI143: BAS164 | FJ143: BAS165 | FK143: BAS166 | FL143: BAS167 | FM143: BAS168 | FN143: BAS169 | FO143: BAS170 | FP143: BAS171 | FQ143: BAS172 | FR143: BAS173 | FS143: BAS174 | FT143: BAS175 | FU143: BAS176 | FV143: BAS177 | FW143: BAS178 | FX143: BAS179 | FY143: BAS180 | FZ143: BAS181 | GA143: BAS182 | GB143: BAS183 | GC143: BAS184 | GD143: BAS185 | GE143: BAS186 | GF143: BAS187 | GG143: BAS188 | GH143: BAS189 | GI143: BAS190 | GJ143: BAS191 | GK143: BAS192 | GL143: BAS193 | GM143: BAS194 | GN143: BAS195 | GO143: BAS196 | GP143: BAS197 | GQ143: BAS198 | GR143: BAS199 | GS143: BAS200 | GT143: BAS201 | GU143: BAS202 | GV143: BAS203 | GW143: BAS204 | GX143: BAS205 | GY143: BAS206 | GZ143: BAS207 | HA143: BAS208 | HB143: BAS209 | HC143: BAS210 | HD143: BAS211 | HE143: BAS212 | HF143: BAS213 | HG143: BAS214 | HH143: BAS215 | HI143: BAS216 | HJ143: BAS217 | HK143: BAS218 | HL143: BAS219 | HM143: BAS220 | HN143: BAS221 | HO143: BAS222 | HP143: BAS223 | HQ143: BAS224 | HR143: BAS225 | HS143: BAS226 | HT143: BAS227 | HU143: BAS228 | HV143: BAS229 | HW143: BAS230
A144: 2 | B144: 2 | C144: 2 | D144: 2 | E144: 2 | F144: 0 | G144: 0 | H144: 0 | I144: 0 | J144: 2 | K144: 2 | L144: 2 | M144: 2 | N144: 0 | O144: 0 | P144: 0 | Q144: 0 | R144: 0 | S144: 0 | T144: 0 | U144: 0 | V144: 0 | W144: 0 | X144: 0 | Y144: 0 | Z144: 0 | AA144: 0 | AB144: 0 | AC144: 0 | AD144: 0 | AE144: 0 | AF144: 0 | AG144: 0 | AH144: 0 | AI144: 0 | AJ144: 0 | AK144: 0 | AL144: 0 | AM144: 0 | AN144: 0 | AO144: 0 | AP144: 0 | AQ144: 0 | AR144: 0 | AS144: 0 | AT144: 0 | AU144: 0 | AV144: 0 | AW144: 0 | AX144: 0 | AY144: 0 | AZ144: 0 | BA144: 0 | BB144: 0 | BC144: 0 | BD144: 0 | BE144: 0 | BF144: 0 | BG144: 0 | BH144: 0 | BI144: 0 | BJ144: 12 | BK144: 0 | BL144: 77 | BM144: 0 | BN144: 0 | BO144: 0 | BP144: 0 | BQ144: 45 | BR144: 0 | BS144: 0 | BT144: 19 | BU144: 0 | BV144: 0 | BW144: 0 | BX144: 0 | BY144: 0 | BZ144: 0 | CA144: 0 | CB144: 0 | CC144: 0 | CD144: 0 | CE144: 0 | CF144: 0 | CG144: 0 | CH144: 0 | CI144: 0 | CJ144: 0 | CK144: 51 | CL144: 0 | CM144: 0 | CN144: 0 | CO144: 13 | CP144: 0 | CQ144: 0 | CR144: 0 | CS144: 0 | CT144: 0 | CU144: 0 | CV144: 0 | CW144: 0 | CX144: 0 | CY144: 2 | CZ144: 2 | DA144: 0 | DB144: 0 | DC144: 0 | DD144: 0 | DE144: 0 | DF144: 0 | DG144: 0 | DH144: 0 | DI144: 2 | DJ144: 0 | DK144: 0 | DL144: 0 | DM144: 0 | DN144: 0 | DO144: 0 | DP144: 0 | DQ144: 0 | DR144: 0 | DS144: 0 | DT144: 0 | DU144: 0 | DV144: 0 | DW144: 0 | DX144: 0 | DY144: 0 | DZ144: 0 | EA144: 0 | EB144: 0 | EC144: 0 | ED144: 0 | EE144: 0 | EF144: 19 | EG144: 8 | EH144: 10 | EI144: 1 | EJ144: 0 | EK144: 0 | EL144: 0 | EM144: 0 | EN144: 0 | EO144: 0 | EP144: 0 | EQ144: 0 | ER144: 20 | ES144: 8 | ET144: 11 | EU144: 1 | EV144: 0 | EW144: 0 | EX144: 0 | EY144: 0 | EZ144: 0 | FA144: 0 | FB144: 0 | FC144: 0 | FD144: 19 | FE144: 8 | FF144: 10 | FG144: 1 | FH144: 0 | FI144: 0 | FJ144: 0 | FK144: 0 | FL144: 0 | FM144: 0 | FN144: 0 | FO144: 0 | FP144: 0 | FQ144: 0 | FR144: 0 | FS144: 0 | FT144: 0 | FU144: 0 | FV144: 0 | FW144: 0 | FX144: 0 | FY144: 0 | FZ144: 0 | GA144: 0 | GB144: 0 | GC144: 0 | GD144: 0 | GE144: 0 | GF144: 0 | GG144: 0 | GH144: 0 | GI144: 0 | GJ144: 0 | GK144: 0 | GL144: 0 | GM144: 0 | GN144: 0 | GO144: 0 | GP144: 0 | GQ144: 0 | GR144: 0 | GS144: 0 | GT144: 0 | GU144: 0 | GV144: 0 | GW144: 0 | GX144: 0 | GY144: 0 | GZ144: 0 | HA144: 0 | HB144: 0 | HC144: 0 | HD144: 0 | HE144: 0 | HF144: 0 | HG144: 0 | HH144: 0 | HI144: 0 | HJ144: 0 | HK144: 0 | HL144: 0 | HM144: 0 | HN144: 0 | HO144: 0 | HP144: 0 | HQ144: 0 | HR144: 0 | HS144: 0 | HT144: 0 | HU144: 0 | HV144: 0 | HW144: 0
A145: 3 | B145: 5 | C145: 3 | D145: 4 | E145: 4 | F145: 0 | G145: 0 | H145: 0 | I145: 0 | J145: 6 | K145: 6 | L145: 4 | M145: 4 | N145: 0 | O145: 0 | P145: 0 | Q145: 0 | R145: 0 | S145: 0 | T145: 0 | U145: 0 | V145: 0 | W145: 0 | X145: 0 | Y145: 0 | Z145: 0 | AA145: 0 | AB145: 0 | AC145: 0 | AD145: 0 | AE145: 0 | AF145: 0 | AG145: 0 | AH145: 0 | AI145: 0 | AJ145: 0 | AK145: 0 | AL145: 0 | AM145: 0 | AN145: 0 | AO145: 0 | AP145: 0 | AQ145: 0 | AR145: 0 | AS145: 0 | AT145: 0 | AU145: 0 | AV145: 0 | AW145: 0 | AX145: 0 | AY145: 0 | AZ145: 0 | BA145: 0 | BB145: 0 | BC145: 0 | BD145: 0 | BE145: 0 | BF145: 0 | BG145: 0 | BH145: 0 | BI145: 0 | BJ145: 14 | BK145: 0 | BL145: 119 | BM145: 0 | BN145: 0 | BO145: 0 | BP145: 0 | BQ145: 53 | BR145: 0 | BS145: 0 | BT145: 27 | BU145: 0 | BV145: 0 | BW145: 0 | BX145: 0 | BY145: 0 | BZ145: 0 | CA145: 0 | CB145: 0 | CC145: 0 | CD145: 0 | CE145: 0 | CF145: 0 | CG145: 0 | CH145: 0 | CI145: 0 | CJ145: 0 | CK145: 58 | CL145: 0 | CM145: 0 | CN145: 0 | CO145: 26 | CP145: 0 | CQ145: 0 | CR145: 0 | CS145: 0 | CT145: 0 | CU145: 0 | CV145: 0 | CW145: 0 | CX145: 0 | CY145: 1 | CZ145: 1 | DA145: 0 | DB145: 0 | DC145: 0 | DD145: 0 | DE145: 0 | DF145: 0 | DG145: 0 | DH145: 0 | DI145: 1 | DJ145: 0 | DK145: 0 | DL145: 0 | DM145: 0 | DN145: 0 | DO145: 0 | DP145: 0 | DQ145: 0 | DR145: 0 | DS145: 0 | DT145: 0 | DU145: 0 | DV145: 0 | DW145: 0 | DX145: 0 | DY145: 0 | DZ145: 0 | EA145: 0 | EB145: 0 | EC145: 0 | ED145: 0 | EE145: 0 | EF145: 8 | EG145: 3 | EH145: 2 | EI145: 3 | EJ145: 0 | EK145: 0 | EL145: 0 | EM145: 0 | EN145: 0 | EO145: 0 | EP145: 0 | EQ145: 0 | ER145: 9 | ES145: 3 | ET145: 3 | EU145: 3 | EV145: 0 | EW145: 0 | EX145: 0 | EY145: 0 | EZ145: 0 | FA145: 0 | FB145: 0 | FC145: 0 | FD145: 8 | FE145: 3 | FF145: 2 | FG145: 3 | FH145: 0 | FI145: 0 | FJ145: 0 | FK145: 0 | FL145: 0 | FM145: 0 | FN145: 0 | FO145: 0 | FP145: 0 | FQ145: 0 | FR145: 0 | FS145: 0 | FT145: 0 | FU145: 0 | FV145: 0 | FW145: 0 | FX145: 0 | FY145: 0 | FZ145: 0 | GA145: 0 | GB145: 0 | GC145: 0 | GD145: 0 | GE145: 0 | GF145: 0 | GG145: 0 | GH145: 0 | GI145: 0 | GJ145: 0 | GK145: 0 | GL145: 0 | GM145: 0 | GN145: 0 | GO145: 0 | GP145: 0 | GQ145: 0 | GR145: 0 | GS145: 0 | GT145: 0 | GU145: 0 | GV145: 0 | GW145: 0 | GX145: 0 | GY145: 0 | GZ145: 0 | HA145: 0 | HB145: 0 | HC145: 0 | HD145: 0 | HE145: 0 | HF145: 0 | HG145: 0 | HH145: 0 | HI145: 0 | HJ145: 0 | HK145: 0 | HL145: 0 | HM145: 0 | HN145: 0 | HO145: 0 | HP145: 0 | HQ145: 0 | HR145: 0 | HS145: 0 | HT145: 0 | HU145: 0 | HV145: 0 | HW145: 0
A146: 1 | B146: 3 | C146: 3 | D146: 2 | E146: 2 | F146: 0 | G146: 0 | H146: 0 | I146: 0 | J146: 2 | K146: 2 | L146: 2 | M146: 2 | N146: 0 | O146: 0 | P146: 0 | Q146: 0 | R146: 0 | S146: 0 | T146: 0 | U146: 0 | V146: 1 | W146: 1 | X146: 0 | Y146: 0 | Z146: 0 | AA146: 0 | AB146: 0 | AC146: 0 | AD146: 0 | AE146: 0 | AF146: 0 | AG146: 0 | AH146: 0 | AI146: 0 | AJ146: 0 | AK146: 0 | AL146: 0 | AM146: 0 | AN146: 0 | AO146: 0 | AP146: 0 | AQ146: 0 | AR146: 0 | AS146: 0 | AT146: 0 | AU146: 0 | AV146: 0 | AW146: 0 | AX146: 0 | AY146: 0 | AZ146: 0 | BA146: 0 | BB146: 0 | BC146: 0 | BD146: 0 | BE146: 0 | BF146: 0 | BG146: 0 | BH146: 0 | BI146: 0 | BJ146: 0 | BK146: 0 | BL146: 54 | BM146: 0 | BN146: 0 | BO146: 0 | BP146: 0 | BQ146: 31 | BR146: 0 | BS146: 0 | BT146: 24 | BU146: 0 | BV146: 0 | BW146: 0 | BX146: 0 | BY146: 0 | BZ146: 0 | CA146: 0 | CB146: 0 | CC146: 0 | CD146: 0 | CE146: 0 | CF146: 0 | CG146: 0 | CH146: 0 | CI146: 0 | CJ146: 0 | CK146: 29 | CL146: 0 | CM146: 0 | CN146: 0 | CO146: 14 | CP146: 0 | CQ146: 0 | CR146: 0 | CS146: 0 | CT146: 0 | CU146: 0 | CV146: 0 | CW146: 0 | CX146: 0 | CY146: 0 | CZ146: 0 | DA146: 0 | DB146: 0 | DC146: 0 | DD146: 0 | DE146: 0 | DF146: 0 | DG146: 0 | DH146: 0 | DI146: 0 | DJ146: 0 | DK146: 0 | DL146: 0 | DM146: 0 | DN146: 0 | DO146: 0 | DP146: 0 | DQ146: 0 | DR146: 0 | DS146: 0 | DT146: 0 | DU146: 0 | DV146: 0 | DW146: 0 | DX146: 0 | DY146: 0 | DZ146: 0 | EA146: 0 | EB146: 0 | EC146: 0 | ED146: 0 | EE146: 0 | EF146: 14 | EG146: 8 | EH146: 4 | EI146: 2 | EJ146: 0 | EK146: 0 | EL146: 0 | EM146: 0 | EN146: 0 | EO146: 0 | EP146: 0 | EQ146: 0 | ER146: 17 | ES146: 10 | ET146: 5 | EU146: 2 | EV146: 0 | EW146: 0 | EX146: 0 | EY146: 0 | EZ146: 0 | FA146: 0 | FB146: 0 | FC146: 0 | FD146: 14 | FE146: 8 | FF146: 4 | FG146: 2 | FH146: 0 | FI146: 0 | FJ146: 0 | FK146: 0 | FL146: 0 | FM146: 0 | FN146: 0 | FO146: 0 | FP146: 0 | FQ146: 0 | FR146: 0 | FS146: 0 | FT146: 0 | FU146: 0 | FV146: 0 | FW146: 0 | FX146: 0 | FY146: 0 | FZ146: 0 | GA146: 0 | GB146: 0 | GC146: 0 | GD146: 0 | GE146: 0 | GF146: 0 | GG146: 0 | GH146: 0 | GI146: 0 | GJ146: 0 | GK146: 0 | GL146: 0 | GM146: 0 | GN146: 0 | GO146: 0 | GP146: 0 | GQ146: 0 | GR146: 0 | GS146: 0 | GT146: 0 | GU146: 0 | GV146: 0 | GW146: 0 | GX146: 0 | GY146: 0 | GZ146: 0 | HA146: 0 | HB146: 0 | HC146: 0 | HD146: 0 | HE146: 0 | HF146: 0 | HG146: 0 | HH146: 0 | HI146: 0 | HJ146: 0 | HK146: 0 | HL146: 0 | HM146: 0 | HN146: 0 | HO146: 0 | HP146: 0 | HQ146: 0 | HR146: 0 | HS146: 0 | HT146: 0 | HU146: 0 | HV146: 0 | HW146: 0
A147: 5 | B147: 7 | C147: 7 | D147: 7 | E147: 7 | F147: 0 | G147: 0 | H147: 0 | I147: 0 | J147: 7 | K147: 7 | L147: 7 | M147: 7 | N147: 0 | O147: 0 | P147: 0 | Q147: 0 | R147: 0 | S147: 0 | T147: 0 | U147: 0 | V147: 0 | W147: 0 | X147: 0 | Y147: 0 | Z147: 0 | AA147: 0 | AB147: 0 | AC147: 0 | AD147: 0 | AE147: 0 | AF147: 0 | AG147: 0 | AH147: 0 | AI147: 0 | AJ147: 0 | AK147: 0 | AL147: 0 | AM147: 0 | AN147: 0 | AO147: 0 | AP147: 1 | AQ147: 0 | AR147: 1 | AS147: 1 | AT147: 0 | AU147: 0 | AV147: 0 | AW147: 0 | AX147: 2 | AY147: 0 | AZ147: 2 | BA147: 0 | BB147: 0 | BC147: 0 | BD147: 0 | BE147: 0 | BF147: 0 | BG147: 0 | BH147: 0 | BI147: 0 | BJ147: 1 | BK147: 0 | BL147: 364 | BM147: 0 | BN147: 0 | BO147: 0 | BP147: 0 | BQ147: 149 | BR147: 0 | BS147: 0 | BT147: 35 | BU147: 0 | BV147: 0 | BW147: 0 | BX147: 0 | BY147: 0 | BZ147: 0 | CA147: 0 | CB147: 9 | CC147: 0 | CD147: 0 | CE147: 0 | CF147: 0 | CG147: 0 | CH147: 0 | CI147: 0 | CJ147: 0 | CK147: 219 | CL147: 2 | CM147: 0 | CN147: 0 | CO147: 53 | CP147: 0 | CQ147: 0 | CR147: 0 | CS147: 1 | CT147: 0 | CU147: 0 | CV147: 0 | CW147: 0 | CX147: 0 | CY147: 1 | CZ147: 0 | DA147: 0 | DB147: 0 | DC147: 0 | DD147: 0 | DE147: 0 | DF147: 0 | DG147: 0 | DH147: 0 | DI147: 0 | DJ147: 0 | DK147: 0 | DL147: 0 | DM147: 0 | DN147: 0 | DO147: 0 | DP147: 0 | DQ147: 0 | DR147: 0 | DS147: 0 | DT147: 0 | DU147: 0 | DV147: 0 | DW147: 0 | DX147: 0 | DY147: 0 | DZ147: 0 | EA147: 0 | EB147: 0 | EC147: 0 | ED147: 0 | EE147: 0 | EF147: 11 | EG147: 8 | EH147: 2 | EI147: 1 | EJ147: 1 | EK147: 0 | EL147: 0 | EM147: 1 | EN147: 0 | EO147: 0 | EP147: 0 | EQ147: 0 | ER147: 14 | ES147: 10 | ET147: 3 | EU147: 1 | EV147: 0 | EW147: 0 | EX147: 0 | EY147: 0 | EZ147: 0 | FA147: 0 | FB147: 0 | FC147: 0 | FD147: 11 | FE147: 8 | FF147: 2 | FG147: 1 | FH147: 0 | FI147: 0 | FJ147: 0 | FK147: 0 | FL147: 0 | FM147: 0 | FN147: 0 | FO147: 0 | FP147: 0 | FQ147: 0 | FR147: 0 | FS147: 0 | FT147: 0 | FU147: 0 | FV147: 0 | FW147: 0 | FX147: 0 | FY147: 0 | FZ147: 0 | GA147: 0 | GB147: 0 | GC147: 0 | GD147: 0 | GE147: 0 | GF147: 0 | GG147: 0 | GH147: 0 | GI147: 0 | GJ147: 0 | GK147: 0 | GL147: 0 | GM147: 0 | GN147: 0 | GO147: 0 | GP147: 0 | GQ147: 0 | GR147: 0 | GS147: 0 | GT147: 0 | GU147: 0 | GV147: 0 | GW147: 0 | GX147: 0 | GY147: 0 | GZ147: 0 | HA147: 0 | HB147: 0 | HC147: 0 | HD147: 0 | HE147: 0 | HF147: 0 | HG147: 0 | HH147: 0 | HI147: 0 | HJ147: 0 | HK147: 0 | HL147: 0 | HM147: 0 | HN147: 0 | HO147: 0 | HP147: 0 | HQ147: 0 | HR147: 0 | HS147: 0 | HT147: 0 | HU147: 0 | HV147: 0 | HW147: 0
A148: 4 | B148: 9 | C148: 9 | D148: 7 | E148: 7 | F148: 0 | G148: 0 | H148: 0 | I148: 0 | J148: 6 | K148: 6 | L148: 6 | M148: 6 | N148: 0 | O148: 0 | P148: 0 | Q148: 0 | R148: 2 | S148: 2 | T148: 0 | U148: 2 | V148: 1 | W148: 1 | X148: 1 | Y148: 0 | Z148: 0 | AA148: 0 | AB148: 0 | AC148: 0 | AD148: 0 | AE148: 0 | AF148: 0 | AG148: 0 | AH148: 0 | AI148: 0 | AJ148: 0 | AK148: 0 | AL148: 0 | AM148: 0 | AN148: 0 | AO148: 0 | AP148: 0 | AQ148: 0 | AR148: 0 | AS148: 0 | AT148: 0 | AU148: 0 | AV148: 0 | AW148: 0 | AX148: 1 | AY148: 0 | AZ148: 1 | BA148: 0 | BB148: 0 | BC148: 0 | BD148: 0 | BE148: 0 | BF148: 0 | BG148: 0 | BH148: 0 | BI148: 0 | BJ148: 3 | BK148: 1 | BL148: 426 | BM148: 0 | BN148: 0 | BO148: 0 | BP148: 0 | BQ148: 170 | BR148: 1 | BS148: 0 | BT148: 38 | BU148: 0 | BV148: 0 | BW148: 0 | BX148: 0 | BY148: 0 | BZ148: 0 | CA148: 0 | CB148: 3 | CC148: 0 | CD148: 0 | CE148: 0 | CF148: 0 | CG148: 0 | CH148: 0 | CI148: 0 | CJ148: 0 | CK148: 270 | CL148: 0 | CM148: 0 | CN148: 0 | CO148: 54 | CP148: 0 | CQ148: 0 | CR148: 0 | CS148: 0 | CT148: 0 | CU148: 0 | CV148: 0 | CW148: 0 | CX148: 0 | CY148: 3 | CZ148: 0 | DA148: 0 | DB148: 0 | DC148: 0 | DD148: 0 | DE148: 0 | DF148: 0 | DG148: 0 | DH148: 0 | DI148: 0 | DJ148: 0 | DK148: 0 | DL148: 0 | DM148: 0 | DN148: 0 | DO148: 0 | DP148: 0 | DQ148: 0 | DR148: 0 | DS148: 0 | DT148: 0 | DU148: 0 | DV148: 0 | DW148: 0 | DX148: 0 | DY148: 0 | DZ148: 0 | EA148: 0 | EB148: 0 | EC148: 0 | ED148: 0 | EE148: 0 | EF148: 15 | EG148: 6 | EH148: 8 | EI148: 1 | EJ148: 0 | EK148: 0 | EL148: 0 | EM148: 0 | EN148: 0 | EO148: 0 | EP148: 0 | EQ148: 0 | ER148: 15 | ES148: 7 | ET148: 7 | EU148: 1 | EV148: 1 | EW148: 1 | EX148: 0 | EY148: 0 | EZ148: 0 | FA148: 0 | FB148: 0 | FC148: 0 | FD148: 15 | FE148: 6 | FF148: 8 | FG148: 1 | FH148: 0 | FI148: 0 | FJ148: 0 | FK148: 0 | FL148: 0 | FM148: 0 | FN148: 0 | FO148: 0 | FP148: 0 | FQ148: 0 | FR148: 0 | FS148: 0 | FT148: 0 | FU148: 0 | FV148: 0 | FW148: 0 | FX148: 0 | FY148: 0 | FZ148: 0 | GA148: 0 | GB148: 0 | GC148: 0 | GD148: 0 | GE148: 0 | GF148: 0 | GG148: 0 | GH148: 0 | GI148: 0 | GJ148: 0 | GK148: 0 | GL148: 0 | GM148: 0 | GN148: 0 | GO148: 0 | GP148: 0 | GQ148: 0 | GR148: 0 | GS148: 0 | GT148: 0 | GU148: 0 | GV148: 0 | GW148: 0 | GX148: 0 | GY148: 0 | GZ148: 0 | HA148: 0 | HB148: 0 | HC148: 0 | HD148: 0 | HE148: 0 | HF148: 0 | HG148: 0 | HH148: 0 | HI148: 0 | HJ148: 0 | HK148: 0 | HL148: 0 | HM148: 0 | HN148: 0 | HO148: 0 | HP148: 0 | HQ148: 0 | HR148: 0 | HS148: 0 | HT148: 0 | HU148: 0 | HV148: 0 | HW148: 0
A149: 6 | B149: 2 | C149: 2 | D149: 2 | E149: 2 | F149: 0 | G149: 0 | H149: 0 | I149: 0 | J149: 2 | K149: 2 | L149: 2 | M149: 2 | N149: 0 | O149: 0 | P149: 0 | Q149: 0 | R149: 0 | S149: 0 | T149: 0 | U149: 0 | V149: 0 | W149: 0 | X149: 0 | Y149: 0 | Z149: 0 | AA149: 0 | AB149: 0 | AC149: 0 | AD149: 0 | AE149: 0 | AF149: 0 | AG149: 0 | AH149: 0 | AI149: 0 | AJ149: 0 | AK149: 0 | AL149: 0 | AM149: 0 | AN149: 0 | AO149: 0 | AP149: 0 | AQ149: 0 | AR149: 0 | AS149: 0 | AT149: 0 | AU149: 0 | AV149: 0 | AW149: 0 | AX149: 0 | AY149: 0 | AZ149: 0 | BA149: 0 | BB149: 0 | BC149: 0 | BD149: 0 | BE149: 0 | BF149: 0 | BG149: 0 | BH149: 0 | BI149: 0 | BJ149: 0 | BK149: 0 | BL149: 680 | BM149: 0 | BN149: 0 | BO149: 0 | BP149: 0 | BQ149: 296 | BR149: 0 | BS149: 0 | BT149: 86 | BU149: 0 | BV149: 0 | BW149: 0 | BX149: 0 | BY149: 0 | BZ149: 0 | CA149: 0 | CB149: 17 | CC149: 0 | CD149: 0 | CE149: 0 | CF149: 0 | CG149: 0 | CH149: 0 | CI149: 0 | CJ149: 0 | CK149: 425 | CL149: 0 | CM149: 0 | CN149: 0 | CO149: 84 | CP149: 0 | CQ149: 0 | CR149: 0 | CS149: 0 | CT149: 0 | CU149: 0 | CV149: 0 | CW149: 0 | CX149: 0 | CY149: 2 | CZ149: 2 | DA149: 0 | DB149: 0 | DC149: 0 | DD149: 0 | DE149: 0 | DF149: 0 | DG149: 0 | DH149: 0 | DI149: 2 | DJ149: 0 | DK149: 0 | DL149: 0 | DM149: 0 | DN149: 0 | DO149: 0 | DP149: 0 | DQ149: 0 | DR149: 0 | DS149: 0 | DT149: 0 | DU149: 0 | DV149: 0 | DW149: 0 | DX149: 0 | DY149: 0 | DZ149: 0 | EA149: 0 | EB149: 0 | EC149: 0 | ED149: 0 | EE149: 0 | EF149: 12 | EG149: 4 | EH149: 4 | EI149: 4 | EJ149: 0 | EK149: 0 | EL149: 0 | EM149: 0 | EN149: 0 | EO149: 0 | EP149: 0 | EQ149: 0 | ER149: 15 | ES149: 5 | ET149: 6 | EU149: 4 | EV149: 0 | EW149: 0 | EX149: 0 | EY149: 0 | EZ149: 0 | FA149: 0 | FB149: 0 | FC149: 0 | FD149: 12 | FE149: 4 | FF149: 4 | FG149: 4 | FH149: 0 | FI149: 0 | FJ149: 0 | FK149: 0 | FL149: 0 | FM149: 0 | FN149: 0 | FO149: 0 | FP149: 0 | FQ149: 0 | FR149: 0 | FS149: 0 | FT149: 0 | FU149: 0 | FV149: 0 | FW149: 0 | FX149: 0 | FY149: 0 | FZ149: 0 | GA149: 0 | GB149: 0 | GC149: 0 | GD149: 0 | GE149: 0 | GF149: 0 | GG149: 0 | GH149: 0 | GI149: 0 | GJ149: 0 | GK149: 0 | GL149: 0 | GM149: 0 | GN149: 0 | GO149: 0 | GP149: 0 | GQ149: 0 | GR149: 0 | GS149: 0 | GT149: 0 | GU149: 0 | GV149: 0 | GW149: 0 | GX149: 0 | GY149: 0 | GZ149: 0 | HA149: 0 | HB149: 0 | HC149: 0 | HD149: 0 | HE149: 0 | HF149: 0 | HG149: 0 | HH149: 0 | HI149: 0 | HJ149: 0 | HK149: 0 | HL149: 0 | HM149: 0 | HN149: 0 | HO149: 0 | HP149: 0 | HQ149: 0 | HR149: 0 | HS149: 0 | HT149: 0 | HU149: 0 | HV149: 0 | HW149: 0
A150: 7 | B150: 5 | C150: 5 | D150: 3 | E150: 3 | F150: 0 | G150: 0 | H150: 0 | I150: 0 | J150: 5 | K150: 5 | L150: 3 | M150: 3 | N150: 0 | O150: 0 | P150: 0 | Q150: 0 | R150: 0 | S150: 0 | T150: 0 | U150: 0 | V150: 0 | W150: 0 | X150: 0 | Y150: 0 | Z150: 0 | AA150: 0 | AB150: 0 | AC150: 0 | AD150: 0 | AE150: 0 | AF150: 0 | AG150: 0 | AH150: 0 | AI150: 0 | AJ150: 0 | AK150: 0 | AL150: 0 | AM150: 0 | AN150: 0 | AO150: 0 | AP150: 0 | AQ150: 0 | AR150: 0 | AS150: 0 | AT150: 0 | AU150: 0 | AV150: 0 | AW150: 0 | AX150: 0 | AY150: 0 | AZ150: 0 | BA150: 0 | BB150: 0 | BC150: 0 | BD150: 0 | BE150: 0 | BF150: 0 | BG150: 0 | BH150: 0 | BI150: 0 | BJ150: 0 | BK150: 0 | BL150: 234 | BM150: 0 | BN150: 0 | BO150: 0 | BP150: 0 | BQ150: 132 | BR150: 0 | BS150: 0 | BT150: 29 | BU150: 0 | BV150: 0 | BW150: 0 | BX150: 0 | BY150: 0 | BZ150: 0 | CA150: 0 | CB150: 15 | CC150: 0 | CD150: 0 | CE150: 0 | CF150: 0 | CG150: 0 | CH150: 0 | CI150: 0 | CJ150: 0 | CK150: 135 | CL150: 0 | CM150: 0 | CN150: 0 | CO150: 17 | CP150: 0 | CQ150: 0 | CR150: 0 | CS150: 0 | CT150: 0 | CU150: 0 | CV150: 0 | CW150: 0 | CX150: 0 | CY150: 2 | CZ150: 2 | DA150: 0 | DB150: 0 | DC150: 0 | DD150: 0 | DE150: 0 | DF150: 0 | DG150: 0 | DH150: 0 | DI150: 2 | DJ150: 0 | DK150: 0 | DL150: 0 | DM150: 0 | DN150: 0 | DO150: 0 | DP150: 0 | DQ150: 0 | DR150: 0 | DS150: 1 | DT150: 0 | DU150: 0 | DV150: 0 | DW150: 0 | DX150: 0 | DY150: 0 | DZ150: 0 | EA150: 0 | EB150: 0 | EC150: 0 | ED150: 0 | EE150: 0 | EF150: 8 | EG150: 3 | EH150: 3 | EI150: 2 | EJ150: 0 | EK150: 0 | EL150: 0 | EM150: 0 | EN150: 0 | EO150: 0 | EP150: 0 | EQ150: 0 | ER150: 9 | ES150: 4 | ET150: 3 | EU150: 2 | EV150: 0 | EW150: 0 | EX150: 0 | EY150: 0 | EZ150: 0 | FA150: 0 | FB150: 0 | FC150: 0 | FD150: 8 | FE150: 3 | FF150: 3 | FG150: 2 | FH150: 0 | FI150: 0 | FJ150: 0 | FK150: 0 | FL150: 0 | FM150: 0 | FN150: 0 | FO150: 0 | FP150: 0 | FQ150: 0 | FR150: 0 | FS150: 0 | FT150: 0 | FU150: 0 | FV150: 0 | FW150: 0 | FX150: 0 | FY150: 0 | FZ150: 0 | GA150: 0 | GB150: 0 | GC150: 0 | GD150: 0 | GE150: 0 | GF150: 0 | GG150: 0 | GH150: 0 | GI150: 0 | GJ150: 0 | GK150: 0 | GL150: 0 | GM150: 0 | GN150: 0 | GO150: 0 | GP150: 0 | GQ150: 0 | GR150: 0 | GS150: 0 | GT150: 0 | GU150: 0 | GV150: 0 | GW150: 0 | GX150: 0 | GY150: 0 | GZ150: 0 | HA150: 0 | HB150: 0 | HC150: 0 | HD150: 0 | HE150: 0 | HF150: 0 | HG150: 0 | HH150: 0 | HI150: 0 | HJ150: 0 | HK150: 0 | HL150: 0 | HM150: 0 | HN150: 0 | HO150: 0 | HP150: 0 | HQ150: 0 | HR150: 0 | HS150: 0 | HT150: 0 | HU150: 0 | HV150: 0 | HW150: 0
A151: 8 | B151: 5 | C151: 5 | D151: 6 | E151: 6 | F151: 0 | G151: 0 | H151: 0 | I151: 0 | J151: 5 | K151: 5 | L151: 6 | M151: 6 | N151: 0 | O151: 0 | P151: 0 | Q151: 0 | R151: 0 | S151: 0 | T151: 0 | U151: 0 | V151: 0 | W151: 0 | X151: 0 | Y151: 0 | Z151: 0 | AA151: 0 | AB151: 0 | AC151: 0 | AD151: 0 | AE151: 0 | AF151: 0 | AG151: 0 | AH151: 0 | AI151: 0 | AJ151: 0 | AK151: 0 | AL151: 0 | AM151: 0 | AN151: 0 | AO151: 0 | AP151: 0 | AQ151: 0 | AR151: 0 | AS151: 0 | AT151: 0 | AU151: 0 | AV151: 0 | AW151: 0 | AX151: 1 | AY151: 0 | AZ151: 2 | BA151: 0 | BB151: 0 | BC151: 0 | BD151: 0 | BE151: 0 | BF151: 0 | BG151: 0 | BH151: 0 | BI151: 0 | BJ151: 3 | BK151: 0 | BL151: 283 | BM151: 0 | BN151: 0 | BO151: 0 | BP151: 0 | BQ151: 128 | BR151: 0 | BS151: 0 | BT151: 78 | BU151: 0 | BV151: 0 | BW151: 0 | BX151: 0 | BY151: 0 | BZ151: 0 | CA151: 0 | CB151: 0 | CC151: 0 | CD151: 0 | CE151: 0 | CF151: 0 | CG151: 0 | CH151: 0 | CI151: 0 | CJ151: 0 | CK151: 127 | CL151: 0 | CM151: 0 | CN151: 0 | CO151: 66 | CP151: 0 | CQ151: 0 | CR151: 0 | CS151: 0 | CT151: 0 | CU151: 0 | CV151: 0 | CW151: 0 | CX151: 0 | CY151: 0 | CZ151: 0 | DA151: 0 | DB151: 0 | DC151: 0 | DD151: 0 | DE151: 0 | DF151: 0 | DG151: 0 | DH151: 0 | DI151: 0 | DJ151: 0 | DK151: 0 | DL151: 0 | DM151: 0 | DN151: 0 | DO151: 0 | DP151: 0 | DQ151: 0 | DR151: 0 | DS151: 0 | DT151: 0 | DU151: 0 | DV151: 0 | DW151: 0 | DX151: 0 | DY151: 0 | DZ151: 0 | EA151: 0 | EB151: 0 | EC151: 0 | ED151: 0 | EE151: 0 | EF151: 14 | EG151: 8 | EH151: 4 | EI151: 2 | EJ151: 1 | EK151: 0 | EL151: 0 | EM151: 1 | EN151: 0 | EO151: 0 | EP151: 0 | EQ151: 0 | ER151: 17 | ES151: 8 | ET151: 7 | EU151: 2 | EV151: 0 | EW151: 0 | EX151: 0 | EY151: 0 | EZ151: 0 | FA151: 0 | FB151: 0 | FC151: 0 | FD151: 14 | FE151: 8 | FF151: 4 | FG151: 2 | FH151: 0 | FI151: 0 | FJ151: 0 | FK151: 0 | FL151: 0 | FM151: 0 | FN151: 0 | FO151: 0 | FP151: 0 | FQ151: 0 | FR151: 0 | FS151: 0 | FT151: 0 | FU151: 0 | FV151: 0 | FW151: 0 | FX151: 0 | FY151: 0 | FZ151: 0 | GA151: 0 | GB151: 0 | GC151: 0 | GD151: 0 | GE151: 0 | GF151: 0 | GG151: 0 | GH151: 0 | GI151: 0 | GJ151: 0 | GK151: 0 | GL151: 0 | GM151: 0 | GN151: 0 | GO151: 0 | GP151: 0 | GQ151: 0 | GR151: 0 | GS151: 0 | GT151: 0 | GU151: 0 | GV151: 0 | GW151: 0 | GX151: 0 | GY151: 0 | GZ151: 0 | HA151: 0 | HB151: 0 | HC151: 0 | HD151: 0 | HE151: 0 | HF151: 0 | HG151: 0 | HH151: 0 | HI151: 0 | HJ151: 0 | HK151: 0 | HL151: 0 | HM151: 0 | HN151: 0 | HO151: 0 | HP151: 0 | HQ151: 0 | HR151: 0 | HS151: 0 | HT151: 0 | HU151: 0 | HV151: 0 | HW151: 0
A152: 9 | B152: 4 | C152: 4 | D152: 3 | E152: 3 | F152: 0 | G152: 0 | H152: 0 | I152: 0 | J152: 4 | K152: 4 | L152: 3 | M152: 3 | N152: 0 | O152: 0 | P152: 0 | Q152: 0 | R152: 0 | S152: 0 | T152: 0 | U152: 0 | V152: 0 | W152: 0 | X152: 0 | Y152: 0 | Z152: 0 | AA152: 0 | AB152: 0 | AC152: 0 | AD152: 0 | AE152: 0 | AF152: 0 | AG152: 0 | AH152: 0 | AI152: 0 | AJ152: 0 | AK152: 0 | AL152: 0 | AM152: 0 | AN152: 0 | AO152: 0 | AP152: 0 | AQ152: 0 | AR152: 0 | AS152: 0 | AT152: 0 | AU152: 0 | AV152: 0 | AW152: 0 | AX152: 0 | AY152: 0 | AZ152: 0 | BA152: 0 | BB152: 0 | BC152: 0 | BD152: 0 | BE152: 0 | BF152: 0 | BG152: 0 | BH152: 0 | BI152: 0 | BJ152: 0 | BK152: 0 | BL152: 260 | BM152: 0 | BN152: 0 | BO152: 0 | BP152: 0 | BQ152: 138 | BR152: 0 | BS152: 0 | BT152: 30 | BU152: 0 | BV152: 0 | BW152: 0 | BX152: 0 | BY152: 0 | BZ152: 0 | CA152: 0 | CB152: 1 | CC152: 0 | CD152: 0 | CE152: 0 | CF152: 0 | CG152: 0 | CH152: 0 | CI152: 0 | CJ152: 0 | CK152: 172 | CL152: 0 | CM152: 0 | CN152: 0 | CO152: 39 | CP152: 0 | CQ152: 0 | CR152: 0 | CS152: 0 | CT152: 0 | CU152: 0 | CV152: 0 | CW152: 0 | CX152: 0 | CY152: 4 | CZ152: 4 | DA152: 0 | DB152: 0 | DC152: 0 | DD152: 0 | DE152: 0 | DF152: 0 | DG152: 0 | DH152: 0 | DI152: 4 | DJ152: 0 | DK152: 0 | DL152: 0 | DM152: 0 | DN152: 0 | DO152: 0 | DP152: 0 | DQ152: 0 | DR152: 0 | DS152: 0 | DT152: 0 | DU152: 0 | DV152: 0 | DW152: 0 | DX152: 0 | DY152: 0 | DZ152: 0 | EA152: 0 | EB152: 0 | EC152: 0 | ED152: 0 | EE152: 0 | EF152: 16 | EG152: 8 | EH152: 6 | EI152: 2 | EJ152: 0 | EK152: 0 | EL152: 0 | EM152: 0 | EN152: 0 | EO152: 0 | EP152: 0 | EQ152: 0 | ER152: 15 | ES152: 8 | ET152: 6 | EU152: 1 | EV152: 0 | EW152: 0 | EX152: 0 | EY152: 0 | EZ152: 0 | FA152: 0 | FB152: 0 | FC152: 0 | FD152: 16 | FE152: 8 | FF152: 6 | FG152: 2 | FH152: 0 | FI152: 0 | FJ152: 0 | FK152: 0 | FL152: 0 | FM152: 0 | FN152: 0 | FO152: 0 | FP152: 0 | FQ152: 0 | FR152: 0 | FS152: 0 | FT152: 0 | FU152: 0 | FV152: 0 | FW152: 0 | FX152: 0 | FY152: 0 | FZ152: 0 | GA152: 0 | GB152: 0 | GC152: 0 | GD152: 0 | GE152: 0 | GF152: 0 | GG152: 0 | GH152: 0 | GI152: 0 | GJ152: 0 | GK152: 0 | GL152: 0 | GM152: 0 | GN152: 0 | GO152: 0 | GP152: 0 | GQ152: 0 | GR152: 0 | GS152: 0 | GT152: 0 | GU152: 0 | GV152: 0 | GW152: 0 | GX152: 0 | GY152: 0 | GZ152: 0 | HA152: 0 | HB152: 0 | HC152: 0 | HD152: 0 | HE152: 0 | HF152: 0 | HG152: 0 | HH152: 0 | HI152: 0 | HJ152: 0 | HK152: 0 | HL152: 0 | HM152: 0 | HN152: 0 | HO152: 0 | HP152: 0 | HQ152: 0 | HR152: 0 | HS152: 0 | HT152: 0 | HU152: 0 | HV152: 0 | HW152: 0
A153: 10 | B153: 2 | C153: 2 | D153: 0 | E153: 0 | F153: 0 | G153: 0 | H153: 0 | I153: 0 | J153: 2 | K153: 2 | L153: 0 | M153: 0 | N153: 0 | O153: 0 | P153: 0 | Q153: 0 | R153: 0 | S153: 0 | T153: 0 | U153: 0 | V153: 0 | W153: 0 | X153: 0 | Y153: 0 | Z153: 0 | AA153: 0 | AB153: 0 | AC153: 0 | AD153: 0 | AE153: 0 | AF153: 0 | AG153: 0 | AH153: 0 | AI153: 0 | AJ153: 0 | AK153: 0 | AL153: 0 | AM153: 0 | AN153: 0 | AO153: 0 | AP153: 0 | AQ153: 0 | AR153: 0 | AS153: 0 | AT153: 0 | AU153: 0 | AV153: 0 | AW153: 0 | AX153: 0 | AY153: 0 | AZ153: 0 | BA153: 0 | BB153: 0 | BC153: 0 | BD153: 0 | BE153: 0 | BF153: 0 | BG153: 0 | BH153: 0 | BI153: 0 | BJ153: 1 | BK153: 0 | BL153: 178 | BM153: 0 | BN153: 0 | BO153: 0 | BP153: 0 | BQ153: 111 | BR153: 0 | BS153: 0 | BT153: 48 | BU153: 0 | BV153: 0 | BW153: 0 | BX153: 0 | BY153: 0 | BZ153: 0 | CA153: 0 | CB153: 22 | CC153: 0 | CD153: 0 | CE153: 0 | CF153: 0 | CG153: 0 | CH153: 0 | CI153: 0 | CJ153: 0 | CK153: 124 | CL153: 0 | CM153: 0 | CN153: 0 | CO153: 36 | CP153: 0 | CQ153: 0 | CR153: 0 | CS153: 0 | CT153: 0 | CU153: 0 | CV153: 0 | CW153: 0 | CX153: 0 | CY153: 3 | CZ153: 3 | DA153: 0 | DB153: 0 | DC153: 0 | DD153: 0 | DE153: 0 | DF153: 0 | DG153: 0 | DH153: 0 | DI153: 3 | DJ153: 0 | DK153: 0 | DL153: 0 | DM153: 0 | DN153: 0 | DO153: 0 | DP153: 0 | DQ153: 0 | DR153: 0 | DS153: 0 | DT153: 0 | DU153: 0 | DV153: 0 | DW153: 0 | DX153: 0 | DY153: 0 | DZ153: 0 | EA153: 0 | EB153: 0 | EC153: 0 | ED153: 0 | EE153: 0 | EF153: 10 | EG153: 3 | EH153: 6 | EI153: 1 | EJ153: 1 | EK153: 0 | EL153: 0 | EM153: 1 | EN153: 0 | EO153: 0 | EP153: 0 | EQ153: 0 | ER153: 13 | ES153: 5 | ET153: 7 | EU153: 1 | EV153: 0 | EW153: 0 | EX153: 0 | EY153: 0 | EZ153: 0 | FA153: 0 | FB153: 0 | FC153: 0 | FD153: 10 | FE153: 3 | FF153: 6 | FG153: 1 | FH153: 0 | FI153: 0 | FJ153: 0 | FK153: 0 | FL153: 0 | FM153: 0 | FN153: 0 | FO153: 0 | FP153: 0 | FQ153: 0 | FR153: 0 | FS153: 0 | FT153: 0 | FU153: 0 | FV153: 0 | FW153: 0 | FX153: 0 | FY153: 0 | FZ153: 0 | GA153: 0 | GB153: 0 | GC153: 0 | GD153: 0 | GE153: 0 | GF153: 0 | GG153: 0 | GH153: 0 | GI153: 0 | GJ153: 0 | GK153: 0 | GL153: 0 | GM153: 0 | GN153: 0 | GO153: 0 | GP153: 0 | GQ153: 0 | GR153: 0 | GS153: 0 | GT153: 0 | GU153: 0 | GV153: 0 | GW153: 0 | GX153: 0 | GY153: 0 | GZ153: 0 | HA153: 0 | HB153: 0 | HC153: 0 | HD153: 0 | HE153: 0 | HF153: 0 | HG153: 0 | HH153: 0 | HI153: 0 | HJ153: 0 | HK153: 0 | HL153: 0 | HM153: 0 | HN153: 0 | HO153: 0 | HP153: 0 | HQ153: 0 | HR153: 0 | HS153: 0 | HT153: 0 | HU153: 0 | HV153: 0 | HW153: 0
A154: 11 | B154: 1 | C154: 1 | D154: 1 | E154: 1 | F154: 0 | G154: 0 | H154: 0 | I154: 0 | J154: 1 | K154: 1 | L154: 1 | M154: 1 | N154: 0 | O154: 0 | P154: 0 | Q154: 0 | R154: 0 | S154: 0 | T154: 0 | U154: 0 | V154: 0 | W154: 0 | X154: 0 | Y154: 0 | Z154: 0 | AA154: 0 | AB154: 0 | AC154: 0 | AD154: 0 | AE154: 0 | AF154: 0 | AG154: 0 | AH154: 0 | AI154: 0 | AJ154: 0 | AK154: 0 | AL154: 0 | AM154: 0 | AN154: 0 | AO154: 0 | AP154: 0 | AQ154: 0 | AR154: 0 | AS154: 0 | AT154: 0 | AU154: 0 | AV154: 0 | AW154: 0 | AX154: 1 | AY154: 1 | AZ154: 1 | BA154: 1 | BB154: 0 | BC154: 0 | BD154: 0 | BE154: 0 | BF154: 0 | BG154: 0 | BH154: 0 | BI154: 0 | BJ154: 0 | BK154: 0 | BL154: 136 | BM154: 0 | BN154: 0 | BO154: 0 | BP154: 0 | BQ154: 60 | BR154: 0 | BS154: 0 | BT154: 68 | BU154: 0 | BV154: 0 | BW154: 0 | BX154: 0 | BY154: 0 | BZ154: 0 | CA154: 0 | CB154: 26 | CC154: 0 | CD154: 0 | CE154: 0 | CF154: 0 | CG154: 0 | CH154: 0 | CI154: 0 | CJ154: 0 | CK154: 61 | CL154: 0 | CM154: 1 | CN154: 0 | CO154: 60 | CP154: 0 | CQ154: 0 | CR154: 0 | CS154: 0 | CT154: 0 | CU154: 0 | CV154: 0 | CW154: 0 | CX154: 0 | CY154: 0 | CZ154: 0 | DA154: 0 | DB154: 0 | DC154: 0 | DD154: 0 | DE154: 0 | DF154: 0 | DG154: 0 | DH154: 0 | DI154: 0 | DJ154: 0 | DK154: 0 | DL154: 0 | DM154: 0 | DN154: 0 | DO154: 0 | DP154: 0 | DQ154: 0 | DR154: 0 | DS154: 0 | DT154: 0 | DU154: 0 | DV154: 0 | DW154: 0 | DX154: 0 | DY154: 0 | DZ154: 0 | EA154: 0 | EB154: 0 | EC154: 0 | ED154: 0 | EE154: 0 | EF154: 10 | EG154: 3 | EH154: 6 | EI154: 1 | EJ154: 0 | EK154: 0 | EL154: 0 | EM154: 0 | EN154: 0 | EO154: 0 | EP154: 0 | EQ154: 0 | ER154: 9 | ES154: 2 | ET154: 6 | EU154: 1 | EV154: 0 | EW154: 0 | EX154: 0 | EY154: 0 | EZ154: 0 | FA154: 0 | FB154: 0 | FC154: 0 | FD154: 10 | FE154: 3 | FF154: 6 | FG154: 1 | FH154: 0 | FI154: 0 | FJ154: 0 | FK154: 0 | FL154: 0 | FM154: 0 | FN154: 0 | FO154: 0 | FP154: 0 | FQ154: 0 | FR154: 0 | FS154: 0 | FT154: 0 | FU154: 0 | FV154: 0 | FW154: 0 | FX154: 0 | FY154: 0 | FZ154: 0 | GA154: 0 | GB154: 0 | GC154: 0 | GD154: 0 | GE154: 0 | GF154: 0 | GG154: 0 | GH154: 0 | GI154: 0 | GJ154: 0 | GK154: 0 | GL154: 0 | GM154: 0 | GN154: 0 | GO154: 0 | GP154: 0 | GQ154: 0 | GR154: 0 | GS154: 0 | GT154: 0 | GU154: 0 | GV154: 0 | GW154: 0 | GX154: 0 | GY154: 0 | GZ154: 0 | HA154: 0 | HB154: 0 | HC154: 0 | HD154: 0 | HE154: 0 | HF154: 0 | HG154: 0 | HH154: 0 | HI154: 0 | HJ154: 0 | HK154: 0 | HL154: 0 | HM154: 0 | HN154: 0 | HO154: 0 | HP154: 0 | HQ154: 0 | HR154: 0 | HS154: 0 | HT154: 0 | HU154: 0 | HV154: 0 | HW154: 0
A155: T | B155: 45 | C155: 43 | D155: 37 | E155: 37 | F155: 0 | G155: 0 | H155: 0 | I155: 0 | J155: 42 | K155: 42 | L155: 36 | M155: 36 | N155: 0 | O155: 0 | P155: 0 | Q155: 0 | R155: 2 | S155: 2 | T155: 0 | U155: 2 | V155: 2 | W155: 2 | X155: 1 | Y155: 0 | Z155: 0 | AA155: 0 | AB155: 0 | AC155: 0 | AD155: 0 | AE155: 0 | AF155: 0 | AG155: 0 | AH155: 0 | AI155: 0 | AJ155: 0 | AK155: 0 | AL155: 0 | AM155: 0 | AN155: 0 | AO155: 0 | AP155: 1 | AQ155: 0 | AR155: 1 | AS155: 1 | AT155: 0 | AU155: 0 | AV155: 0 | AW155: 0 | AX155: 5 | AY155: 1 | AZ155: 6 | BA155: 1 | BB155: 0 | BC155: 0 | BD155: 0 | BE155: 0 | BF155: 0 | BG155: 0 | BH155: 0 | BI155: 0 | BJ155: 34 | BK155: 1 | BL155: 2811 | BM155: 0 | BN155: 0 | BO155: 0 | BP155: 0 | BQ155: 1313 | BR155: 1 | BS155: 0 | BT155: 482 | BU155: 0 | BV155: 0 | BW155: 0 | BX155: 0 | BY155: 0 | BZ155: 0 | CA155: 0 | CB155: 93 | CC155: 0 | CD155: 0 | CE155: 0 | CF155: 0 | CG155: 0 | CH155: 0 | CI155: 0 | CJ155: 0 | CK155: 1671 | CL155: 2 | CM155: 1 | CN155: 0 | CO155: 462 | CP155: 0 | CQ155: 0 | CR155: 0 | CS155: 1 | CT155: 0 | CU155: 0 | CV155: 0 | CW155: 0 | CX155: 0 | CY155: 18 | CZ155: 14 | DA155: 0 | DB155: 0 | DC155: 0 | DD155: 0 | DE155: 0 | DF155: 0 | DG155: 0 | DH155: 0 | DI155: 14 | DJ155: 0 | DK155: 0 | DL155: 0 | DM155: 0 | DN155: 0 | DO155: 0 | DP155: 0 | DQ155: 0 | DR155: 0 | DS155: 1 | DT155: 0 | DU155: 0 | DV155: 0 | DW155: 0 | DX155: 0 | DY155: 0 | DZ155: 0 | EA155: 0 | EB155: 0 | EC155: 0 | ED155: 0 | EE155: 0 | EF155: 137 | EG155: 62 | EH155: 55 | EI155: 20 | EJ155: 3 | EK155: 0 | EL155: 0 | EM155: 3 | EN155: 0 | EO155: 0 | EP155: 0 | EQ155: 0 | ER155: 153 | ES155: 70 | ET155: 64 | EU155: 19 | EV155: 1 | EW155: 1 | EX155: 0 | EY155: 0 | EZ155: 0 | FA155: 0 | FB155: 0 | FC155: 0 | FD155: 137 | FE155: 62 | FF155: 55 | FG155: 20 | FH155: 0 | FI155: 0 | FJ155: 0 | FK155: 0 | FL155: 0 | FM155: 0 | FN155: 0 | FO155: 0 | FP155: 0 | FQ155: 0 | FR155: 0 | FS155: 0 | FT155: 0 | FU155: 0 | FV155: 0 | FW155: 0 | FX155: 0 | FY155: 0 | FZ155: 0 | GA155: 0 | GB155: 0 | GC155: 0 | GD155: 0 | GE155: 0 | GF155: 0 | GG155: 0 | GH155: 0 | GI155: 0 | GJ155: 0 | GK155: 0 | GL155: 0 | GM155: 0 | GN155: 0 | GO155: 0 | GP155: 0 | GQ155: 0 | GR155: 0 | GS155: 0 | GT155: 0 | GU155: 0 | GV155: 0 | GW155: 0 | GX155: 0 | GY155: 0 | GZ155: 0 | HA155: 0 | HB155: 0 | HC155: 0 | HD155: 0 | HE155: 0 | HF155: 0 | HG155: 0 | HH155: 0 | HI155: 0 | HJ155: 0 | HK155: 0 | HL155: 0 | HM155: 0 | HN155: 0 | HO155: 0 | HP155: 0 | HQ155: 0 | HR155: 0 | HS155: 0 | HT155: 0 | HU155: 0 | HV155: 0 | HW155: 0
A161: TOTAL
A162: =COUNT(A144:A159) -> 11 | B162: =SUM(B144:B159) -> 90 | C162: =SUM(C144:C159) -> 86 | D162: 74 | E162: 74 | F162: 0 | G162: 0 | H162: 0 | I162: 0 | J162: 84 | K162: 84 | L162: 72 | M162: 72 | N162: 0 | O162: 0 | P162: 0 | Q162: 0 | R162: 4 | S162: 4 | T162: 0 | U162: 4 | V162: 4 | W162: 4 | X162: 2 | Y162: 0 | Z162: 0 | AA162: 0 | AB162: 0 | AC162: 0 | AD162: 0 | AE162: 0 | AF162: 0 | AG162: 0 | AH162: 0 | AI162: 0 | AJ162: 0 | AK162: 0 | AL162: 0 | AM162: 0 | AN162: 0 | AO162: 0 | AP162: 2 | AQ162: 0 | AR162: 2 | AS162: 2 | AT162: 0 | AU162: 0 | AV162: 0 | AW162: 0 | AX162: 10 | AY162: 2 | AZ162: 12 | BA162: 2 | BB162: 0 | BC162: 0 | BD162: 0 | BE162: 0 | BF162: 0 | BG162: 0 | BH162: 0 | BI162: 0 | BJ162: 68 | BK162: 2 | BL162: 5622 | BM162: 0 | BN162: 0 | BO162: =SUM(BO144:BO159) -> 0 | BP162: 0 | BQ162: 2626 | BR162: 2 | BS162: 0 | BT162: 964 | BU162: 0 | BV162: 0 | BW162: 0 | BX162: 0 | BY162: 0 | BZ162: 0 | CA162: 0 | CB162: 186 | CC162: 0 | CD162: 0 | CE162: 0 | CF162: 0 | CG162: 0 | CH162: 0 | CI162: 0 | CJ162: 0 | CK162: 3342 | CL162: 4 | CM162: 2 | CN162: 0 | CO162: 924 | CP162: 0 | CQ162: 0 | CR162: 0 | CS162: 2 | CT162: 0 | CU162: 0 | CV162: 0 | CW162: 0 | CX162: 0 | CY162: 36 | CZ162: 28 | DA162: 0 | DB162: 0 | DC162: 0 | DD162: 0 | DE162: 0 | DF162: 0 | DG162: 0 | DH162: 0 | DI162: 28 | DJ162: 0 | DK162: 0 | DL162: 0 | DM162: 0 | DN162: 0 | DO162: 0 | DP162: 0 | DQ162: 0 | DR162: 0 | DS162: 2 | DT162: 0 | DU162: 0 | DV162: 0 | DW162: 0 | DX162: 0 | DY162: 0 | DZ162: 0 | EA162: =SUM(EA144:EA159) -> 0 | EB162: 0 | EC162: 0 | ED162: 0 | EE162: 0 | EF162: 274 | EG162: 124 | EH162: 110 | EI162: 40 | EJ162: 6 | EK162: 0 | EL162: 0 | EM162: 6 | EN162: 0 | EO162: 0 | EP162: 0 | EQ162: 0 | ER162: 306 | ES162: 140 | ET162: 128 | EU162: 38 | EV162: 2 | EW162: 2 | EX162: 0 | EY162: 0 | EZ162: 0 | FA162: 0 | FB162: 0 | FC162: 0 | FD162: 274 | FE162: 124 | FF162: 110 | FG162: 40 | FH162: 0 | FI162: 0 | FJ162: 0 | FK162: 0 | FL162: 0 | FM162: 0 | FN162: 0 | FO162: 0 | FP162: 0 | FQ162: 0 | FR162: 0 | FS162: 0 | FT162: 0 | FU162: 0 | FV162: 0 | FW162: 0 | FX162: 0 | FY162: 0 | FZ162: 0 | GA162: 0 | GB162: 0 | GC162: 0 | GD162: 0 | GE162: 0 | GF162: 0 | GG162: 0 | GH162: 0 | GI162: 0 | GJ162: 0 | GK162: 0 | GL162: 0 | GM162: =SUM(GM144:GM159) -> 0 | GN162: 0 | GO162: 0 | GP162: 0 | GQ162: 0 | GR162: 0 | GS162: 0 | GT162: 0 | GU162: 0 | GV162: 0 | GW162: 0 | GX162: 0 | GY162: 0 | GZ162: 0 | HA162: 0 | HB162: 0 | HC162: 0 | HD162: 0 | HE162: 0 | HF162: 0 | HG162: 0 | HH162: 0 | HI162: 0 | HJ162: 0 | HK162: 0 | HL162: 0 | HM162: 0 | HN162: 0 | HO162: =SUM(HO144:HO159) -> 0 | HP162: 0 | HQ162: 0 | HR162: 0 | HS162: 0 | HT162: 0 | HU162: 0 | HV162: 0 | HW162: 0
A163: =CONCATENATE(A144,"-",A145,"-",A146,"-",A147,"-",A148,"-",A149,"-",A150,"-",A151,"-",A152,"-",A153,"-",A154,"-",A155) -> 2-3-1-5-4-6-7-8-9-10-11-T
B164: BAS001 | C164: BAS002 | D164: BAS003 | E164: BAS004 | F164: BAS005 | G164: BAS006 | H164: BAS007 | I164: BAS008 | J164: BAS009 | K164: BAS010 | L164: BAS011 | M164: BAS012 | N164: BAS013 | O164: BAS014 | P164: BAS015 | Q164: BAS016 | R164: BAS017 | S164: BAS018 | T164: BAS019 | U164: BAS020 | V164: BAS021 | W164: BAS022 | X164: BAS023 | Y164: BAS024 | Z164: BAS025 | AA164: BAS026 | AB164: BAS027 | AC164: BAS028 | AD164: BAS029 | AE164: BAS030 | AF164: BAS031 | AG164: BAS032 | AH164: BAS033 | AI164: BAS034 | AJ164: BAS035 | AK164: BAS036 | AL164: BAS037 | AM164: BAS038 | AN164: BAS039 | AO164: BAS040 | AP164: BAS041 | AQ164: BAS042 | AR164: BAS043 | AS164: BAS044 | AT164: BAS045 | AU164: BAS046 | AV164: BAS047 | AW164: BAS048 | AX164: BAS049 | AY164: BAS050 | AZ164: BAS051 | BA164: BAS052 | BB164: BAS053 | BC164: BAS054 | BD164: BAS055 | BE164: BAS056 | BF164: BAS057 | BG164: BAS058 | BH164: BAS059 | BI164: BAS060 | BJ164: BAS061 | BK164: BAS062 | BL164: BAS063 | BM164: BAS064 | BN164: BAS065 | BO164: BAS066 | BP164: BAS067 | BQ164: BAS068 | BR164: BAS069 | BS164: BAS070 | BT164: BAS071 | BU164: BAS072 | BV164: BAS073 | BW164: BAS074 | BX164: BAS075 | BY164: BAS076 | BZ164: BAS077 | CA164: BAS078 | CB164: BAS079 | CC164: BAS080 | CD164: BAS081 | CE164: BAS082 | CF164: BAS083 | CG164: BAS084 | CH164: BAS085 | CI164: BAS086 | CJ164: BAS087 | CK164: BAS088 | CL164: BAS089 | CM164: BAS090 | CN164: BAS091 | CO164: BAS092 | CP164: BAS093 | CQ164: BAS094 | CR164: BAS095 | CS164: BAS096 | CT164: BAS097 | CU164: BAS098 | CV164: BAS099 | CW164: BAS100 | CX164: BAS101 | CY164: BAS102 | CZ164: BAS103 | DA164: BAS104 | DB164: BAS105 | DC164: BAS106 | DD164: BAS107 | DE164: BAS108 | DF164: BAS109 | DG164: BAS110 | DH164: BAS111 | DI164: BAS112 | DJ164: BAS113 | DK164: BAS114 | DL164: BAS115 | DM164: BAS116 | DN164: BAS117 | DO164: BAS118 | DP164: BAS119 | DQ164: BAS120 | DR164: BAS121 | DS164: BAS122 | DT164: BAS123 | DU164: BAS124 | DV164: BAS125 | DW164: BAS126 | DX164: BAS127 | DY164: BAS128 | DZ164: BAS129 | EA164: BAS130 | EB164: BAS131 | EC164: BAS132 | ED164: BAS133 | EE164: BAS134 | EF164: BAS135 | EG164: BAS136 | EH164: BAS137 | EI164: BAS138 | EJ164: BAS139 | EK164: BAS140 | EL164: BAS141 | EM164: BAS142 | EN164: BAS143 | EO164: BAS144 | EP164: BAS145 | EQ164: BAS146 | ER164: BAS147 | ES164: BAS148 | ET164: BAS149 | EU164: BAS150 | EV164: BAS151 | EW164: BAS152 | EX164: BAS153 | EY164: BAS154 | EZ164: BAS155 | FA164: BAS156 | FB164: BAS157 | FC164: BAS158 | FD164: BAS159 | FE164: BAS160 | FF164: BAS161 | FG164: BAS162 | FH164: BAS163 | FI164: BAS164 | FJ164: BAS165 | FK164: BAS166 | FL164: BAS167 | FM164: BAS168 | FN164: BAS169 | FO164: BAS170 | FP164: BAS171 | FQ164: BAS172 | FR164: BAS173 | FS164: BAS174 | FT164: BAS175 | FU164: BAS176 | FV164: BAS177 | FW164: BAS178 | FX164: BAS179 | FY164: BAS180 | FZ164: BAS181 | GA164: BAS182 | GB164: BAS183 | GC164: BAS184 | GD164: BAS185 | GE164: BAS186 | GF164: BAS187 | GG164: BAS188 | GH164: BAS189 | GI164: BAS190 | GJ164: BAS191 | GK164: BAS192 | GL164: BAS193 | GM164: BAS194 | GN164: BAS195 | GO164: BAS196 | GP164: BAS197 | GQ164: BAS198 | GR164: BAS199 | GS164: BAS200 | GT164: BAS201 | GU164: BAS202 | GV164: BAS203 | GW164: BAS204 | GX164: BAS205 | GY164: BAS206 | GZ164: BAS207 | HA164: BAS208 | HB164: BAS209 | HC164: BAS210 | HD164: BAS211 | HE164: BAS212 | HF164: BAS213 | HG164: BAS214 | HH164: BAS215 | HI164: BAS216 | HJ164: BAS217 | HK164: BAS218 | HL164: BAS219 | HM164: BAS220 | HN164: BAS221 | HO164: BAS222 | HP164: BAS223 | HQ164: BAS224 | HR164: BAS225 | HS164: BAS226 | HT164: BAS227 | HU164: BAS228 | HV164: BAS229 | HW164: BAS230
B165: =IF(B164=B143,"SI","NO") -> SI | C165: =IF(C164=C143,"SI","NO") -> SI | D165: SI | E165: SI | F165: SI | G165: SI | H165: SI | I165: SI | J165: SI | K165: SI | L165: SI | M165: SI | N165: SI | O165: SI | P165: SI | Q165: SI | R165: SI | S165: SI | T165: SI | U165: SI | V165: SI | W165: SI | X165: SI | Y165: SI | Z165: SI | AA165: SI | AB165: SI | AC165: SI | AD165: SI | AE165: SI | AF165: SI | AG165: SI | AH165: SI | AI165: SI | AJ165: SI | AK165: SI | AL165: SI | AM165: SI | AN165: SI | AO165: SI | AP165: SI | AQ165: SI | AR165: SI | AS165: SI | AT165: SI | AU165: SI | AV165: SI | AW165: SI | AX165: SI | AY165: SI | AZ165: SI | BA165: SI | BB165: SI | BC165: SI | BD165: SI | BE165: SI | BF165: SI | BG165: SI | BH165: SI | BI165: SI | BJ165: SI | BK165: SI | BL165: SI | BM165: SI | BN165: SI | BO165: =IF(BO164=BO143,"SI","NO") -> SI | BP165: SI | BQ165: SI | BR165: SI | BS165: SI | BT165: SI | BU165: SI | BV165: SI | BW165: SI | BX165: SI | BY165: SI | BZ165: SI | CA165: SI | CB165: SI | CC165: SI | CD165: SI | CE165: SI | CF165: SI | CG165: SI | CH165: SI | CI165: SI | CJ165: SI | CK165: SI | CL165: SI | CM165: SI | CN165: SI | CO165: SI | CP165: SI | CQ165: SI | CR165: SI | CS165: SI | CT165: SI | CU165: SI | CV165: SI | CW165: SI | CX165: SI | CY165: SI | CZ165: SI | DA165: SI | DB165: SI | DC165: SI | DD165: SI | DE165: SI | DF165: SI | DG165: SI | DH165: SI | DI165: SI | DJ165: SI | DK165: SI | DL165: SI | DM165: SI | DN165: SI | DO165: SI | DP165: SI | DQ165: SI | DR165: SI | DS165: SI | DT165: SI | DU165: SI | DV165: SI | DW165: SI | DX165: SI | DY165: SI | DZ165: SI | EA165: =IF(EA164=EA143,"SI","NO") -> SI | EB165: SI | EC165: SI | ED165: SI | EE165: SI | EF165: SI | EG165: SI | EH165: SI | EI165: SI | EJ165: SI | EK165: SI | EL165: SI | EM165: SI | EN165: SI | EO165: SI | EP165: SI | EQ165: SI | ER165: SI | ES165: SI | ET165: SI | EU165: SI | EV165: SI | EW165: SI | EX165: SI | EY165: SI | EZ165: SI | FA165: SI | FB165: SI | FC165: SI | FD165: SI | FE165: SI | FF165: SI | FG165: SI | FH165: SI | FI165: SI | FJ165: SI | FK165: SI | FL165: SI | FM165: SI | FN165: SI | FO165: SI | FP165: SI | FQ165: SI | FR165: SI | FS165: SI | FT165: SI | FU165: SI | FV165: SI | FW165: SI | FX165: SI | FY165: SI | FZ165: SI | GA165: SI | GB165: SI | GC165: SI | GD165: SI | GE165: SI | GF165: SI | GG165: SI | GH165: SI | GI165: SI | GJ165: SI | GK165: SI | GL165: SI | GM165: =IF(GM164=GM143,"SI","NO") -> SI | GN165: SI | GO165: SI | GP165: SI | GQ165: SI | GR165: SI | GS165: SI | GT165: SI | GU165: SI | GV165: SI | GW165: SI | GX165: SI | GY165: SI | GZ165: SI | HA165: SI | HB165: SI | HC165: SI | HD165: SI | HE165: SI | HF165: SI | HG165: SI | HH165: SI | HI165: SI | HJ165: SI | HK165: SI | HL165: SI | HM165: SI | HN165: SI | HO165: =IF(HO164=HO143,"SI","NO") -> SI | HP165: SI | HQ165: SI | HR165: SI | HS165: SI | HT165: SI | HU165: SI | HV165: SI | HW165: SI
A167: ITSVIH1217M
A168: anno | B168: 2024
A169: cod_red | B169: 03
A170: codmic | B170: (Todas)
A171: cod_prov | B171: (Todas)
A172: coddist | B172: (Todas)
A173: cod_estab | B173: (Todas)
A174: cod_eje | B174: (Todas)
B176: Valores
A177: Etiquetas de fila | B177: BAS001 | C177: BAS002 | D177: BAS003 | E177: BAS004 | F177: BAS005 | G177: BAS006 | H177: BAS007 | I177: BAS008 | J177: BAS009 | K177: BAS010 | L177: BAS011 | M177: BAS012 | N177: BAS013 | O177: BAS014 | P177: BAS015 | Q177: BAS016 | R177: BAS017 | S177: BAS018 | T177: BAS019 | U177: BAS020 | V177: BAS021 | W177: BAS022 | X177: BAS023 | Y177: BAS024 | Z177: BAS025 | AA177: BAS026 | AB177: BAS027 | AC177: BAS028 | AD177: BAS029 | AE177: BAS030 | AF177: BAS031 | AG177: BAS032 | AH177: BAS033 | AI177: BAS034 | AJ177: BAS035 | AK177: BAS036 | AL177: BAS037 | AM177: BAS038 | AN177: BAS039 | AO177: BAS040 | AP177: BAS041 | AQ177: BAS042 | AR177: BAS043 | AS177: BAS044 | AT177: BAS045 | AU177: BAS046 | AV177: BAS047 | AW177: BAS048 | AX177: BAS049 | AY177: BAS050 | AZ177: BAS051 | BA177: BAS052 | BB177: BAS053 | BC177: BAS054 | BD177: BAS055 | BE177: BAS056 | BF177: BAS057 | BG177: BAS058 | BH177: BAS059 | BI177: BAS060 | BJ177: BAS061 | BK177: BAS062 | BL177: BAS063 | BM177: BAS064 | BN177: BAS065 | BO177: BAS066 | BP177: BAS067 | BQ177: BAS068 | BR177: BAS069 | BS177: BAS070 | BT177: BAS071 | BU177: BAS072 | BV177: BAS073 | BW177: BAS074 | BX177: BAS075 | BY177: BAS076 | BZ177: BAS077 | CA177: BAS078 | CB177: BAS079 | CC177: BAS080 | CD177: BAS081 | CE177: BAS082 | CF177: BAS083 | CG177: BAS084 | CH177: BAS085 | CI177: BAS086 | CJ177: BAS087 | CK177: BAS088 | CL177: BAS089 | CM177: BAS090 | CN177: BAS091 | CO177: BAS092 | CP177: BAS093 | CQ177: BAS094 | CR177: BAS095 | CS177: BAS096 | CT177: BAS097 | CU177: BAS098 | CV177: BAS099 | CW177: BAS100 | CX177: BAS101 | CY177: BAS102 | CZ177: BAS103 | DA177: BAS104 | DB177: BAS105 | DC177: BAS106 | DD177: BAS107 | DE177: BAS108 | DF177: BAS109 | DG177: BAS110 | DH177: BAS111 | DI177: BAS112 | DJ177: BAS113 | DK177: BAS114 | DL177: BAS115 | DM177: BAS116 | DN177: BAS117 | DO177: BAS118 | DP177: BAS119 | DQ177: BAS120 | DR177: BAS121 | DS177: BAS122 | DT177: BAS123 | DU177: BAS124 | DV177: BAS125 | DW177: BAS126 | DX177: BAS127 | DY177: BAS128 | DZ177: BAS129 | EA177: BAS130 | EB177: BAS131 | EC177: BAS132 | ED177: BAS133 | EE177: BAS134 | EF177: BAS135 | EG177: BAS136 | EH177: BAS137 | EI177: BAS138 | EJ177: BAS139 | EK177: BAS140 | EL177: BAS141 | EM177: BAS142 | EN177: BAS143 | EO177: BAS144 | EP177: BAS145 | EQ177: BAS146 | ER177: BAS147 | ES177: BAS148 | ET177: BAS149 | EU177: BAS150 | EV177: BAS151 | EW177: BAS152 | EX177: BAS153 | EY177: BAS154 | EZ177: BAS155 | FA177: BAS156 | FB177: BAS157 | FC177: BAS158 | FD177: BAS159 | FE177: BAS160 | FF177: BAS161 | FG177: BAS162 | FH177: BAS163 | FI177: BAS164 | FJ177: BAS165 | FK177: BAS166 | FL177: BAS167 | FM177: BAS168 | FN177: BAS169 | FO177: BAS170 | FP177: BAS171 | FQ177: BAS172 | FR177: BAS173 | FS177: BAS174 | FT177: BAS175 | FU177: BAS176 | FV177: BAS177 | FW177: BAS178 | FX177: BAS179 | FY177: BAS180 | FZ177: BAS181 | GA177: BAS182 | GB177: BAS183 | GC177: BAS184 | GD177: BAS185 | GE177: BAS186 | GF177: BAS187 | GG177: BAS188 | GH177: BAS189 | GI177: BAS190 | GJ177: BAS191 | GK177: BAS192 | GL177: BAS193 | GM177: BAS194 | GN177: BAS195 | GO177: BAS196 | GP177: BAS197 | GQ177: BAS198 | GR177: BAS199 | GS177: BAS200 | GT177: BAS201 | GU177: BAS202 | GV177: BAS203 | GW177: BAS204 | GX177: BAS205 | GY177: BAS206 | GZ177: BAS207 | HA177: BAS208 | HB177: BAS209 | HC177: BAS210 | HD177: BAS211 | HE177: BAS212 | HF177: BAS213 | HG177: BAS214 | HH177: BAS215 | HI177: BAS216 | HJ177: BAS217 | HK177: BAS218 | HL177: BAS219 | HM177: BAS220 | HN177: BAS221 | HO177: BAS222 | HP177: BAS223 | HQ177: BAS224 | HR177: BAS225 | HS177: BAS226 | HT177: BAS227 | HU177: BAS228 | HV177: BAS229 | HW177: BAS230
A178: 8 | B178: 1 | C178: 1 | D178: 1 | E178: 1 | F178: 1 | G178: 1 | H178: 1 | I178: 1 | J178: 0 | K178: 0 | L178: 0 | M178: 0 | N178: 0 | O178: 0 | P178: 0 | Q178: 0 | R178: 0 | S178: 0 | T178: 0 | U178: 0 | V178: 0 | W178: 0 | X178: 0 | Y178: 0 | Z178: 0 | AA178: 0 | AB178: 0 | AC178: 0 | AD178: 0 | AE178: 0 | AF178: 0 | AG178: 0 | AH178: 0 | AI178: 0 | AJ178: 0 | AK178: 0 | AL178: 0 | AM178: 0 | AN178: 0 | AO178: 0 | AP178: 0 | AQ178: 0 | AR178: 0 | AS178: 0 | AT178: 0 | AU178: 0 | AV178: 0 | AW178: 0 | AX178: 0 | AY178: 0 | AZ178: 0 | BA178: 0 | BB178: 0 | BC178: 0 | BD178: 0 | BE178: 0 | BF178: 0 | BG178: 0 | BH178: 0 | BI178: 0 | BJ178: 0 | BK178: 0 | BL178: 231 | BM178: 0 | BN178: 0 | BO178: 0 | BP178: 0 | BQ178: 97 | BR178: 0 | BS178: 0 | BT178: 57 | BU178: 0 | BV178: 0 | BW178: 0 | BX178: 0 | BY178: 0 | BZ178: 0 | CA178: 0 | CB178: 0 | CC178: 0 | CD178: 0 | CE178: 0 | CF178: 0 | CG178: 0 | CH178: 0 | CI178: 0 | CJ178: 0 | CK178: 91 | CL178: 0 | CM178: 1 | CN178: 0 | CO178: 59 | CP178: 0 | CQ178: 0 | CR178: 0 | CS178: 1 | CT178: 0 | CU178: 0 | CV178: 0 | CW178: 0 | CX178: 0 | CY178: 0 | CZ178: 0 | DA178: 0 | DB178: 0 | DC178: 0 | DD178: 0 | DE178: 0 | DF178: 0 | DG178: 0 | DH178: 0 | DI178: 0 | DJ178: 0 | DK178: 0 | DL178: 0 | DM178: 0 | DN178: 0 | DO178: 0 | DP178: 0 | DQ178: 0 | DR178: 0 | DS178: 0 | DT178: 0 | DU178: 0 | DV178: 0 | DW178: 0 | DX178: 0 | DY178: 0 | DZ178: 0 | EA178: 0 | EB178: 0 | EC178: 0 | ED178: 0 | EE178: 0 | EF178: 0 | EG178: 0 | EH178: 0 | EI178: 0 | EJ178: 0 | EK178: 0 | EL178: 0 | EM178: 0 | EN178: 0 | EO178: 0 | EP178: 0 | EQ178: 0 | ER178: 0 | ES178: 0 | ET178: 0 | EU178: 0 | EV178: 0 | EW178: 0 | EX178: 0 | EY178: 0 | EZ178: 0 | FA178: 0 | FB178: 0 | FC178: 0 | FD178: 0 | FE178: 0 | FF178: 0 | FG178: 0 | FH178: 0 | FI178: 0 | FJ178: 0 | FK178: 0 | FL178: 0 | FM178: 0 | FN178: 0 | FO178: 0 | FP178: 0 | FQ178: 0 | FR178: 0 | FS178: 0 | FT178: 0 | FU178: 0 | FV178: 0 | FW178: 0 | FX178: 0 | FY178: 0 | FZ178: 0 | GA178: 0 | GB178: 0 | GC178: 0 | GD178: 0 | GE178: 0 | GF178: 0 | GG178: 0 | GH178: 0 | GI178: 0 | GJ178: 0 | GK178: 0 | GL178: 0 | GM178: 0 | GN178: 0 | GO178: 0 | GP178: 0 | GQ178: 0 | GR178: 0 | GS178: 0 | GT178: 0 | GU178: 0 | GV178: 0 | GW178: 0 | GX178: 0 | GY178: 0 | GZ178: 0 | HA178: 0 | HB178: 0 | HC178: 0 | HD178: 0 | HE178: 0 | HF178: 0 | HG178: 0 | HH178: 0 | HI178: 0 | HJ178: 0 | HK178: 0 | HL178: 0 | HM178: 0 | HN178: 0 | HO178: 0 | HP178: 0 | HQ178: 0 | HR178: 0 | HS178: 0 | HT178: 0 | HU178: 0 | HV178: 0 | HW178: 0
A179: 7 | B179: 0 | C179: 0 | D179: 0 | E179: 0 | F179: 0 | G179: 0 | H179: 0 | I179: 0 | J179: 0 | K179: 0 | L179: 0 | M179: 0 | N179: 0 | O179: 0 | P179: 0 | Q179: 0 | R179: 0 | S179: 0 | T179: 0 | U179: 0 | V179: 0 | W179: 0 | X179: 0 | Y179: 0 | Z179: 0 | AA179: 0 | AB179: 0 | AC179: 0 | AD179: 0 | AE179: 0 | AF179: 0 | AG179: 0 | AH179: 0 | AI179: 0 | AJ179: 0 | AK179: 0 | AL179: 0 | AM179: 0 | AN179: 0 | AO179: 0 | AP179: 0 | AQ179: 0 | AR179: 0 | AS179: 0 | AT179: 0 | AU179: 0 | AV179: 0 | AW179: 0 | AX179: 0 | AY179: 0 | AZ179: 0 | BA179: 0 | BB179: 0 | BC179: 0 | BD179: 0 | BE179: 0 | BF179: 0 | BG179: 0 | BH179: 0 | BI179: 0 | BJ179: 0 | BK179: 0 | BL179: 156 | BM179: 0 | BN179: 0 | BO179: 0 | BP179: 0 | BQ179: 102 | BR179: 0 | BS179: 0 | BT179: 20 | BU179: 0 | BV179: 0 | BW179: 0 | BX179: 0 | BY179: 0 | BZ179: 0 | CA179: 0 | CB179: 6 | CC179: 0 | CD179: 0 | CE179: 0 | CF179: 0 | CG179: 0 | CH179: 0 | CI179: 0 | CJ179: 0 | CK179: 102 | CL179: 0 | CM179: 0 | CN179: 0 | CO179: 20 | CP179: 0 | CQ179: 0 | CR179: 0 | CS179: 0 | CT179: 0 | CU179: 0 | CV179: 0 | CW179: 0 | CX179: 0 | CY179: 0 | CZ179: 0 | DA179: 0 | DB179: 0 | DC179: 0 | DD179: 0 | DE179: 0 | DF179: 0 | DG179: 0 | DH179: 0 | DI179: 0 | DJ179: 0 | DK179: 0 | DL179: 0 | DM179: 0 | DN179: 0 | DO179: 0 | DP179: 0 | DQ179: 0 | DR179: 0 | DS179: 0 | DT179: 0 | DU179: 0 | DV179: 0 | DW179: 0 | DX179: 0 | DY179: 0 | DZ179: 0 | EA179: 0 | EB179: 0 | EC179: 0 | ED179: 0 | EE179: 0 | EF179: 0 | EG179: 0 | EH179: 0 | EI179: 0 | EJ179: 0 | EK179: 0 | EL179: 0 | EM179: 0 | EN179: 0 | EO179: 0 | EP179: 0 | EQ179: 0 | ER179: 0 | ES179: 0 | ET179: 0 | EU179: 0 | EV179: 0 | EW179: 0 | EX179: 0 | EY179: 0 | EZ179: 0 | FA179: 0 | FB179: 0 | FC179: 0 | FD179: 0 | FE179: 0 | FF179: 0 | FG179: 0 | FH179: 0 | FI179: 0 | FJ179: 0 | FK179: 0 | FL179: 0 | FM179: 0 | FN179: 0 | FO179: 0 | FP179: 0 | FQ179: 0 | FR179: 0 | FS179: 0 | FT179: 0 | FU179: 0 | FV179: 0 | FW179: 0 | FX179: 0 | FY179: 0 | FZ179: 0 | GA179: 0 | GB179: 0 | GC179: 0 | GD179: 0 | GE179: 0 | GF179: 0 | GG179: 0 | GH179: 0 | GI179: 0 | GJ179: 0 | GK179: 0 | GL179: 0 | GM179: 0 | GN179: 0 | GO179: 0 | GP179: 0 | GQ179: 0 | GR179: 0 | GS179: 0 | GT179: 0 | GU179: 0 | GV179: 0 | GW179: 0 | GX179: 0 | GY179: 0 | GZ179: 0 | HA179: 0 | HB179: 0 | HC179: 0 | HD179: 0 | HE179: 0 | HF179: 0 | HG179: 0 | HH179: 0 | HI179: 0 | HJ179: 0 | HK179: 0 | HL179: 0 | HM179: 0 | HN179: 0 | HO179: 0 | HP179: 0 | HQ179: 0 | HR179: 0 | HS179: 0 | HT179: 0 | HU179: 0 | HV179: 0 | HW179: 0
A180: 6 | B180: 0 | C180: 0 | D180: 0 | E180: 0 | F180: 0 | G180: 0 | H180: 0 | I180: 0 | J180: 0 | K180: 0 | L180: 0 | M180: 0 | N180: 0 | O180: 0 | P180: 0 | Q180: 0 | R180: 0 | S180: 0 | T180: 0 | U180: 0 | V180: 0 | W180: 0 | X180: 0 | Y180: 0 | Z180: 0 | AA180: 0 | AB180: 0 | AC180: 0 | AD180: 0 | AE180: 0 | AF180: 0 | AG180: 0 | AH180: 0 | AI180: 0 | AJ180: 0 | AK180: 0 | AL180: 0 | AM180: 0 | AN180: 0 | AO180: 0 | AP180: 0 | AQ180: 0 | AR180: 0 | AS180: 0 | AT180: 0 | AU180: 0 | AV180: 0 | AW180: 0 | AX180: 0 | AY180: 0 | AZ180: 0 | BA180: 0 | BB180: 0 | BC180: 0 | BD180: 0 | BE180: 0 | BF180: 0 | BG180: 0 | BH180: 0 | BI180: 0 | BJ180: 0 | BK180: 0 | BL180: 368 | BM180: 0 | BN180: 0 | BO180: 0 | BP180: 0 | BQ180: 265 | BR180: 0 | BS180: 0 | BT180: 42 | BU180: 0 | BV180: 0 | BW180: 0 | BX180: 0 | BY180: 0 | BZ180: 0 | CA180: 0 | CB180: 5 | CC180: 0 | CD180: 0 | CE180: 0 | CF180: 0 | CG180: 0 | CH180: 0 | CI180: 0 | CJ180: 0 | CK180: 273 | CL180: 1 | CM180: 1 | CN180: 0 | CO180: 44 | CP180: 0 | CQ180: 0 | CR180: 0 | CS180: 1 | CT180: 0 | CU180: 0 | CV180: 0 | CW180: 0 | CX180: 0 | CY180: 0 | CZ180: 0 | DA180: 0 | DB180: 0 | DC180: 0 | DD180: 0 | DE180: 0 | DF180: 0 | DG180: 0 | DH180: 0 | DI180: 0 | DJ180: 0 | DK180: 0 | DL180: 0 | DM180: 0 | DN180: 0 | DO180: 0 | DP180: 0 | DQ180: 0 | DR180: 0 | DS180: 0 | DT180: 0 | DU180: 1 | DV180: 0 | DW180: 0 | DX180: 0 | DY180: 0 | DZ180: 0 | EA180: 0 | EB180: 0 | EC180: 0 | ED180: 0 | EE180: 0 | EF180: 0 | EG180: 0 | EH180: 0 | EI180: 0 | EJ180: 0 | EK180: 0 | EL180: 0 | EM180: 0 | EN180: 0 | EO180: 0 | EP180: 0 | EQ180: 0 | ER180: 0 | ES180: 0 | ET180: 0 | EU180: 0 | EV180: 0 | EW180: 0 | EX180: 0 | EY180: 0 | EZ180: 0 | FA180: 0 | FB180: 0 | FC180: 0 | FD180: 0 | FE180: 0 | FF180: 0 | FG180: 0 | FH180: 0 | FI180: 0 | FJ180: 0 | FK180: 0 | FL180: 0 | FM180: 0 | FN180: 0 | FO180: 0 | FP180: 0 | FQ180: 0 | FR180: 0 | FS180: 0 | FT180: 0 | FU180: 0 | FV180: 0 | FW180: 0 | FX180: 0 | FY180: 0 | FZ180: 0 | GA180: 0 | GB180: 0 | GC180: 0 | GD180: 0 | GE180: 0 | GF180: 0 | GG180: 0 | GH180: 0 | GI180: 0 | GJ180: 0 | GK180: 0 | GL180: 0 | GM180: 0 | GN180: 0 | GO180: 0 | GP180: 0 | GQ180: 0 | GR180: 0 | GS180: 0 | GT180: 0 | GU180: 0 | GV180: 0 | GW180: 0 | GX180: 0 | GY180: 0 | GZ180: 0 | HA180: 0 | HB180: 0 | HC180: 0 | HD180: 0 | HE180: 0 | HF180: 0 | HG180: 0 | HH180: 0 | HI180: 0 | HJ180: 0 | HK180: 0 | HL180: 0 | HM180: 0 | HN180: 0 | HO180: 0 | HP180: 0 | HQ180: 0 | HR180: 0 | HS180: 0 | HT180: 0 | HU180: 0 | HV180: 0 | HW180: 0
A181: 3 | B181: 0 | C181: 0 | D181: 0 | E181: 0 | F181: 1 | G181: 0 | H181: 0 | I181: 0 | J181: 0 | K181: 0 | L181: 0 | M181: 0 | N181: 0 | O181: 0 | P181: 0 | Q181: 0 | R181: 0 | S181: 0 | T181: 0 | U181: 0 | V181: 0 | W181: 0 | X181: 0 | Y181: 0 | Z181: 0 | AA181: 0 | AB181: 0 | AC181: 0 | AD181: 0 | AE181: 0 | AF181: 0 | AG181: 0 | AH181: 0 | AI181: 0 | AJ181: 0 | AK181: 0 | AL181: 0 | AM181: 0 | AN181: 0 | AO181: 0 | AP181: 0 | AQ181: 0 | AR181: 0 | AS181: 0 | AT181: 0 | AU181: 0 | AV181: 0 | AW181: 0 | AX181: 0 | AY181: 0 | AZ181: 0 | BA181: 0 | BB181: 0 | BC181: 0 | BD181: 0 | BE181: 0 | BF181: 0 | BG181: 0 | BH181: 0 | BI181: 0 | BJ181: 15 | BK181: 0 | BL181: 88 | BM181: 0 | BN181: 0 | BO181: 0 | BP181: 0 | BQ181: 65 | BR181: 0 | BS181: 0 | BT181: 14 | BU181: 0 | BV181: 0 | BW181: 0 | BX181: 0 | BY181: 0 | BZ181: 0 | CA181: 0 | CB181: 1 | CC181: 0 | CD181: 0 | CE181: 0 | CF181: 0 | CG181: 0 | CH181: 0 | CI181: 0 | CJ181: 0 | CK181: 69 | CL181: 0 | CM181: 0 | CN181: 0 | CO181: 14 | CP181: 0 | CQ181: 0 | CR181: 0 | CS181: 0 | CT181: 0 | CU181: 0 | CV181: 0 | CW181: 0 | CX181: 0 | CY181: 1 | CZ181: 1 | DA181: 0 | DB181: 0 | DC181: 0 | DD181: 0 | DE181: 0 | DF181: 0 | DG181: 0 | DH181: 0 | DI181: 1 | DJ181: 0 | DK181: 0 | DL181: 0 | DM181: 0 | DN181: 0 | DO181: 0 | DP181: 0 | DQ181: 0 | DR181: 0 | DS181: 0 | DT181: 0 | DU181: 0 | DV181: 0 | DW181: 0 | DX181: 0 | DY181: 0 | DZ181: 0 | EA181: 0 | EB181: 0 | EC181: 0 | ED181: 0 | EE181: 0 | EF181: 0 | EG181: 0 | EH181: 0 | EI181: 0 | EJ181: 0 | EK181: 0 | EL181: 0 | EM181: 0 | EN181: 0 | EO181: 0 | EP181: 0 | EQ181: 0 | ER181: 0 | ES181: 0 | ET181: 0 | EU181: 0 | EV181: 0 | EW181: 0 | EX181: 0 | EY181: 0 | EZ181: 0 | FA181: 0 | FB181: 0 | FC181: 0 | FD181: 0 | FE181: 0 | FF181: 0 | FG181: 0 | FH181: 0 | FI181: 0 | FJ181: 0 | FK181: 0 | FL181: 0 | FM181: 0 | FN181: 0 | FO181: 0 | FP181: 0 | FQ181: 0 | FR181: 0 | FS181: 0 | FT181: 0 | FU181: 0 | FV181: 0 | FW181: 0 | FX181: 0 | FY181: 0 | FZ181: 0 | GA181: 0 | GB181: 0 | GC181: 0 | GD181: 0 | GE181: 0 | GF181: 0 | GG181: 0 | GH181: 0 | GI181: 0 | GJ181: 0 | GK181: 0 | GL181: 0 | GM181: 0 | GN181: 0 | GO181: 0 | GP181: 0 | GQ181: 0 | GR181: 0 | GS181: 0 | GT181: 0 | GU181: 0 | GV181: 0 | GW181: 0 | GX181: 0 | GY181: 0 | GZ181: 0 | HA181: 0 | HB181: 0 | HC181: 0 | HD181: 0 | HE181: 1 | HF181: 0 | HG181: 1 | HH181: 0 | HI181: 0 | HJ181: 0 | HK181: 0 | HL181: 0 | HM181: 0 | HN181: 0 | HO181: 0 | HP181: 0 | HQ181: 0 | HR181: 0 | HS181: 0 | HT181: 0 | HU181: 0 | HV181: 0 | HW181: 0
A182: 1 | B182: 0 | C182: 0 | D182: 0 | E182: 0 | F182: 0 | G182: 0 | H182: 0 | I182: 0 | J182: 0 | K182: 0 | L182: 0 | M182: 0 | N182: 0 | O182: 0 | P182: 0 | Q182: 0 | R182: 0 | S182: 0 | T182: 0 | U182: 0 | V182: 0 | W182: 0 | X182: 0 | Y182: 0 | Z182: 0 | AA182: 0 | AB182: 0 | AC182: 0 | AD182: 0 | AE182: 0 | AF182: 0 | AG182: 0 | AH182: 0 | AI182: 0 | AJ182: 0 | AK182: 0 | AL182: 0 | AM182: 0 | AN182: 0 | AO182: 0 | AP182: 0 | AQ182: 0 | AR182: 0 | AS182: 0 | AT182: 1 | AU182: 0 | AV182: 0 | AW182: 0 | AX182: 0 | AY182: 0 | AZ182: 0 | BA182: 0 | BB182: 0 | BC182: 0 | BD182: 0 | BE182: 0 | BF182: 0 | BG182: 0 | BH182: 0 | BI182: 0 | BJ182: 1 | BK182: 0 | BL182: 29 | BM182: 0 | BN182: 0 | BO182: 0 | BP182: 0 | BQ182: 20 | BR182: 0 | BS182: 0 | BT182: 3 | BU182: 0 | BV182: 0 | BW182: 0 | BX182: 0 | BY182: 0 | BZ182: 0 | CA182: 0 | CB182: 0 | CC182: 0 | CD182: 0 | CE182: 0 | CF182: 0 | CG182: 0 | CH182: 0 | CI182: 0 | CJ182: 0 | CK182: 22 | CL182: 0 | CM182: 0 | CN182: 0 | CO182: 3 | CP182: 0 | CQ182: 0 | CR182: 0 | CS182: 1 | CT182: 0 | CU182: 0 | CV182: 0 | CW182: 0 | CX182: 0 | CY182: 0 | CZ182: 0 | DA182: 0 | DB182: 0 | DC182: 0 | DD182: 0 | DE182: 0 | DF182: 0 | DG182: 0 | DH182: 0 | DI182: 0 | DJ182: 0 | DK182: 0 | DL182: 0 | DM182: 0 | DN182: 0 | DO182: 0 | DP182: 0 | DQ182: 0 | DR182: 0 | DS182: 0 | DT182: 0 | DU182: 0 | DV182: 0 | DW182: 0 | DX182: 0 | DY182: 0 | DZ182: 0 | EA182: 0 | EB182: 0 | EC182: 0 | ED182: 0 | EE182: 0 | EF182: 0 | EG182: 0 | EH182: 0 | EI182: 0 | EJ182: 0 | EK182: 0 | EL182: 0 | EM182: 0 | EN182: 0 | EO182: 0 | EP182: 0 | EQ182: 0 | ER182: 0 | ES182: 0 | ET182: 0 | EU182: 0 | EV182: 0 | EW182: 0 | EX182: 0 | EY182: 0 | EZ182: 0 | FA182: 0 | FB182: 0 | FC182: 0 | FD182: 0 | FE182: 0 | FF182: 0 | FG182: 0 | FH182: 0 | FI182: 0 | FJ182: 0 | FK182: 0 | FL182: 0 | FM182: 0 | FN182: 0 | FO182: 0 | FP182: 0 | FQ182: 0 | FR182: 0 | FS182: 0 | FT182: 0 | FU182: 0 | FV182: 0 | FW182: 0 | FX182: 0 | FY182: 0 | FZ182: 0 | GA182: 0 | GB182: 0 | GC182: 0 | GD182: 0 | GE182: 0 | GF182: 0 | GG182: 0 | GH182: 0 | GI182: 0 | GJ182: 0 | GK182: 0 | GL182: 0 | GM182: 0 | GN182: 0 | GO182: 0 | GP182: 0 | GQ182: 0 | GR182: 0 | GS182: 0 | GT182: 0 | GU182: 0 | GV182: 0 | GW182: 0 | GX182: 0 | GY182: 0 | GZ182: 0 | HA182: 0 | HB182: 0 | HC182: 0 | HD182: 0 | HE182: 0 | HF182: 0 | HG182: 0 | HH182: 0 | HI182: 0 | HJ182: 0 | HK182: 0 | HL182: 0 | HM182: 0 | HN182: 0 | HO182: 0 | HP182: 0 | HQ182: 0 | HR182: 0 | HS182: 0 | HT182: 0 | HU182: 0 | HV182: 0 | HW182: 0
A183: 5 | B183: 0 | C183: 0 | D183: 0 | E183: 0 | F183: 0 | G183: 0 | H183: 0 | I183: 0 | J183: 0 | K183: 0 | L183: 0 | M183: 0 | N183: 0 | O183: 0 | P183: 0 | Q183: 0 | R183: 0 | S183: 0 | T183: 0 | U183: 0 | V183: 0 | W183: 0 | X183: 0 | Y183: 0 | Z183: 0 | AA183: 0 | AB183: 0 | AC183: 0 | AD183: 0 | AE183: 0 | AF183: 0 | AG183: 0 | AH183: 0 | AI183: 0 | AJ183: 0 | AK183: 0 | AL183: 0 | AM183: 0 | AN183: 0 | AO183: 0 | AP183: 0 | AQ183: 0 | AR183: 0 | AS183: 0 | AT183: 0 | AU183: 0 | AV183: 0 | AW183: 0 | AX183: 1 | AY183: 0 | AZ183: 1 | BA183: 0 | BB183: 0 | BC183: 0 | BD183: 0 | BE183: 0 | BF183: 0 | BG183: 0 | BH183: 0 | BI183: 0 | BJ183: 2 | BK183: 0 | BL183: 317 | BM183: 0 | BN183: 0 | BO183: 0 | BP183: 0 | BQ183: 144 | BR183: 0 | BS183: 0 | BT183: 41 | BU183: 0 | BV183: 0 | BW183: 0 | BX183: 0 | BY183: 0 | BZ183: 0 | CA183: 0 | CB183: 4 | CC183: 0 | CD183: 0 | CE183: 0 | CF183: 0 | CG183: 0 | CH183: 0 | CI183: 0 | CJ183: 0 | CK183: 220 | CL183: 0 | CM183: 0 | CN183: 0 | CO183: 60 | CP183: 0 | CQ183: 0 | CR183: 0 | CS183: 0 | CT183: 0 | CU183: 0 | CV183: 0 | CW183: 0 | CX183: 0 | CY183: 0 | CZ183: 0 | DA183: 0 | DB183: 0 | DC183: 0 | DD183: 0 | DE183: 0 | DF183: 0 | DG183: 0 | DH183: 0 | DI183: 0 | DJ183: 0 | DK183: 0 | DL183: 0 | DM183: 0 | DN183: 0 | DO183: 0 | DP183: 0 | DQ183: 0 | DR183: 0 | DS183: 0 | DT183: 0 | DU183: 0 | DV183: 0 | DW183: 0 | DX183: 0 | DY183: 0 | DZ183: 0 | EA183: 0 | EB183: 0 | EC183: 0 | ED183: 0 | EE183: 0 | EF183: 0 | EG183: 0 | EH183: 0 | EI183: 0 | EJ183: 0 | EK183: 0 | EL183: 0 | EM183: 0 | EN183: 0 | EO183: 0 | EP183: 0 | EQ183: 0 | ER183: 0 | ES183: 0 | ET183: 0 | EU183: 0 | EV183: 0 | EW183: 0 | EX183: 0 | EY183: 0 | EZ183: 0 | FA183: 0 | FB183: 0 | FC183: 0 | FD183: 0 | FE183: 0 | FF183: 0 | FG183: 0 | FH183: 0 | FI183: 0 | FJ183: 0 | FK183: 0 | FL183: 0 | FM183: 0 | FN183: 0 | FO183: 0 | FP183: 0 | FQ183: 0 | FR183: 0 | FS183: 0 | FT183: 0 | FU183: 0 | FV183: 0 | FW183: 0 | FX183: 0 | FY183: 0 | FZ183: 0 | GA183: 0 | GB183: 0 | GC183: 0 | GD183: 0 | GE183: 0 | GF183: 0 | GG183: 0 | GH183: 0 | GI183: 0 | GJ183: 0 | GK183: 0 | GL183: 0 | GM183: 0 | GN183: 0 | GO183: 0 | GP183: 0 | GQ183: 0 | GR183: 0 | GS183: 0 | GT183: 0 | GU183: 0 | GV183: 0 | GW183: 0 | GX183: 0 | GY183: 0 | GZ183: 0 | HA183: 0 | HB183: 0 | HC183: 0 | HD183: 0 | HE183: 0 | HF183: 0 | HG183: 0 | HH183: 0 | HI183: 0 | HJ183: 0 | HK183: 0 | HL183: 0 | HM183: 0 | HN183: 0 | HO183: 0 | HP183: 0 | HQ183: 0 | HR183: 0 | HS183: 0 | HT183: 0 | HU183: 0 | HV183: 0 | HW183: 0
A184: 2 | B184: 0 | C184: 0 | D184: 0 | E184: 0 | F184: 1 | G184: 1 | H184: 0 | I184: 0 | J184: 0 | K184: 0 | L184: 0 | M184: 0 | N184: 0 | O184: 0 | P184: 0 | Q184: 0 | R184: 0 | S184: 0 | T184: 0 | U184: 0 | V184: 0 | W184: 0 | X184: 0 | Y184: 0 | Z184: 0 | AA184: 0 | AB184: 0 | AC184: 0 | AD184: 0 | AE184: 0 | AF184: 0 | AG184: 0 | AH184: 0 | AI184: 0 | AJ184: 0 | AK184: 0 | AL184: 0 | AM184: 0 | AN184: 0 | AO184: 0 | AP184: 0 | AQ184: 0 | AR184: 0 | AS184: 0 | AT184: 0 | AU184: 0 | AV184: 0 | AW184: 0 | AX184: 0 | AY184: 0 | AZ184: 0 | BA184: 0 | BB184: 0 | BC184: 0 | BD184: 0 | BE184: 0 | BF184: 0 | BG184: 0 | BH184: 0 | BI184: 0 | BJ184: 5 | BK184: 0 | BL184: 31 | BM184: 0 | BN184: 0 | BO184: 0 | BP184: 0 | BQ184: 21 | BR184: 0 | BS184: 0 | BT184: 5 | BU184: 0 | BV184: 0 | BW184: 0 | BX184: 0 | BY184: 0 | BZ184: 0 | CA184: 0 | CB184: 0 | CC184: 0 | CD184: 0 | CE184: 0 | CF184: 0 | CG184: 0 | CH184: 0 | CI184: 0 | CJ184: 0 | CK184: 24 | CL184: 0 | CM184: 0 | CN184: 0 | CO184: 7 | CP184: 0 | CQ184: 0 | CR184: 0 | CS184: 0 | CT184: 0 | CU184: 0 | CV184: 0 | CW184: 0 | CX184: 0 | CY184: 0 | CZ184: 0 | DA184: 0 | DB184: 0 | DC184: 0 | DD184: 0 | DE184: 0 | DF184: 0 | DG184: 0 | DH184: 0 | DI184: 0 | DJ184: 0 | DK184: 0 | DL184: 0 | DM184: 0 | DN184: 0 | DO184: 0 | DP184: 0 | DQ184: 0 | DR184: 0 | DS184: 0 | DT184: 0 | DU184: 0 | DV184: 0 | DW184: 0 | DX184: 0 | DY184: 0 | DZ184: 0 | EA184: 0 | EB184: 0 | EC184: 0 | ED184: 0 | EE184: 0 | EF184: 0 | EG184: 0 | EH184: 0 | EI184: 0 | EJ184: 0 | EK184: 0 | EL184: 0 | EM184: 0 | EN184: 0 | EO184: 0 | EP184: 0 | EQ184: 0 | ER184: 0 | ES184: 0 | ET184: 0 | EU184: 0 | EV184: 0 | EW184: 0 | EX184: 0 | EY184: 0 | EZ184: 0 | FA184: 0 | FB184: 0 | FC184: 0 | FD184: 0 | FE184: 0 | FF184: 0 | FG184: 0 | FH184: 0 | FI184: 0 | FJ184: 0 | FK184: 0 | FL184: 0 | FM184: 0 | FN184: 0 | FO184: 0 | FP184: 0 | FQ184: 0 | FR184: 0 | FS184: 0 | FT184: 0 | FU184: 0 | FV184: 0 | FW184: 0 | FX184: 0 | FY184: 0 | FZ184: 0 | GA184: 0 | GB184: 0 | GC184: 0 | GD184: 0 | GE184: 0 | GF184: 0 | GG184: 0 | GH184: 0 | GI184: 0 | GJ184: 0 | GK184: 0 | GL184: 0 | GM184: 0 | GN184: 0 | GO184: 0 | GP184: 0 | GQ184: 0 | GR184: 0 | GS184: 0 | GT184: 0 | GU184: 0 | GV184: 0 | GW184: 0 | GX184: 0 | GY184: 0 | GZ184: 0 | HA184: 0 | HB184: 0 | HC184: 0 | HD184: 0 | HE184: 0 | HF184: 0 | HG184: 0 | HH184: 0 | HI184: 0 | HJ184: 0 | HK184: 0 | HL184: 0 | HM184: 0 | HN184: 0 | HO184: 0 | HP184: 0 | HQ184: 0 | HR184: 0 | HS184: 0 | HT184: 0 | HU184: 0 | HV184: 0 | HW184: 0
A185: 4 | B185: 0 | C185: 0 | D185: 0 | E185: 0 | F185: 0 | G185: 0 | H185: 0 | I185: 0 | J185: 0 | K185: 0 | L185: 0 | M185: 0 | N185: 0 | O185: 0 | P185: 0 | Q185: 0 | R185: 0 | S185: 0 | T185: 0 | U185: 0 | V185: 0 | W185: 0 | X185: 0 | Y185: 0 | Z185: 0 | AA185: 0 | AB185: 0 | AC185: 0 | AD185: 0 | AE185: 0 | AF185: 0 | AG185: 0 | AH185: 0 | AI185: 0 | AJ185: 0 | AK185: 0 | AL185: 0 | AM185: 0 | AN185: 0 | AO185: 0 | AP185: 0 | AQ185: 0 | AR185: 0 | AS185: 0 | AT185: 0 | AU185: 0 | AV185: 0 | AW185: 0 | AX185: 0 | AY185: 0 | AZ185: 0 | BA185: 0 | BB185: 0 | BC185: 0 | BD185: 0 | BE185: 0 | BF185: 0 | BG185: 0 | BH185: 0 | BI185: 0 | BJ185: 21 | BK185: 0 | BL185: 374 | BM185: 0 | BN185: 0 | BO185: 0 | BP185: 0 | BQ185: 162 | BR185: 0 | BS185: 0 | BT185: 58 | BU185: 0 | BV185: 0 | BW185: 0 | BX185: 0 | BY185: 0 | BZ185: 0 | CA185: 0 | CB185: 1 | CC185: 0 | CD185: 0 | CE185: 0 | CF185: 0 | CG185: 0 | CH185: 0 | CI185: 0 | CJ185: 0 | CK185: 269 | CL185: 0 | CM185: 0 | CN185: 0 | CO185: 74 | CP185: 0 | CQ185: 0 | CR185: 0 | CS185: 0 | CT185: 0 | CU185: 0 | CV185: 0 | CW185: 0 | CX185: 0 | CY185: 0 | CZ185: 0 | DA185: 0 | DB185: 0 | DC185: 0 | DD185: 0 | DE185: 0 | DF185: 0 | DG185: 0 | DH185: 0 | DI185: 0 | DJ185: 0 | DK185: 0 | DL185: 0 | DM185: 0 | DN185: 0 | DO185: 0 | DP185: 0 | DQ185: 0 | DR185: 0 | DS185: 0 | DT185: 0 | DU185: 0 | DV185: 0 | DW185: 0 | DX185: 0 | DY185: 0 | DZ185: 0 | EA185: 0 | EB185: 0 | EC185: 0 | ED185: 0 | EE185: 0 | EF185: 0 | EG185: 0 | EH185: 0 | EI185: 0 | EJ185: 0 | EK185: 0 | EL185: 0 | EM185: 0 | EN185: 0 | EO185: 0 | EP185: 0 | EQ185: 0 | ER185: 0 | ES185: 0 | ET185: 0 | EU185: 0 | EV185: 0 | EW185: 0 | EX185: 0 | EY185: 0 | EZ185: 0 | FA185: 0 | FB185: 0 | FC185: 0 | FD185: 0 | FE185: 0 | FF185: 0 | FG185: 0 | FH185: 0 | FI185: 0 | FJ185: 0 | FK185: 0 | FL185: 0 | FM185: 0 | FN185: 0 | FO185: 0 | FP185: 0 | FQ185: 0 | FR185: 0 | FS185: 0 | FT185: 0 | FU185: 0 | FV185: 0 | FW185: 0 | FX185: 0 | FY185: 0 | FZ185: 0 | GA185: 0 | GB185: 0 | GC185: 0 | GD185: 0 | GE185: 0 | GF185: 0 | GG185: 0 | GH185: 0 | GI185: 0 | GJ185: 0 | GK185: 0 | GL185: 0 | GM185: 0 | GN185: 0 | GO185: 0 | GP185: 0 | GQ185: 0 | GR185: 0 | GS185: 0 | GT185: 0 | GU185: 0 | GV185: 0 | GW185: 0 | GX185: 0 | GY185: 0 | GZ185: 0 | HA185: 0 | HB185: 0 | HC185: 0 | HD185: 0 | HE185: 0 | HF185: 0 | HG185: 0 | HH185: 0 | HI185: 0 | HJ185: 0 | HK185: 0 | HL185: 0 | HM185: 0 | HN185: 0 | HO185: 0 | HP185: 0 | HQ185: 0 | HR185: 0 | HS185: 0 | HT185: 0 | HU185: 0 | HV185: 0 | HW185: 0
A186: 9 | B186: 1 | C186: 0 | D186: 0 | E186: 0 | F186: 1 | G186: 1 | H186: 0 | I186: 0 | J186: 0 | K186: 0 | L186: 0 | M186: 0 | N186: 0 | O186: 0 | P186: 0 | Q186: 0 | R186: 0 | S186: 0 | T186: 0 | U186: 0 | V186: 0 | W186: 0 | X186: 0 | Y186: 0 | Z186: 0 | AA186: 0 | AB186: 0 | AC186: 0 | AD186: 0 | AE186: 0 | AF186: 0 | AG186: 0 | AH186: 0 | AI186: 0 | AJ186: 0 | AK186: 0 | AL186: 0 | AM186: 0 | AN186: 0 | AO186: 0 | AP186: 0 | AQ186: 0 | AR186: 0 | AS186: 0 | AT186: 0 | AU186: 0 | AV186: 0 | AW186: 0 | AX186: 1 | AY186: 0 | AZ186: 1 | BA186: 0 | BB186: 0 | BC186: 0 | BD186: 0 | BE186: 0 | BF186: 0 | BG186: 0 | BH186: 0 | BI186: 0 | BJ186: 1 | BK186: 0 | BL186: 237 | BM186: 0 | BN186: 0 | BO186: 0 | BP186: 0 | BQ186: 114 | BR186: 0 | BS186: 0 | BT186: 5 | BU186: 0 | BV186: 0 | BW186: 0 | BX186: 0 | BY186: 0 | BZ186: 0 | CA186: 0 | CB186: 0 | CC186: 0 | CD186: 0 | CE186: 0 | CF186: 0 | CG186: 0 | CH186: 0 | CI186: 0 | CJ186: 0 | CK186: 165 | CL186: 0 | CM186: 0 | CN186: 0 | CO186: 30 | CP186: 0 | CQ186: 1 | CR186: 0 | CS186: 0 | CT186: 0 | CU186: 0 | CV186: 0 | CW186: 0 | CX186: 0 | CY186: 0 | CZ186: 0 | DA186: 0 | DB186: 0 | DC186: 0 | DD186: 0 | DE186: 0 | DF186: 0 | DG186: 0 | DH186: 0 | DI186: 0 | DJ186: 0 | DK186: 0 | DL186: 0 | DM186: 0 | DN186: 0 | DO186: 0 | DP186: 0 | DQ186: 0 | DR186: 0 | DS186: 0 | DT186: 0 | DU186: 0 | DV186: 0 | DW186: 0 | DX186: 0 | DY186: 0 | DZ186: 0 | EA186: 0 | EB186: 0 | EC186: 0 | ED186: 0 | EE186: 0 | EF186: 0 | EG186: 0 | EH186: 0 | EI186: 0 | EJ186: 0 | EK186: 0 | EL186: 0 | EM186: 0 | EN186: 0 | EO186: 0 | EP186: 0 | EQ186: 0 | ER186: 0 | ES186: 0 | ET186: 0 | EU186: 0 | EV186: 0 | EW186: 0 | EX186: 0 | EY186: 0 | EZ186: 0 | FA186: 0 | FB186: 0 | FC186: 0 | FD186: 0 | FE186: 0 | FF186: 0 | FG186: 0 | FH186: 0 | FI186: 0 | FJ186: 0 | FK186: 0 | FL186: 0 | FM186: 0 | FN186: 0 | FO186: 0 | FP186: 0 | FQ186: 0 | FR186: 0 | FS186: 0 | FT186: 0 | FU186: 0 | FV186: 0 | FW186: 0 | FX186: 0 | FY186: 0 | FZ186: 0 | GA186: 0 | GB186: 0 | GC186: 0 | GD186: 0 | GE186: 0 | GF186: 0 | GG186: 0 | GH186: 0 | GI186: 0 | GJ186: 0 | GK186: 0 | GL186: 0 | GM186: 0 | GN186: 0 | GO186: 0 | GP186: 0 | GQ186: 0 | GR186: 0 | GS186: 0 | GT186: 0 | GU186: 0 | GV186: 0 | GW186: 0 | GX186: 0 | GY186: 0 | GZ186: 0 | HA186: 0 | HB186: 0 | HC186: 0 | HD186: 0 | HE186: 0 | HF186: 0 | HG186: 0 | HH186: 0 | HI186: 0 | HJ186: 0 | HK186: 0 | HL186: 0 | HM186: 0 | HN186: 0 | HO186: 0 | HP186: 0 | HQ186: 0 | HR186: 0 | HS186: 0 | HT186: 0 | HU186: 0 | HV186: 0 | HW186: 0
A187: 10 | B187: 2 | C187: 1 | D187: 0 | E187: 0 | F187: 2 | G187: 2 | H187: 0 | I187: 0 | J187: 0 | K187: 0 | L187: 0 | M187: 0 | N187: 0 | O187: 0 | P187: 0 | Q187: 0 | R187: 0 | S187: 0 | T187: 0 | U187: 0 | V187: 0 | W187: 0 | X187: 0 | Y187: 0 | Z187: 0 | AA187: 0 | AB187: 0 | AC187: 0 | AD187: 0 | AE187: 0 | AF187: 0 | AG187: 0 | AH187: 0 | AI187: 0 | AJ187: 0 | AK187: 0 | AL187: 0 | AM187: 0 | AN187: 0 | AO187: 0 | AP187: 0 | AQ187: 0 | AR187: 0 | AS187: 0 | AT187: 1 | AU187: 1 | AV187: 0 | AW187: 0 | AX187: 0 | AY187: 0 | AZ187: 0 | BA187: 0 | BB187: 0 | BC187: 0 | BD187: 0 | BE187: 0 | BF187: 0 | BG187: 0 | BH187: 0 | BI187: 0 | BJ187: 0 | BK187: 0 | BL187: 133 | BM187: 0 | BN187: 0 | BO187: 0 | BP187: 0 | BQ187: 82 | BR187: 0 | BS187: 0 | BT187: 23 | BU187: 0 | BV187: 0 | BW187: 0 | BX187: 0 | BY187: 0 | BZ187: 0 | CA187: 0 | CB187: 20 | CC187: 0 | CD187: 0 | CE187: 0 | CF187: 0 | CG187: 0 | CH187: 0 | CI187: 0 | CJ187: 0 | CK187: 108 | CL187: 0 | CM187: 0 | CN187: 0 | CO187: 32 | CP187: 0 | CQ187: 0 | CR187: 0 | CS187: 0 | CT187: 0 | CU187: 0 | CV187: 0 | CW187: 0 | CX187: 0 | CY187: 0 | CZ187: 0 | DA187: 0 | DB187: 0 | DC187: 0 | DD187: 0 | DE187: 0 | DF187: 0 | DG187: 0 | DH187: 0 | DI187: 0 | DJ187: 0 | DK187: 0 | DL187: 0 | DM187: 0 | DN187: 0 | DO187: 0 | DP187: 0 | DQ187: 0 | DR187: 0 | DS187: 0 | DT187: 0 | DU187: 0 | DV187: 0 | DW187: 0 | DX187: 0 | DY187: 0 | DZ187: 0 | EA187: 0 | EB187: 0 | EC187: 0 | ED187: 0 | EE187: 0 | EF187: 0 | EG187: 0 | EH187: 0 | EI187: 0 | EJ187: 0 | EK187: 0 | EL187: 0 | EM187: 0 | EN187: 0 | EO187: 0 | EP187: 0 | EQ187: 0 | ER187: 0 | ES187: 0 | ET187: 0 | EU187: 0 | EV187: 0 | EW187: 0 | EX187: 0 | EY187: 0 | EZ187: 0 | FA187: 0 | FB187: 0 | FC187: 0 | FD187: 0 | FE187: 0 | FF187: 0 | FG187: 0 | FH187: 0 | FI187: 0 | FJ187: 0 | FK187: 0 | FL187: 0 | FM187: 0 | FN187: 0 | FO187: 0 | FP187: 0 | FQ187: 0 | FR187: 0 | FS187: 0 | FT187: 0 | FU187: 0 | FV187: 0 | FW187: 0 | FX187: 0 | FY187: 0 | FZ187: 0 | GA187: 0 | GB187: 0 | GC187: 0 | GD187: 0 | GE187: 0 | GF187: 0 | GG187: 0 | GH187: 0 | GI187: 0 | GJ187: 0 | GK187: 0 | GL187: 0 | GM187: 0 | GN187: 0 | GO187: 0 | GP187: 0 | GQ187: 0 | GR187: 0 | GS187: 0 | GT187: 0 | GU187: 0 | GV187: 0 | GW187: 0 | GX187: 0 | GY187: 0 | GZ187: 0 | HA187: 0 | HB187: 0 | HC187: 0 | HD187: 0 | HE187: 0 | HF187: 0 | HG187: 0 | HH187: 0 | HI187: 0 | HJ187: 0 | HK187: 0 | HL187: 0 | HM187: 0 | HN187: 0 | HO187: 0 | HP187: 0 | HQ187: 0 | HR187: 0 | HS187: 0 | HT187: 0 | HU187: 0 | HV187: 0 | HW187: 0
A188: 11 | B188: 0 | C188: 0 | D188: 0 | E188: 0 | F188: 0 | G188: 0 | H188: 0 | I188: 0 | J188: 0 | K188: 0 | L188: 0 | M188: 0 | N188: 0 | O188: 0 | P188: 0 | Q188: 0 | R188: 0 | S188: 0 | T188: 0 | U188: 0 | V188: 0 | W188: 0 | X188: 0 | Y188: 0 | Z188: 0 | AA188: 0 | AB188: 0 | AC188: 0 | AD188: 0 | AE188: 0 | AF188: 0 | AG188: 0 | AH188: 0 | AI188: 0 | AJ188: 0 | AK188: 0 | AL188: 0 | AM188: 0 | AN188: 0 | AO188: 0 | AP188: 0 | AQ188: 0 | AR188: 0 | AS188: 0 | AT188: 0 | AU188: 0 | AV188: 0 | AW188: 0 | AX188: 1 | AY188: 1 | AZ188: 1 | BA188: 1 | BB188: 0 | BC188: 0 | BD188: 0 | BE188: 0 | BF188: 0 | BG188: 0 | BH188: 0 | BI188: 0 | BJ188: 1 | BK188: 0 | BL188: 129 | BM188: 0 | BN188: 0 | BO188: 0 | BP188: 0 | BQ188: 79 | BR188: 0 | BS188: 0 | BT188: 37 | BU188: 0 | BV188: 0 | BW188: 0 | BX188: 0 | BY188: 0 | BZ188: 0 | CA188: 0 | CB188: 24 | CC188: 0 | CD188: 0 | CE188: 0 | CF188: 0 | CG188: 0 | CH188: 0 | CI188: 0 | CJ188: 0 | CK188: 82 | CL188: 0 | CM188: 0 | CN188: 0 | CO188: 36 | CP188: 0 | CQ188: 0 | CR188: 0 | CS188: 0 | CT188: 0 | CU188: 0 | CV188: 0 | CW188: 0 | CX188: 0 | CY188: 0 | CZ188: 0 | DA188: 0 | DB188: 0 | DC188: 0 | DD188: 0 | DE188: 0 | DF188: 0 | DG188: 0 | DH188: 0 | DI188: 0 | DJ188: 0 | DK188: 0 | DL188: 0 | DM188: 0 | DN188: 0 | DO188: 0 | DP188: 0 | DQ188: 0 | DR188: 0 | DS188: 0 | DT188: 0 | DU188: 0 | DV188: 0 | DW188: 0 | DX188: 0 | DY188: 0 | DZ188: 0 | EA188: 0 | EB188: 0 | EC188: 0 | ED188: 0 | EE188: 0 | EF188: 0 | EG188: 0 | EH188: 0 | EI188: 0 | EJ188: 0 | EK188: 0 | EL188: 0 | EM188: 0 | EN188: 0 | EO188: 0 | EP188: 0 | EQ188: 0 | ER188: 0 | ES188: 0 | ET188: 0 | EU188: 0 | EV188: 0 | EW188: 0 | EX188: 0 | EY188: 0 | EZ188: 0 | FA188: 0 | FB188: 0 | FC188: 0 | FD188: 0 | FE188: 0 | FF188: 0 | FG188: 0 | FH188: 0 | FI188: 0 | FJ188: 0 | FK188: 0 | FL188: 0 | FM188: 0 | FN188: 0 | FO188: 0 | FP188: 0 | FQ188: 0 | FR188: 0 | FS188: 0 | FT188: 0 | FU188: 0 | FV188: 0 | FW188: 0 | FX188: 0 | FY188: 0 | FZ188: 0 | GA188: 0 | GB188: 0 | GC188: 0 | GD188: 0 | GE188: 0 | GF188: 0 | GG188: 0 | GH188: 0 | GI188: 0 | GJ188: 0 | GK188: 0 | GL188: 0 | GM188: 0 | GN188: 0 | GO188: 0 | GP188: 0 | GQ188: 0 | GR188: 0 | GS188: 0 | GT188: 0 | GU188: 0 | GV188: 0 | GW188: 0 | GX188: 0 | GY188: 0 | GZ188: 0 | HA188: 0 | HB188: 0 | HC188: 0 | HD188: 0 | HE188: 0 | HF188: 0 | HG188: 0 | HH188: 0 | HI188: 0 | HJ188: 0 | HK188: 0 | HL188: 0 | HM188: 0 | HN188: 0 | HO188: 0 | HP188: 0 | HQ188: 0 | HR188: 0 | HS188: 0 | HT188: 0 | HU188: 0 | HV188: 0 | HW188: 0
A189: T | B189: 4 | C189: 2 | D189: 1 | E189: 1 | F189: 6 | G189: 5 | H189: 1 | I189: 1 | J189: 0 | K189: 0 | L189: 0 | M189: 0 | N189: 0 | O189: 0 | P189: 0 | Q189: 0 | R189: 0 | S189: 0 | T189: 0 | U189: 0 | V189: 0 | W189: 0 | X189: 0 | Y189: 0 | Z189: 0 | AA189: 0 | AB189: 0 | AC189: 0 | AD189: 0 | AE189: 0 | AF189: 0 | AG189: 0 | AH189: 0 | AI189: 0 | AJ189: 0 | AK189: 0 | AL189: 0 | AM189: 0 | AN189: 0 | AO189: 0 | AP189: 0 | AQ189: 0 | AR189: 0 | AS189: 0 | AT189: 2 | AU189: 1 | AV189: 0 | AW189: 0 | AX189: 3 | AY189: 1 | AZ189: 3 | BA189: 1 | BB189: 0 | BC189: 0 | BD189: 0 | BE189: 0 | BF189: 0 | BG189: 0 | BH189: 0 | BI189: 0 | BJ189: 46 | BK189: 0 | BL189: 2093 | BM189: 0 | BN189: 0 | BO189: 0 | BP189: 0 | BQ189: 1151 | BR189: 0 | BS189: 0 | BT189: 305 | BU189: 0 | BV189: 0 | BW189: 0 | BX189: 0 | BY189: 0 | BZ189: 0 | CA189: 0 | CB189: 61 | CC189: 0 | CD189: 0 | CE189: 0 | CF189: 0 | CG189: 0 | CH189: 0 | CI189: 0 | CJ189: 0 | CK189: 1425 | CL189: 1 | CM189: 2 | CN189: 0 | CO189: 379 | CP189: 0 | CQ189: 1 | CR189: 0 | CS189: 3 | CT189: 0 | CU189: 0 | CV189: 0 | CW189: 0 | CX189: 0 | CY189: 1 | CZ189: 1 | DA189: 0 | DB189: 0 | DC189: 0 | DD189: 0 | DE189: 0 | DF189: 0 | DG189: 0 | DH189: 0 | DI189: 1 | DJ189: 0 | DK189: 0 | DL189: 0 | DM189: 0 | DN189: 0 | DO189: 0 | DP189: 0 | DQ189: 0 | DR189: 0 | DS189: 0 | DT189: 0 | DU189: 1 | DV189: 0 | DW189: 0 | DX189: 0 | DY189: 0 | DZ189: 0 | EA189: 0 | EB189: 0 | EC189: 0 | ED189: 0 | EE189: 0 | EF189: 0 | EG189: 0 | EH189: 0 | EI189: 0 | EJ189: 0 | EK189: 0 | EL189: 0 | EM189: 0 | EN189: 0 | EO189: 0 | EP189: 0 | EQ189: 0 | ER189: 0 | ES189: 0 | ET189: 0 | EU189: 0 | EV189: 0 | EW189: 0 | EX189: 0 | EY189: 0 | EZ189: 0 | FA189: 0 | FB189: 0 | FC189: 0 | FD189: 0 | FE189: 0 | FF189: 0 | FG189: 0 | FH189: 0 | FI189: 0 | FJ189: 0 | FK189: 0 | FL189: 0 | FM189: 0 | FN189: 0 | FO189: 0 | FP189: 0 | FQ189: 0 | FR189: 0 | FS189: 0 | FT189: 0 | FU189: 0 | FV189: 0 | FW189: 0 | FX189: 0 | FY189: 0 | FZ189: 0 | GA189: 0 | GB189: 0 | GC189: 0 | GD189: 0 | GE189: 0 | GF189: 0 | GG189: 0 | GH189: 0 | GI189: 0 | GJ189: 0 | GK189: 0 | GL189: 0 | GM189: 0 | GN189: 0 | GO189: 0 | GP189: 0 | GQ189: 0 | GR189: 0 | GS189: 0 | GT189: 0 | GU189: 0 | GV189: 0 | GW189: 0 | GX189: 0 | GY189: 0 | GZ189: 0 | HA189: 0 | HB189: 0 | HC189: 0 | HD189: 0 | HE189: 1 | HF189: 0 | HG189: 1 | HH189: 0 | HI189: 0 | HJ189: 0 | HK189: 0 | HL189: 0 | HM189: 0 | HN189: 0 | HO189: 0 | HP189: 0 | HQ189: 0 | HR189: 0 | HS189: 0 | HT189: 0 | HU189: 0 | HV189: 0 | HW189: 0
A196: TOTAL
A197: =COUNT(A178:A194) -> 11 | B197: =SUM(B178:B194) -> 8 | C197: =SUM(C178:C194) -> 4 | D197: 2 | E197: 2 | F197: 12 | G197: 10 | H197: 2 | I197: 2 | J197: 0 | K197: 0 | L197: 0 | M197: 0 | N197: 0 | O197: 0 | P197: 0 | Q197: 0 | R197: 0 | S197: 0 | T197: 0 | U197: 0 | V197: 0 | W197: 0 | X197: 0 | Y197: 0 | Z197: 0 | AA197: 0 | AB197: 0 | AC197: 0 | AD197: 0 | AE197: 0 | AF197: 0 | AG197: 0 | AH197: 0 | AI197: 0 | AJ197: 0 | AK197: 0 | AL197: 0 | AM197: 0 | AN197: 0 | AO197: 0 | AP197: 0 | AQ197: 0 | AR197: 0 | AS197: 0 | AT197: 4 | AU197: 2 | AV197: 0 | AW197: 0 | AX197: 6 | AY197: 2 | AZ197: 6 | BA197: 2 | BB197: 0 | BC197: 0 | BD197: 0 | BE197: 0 | BF197: 0 | BG197: 0 | BH197: 0 | BI197: 0 | BJ197: 92 | BK197: 0 | BL197: 4186 | BM197: 0 | BN197: 0 | BO197: =SUM(BO178:BO194) -> 0 | BP197: 0 | BQ197: 2302 | BR197: 0 | BS197: 0 | BT197: 610 | BU197: 0 | BV197: 0 | BW197: 0 | BX197: 0 | BY197: 0 | BZ197: 0 | CA197: 0 | CB197: 122 | CC197: 0 | CD197: 0 | CE197: 0 | CF197: 0 | CG197: 0 | CH197: 0 | CI197: 0 | CJ197: 0 | CK197: 2850 | CL197: 2 | CM197: 4 | CN197: 0 | CO197: 758 | CP197: 0 | CQ197: 2 | CR197: 0 | CS197: 6 | CT197: 0 | CU197: 0 | CV197: 0 | CW197: 0 | CX197: 0 | CY197: 2 | CZ197: 2 | DA197: 0 | DB197: 0 | DC197: 0 | DD197: 0 | DE197: 0 | DF197: 0 | DG197: 0 | DH197: 0 | DI197: 2 | DJ197: 0 | DK197: 0 | DL197: 0 | DM197: 0 | DN197: 0 | DO197: 0 | DP197: 0 | DQ197: 0 | DR197: 0 | DS197: 0 | DT197: 0 | DU197: 2 | DV197: 0 | DW197: 0 | DX197: 0 | DY197: 0 | DZ197: 0 | EA197: =SUM(EA178:EA194) -> 0 | EB197: 0 | EC197: 0 | ED197: 0 | EE197: 0 | EF197: 0 | EG197: 0 | EH197: 0 | EI197: 0 | EJ197: 0 | EK197: 0 | EL197: 0 | EM197: 0 | EN197: 0 | EO197: 0 | EP197: 0 | EQ197: 0 | ER197: 0 | ES197: 0 | ET197: 0 | EU197: 0 | EV197: 0 | EW197: 0 | EX197: 0 | EY197: 0 | EZ197: 0 | FA197: 0 | FB197: 0 | FC197: 0 | FD197: 0 | FE197: 0 | FF197: 0 | FG197: 0 | FH197: 0 | FI197: 0 | FJ197: 0 | FK197: 0 | FL197: 0 | FM197: 0 | FN197: 0 | FO197: 0 | FP197: 0 | FQ197: 0 | FR197: 0 | FS197: 0 | FT197: 0 | FU197: 0 | FV197: 0 | FW197: 0 | FX197: 0 | FY197: 0 | FZ197: 0 | GA197: 0 | GB197: 0 | GC197: 0 | GD197: 0 | GE197: 0 | GF197: 0 | GG197: 0 | GH197: 0 | GI197: 0 | GJ197: 0 | GK197: 0 | GL197: 0 | GM197: =SUM(GM178:GM194) -> 0 | GN197: 0 | GO197: 0 | GP197: 0 | GQ197: 0 | GR197: 0 | GS197: 0 | GT197: 0 | GU197: 0 | GV197: 0 | GW197: 0 | GX197: 0 | GY197: 0 | GZ197: 0 | HA197: 0 | HB197: 0 | HC197: 0 | HD197: 0 | HE197: 2 | HF197: 0 | HG197: 2 | HH197: 0 | HI197: 0 | HJ197: 0 | HK197: 0 | HL197: 0 | HM197: 0 | HN197: 0 | HO197: =SUM(HO178:HO194) -> 0 | HP197: 0 | HQ197: 0 | HR197: 0 | HS197: 0 | HT197: 0 | HU197: 0 | HV197: 0 | HW197: 0
A198: =CONCATENATE(A178,"-",A179,"-",A180,"-",A181,"-",A182,"-",A183,"-",A184,"-",A185,"-",A186,"-",A187,"-",A188,"-",A189) -> 8-7-6-3-1-5-2-4-9-10-11-T
B199: BAS001 | C199: BAS002 | D199: BAS003 | E199: BAS004 | F199: BAS005 | G199: BAS006 | H199: BAS007 | I199: BAS008 | J199: BAS009 | K199: BAS010 | L199: BAS011 | M199: BAS012 | N199: BAS013 | O199: BAS014 | P199: BAS015 | Q199: BAS016 | R199: BAS017 | S199: BAS018 | T199: BAS019 | U199: BAS020 | V199: BAS021 | W199: BAS022 | X199: BAS023 | Y199: BAS024 | Z199: BAS025 | AA199: BAS026 | AB199: BAS027 | AC199: BAS028 | AD199: BAS029 | AE199: BAS030 | AF199: BAS031 | AG199: BAS032 | AH199: BAS033 | AI199: BAS034 | AJ199: BAS035 | AK199: BAS036 | AL199: BAS037 | AM199: BAS038 | AN199: BAS039 | AO199: BAS040 | AP199: BAS041 | AQ199: BAS042 | AR199: BAS043 | AS199: BAS044 | AT199: BAS045 | AU199: BAS046 | AV199: BAS047 | AW199: BAS048 | AX199: BAS049 | AY199: BAS050 | AZ199: BAS051 | BA199: BAS052 | BB199: BAS053 | BC199: BAS054 | BD199: BAS055 | BE199: BAS056 | BF199: BAS057 | BG199: BAS058 | BH199: BAS059 | BI199: BAS060 | BJ199: BAS061 | BK199: BAS062 | BL199: BAS063 | BM199: BAS064 | BN199: BAS065 | BO199: BAS066 | BP199: BAS067 | BQ199: BAS068 | BR199: BAS069 | BS199: BAS070 | BT199: BAS071 | BU199: BAS072 | BV199: BAS073 | BW199: BAS074 | BX199: BAS075 | BY199: BAS076 | BZ199: BAS077 | CA199: BAS078 | CB199: BAS079 | CC199: BAS080 | CD199: BAS081 | CE199: BAS082 | CF199: BAS083 | CG199: BAS084 | CH199: BAS085 | CI199: BAS086 | CJ199: BAS087 | CK199: BAS088 | CL199: BAS089 | CM199: BAS090 | CN199: BAS091 | CO199: BAS092 | CP199: BAS093 | CQ199: BAS094 | CR199: BAS095 | CS199: BAS096 | CT199: BAS097 | CU199: BAS098 | CV199: BAS099 | CW199: BAS100 | CX199: BAS101 | CY199: BAS102 | CZ199: BAS103 | DA199: BAS104 | DB199: BAS105 | DC199: BAS106 | DD199: BAS107 | DE199: BAS108 | DF199: BAS109 | DG199: BAS110 | DH199: BAS111 | DI199: BAS112 | DJ199: BAS113 | DK199: BAS114 | DL199: BAS115 | DM199: BAS116 | DN199: BAS117 | DO199: BAS118 | DP199: BAS119 | DQ199: BAS120 | DR199: BAS121 | DS199: BAS122 | DT199: BAS123 | DU199: BAS124 | DV199: BAS125 | DW199: BAS126 | DX199: BAS127 | DY199: BAS128 | DZ199: BAS129 | EA199: BAS130 | EB199: BAS131 | EC199: BAS132 | ED199: BAS133 | EE199: BAS134 | EF199: BAS135 | EG199: BAS136 | EH199: BAS137 | EI199: BAS138 | EJ199: BAS139 | EK199: BAS140 | EL199: BAS141 | EM199: BAS142 | EN199: BAS143 | EO199: BAS144 | EP199: BAS145 | EQ199: BAS146 | ER199: BAS147 | ES199: BAS148 | ET199: BAS149 | EU199: BAS150 | EV199: BAS151 | EW199: BAS152 | EX199: BAS153 | EY199: BAS154 | EZ199: BAS155 | FA199: BAS156 | FB199: BAS157 | FC199: BAS158 | FD199: BAS159 | FE199: BAS160 | FF199: BAS161 | FG199: BAS162 | FH199: BAS163 | FI199: BAS164 | FJ199: BAS165 | FK199: BAS166 | FL199: BAS167 | FM199: BAS168 | FN199: BAS169 | FO199: BAS170 | FP199: BAS171 | FQ199: BAS172 | FR199: BAS173 | FS199: BAS174 | FT199: BAS175 | FU199: BAS176 | FV199: BAS177 | FW199: BAS178 | FX199: BAS179 | FY199: BAS180 | FZ199: BAS181 | GA199: BAS182 | GB199: BAS183 | GC199: BAS184 | GD199: BAS185 | GE199: BAS186 | GF199: BAS187 | GG199: BAS188 | GH199: BAS189 | GI199: BAS190 | GJ199: BAS191 | GK199: BAS192 | GL199: BAS193 | GM199: BAS194 | GN199: BAS195 | GO199: BAS196 | GP199: BAS197 | GQ199: BAS198 | GR199: BAS199 | GS199: BAS200 | GT199: BAS201 | GU199: BAS202 | GV199: BAS203 | GW199: BAS204 | GX199: BAS205 | GY199: BAS206 | GZ199: BAS207 | HA199: BAS208 | HB199: BAS209 | HC199: BAS210 | HD199: BAS211 | HE199: BAS212 | HF199: BAS213 | HG199: BAS214 | HH199: BAS215 | HI199: BAS216 | HJ199: BAS217 | HK199: BAS218 | HL199: BAS219 | HM199: BAS220 | HN199: BAS221 | HO199: BAS222 | HP199: BAS223 | HQ199: BAS224 | HR199: BAS225 | HS199: BAS226 | HT199: BAS227 | HU199: BAS228 | HV199: BAS229 | HW199: BAS230
B200: =IF(B199=B177,"SI","NO") -> SI | C200: =IF(C199=C177,"SI","NO") -> SI | D200: SI | E200: SI | F200: SI | G200: SI | H200: SI | I200: SI | J200: SI | K200: SI | L200: SI | M200: SI | N200: SI | O200: SI | P200: SI | Q200: SI | R200: SI | S200: SI | T200: SI | U200: SI | V200: SI | W200: SI | X200: SI | Y200: SI | Z200: SI | AA200: SI | AB200: SI | AC200: SI | AD200: SI | AE200: SI | AF200: SI | AG200: SI | AH200: SI | AI200: SI | AJ200: SI | AK200: SI | AL200: SI | AM200: SI | AN200: SI | AO200: SI | AP200: SI | AQ200: SI | AR200: SI | AS200: SI | AT200: SI | AU200: SI | AV200: SI | AW200: SI | AX200: SI | AY200: SI | AZ200: SI | BA200: SI | BB200: SI | BC200: SI | BD200: SI | BE200: SI | BF200: SI | BG200: SI | BH200: SI | BI200: SI | BJ200: SI | BK200: SI | BL200: SI | BM200: SI | BN200: SI | BO200: =IF(BO199=BO177,"SI","NO") -> SI | BP200: SI | BQ200: SI | BR200: SI | BS200: SI | BT200: SI | BU200: SI | BV200: SI | BW200: SI | BX200: SI | BY200: SI | BZ200: SI | CA200: SI | CB200: SI | CC200: SI | CD200: SI | CE200: SI | CF200: SI | CG200: SI | CH200: SI | CI200: SI | CJ200: SI | CK200: SI | CL200: SI | CM200: SI | CN200: SI | CO200: SI | CP200: SI | CQ200: SI | CR200: SI | CS200: SI | CT200: SI | CU200: SI | CV200: SI | CW200: SI | CX200: SI | CY200: SI | CZ200: SI | DA200: SI | DB200: SI | DC200: SI | DD200: SI | DE200: SI | DF200: SI | DG200: SI | DH200: SI | DI200: SI | DJ200: SI | DK200: SI | DL200: SI | DM200: SI | DN200: SI | DO200: SI | DP200: SI | DQ200: SI | DR200: SI | DS200: SI | DT200: SI | DU200: SI | DV200: SI | DW200: SI | DX200: SI | DY200: SI | DZ200: SI | EA200: =IF(EA199=EA177,"SI","NO") -> SI | EB200: SI | EC200: SI | ED200: SI | EE200: SI | EF200: SI | EG200: SI | EH200: SI | EI200: SI | EJ200: SI | EK200: SI | EL200: SI | EM200: SI | EN200: SI | EO200: SI | EP200: SI | EQ200: SI | ER200: SI | ES200: SI | ET200: SI | EU200: SI | EV200: SI | EW200: SI | EX200: SI | EY200: SI | EZ200: SI | FA200: SI | FB200: SI | FC200: SI | FD200: SI | FE200: SI | FF200: SI | FG200: SI | FH200: SI | FI200: SI | FJ200: SI | FK200: SI | FL200: SI | FM200: SI | FN200: SI | FO200: SI | FP200: SI | FQ200: SI | FR200: SI | FS200: SI | FT200: SI | FU200: SI | FV200: SI | FW200: SI | FX200: SI | FY200: SI | FZ200: SI | GA200: SI | GB200: SI | GC200: SI | GD200: SI | GE200: SI | GF200: SI | GG200: SI | GH200: SI | GI200: SI | GJ200: SI | GK200: SI | GL200: SI | GM200: =IF(GM199=GM177,"SI","NO") -> SI | GN200: SI | GO200: SI | GP200: SI | GQ200: SI | GR200: SI | GS200: SI | GT200: SI | GU200: SI | GV200: SI | GW200: SI | GX200: SI | GY200: SI | GZ200: SI | HA200: SI | HB200: SI | HC200: SI | HD200: SI | HE200: SI | HF200: SI | HG200: SI | HH200: SI | HI200: SI | HJ200: SI | HK200: SI | HL200: SI | HM200: SI | HN200: SI | HO200: =IF(HO199=HO177,"SI","NO") -> SI | HP200: SI | HQ200: SI | HR200: SI | HS200: SI | HT200: SI | HU200: SI | HV200: SI | HW200: SI
A202: ITSVIH1829F
A203: anno | B203: 2024
A204: cod_red | B204: 03
A205: codmic | B205: (Todas)
A206: cod_prov | B206: (Todas)
A207: coddist | B207: (Todas)
A208: cod_estab | B208: (Todas)
A209: cod_eje | B209: (Todas)
B211: Valores
A212: Etiquetas de fila | B212: BAS001 | C212: BAS002 | D212: BAS003 | E212: BAS004 | F212: BAS005 | G212: BAS006 | H212: BAS007 | I212: BAS008 | J212: BAS009 | K212: BAS010 | L212: BAS011 | M212: BAS012 | N212: BAS013 | O212: BAS014 | P212: BAS015 | Q212: BAS016 | R212: BAS017 | S212: BAS018 | T212: BAS019 | U212: BAS020 | V212: BAS021 | W212: BAS022 | X212: BAS023 | Y212: BAS024 | Z212: BAS025 | AA212: BAS026 | AB212: BAS027 | AC212: BAS028 | AD212: BAS029 | AE212: BAS030 | AF212: BAS031 | AG212: BAS032 | AH212: BAS033 | AI212: BAS034 | AJ212: BAS035 | AK212: BAS036 | AL212: BAS037 | AM212: BAS038 | AN212: BAS039 | AO212: BAS040 | AP212: BAS041 | AQ212: BAS042 | AR212: BAS043 | AS212: BAS044 | AT212: BAS045 | AU212: BAS046 | AV212: BAS047 | AW212: BAS048 | AX212: BAS049 | AY212: BAS050 | AZ212: BAS051 | BA212: BAS052 | BB212: BAS053 | BC212: BAS054 | BD212: BAS055 | BE212: BAS056 | BF212: BAS057 | BG212: BAS058 | BH212: BAS059 | BI212: BAS060 | BJ212: BAS061 | BK212: BAS062 | BL212: BAS063 | BM212: BAS064 | BN212: BAS065 | BO212: BAS066 | BP212: BAS067 | BQ212: BAS068 | BR212: BAS069 | BS212: BAS070 | BT212: BAS071 | BU212: BAS072 | BV212: BAS073 | BW212: BAS074 | BX212: BAS075 | BY212: BAS076 | BZ212: BAS077 | CA212: BAS078 | CB212: BAS079 | CC212: BAS080 | CD212: BAS081 | CE212: BAS082 | CF212: BAS083 | CG212: BAS084 | CH212: BAS085 | CI212: BAS086 | CJ212: BAS087 | CK212: BAS088 | CL212: BAS089 | CM212: BAS090 | CN212: BAS091 | CO212: BAS092 | CP212: BAS093 | CQ212: BAS094 | CR212: BAS095 | CS212: BAS096 | CT212: BAS097 | CU212: BAS098 | CV212: BAS099 | CW212: BAS100 | CX212: BAS101 | CY212: BAS102 | CZ212: BAS103 | DA212: BAS104 | DB212: BAS105 | DC212: BAS106 | DD212: BAS107 | DE212: BAS108 | DF212: BAS109 | DG212: BAS110 | DH212: BAS111 | DI212: BAS112 | DJ212: BAS113 | DK212: BAS114 | DL212: BAS115 | DM212: BAS116 | DN212: BAS117 | DO212: BAS118 | DP212: BAS119 | DQ212: BAS120 | DR212: BAS121 | DS212: BAS122 | DT212: BAS123 | DU212: BAS124 | DV212: BAS125 | DW212: BAS126 | DX212: BAS127 | DY212: BAS128 | DZ212: BAS129 | EA212: BAS130 | EB212: BAS131 | EC212: BAS132 | ED212: BAS133 | EE212: BAS134 | EF212: BAS135 | EG212: BAS136 | EH212: BAS137 | EI212: BAS138 | EJ212: BAS139 | EK212: BAS140 | EL212: BAS141 | EM212: BAS142 | EN212: BAS143 | EO212: BAS144 | EP212: BAS145 | EQ212: BAS146 | ER212: BAS147 | ES212: BAS148 | ET212: BAS149 | EU212: BAS150 | EV212: BAS151 | EW212: BAS152 | EX212: BAS153 | EY212: BAS154 | EZ212: BAS155 | FA212: BAS156 | FB212: BAS157 | FC212: BAS158 | FD212: BAS159 | FE212: BAS160 | FF212: BAS161 | FG212: BAS162 | FH212: BAS163 | FI212: BAS164 | FJ212: BAS165 | FK212: BAS166 | FL212: BAS167 | FM212: BAS168 | FN212: BAS169 | FO212: BAS170 | FP212: BAS171 | FQ212: BAS172 | FR212: BAS173 | FS212: BAS174 | FT212: BAS175 | FU212: BAS176 | FV212: BAS177 | FW212: BAS178 | FX212: BAS179 | FY212: BAS180 | FZ212: BAS181 | GA212: BAS182 | GB212: BAS183 | GC212: BAS184 | GD212: BAS185 | GE212: BAS186 | GF212: BAS187 | GG212: BAS188 | GH212: BAS189 | GI212: BAS190 | GJ212: BAS191 | GK212: BAS192 | GL212: BAS193 | GM212: BAS194 | GN212: BAS195 | GO212: BAS196 | GP212: BAS197 | GQ212: BAS198 | GR212: BAS199 | GS212: BAS200 | GT212: BAS201 | GU212: BAS202 | GV212: BAS203 | GW212: BAS204 | GX212: BAS205 | GY212: BAS206 | GZ212: BAS207 | HA212: BAS208 | HB212: BAS209 | HC212: BAS210 | HD212: BAS211 | HE212: BAS212 | HF212: BAS213 | HG212: BAS214 | HH212: BAS215 | HI212: BAS216 | HJ212: BAS217 | HK212: BAS218 | HL212: BAS219 | HM212: BAS220 | HN212: BAS221 | HO212: BAS222 | HP212: BAS223 | HQ212: BAS224 | HR212: BAS225 | HS212: BAS226 | HT212: BAS227 | HU212: BAS228 | HV212: BAS229 | HW212: BAS230
A213: 2 | B213: 64 | C213: 63 | D213: 58 | E213: 58 | F213: 0 | G213: 0 | H213: 0 | I213: 0 | J213: 63 | K213: 63 | L213: 57 | M213: 57 | N213: 0 | O213: 0 | P213: 0 | Q213: 0 | R213: 0 | S213: 0 | T213: 0 | U213: 0 | V213: 1 | W213: 1 | X213: 1 | Y213: 0 | Z213: 0 | AA213: 0 | AB213: 0 | AC213: 0 | AD213: 0 | AE213: 0 | AF213: 0 | AG213: 0 | AH213: 0 | AI213: 0 | AJ213: 0 | AK213: 0 | AL213: 0 | AM213: 0 | AN213: 0 | AO213: 0 | AP213: 1 | AQ213: 1 | AR213: 1 | AS213: 1 | AT213: 0 | AU213: 0 | AV213: 0 | AW213: 0 | AX213: 0 | AY213: 0 | AZ213: 0 | BA213: 0 | BB213: 0 | BC213: 0 | BD213: 0 | BE213: 0 | BF213: 0 | BG213: 0 | BH213: 0 | BI213: 0 | BJ213: 91 | BK213: 0 | BL213: 481 | BM213: 0 | BN213: 0 | BO213: 0 | BP213: 0 | BQ213: 328 | BR213: 1 | BS213: 0 | BT213: 90 | BU213: 1 | BV213: 0 | BW213: 0 | BX213: 0 | BY213: 0 | BZ213: 0 | CA213: 0 | CB213: 4 | CC213: 0 | CD213: 0 | CE213: 0 | CF213: 0 | CG213: 0 | CH213: 0 | CI213: 0 | CJ213: 0 | CK213: 295 | CL213: 0 | CM213: 1 | CN213: 0 | CO213: 62 | CP213: 0 | CQ213: 0 | CR213: 0 | CS213: 0 | CT213: 0 | CU213: 0 | CV213: 0 | CW213: 0 | CX213: 0 | CY213: 0 | CZ213: 0 | DA213: 0 | DB213: 0 | DC213: 0 | DD213: 0 | DE213: 0 | DF213: 0 | DG213: 0 | DH213: 0 | DI213: 0 | DJ213: 0 | DK213: 0 | DL213: 0 | DM213: 0 | DN213: 0 | DO213: 0 | DP213: 0 | DQ213: 0 | DR213: 0 | DS213: 0 | DT213: 0 | DU213: 0 | DV213: 0 | DW213: 0 | DX213: 0 | DY213: 0 | DZ213: 0 | EA213: 0 | EB213: 0 | EC213: 0 | ED213: 0 | EE213: 0 | EF213: 60 | EG213: 42 | EH213: 8 | EI213: 10 | EJ213: 4 | EK213: 0 | EL213: 0 | EM213: 3 | EN213: 3 | EO213: 1 | EP213: 0 | EQ213: 2 | ER213: 63 | ES213: 47 | ET213: 8 | EU213: 8 | EV213: 0 | EW213: 0 | EX213: 0 | EY213: 0 | EZ213: 0 | FA213: 0 | FB213: 0 | FC213: 0 | FD213: 57 | FE213: 42 | FF213: 8 | FG213: 7 | FH213: 0 | FI213: 0 | FJ213: 0 | FK213: 0 | FL213: 1 | FM213: 0 | FN213: 0 | FO213: 1 | FP213: 0 | FQ213: 0 | FR213: 0 | FS213: 0 | FT213: 0 | FU213: 0 | FV213: 0 | FW213: 0 | FX213: 0 | FY213: 0 | FZ213: 0 | GA213: 0 | GB213: 0 | GC213: 0 | GD213: 0 | GE213: 0 | GF213: 0 | GG213: 0 | GH213: 0 | GI213: 0 | GJ213: 0 | GK213: 0 | GL213: 0 | GM213: 0 | GN213: 0 | GO213: 0 | GP213: 0 | GQ213: 0 | GR213: 0 | GS213: 0 | GT213: 0 | GU213: 0 | GV213: 0 | GW213: 0 | GX213: 0 | GY213: 0 | GZ213: 0 | HA213: 0 | HB213: 0 | HC213: 0 | HD213: 0 | HE213: 0 | HF213: 0 | HG213: 0 | HH213: 0 | HI213: 0 | HJ213: 0 | HK213: 0 | HL213: 0 | HM213: 0 | HN213: 0 | HO213: 0 | HP213: 0 | HQ213: 0 | HR213: 0 | HS213: 0 | HT213: 0 | HU213: 0 | HV213: 0 | HW213: 0
A214: 1 | B214: 61 | C214: 60 | D214: 58 | E214: 58 | F214: 0 | G214: 0 | H214: 0 | I214: 0 | J214: 50 | K214: 50 | L214: 46 | M214: 46 | N214: 0 | O214: 0 | P214: 0 | Q214: 0 | R214: 0 | S214: 0 | T214: 0 | U214: 0 | V214: 11 | W214: 11 | X214: 11 | Y214: 0 | Z214: 1 | AA214: 1 | AB214: 1 | AC214: 1 | AD214: 0 | AE214: 0 | AF214: 0 | AG214: 0 | AH214: 0 | AI214: 0 | AJ214: 0 | AK214: 0 | AL214: 0 | AM214: 0 | AN214: 0 | AO214: 0 | AP214: 1 | AQ214: 1 | AR214: 0 | AS214: 0 | AT214: 0 | AU214: 0 | AV214: 0 | AW214: 0 | AX214: 0 | AY214: 0 | AZ214: 0 | BA214: 0 | BB214: 0 | BC214: 0 | BD214: 0 | BE214: 0 | BF214: 0 | BG214: 0 | BH214: 0 | BI214: 0 | BJ214: 9 | BK214: 0 | BL214: 456 | BM214: 0 | BN214: 0 | BO214: 0 | BP214: 0 | BQ214: 329 | BR214: 0 | BS214: 1 | BT214: 91 | BU214: 0 | BV214: 0 | BW214: 13 | BX214: 0 | BY214: 0 | BZ214: 0 | CA214: 0 | CB214: 1 | CC214: 0 | CD214: 0 | CE214: 0 | CF214: 0 | CG214: 0 | CH214: 0 | CI214: 0 | CJ214: 0 | CK214: 291 | CL214: 0 | CM214: 0 | CN214: 0 | CO214: 49 | CP214: 0 | CQ214: 0 | CR214: 0 | CS214: 0 | CT214: 0 | CU214: 0 | CV214: 0 | CW214: 0 | CX214: 0 | CY214: 0 | CZ214: 0 | DA214: 0 | DB214: 0 | DC214: 0 | DD214: 0 | DE214: 0 | DF214: 0 | DG214: 0 | DH214: 0 | DI214: 0 | DJ214: 0 | DK214: 0 | DL214: 0 | DM214: 0 | DN214: 0 | DO214: 0 | DP214: 0 | DQ214: 0 | DR214: 2 | DS214: 1 | DT214: 0 | DU214: 0 | DV214: 0 | DW214: 0 | DX214: 0 | DY214: 0 | DZ214: 0 | EA214: 0 | EB214: 0 | EC214: 0 | ED214: 0 | EE214: 0 | EF214: 67 | EG214: 50 | EH214: 14 | EI214: 3 | EJ214: 0 | EK214: 0 | EL214: 0 | EM214: 0 | EN214: 1 | EO214: 1 | EP214: 0 | EQ214: 0 | ER214: 71 | ES214: 54 | ET214: 14 | EU214: 3 | EV214: 1 | EW214: 1 | EX214: 0 | EY214: 0 | EZ214: 0 | FA214: 0 | FB214: 0 | FC214: 0 | FD214: 65 | FE214: 49 | FF214: 14 | FG214: 2 | FH214: 0 | FI214: 0 | FJ214: 0 | FK214: 0 | FL214: 0 | FM214: 0 | FN214: 0 | FO214: 0 | FP214: 0 | FQ214: 0 | FR214: 0 | FS214: 0 | FT214: 0 | FU214: 0 | FV214: 0 | FW214: 0 | FX214: 0 | FY214: 0 | FZ214: 0 | GA214: 0 | GB214: 0 | GC214: 0 | GD214: 0 | GE214: 0 | GF214: 0 | GG214: 0 | GH214: 0 | GI214: 0 | GJ214: 0 | GK214: 0 | GL214: 0 | GM214: 0 | GN214: 0 | GO214: 0 | GP214: 0 | GQ214: 0 | GR214: 0 | GS214: 0 | GT214: 0 | GU214: 0 | GV214: 0 | GW214: 0 | GX214: 0 | GY214: 0 | GZ214: 0 | HA214: 0 | HB214: 0 | HC214: 0 | HD214: 0 | HE214: 0 | HF214: 0 | HG214: 0 | HH214: 0 | HI214: 0 | HJ214: 0 | HK214: 0 | HL214: 0 | HM214: 0 | HN214: 0 | HO214: 0 | HP214: 0 | HQ214: 0 | HR214: 0 | HS214: 0 | HT214: 0 | HU214: 0 | HV214: 0 | HW214: 0
A215: 3 | B215: 59 | C215: 57 | D215: 56 | E215: 56 | F215: 0 | G215: 0 | H215: 0 | I215: 0 | J215: 53 | K215: 53 | L215: 48 | M215: 48 | N215: 0 | O215: 0 | P215: 0 | Q215: 0 | R215: 0 | S215: 0 | T215: 0 | U215: 0 | V215: 8 | W215: 8 | X215: 8 | Y215: 0 | Z215: 0 | AA215: 0 | AB215: 0 | AC215: 0 | AD215: 0 | AE215: 0 | AF215: 0 | AG215: 0 | AH215: 0 | AI215: 0 | AJ215: 0 | AK215: 0 | AL215: 0 | AM215: 0 | AN215: 0 | AO215: 0 | AP215: 0 | AQ215: 0 | AR215: 0 | AS215: 0 | AT215: 0 | AU215: 0 | AV215: 0 | AW215: 0 | AX215: 1 | AY215: 1 | AZ215: 1 | BA215: 1 | BB215: 0 | BC215: 0 | BD215: 0 | BE215: 0 | BF215: 0 | BG215: 0 | BH215: 0 | BI215: 0 | BJ215: 106 | BK215: 1 | BL215: 507 | BM215: 0 | BN215: 0 | BO215: 0 | BP215: 0 | BQ215: 356 | BR215: 0 | BS215: 0 | BT215: 102 | BU215: 0 | BV215: 0 | BW215: 0 | BX215: 0 | BY215: 0 | BZ215: 0 | CA215: 0 | CB215: 20 | CC215: 0 | CD215: 0 | CE215: 0 | CF215: 0 | CG215: 0 | CH215: 0 | CI215: 0 | CJ215: 0 | CK215: 348 | CL215: 0 | CM215: 0 | CN215: 0 | CO215: 68 | CP215: 0 | CQ215: 0 | CR215: 0 | CS215: 0 | CT215: 0 | CU215: 0 | CV215: 0 | CW215: 0 | CX215: 0 | CY215: 1 | CZ215: 1 | DA215: 0 | DB215: 0 | DC215: 0 | DD215: 0 | DE215: 0 | DF215: 0 | DG215: 0 | DH215: 0 | DI215: 1 | DJ215: 0 | DK215: 0 | DL215: 0 | DM215: 0 | DN215: 0 | DO215: 0 | DP215: 0 | DQ215: 0 | DR215: 0 | DS215: 0 | DT215: 0 | DU215: 0 | DV215: 0 | DW215: 0 | DX215: 0 | DY215: 0 | DZ215: 0 | EA215: 0 | EB215: 0 | EC215: 0 | ED215: 0 | EE215: 0 | EF215: 83 | EG215: 53 | EH215: 21 | EI215: 9 | EJ215: 2 | EK215: 0 | EL215: 2 | EM215: 0 | EN215: 0 | EO215: 0 | EP215: 0 | EQ215: 0 | ER215: 83 | ES215: 55 | ET215: 19 | EU215: 9 | EV215: 0 | EW215: 0 | EX215: 0 | EY215: 0 | EZ215: 0 | FA215: 0 | FB215: 0 | FC215: 0 | FD215: 82 | FE215: 53 | FF215: 20 | FG215: 9 | FH215: 1 | FI215: 0 | FJ215: 0 | FK215: 1 | FL215: 0 | FM215: 0 | FN215: 0 | FO215: 0 | FP215: 0 | FQ215: 0 | FR215: 0 | FS215: 0 | FT215: 0 | FU215: 0 | FV215: 0 | FW215: 0 | FX215: 0 | FY215: 0 | FZ215: 0 | GA215: 0 | GB215: 0 | GC215: 0 | GD215: 0 | GE215: 0 | GF215: 0 | GG215: 0 | GH215: 0 | GI215: 0 | GJ215: 0 | GK215: 0 | GL215: 0 | GM215: 0 | GN215: 0 | GO215: 0 | GP215: 0 | GQ215: 0 | GR215: 0 | GS215: 0 | GT215: 0 | GU215: 0 | GV215: 0 | GW215: 0 | GX215: 0 | GY215: 0 | GZ215: 0 | HA215: 0 | HB215: 0 | HC215: 0 | HD215: 0 | HE215: 0 | HF215: 0 | HG215: 0 | HH215: 0 | HI215: 0 | HJ215: 0 | HK215: 0 | HL215: 0 | HM215: 0 | HN215: 0 | HO215: 0 | HP215: 0 | HQ215: 0 | HR215: 0 | HS215: 0 | HT215: 0 | HU215: 0 | HV215: 0 | HW215: 0
A216: 5 | B216: 64 | C216: 64 | D216: 54 | E216: 54 | F216: 0 | G216: 0 | H216: 0 | I216: 0 | J216: 60 | K216: 60 | L216: 50 | M216: 50 | N216: 0 | O216: 0 | P216: 0 | Q216: 0 | R216: 0 | S216: 0 | T216: 0 | U216: 0 | V216: 6 | W216: 6 | X216: 6 | Y216: 0 | Z216: 0 | AA216: 0 | AB216: 0 | AC216: 0 | AD216: 0 | AE216: 0 | AF216: 0 | AG216: 0 | AH216: 0 | AI216: 0 | AJ216: 0 | AK216: 0 | AL216: 0 | AM216: 0 | AN216: 0 | AO216: 0 | AP216: 0 | AQ216: 0 | AR216: 1 | AS216: 1 | AT216: 1 | AU216: 0 | AV216: 0 | AW216: 0 | AX216: 10 | AY216: 1 | AZ216: 9 | BA216: 1 | BB216: 0 | BC216: 0 | BD216: 0 | BE216: 0 | BF216: 0 | BG216: 0 | BH216: 0 | BI216: 0 | BJ216: 15 | BK216: 7 | BL216: 623 | BM216: 0 | BN216: 0 | BO216: 0 | BP216: 0 | BQ216: 459 | BR216: 0 | BS216: 0 | BT216: 108 | BU216: 2 | BV216: 0 | BW216: 0 | BX216: 0 | BY216: 0 | BZ216: 0 | CA216: 0 | CB216: 93 | CC216: 0 | CD216: 0 | CE216: 0 | CF216: 0 | CG216: 0 | CH216: 0 | CI216: 0 | CJ216: 0 | CK216: 458 | CL216: 0 | CM216: 0 | CN216: 0 | CO216: 56 | CP216: 0 | CQ216: 1 | CR216: 0 | CS216: 0 | CT216: 0 | CU216: 0 | CV216: 0 | CW216: 0 | CX216: 0 | CY216: 0 | CZ216: 0 | DA216: 0 | DB216: 0 | DC216: 0 | DD216: 0 | DE216: 0 | DF216: 0 | DG216: 0 | DH216: 0 | DI216: 0 | DJ216: 0 | DK216: 0 | DL216: 0 | DM216: 0 | DN216: 0 | DO216: 0 | DP216: 0 | DQ216: 0 | DR216: 0 | DS216: 0 | DT216: 0 | DU216: 0 | DV216: 0 | DW216: 0 | DX216: 0 | DY216: 0 | DZ216: 0 | EA216: 0 | EB216: 0 | EC216: 0 | ED216: 0 | EE216: 0 | EF216: 77 | EG216: 59 | EH216: 8 | EI216: 11 | EJ216: 3 | EK216: 2 | EL216: 0 | EM216: 1 | EN216: 0 | EO216: 0 | EP216: 0 | EQ216: 0 | ER216: 72 | ES216: 54 | ET216: 8 | EU216: 11 | EV216: 0 | EW216: 0 | EX216: 0 | EY216: 0 | EZ216: 0 | FA216: 0 | FB216: 0 | FC216: 0 | FD216: 76 | FE216: 58 | FF216: 8 | FG216: 11 | FH216: 0 | FI216: 0 | FJ216: 0 | FK216: 0 | FL216: 0 | FM216: 0 | FN216: 0 | FO216: 0 | FP216: 0 | FQ216: 0 | FR216: 0 | FS216: 0 | FT216: 0 | FU216: 0 | FV216: 0 | FW216: 0 | FX216: 0 | FY216: 0 | FZ216: 0 | GA216: 0 | GB216: 0 | GC216: 0 | GD216: 0 | GE216: 0 | GF216: 0 | GG216: 0 | GH216: 0 | GI216: 0 | GJ216: 0 | GK216: 0 | GL216: 0 | GM216: 0 | GN216: 0 | GO216: 0 | GP216: 0 | GQ216: 0 | GR216: 0 | GS216: 0 | GT216: 0 | GU216: 0 | GV216: 0 | GW216: 0 | GX216: 0 | GY216: 0 | GZ216: 0 | HA216: 0 | HB216: 0 | HC216: 0 | HD216: 0 | HE216: 0 | HF216: 0 | HG216: 0 | HH216: 0 | HI216: 0 | HJ216: 0 | HK216: 0 | HL216: 0 | HM216: 0 | HN216: 0 | HO216: 0 | HP216: 0 | HQ216: 0 | HR216: 0 | HS216: 0 | HT216: 0 | HU216: 0 | HV216: 0 | HW216: 0
A217: 4 | B217: 74 | C217: 71 | D217: 67 | E217: 67 | F217: 0 | G217: 0 | H217: 0 | I217: 0 | J217: 65 | K217: 65 | L217: 58 | M217: 58 | N217: 0 | O217: 0 | P217: 0 | Q217: 0 | R217: 3 | S217: 3 | T217: 0 | U217: 3 | V217: 9 | W217: 9 | X217: 9 | Y217: 0 | Z217: 0 | AA217: 0 | AB217: 0 | AC217: 0 | AD217: 0 | AE217: 0 | AF217: 0 | AG217: 0 | AH217: 0 | AI217: 0 | AJ217: 0 | AK217: 0 | AL217: 0 | AM217: 0 | AN217: 0 | AO217: 0 | AP217: 1 | AQ217: 1 | AR217: 1 | AS217: 1 | AT217: 0 | AU217: 0 | AV217: 0 | AW217: 0 | AX217: 1 | AY217: 0 | AZ217: 1 | BA217: 0 | BB217: 0 | BC217: 0 | BD217: 0 | BE217: 0 | BF217: 0 | BG217: 0 | BH217: 0 | BI217: 0 | BJ217: 8 | BK217: 1 | BL217: 525 | BM217: 0 | BN217: 0 | BO217: 0 | BP217: 0 | BQ217: 389 | BR217: 0 | BS217: 0 | BT217: 84 | BU217: 0 | BV217: 0 | BW217: 0 | BX217: 7 | BY217: 0 | BZ217: 0 | CA217: 0 | CB217: 24 | CC217: 0 | CD217: 0 | CE217: 0 | CF217: 0 | CG217: 0 | CH217: 0 | CI217: 0 | CJ217: 0 | CK217: 352 | CL217: 0 | CM217: 0 | CN217: 0 | CO217: 39 | CP217: 0 | CQ217: 0 | CR217: 0 | CS217: 0 | CT217: 0 | CU217: 0 | CV217: 0 | CW217: 0 | CX217: 0 | CY217: 1 | CZ217: 1 | DA217: 0 | DB217: 0 | DC217: 0 | DD217: 0 | DE217: 0 | DF217: 0 | DG217: 0 | DH217: 0 | DI217: 1 | DJ217: 0 | DK217: 0 | DL217: 0 | DM217: 0 | DN217: 0 | DO217: 0 | DP217: 0 | DQ217: 0 | DR217: 0 | DS217: 2 | DT217: 0 | DU217: 0 | DV217: 0 | DW217: 0 | DX217: 0 | DY217: 0 | DZ217: 0 | EA217: 0 | EB217: 0 | EC217: 0 | ED217: 0 | EE217: 0 | EF217: 88 | EG217: 52 | EH217: 20 | EI217: 16 | EJ217: 3 | EK217: 2 | EL217: 1 | EM217: 0 | EN217: 0 | EO217: 0 | EP217: 0 | EQ217: 0 | ER217: 91 | ES217: 51 | ET217: 23 | EU217: 17 | EV217: 1 | EW217: 0 | EX217: 1 | EY217: 0 | EZ217: 0 | FA217: 0 | FB217: 0 | FC217: 0 | FD217: 87 | FE217: 51 | FF217: 20 | FG217: 16 | FH217: 0 | FI217: 0 | FJ217: 0 | FK217: 0 | FL217: 0 | FM217: 0 | FN217: 0 | FO217: 0 | FP217: 0 | FQ217: 0 | FR217: 0 | FS217: 0 | FT217: 0 | FU217: 0 | FV217: 0 | FW217: 0 | FX217: 0 | FY217: 0 | FZ217: 0 | GA217: 0 | GB217: 0 | GC217: 0 | GD217: 0 | GE217: 0 | GF217: 0 | GG217: 0 | GH217: 0 | GI217: 0 | GJ217: 0 | GK217: 0 | GL217: 0 | GM217: 0 | GN217: 0 | GO217: 0 | GP217: 0 | GQ217: 0 | GR217: 0 | GS217: 0 | GT217: 0 | GU217: 0 | GV217: 0 | GW217: 0 | GX217: 0 | GY217: 0 | GZ217: 0 | HA217: 0 | HB217: 0 | HC217: 0 | HD217: 0 | HE217: 0 | HF217: 0 | HG217: 0 | HH217: 0 | HI217: 0 | HJ217: 0 | HK217: 0 | HL217: 0 | HM217: 0 | HN217: 0 | HO217: 0 | HP217: 0 | HQ217: 0 | HR217: 0 | HS217: 0 | HT217: 0 | HU217: 0 | HV217: 0 | HW217: 0
A218: 6 | B218: 53 | C218: 52 | D218: 51 | E218: 51 | F218: 0 | G218: 0 | H218: 0 | I218: 0 | J218: 53 | K218: 53 | L218: 47 | M218: 47 | N218: 0 | O218: 0 | P218: 0 | Q218: 0 | R218: 0 | S218: 0 | T218: 0 | U218: 0 | V218: 5 | W218: 5 | X218: 4 | Y218: 0 | Z218: 0 | AA218: 0 | AB218: 0 | AC218: 0 | AD218: 0 | AE218: 0 | AF218: 0 | AG218: 0 | AH218: 0 | AI218: 0 | AJ218: 0 | AK218: 0 | AL218: 0 | AM218: 0 | AN218: 0 | AO218: 0 | AP218: 0 | AQ218: 0 | AR218: 0 | AS218: 0 | AT218: 0 | AU218: 0 | AV218: 0 | AW218: 0 | AX218: 0 | AY218: 0 | AZ218: 0 | BA218: 0 | BB218: 0 | BC218: 0 | BD218: 0 | BE218: 0 | BF218: 0 | BG218: 0 | BH218: 0 | BI218: 0 | BJ218: 5 | BK218: 0 | BL218: 543 | BM218: 0 | BN218: 0 | BO218: 0 | BP218: 0 | BQ218: 390 | BR218: 0 | BS218: 0 | BT218: 126 | BU218: 0 | BV218: 0 | BW218: 0 | BX218: 0 | BY218: 0 | BZ218: 0 | CA218: 0 | CB218: 144 | CC218: 0 | CD218: 0 | CE218: 0 | CF218: 0 | CG218: 0 | CH218: 0 | CI218: 0 | CJ218: 0 | CK218: 369 | CL218: 0 | CM218: 0 | CN218: 0 | CO218: 84 | CP218: 0 | CQ218: 0 | CR218: 0 | CS218: 1 | CT218: 0 | CU218: 0 | CV218: 0 | CW218: 0 | CX218: 0 | CY218: 0 | CZ218: 0 | DA218: 0 | DB218: 0 | DC218: 0 | DD218: 0 | DE218: 0 | DF218: 0 | DG218: 0 | DH218: 0 | DI218: 0 | DJ218: 0 | DK218: 0 | DL218: 0 | DM218: 0 | DN218: 0 | DO218: 0 | DP218: 0 | DQ218: 0 | DR218: 0 | DS218: 1 | DT218: 0 | DU218: 0 | DV218: 0 | DW218: 0 | DX218: 0 | DY218: 0 | DZ218: 0 | EA218: 0 | EB218: 0 | EC218: 0 | ED218: 0 | EE218: 0 | EF218: 66 | EG218: 40 | EH218: 19 | EI218: 7 | EJ218: 1 | EK218: 0 | EL218: 0 | EM218: 1 | EN218: 0 | EO218: 0 | EP218: 0 | EQ218: 0 | ER218: 71 | ES218: 44 | ET218: 20 | EU218: 7 | EV218: 0 | EW218: 0 | EX218: 0 | EY218: 0 | EZ218: 0 | FA218: 0 | FB218: 0 | FC218: 0 | FD218: 66 | FE218: 40 | FF218: 19 | FG218: 7 | FH218: 1 | FI218: 1 | FJ218: 0 | FK218: 0 | FL218: 0 | FM218: 0 | FN218: 0 | FO218: 0 | FP218: 0 | FQ218: 0 | FR218: 0 | FS218: 0 | FT218: 0 | FU218: 0 | FV218: 0 | FW218: 0 | FX218: 0 | FY218: 0 | FZ218: 0 | GA218: 0 | GB218: 0 | GC218: 0 | GD218: 0 | GE218: 0 | GF218: 0 | GG218: 0 | GH218: 0 | GI218: 0 | GJ218: 0 | GK218: 0 | GL218: 0 | GM218: 0 | GN218: 0 | GO218: 0 | GP218: 0 | GQ218: 0 | GR218: 0 | GS218: 0 | GT218: 0 | GU218: 0 | GV218: 0 | GW218: 0 | GX218: 0 | GY218: 0 | GZ218: 0 | HA218: 0 | HB218: 0 | HC218: 0 | HD218: 0 | HE218: 0 | HF218: 0 | HG218: 0 | HH218: 0 | HI218: 0 | HJ218: 0 | HK218: 0 | HL218: 0 | HM218: 0 | HN218: 0 | HO218: 0 | HP218: 0 | HQ218: 0 | HR218: 0 | HS218: 0 | HT218: 0 | HU218: 0 | HV218: 0 | HW218: 0
A219: 7 | B219: 60 | C219: 58 | D219: 57 | E219: 57 | F219: 0 | G219: 0 | H219: 0 | I219: 0 | J219: 56 | K219: 56 | L219: 54 | M219: 54 | N219: 0 | O219: 0 | P219: 0 | Q219: 0 | R219: 0 | S219: 0 | T219: 0 | U219: 0 | V219: 4 | W219: 4 | X219: 4 | Y219: 0 | Z219: 0 | AA219: 0 | AB219: 0 | AC219: 0 | AD219: 0 | AE219: 0 | AF219: 0 | AG219: 0 | AH219: 0 | AI219: 0 | AJ219: 0 | AK219: 0 | AL219: 0 | AM219: 0 | AN219: 0 | AO219: 0 | AP219: 1 | AQ219: 0 | AR219: 0 | AS219: 0 | AT219: 0 | AU219: 0 | AV219: 0 | AW219: 0 | AX219: 1 | AY219: 0 | AZ219: 1 | BA219: 0 | BB219: 0 | BC219: 0 | BD219: 0 | BE219: 0 | BF219: 0 | BG219: 0 | BH219: 0 | BI219: 0 | BJ219: 2 | BK219: 0 | BL219: 416 | BM219: 0 | BN219: 0 | BO219: 0 | BP219: 0 | BQ219: 308 | BR219: 1 | BS219: 0 | BT219: 69 | BU219: 0 | BV219: 0 | BW219: 0 | BX219: 0 | BY219: 0 | BZ219: 0 | CA219: 0 | CB219: 90 | CC219: 0 | CD219: 0 | CE219: 0 | CF219: 0 | CG219: 0 | CH219: 0 | CI219: 0 | CJ219: 0 | CK219: 286 | CL219: 0 | CM219: 0 | CN219: 0 | CO219: 31 | CP219: 0 | CQ219: 0 | CR219: 0 | CS219: 3 | CT219: 0 | CU219: 0 | CV219: 0 | CW219: 0 | CX219: 0 | CY219: 5 | CZ219: 4 | DA219: 0 | DB219: 0 | DC219: 0 | DD219: 0 | DE219: 0 | DF219: 0 | DG219: 0 | DH219: 0 | DI219: 4 | DJ219: 0 | DK219: 0 | DL219: 0 | DM219: 0 | DN219: 0 | DO219: 0 | DP219: 0 | DQ219: 0 | DR219: 1 | DS219: 0 | DT219: 0 | DU219: 0 | DV219: 0 | DW219: 0 | DX219: 0 | DY219: 0 | DZ219: 0 | EA219: 0 | EB219: 0 | EC219: 0 | ED219: 0 | EE219: 0 | EF219: 87 | EG219: 52 | EH219: 21 | EI219: 14 | EJ219: 4 | EK219: 1 | EL219: 1 | EM219: 2 | EN219: 1 | EO219: 1 | EP219: 0 | EQ219: 0 | ER219: 91 | ES219: 56 | ET219: 20 | EU219: 15 | EV219: 1 | EW219: 1 | EX219: 0 | EY219: 0 | EZ219: 0 | FA219: 0 | FB219: 0 | FC219: 0 | FD219: 86 | FE219: 52 | FF219: 20 | FG219: 14 | FH219: 1 | FI219: 1 | FJ219: 0 | FK219: 0 | FL219: 0 | FM219: 0 | FN219: 0 | FO219: 0 | FP219: 0 | FQ219: 0 | FR219: 0 | FS219: 0 | FT219: 0 | FU219: 0 | FV219: 0 | FW219: 0 | FX219: 0 | FY219: 0 | FZ219: 0 | GA219: 0 | GB219: 0 | GC219: 0 | GD219: 0 | GE219: 0 | GF219: 0 | GG219: 0 | GH219: 0 | GI219: 0 | GJ219: 0 | GK219: 0 | GL219: 0 | GM219: 0 | GN219: 0 | GO219: 0 | GP219: 0 | GQ219: 0 | GR219: 0 | GS219: 0 | GT219: 0 | GU219: 0 | GV219: 0 | GW219: 0 | GX219: 0 | GY219: 0 | GZ219: 0 | HA219: 0 | HB219: 0 | HC219: 0 | HD219: 0 | HE219: 0 | HF219: 0 | HG219: 0 | HH219: 0 | HI219: 0 | HJ219: 0 | HK219: 0 | HL219: 0 | HM219: 0 | HN219: 0 | HO219: 0 | HP219: 0 | HQ219: 0 | HR219: 0 | HS219: 0 | HT219: 0 | HU219: 0 | HV219: 0 | HW219: 0
A220: 8 | B220: 49 | C220: 47 | D220: 46 | E220: 46 | F220: 0 | G220: 0 | H220: 0 | I220: 0 | J220: 43 | K220: 43 | L220: 42 | M220: 42 | N220: 0 | O220: 0 | P220: 0 | Q220: 0 | R220: 0 | S220: 0 | T220: 0 | U220: 0 | V220: 6 | W220: 6 | X220: 6 | Y220: 0 | Z220: 0 | AA220: 0 | AB220: 0 | AC220: 0 | AD220: 0 | AE220: 0 | AF220: 0 | AG220: 0 | AH220: 0 | AI220: 0 | AJ220: 0 | AK220: 0 | AL220: 0 | AM220: 0 | AN220: 0 | AO220: 0 | AP220: 0 | AQ220: 0 | AR220: 0 | AS220: 0 | AT220: 0 | AU220: 0 | AV220: 0 | AW220: 0 | AX220: 0 | AY220: 0 | AZ220: 0 | BA220: 0 | BB220: 0 | BC220: 0 | BD220: 0 | BE220: 0 | BF220: 0 | BG220: 0 | BH220: 0 | BI220: 0 | BJ220: 5 | BK220: 0 | BL220: 355 | BM220: 0 | BN220: 0 | BO220: 0 | BP220: 0 | BQ220: 228 | BR220: 1 | BS220: 0 | BT220: 99 | BU220: 0 | BV220: 0 | BW220: 0 | BX220: 0 | BY220: 0 | BZ220: 0 | CA220: 0 | CB220: 11 | CC220: 0 | CD220: 0 | CE220: 0 | CF220: 0 | CG220: 0 | CH220: 0 | CI220: 0 | CJ220: 0 | CK220: 212 | CL220: 0 | CM220: 0 | CN220: 0 | CO220: 55 | CP220: 0 | CQ220: 0 | CR220: 0 | CS220: 0 | CT220: 0 | CU220: 0 | CV220: 0 | CW220: 0 | CX220: 0 | CY220: 0 | CZ220: 0 | DA220: 0 | DB220: 0 | DC220: 0 | DD220: 0 | DE220: 0 | DF220: 0 | DG220: 0 | DH220: 0 | DI220: 0 | DJ220: 0 | DK220: 0 | DL220: 0 | DM220: 0 | DN220: 0 | DO220: 0 | DP220: 0 | DQ220: 0 | DR220: 0 | DS220: 0 | DT220: 0 | DU220: 0 | DV220: 0 | DW220: 0 | DX220: 0 | DY220: 0 | DZ220: 0 | EA220: 0 | EB220: 0 | EC220: 0 | ED220: 0 | EE220: 0 | EF220: 62 | EG220: 42 | EH220: 13 | EI220: 7 | EJ220: 1 | EK220: 1 | EL220: 0 | EM220: 0 | EN220: 0 | EO220: 0 | EP220: 0 | EQ220: 0 | ER220: 67 | ES220: 44 | ET220: 16 | EU220: 7 | EV220: 0 | EW220: 0 | EX220: 0 | EY220: 0 | EZ220: 0 | FA220: 0 | FB220: 0 | FC220: 0 | FD220: 60 | FE220: 41 | FF220: 12 | FG220: 7 | FH220: 0 | FI220: 0 | FJ220: 0 | FK220: 0 | FL220: 1 | FM220: 0 | FN220: 0 | FO220: 1 | FP220: 0 | FQ220: 0 | FR220: 0 | FS220: 0 | FT220: 0 | FU220: 0 | FV220: 0 | FW220: 0 | FX220: 0 | FY220: 0 | FZ220: 0 | GA220: 0 | GB220: 0 | GC220: 0 | GD220: 0 | GE220: 0 | GF220: 0 | GG220: 0 | GH220: 0 | GI220: 0 | GJ220: 0 | GK220: 0 | GL220: 0 | GM220: 0 | GN220: 0 | GO220: 0 | GP220: 0 | GQ220: 0 | GR220: 0 | GS220: 0 | GT220: 0 | GU220: 0 | GV220: 0 | GW220: 0 | GX220: 0 | GY220: 0 | GZ220: 0 | HA220: 0 | HB220: 0 | HC220: 0 | HD220: 0 | HE220: 0 | HF220: 0 | HG220: 0 | HH220: 0 | HI220: 0 | HJ220: 0 | HK220: 0 | HL220: 0 | HM220: 0 | HN220: 0 | HO220: 0 | HP220: 0 | HQ220: 0 | HR220: 0 | HS220: 0 | HT220: 0 | HU220: 0 | HV220: 0 | HW220: 0
A221: 9 | B221: 70 | C221: 69 | D221: 64 | E221: 63 | F221: 0 | G221: 0 | H221: 0 | I221: 0 | J221: 66 | K221: 66 | L221: 59 | M221: 59 | N221: 0 | O221: 0 | P221: 0 | Q221: 0 | R221: 0 | S221: 0 | T221: 0 | U221: 0 | V221: 6 | W221: 5 | X221: 5 | Y221: 0 | Z221: 0 | AA221: 0 | AB221: 0 | AC221: 0 | AD221: 0 | AE221: 0 | AF221: 0 | AG221: 0 | AH221: 0 | AI221: 0 | AJ221: 0 | AK221: 0 | AL221: 0 | AM221: 0 | AN221: 0 | AO221: 0 | AP221: 0 | AQ221: 0 | AR221: 1 | AS221: 1 | AT221: 0 | AU221: 0 | AV221: 0 | AW221: 0 | AX221: 5 | AY221: 1 | AZ221: 5 | BA221: 1 | BB221: 0 | BC221: 0 | BD221: 0 | BE221: 0 | BF221: 0 | BG221: 0 | BH221: 0 | BI221: 0 | BJ221: 5 | BK221: 3 | BL221: 479 | BM221: 0 | BN221: 0 | BO221: 0 | BP221: 0 | BQ221: 333 | BR221: 0 | BS221: 0 | BT221: 91 | BU221: 0 | BV221: 0 | BW221: 0 | BX221: 0 | BY221: 0 | BZ221: 0 | CA221: 0 | CB221: 8 | CC221: 0 | CD221: 0 | CE221: 0 | CF221: 0 | CG221: 0 | CH221: 0 | CI221: 0 | CJ221: 0 | CK221: 308 | CL221: 0 | CM221: 0 | CN221: 0 | CO221: 40 | CP221: 0 | CQ221: 0 | CR221: 0 | CS221: 0 | CT221: 0 | CU221: 0 | CV221: 0 | CW221: 0 | CX221: 0 | CY221: 1 | CZ221: 1 | DA221: 0 | DB221: 0 | DC221: 0 | DD221: 0 | DE221: 0 | DF221: 0 | DG221: 0 | DH221: 0 | DI221: 1 | DJ221: 0 | DK221: 0 | DL221: 0 | DM221: 0 | DN221: 0 | DO221: 0 | DP221: 0 | DQ221: 0 | DR221: 0 | DS221: 0 | DT221: 0 | DU221: 0 | DV221: 0 | DW221: 0 | DX221: 0 | DY221: 0 | DZ221: 0 | EA221: 0 | EB221: 0 | EC221: 0 | ED221: 0 | EE221: 0 | EF221: 72 | EG221: 44 | EH221: 20 | EI221: 8 | EJ221: 7 | EK221: 3 | EL221: 1 | EM221: 3 | EN221: 1 | EO221: 0 | EP221: 1 | EQ221: 0 | ER221: 71 | ES221: 44 | ET221: 21 | EU221: 6 | EV221: 0 | EW221: 0 | EX221: 0 | EY221: 0 | EZ221: 0 | FA221: 0 | FB221: 0 | FC221: 0 | FD221: 73 | FE221: 44 | FF221: 20 | FG221: 9 | FH221: 0 | FI221: 0 | FJ221: 0 | FK221: 0 | FL221: 1 | FM221: 0 | FN221: 1 | FO221: 0 | FP221: 0 | FQ221: 0 | FR221: 0 | FS221: 0 | FT221: 0 | FU221: 0 | FV221: 0 | FW221: 0 | FX221: 0 | FY221: 0 | FZ221: 0 | GA221: 0 | GB221: 0 | GC221: 0 | GD221: 0 | GE221: 0 | GF221: 0 | GG221: 0 | GH221: 0 | GI221: 0 | GJ221: 0 | GK221: 0 | GL221: 0 | GM221: 0 | GN221: 0 | GO221: 0 | GP221: 0 | GQ221: 0 | GR221: 0 | GS221: 0 | GT221: 0 | GU221: 0 | GV221: 0 | GW221: 0 | GX221: 0 | GY221: 0 | GZ221: 0 | HA221: 0 | HB221: 0 | HC221: 0 | HD221: 0 | HE221: 0 | HF221: 0 | HG221: 0 | HH221: 0 | HI221: 0 | HJ221: 0 | HK221: 0 | HL221: 0 | HM221: 0 | HN221: 0 | HO221: 0 | HP221: 0 | HQ221: 0 | HR221: 0 | HS221: 0 | HT221: 0 | HU221: 0 | HV221: 0 | HW221: 0
A222: 10 | B222: 43 | C222: 42 | D222: 41 | E222: 41 | F222: 0 | G222: 0 | H222: 0 | I222: 0 | J222: 40 | K222: 40 | L222: 39 | M222: 39 | N222: 0 | O222: 0 | P222: 0 | Q222: 0 | R222: 0 | S222: 0 | T222: 0 | U222: 0 | V222: 2 | W222: 2 | X222: 2 | Y222: 0 | Z222: 1 | AA222: 1 | AB222: 1 | AC222: 1 | AD222: 0 | AE222: 0 | AF222: 0 | AG222: 0 | AH222: 0 | AI222: 0 | AJ222: 0 | AK222: 0 | AL222: 0 | AM222: 0 | AN222: 0 | AO222: 0 | AP222: 0 | AQ222: 0 | AR222: 0 | AS222: 0 | AT222: 0 | AU222: 0 | AV222: 0 | AW222: 0 | AX222: 1 | AY222: 1 | AZ222: 1 | BA222: 1 | BB222: 0 | BC222: 0 | BD222: 0 | BE222: 0 | BF222: 0 | BG222: 0 | BH222: 0 | BI222: 0 | BJ222: 3 | BK222: 0 | BL222: 467 | BM222: 0 | BN222: 0 | BO222: 0 | BP222: 0 | BQ222: 359 | BR222: 0 | BS222: 1 | BT222: 88 | BU222: 0 | BV222: 0 | BW222: 0 | BX222: 0 | BY222: 0 | BZ222: 0 | CA222: 0 | CB222: 91 | CC222: 0 | CD222: 0 | CE222: 0 | CF222: 0 | CG222: 0 | CH222: 0 | CI222: 0 | CJ222: 0 | CK222: 345 | CL222: 0 | CM222: 0 | CN222: 0 | CO222: 38 | CP222: 0 | CQ222: 9 | CR222: 0 | CS222: 1 | CT222: 0 | CU222: 0 | CV222: 0 | CW222: 0 | CX222: 0 | CY222: 2 | CZ222: 2 | DA222: 0 | DB222: 0 | DC222: 0 | DD222: 0 | DE222: 0 | DF222: 0 | DG222: 0 | DH222: 0 | DI222: 2 | DJ222: 0 | DK222: 0 | DL222: 0 | DM222: 0 | DN222: 0 | DO222: 0 | DP222: 0 | DQ222: 0 | DR222: 1 | DS222: 0 | DT222: 0 | DU222: 1 | DV222: 0 | DW222: 0 | DX222: 0 | DY222: 0 | DZ222: 0 | EA222: 0 | EB222: 0 | EC222: 0 | ED222: 0 | EE222: 0 | EF222: 80 | EG222: 53 | EH222: 14 | EI222: 13 | EJ222: 2 | EK222: 1 | EL222: 1 | EM222: 0 | EN222: 0 | EO222: 0 | EP222: 0 | EQ222: 0 | ER222: 88 | ES222: 58 | ET222: 15 | EU222: 15 | EV222: 0 | EW222: 0 | EX222: 0 | EY222: 0 | EZ222: 0 | FA222: 0 | FB222: 0 | FC222: 0 | FD222: 79 | FE222: 51 | FF222: 14 | FG222: 14 | FH222: 0 | FI222: 0 | FJ222: 0 | FK222: 0 | FL222: 0 | FM222: 0 | FN222: 0 | FO222: 0 | FP222: 0 | FQ222: 0 | FR222: 0 | FS222: 0 | FT222: 0 | FU222: 0 | FV222: 0 | FW222: 0 | FX222: 0 | FY222: 0 | FZ222: 0 | GA222: 0 | GB222: 0 | GC222: 0 | GD222: 0 | GE222: 0 | GF222: 0 | GG222: 0 | GH222: 0 | GI222: 0 | GJ222: 0 | GK222: 0 | GL222: 0 | GM222: 0 | GN222: 0 | GO222: 0 | GP222: 0 | GQ222: 0 | GR222: 0 | GS222: 0 | GT222: 0 | GU222: 0 | GV222: 0 | GW222: 0 | GX222: 0 | GY222: 0 | GZ222: 0 | HA222: 0 | HB222: 0 | HC222: 0 | HD222: 0 | HE222: 0 | HF222: 0 | HG222: 0 | HH222: 0 | HI222: 0 | HJ222: 0 | HK222: 0 | HL222: 0 | HM222: 0 | HN222: 0 | HO222: 0 | HP222: 0 | HQ222: 0 | HR222: 0 | HS222: 0 | HT222: 0 | HU222: 0 | HV222: 0 | HW222: 0
A223: 11 | B223: 51 | C223: 51 | D223: 52 | E223: 52 | F223: 0 | G223: 0 | H223: 0 | I223: 0 | J223: 52 | K223: 52 | L223: 52 | M223: 52 | N223: 0 | O223: 0 | P223: 0 | Q223: 0 | R223: 0 | S223: 0 | T223: 0 | U223: 0 | V223: 1 | W223: 1 | X223: 1 | Y223: 0 | Z223: 2 | AA223: 1 | AB223: 0 | AC223: 1 | AD223: 0 | AE223: 0 | AF223: 0 | AG223: 0 | AH223: 0 | AI223: 0 | AJ223: 0 | AK223: 0 | AL223: 0 | AM223: 0 | AN223: 0 | AO223: 0 | AP223: 0 | AQ223: 0 | AR223: 0 | AS223: 0 | AT223: 2 | AU223: 2 | AV223: 0 | AW223: 0 | AX223: 5 | AY223: 1 | AZ223: 5 | BA223: 1 | BB223: 0 | BC223: 0 | BD223: 0 | BE223: 0 | BF223: 0 | BG223: 0 | BH223: 0 | BI223: 0 | BJ223: 4 | BK223: 3 | BL223: 401 | BM223: 0 | BN223: 0 | BO223: 0 | BP223: 0 | BQ223: 261 | BR223: 0 | BS223: 0 | BT223: 107 | BU223: 0 | BV223: 0 | BW223: 0 | BX223: 0 | BY223: 0 | BZ223: 0 | CA223: 0 | CB223: 87 | CC223: 0 | CD223: 0 | CE223: 0 | CF223: 0 | CG223: 0 | CH223: 0 | CI223: 0 | CJ223: 0 | CK223: 237 | CL223: 1 | CM223: 1 | CN223: 0 | CO223: 62 | CP223: 0 | CQ223: 0 | CR223: 0 | CS223: 0 | CT223: 0 | CU223: 0 | CV223: 0 | CW223: 0 | CX223: 0 | CY223: 1 | CZ223: 1 | DA223: 0 | DB223: 0 | DC223: 0 | DD223: 0 | DE223: 0 | DF223: 0 | DG223: 0 | DH223: 0 | DI223: 1 | DJ223: 0 | DK223: 0 | DL223: 0 | DM223: 0 | DN223: 0 | DO223: 0 | DP223: 0 | DQ223: 0 | DR223: 0 | DS223: 0 | DT223: 0 | DU223: 0 | DV223: 0 | DW223: 0 | DX223: 0 | DY223: 0 | DZ223: 0 | EA223: 0 | EB223: 0 | EC223: 0 | ED223: 0 | EE223: 0 | EF223: 55 | EG223: 32 | EH223: 18 | EI223: 5 | EJ223: 2 | EK223: 1 | EL223: 1 | EM223: 0 | EN223: 0 | EO223: 0 | EP223: 0 | EQ223: 0 | ER223: 63 | ES223: 38 | ET223: 20 | EU223: 5 | EV223: 0 | EW223: 0 | EX223: 0 | EY223: 0 | EZ223: 0 | FA223: 0 | FB223: 0 | FC223: 0 | FD223: 57 | FE223: 34 | FF223: 17 | FG223: 6 | FH223: 2 | FI223: 1 | FJ223: 0 | FK223: 1 | FL223: 0 | FM223: 0 | FN223: 0 | FO223: 0 | FP223: 0 | FQ223: 0 | FR223: 0 | FS223: 0 | FT223: 0 | FU223: 0 | FV223: 0 | FW223: 0 | FX223: 0 | FY223: 0 | FZ223: 0 | GA223: 0 | GB223: 0 | GC223: 0 | GD223: 0 | GE223: 0 | GF223: 0 | GG223: 0 | GH223: 0 | GI223: 0 | GJ223: 0 | GK223: 0 | GL223: 0 | GM223: 0 | GN223: 0 | GO223: 0 | GP223: 0 | GQ223: 0 | GR223: 0 | GS223: 0 | GT223: 0 | GU223: 0 | GV223: 0 | GW223: 0 | GX223: 0 | GY223: 0 | GZ223: 0 | HA223: 0 | HB223: 0 | HC223: 0 | HD223: 0 | HE223: 0 | HF223: 0 | HG223: 0 | HH223: 0 | HI223: 0 | HJ223: 0 | HK223: 0 | HL223: 0 | HM223: 0 | HN223: 0 | HO223: 0 | HP223: 0 | HQ223: 0 | HR223: 0 | HS223: 0 | HT223: 0 | HU223: 0 | HV223: 0 | HW223: 0
A224: T | B224: 648 | C224: 634 | D224: 604 | E224: 603 | F224: 0 | G224: 0 | H224: 0 | I224: 0 | J224: 601 | K224: 601 | L224: 552 | M224: 552 | N224: 0 | O224: 0 | P224: 0 | Q224: 0 | R224: 3 | S224: 3 | T224: 0 | U224: 3 | V224: 59 | W224: 58 | X224: 57 | Y224: 0 | Z224: 4 | AA224: 3 | AB224: 2 | AC224: 3 | AD224: 0 | AE224: 0 | AF224: 0 | AG224: 0 | AH224: 0 | AI224: 0 | AJ224: 0 | AK224: 0 | AL224: 0 | AM224: 0 | AN224: 0 | AO224: 0 | AP224: 4 | AQ224: 3 | AR224: 4 | AS224: 4 | AT224: 3 | AU224: 2 | AV224: 0 | AW224: 0 | AX224: 24 | AY224: 5 | AZ224: 23 | BA224: 5 | BB224: 0 | BC224: 0 | BD224: 0 | BE224: 0 | BF224: 0 | BG224: 0 | BH224: 0 | BI224: 0 | BJ224: 253 | BK224: 15 | BL224: 5253 | BM224: 0 | BN224: 0 | BO224: 0 | BP224: 0 | BQ224: 3740 | BR224: 3 | BS224: 2 | BT224: 1055 | BU224: 3 | BV224: 0 | BW224: 13 | BX224: 7 | BY224: 0 | BZ224: 0 | CA224: 0 | CB224: 573 | CC224: 0 | CD224: 0 | CE224: 0 | CF224: 0 | CG224: 0 | CH224: 0 | CI224: 0 | CJ224: 0 | CK224: 3501 | CL224: 1 | CM224: 2 | CN224: 0 | CO224: 584 | CP224: 0 | CQ224: 10 | CR224: 0 | CS224: 5 | CT224: 0 | CU224: 0 | CV224: 0 | CW224: 0 | CX224: 0 | CY224: 11 | CZ224: 10 | DA224: 0 | DB224: 0 | DC224: 0 | DD224: 0 | DE224: 0 | DF224: 0 | DG224: 0 | DH224: 0 | DI224: 10 | DJ224: 0 | DK224: 0 | DL224: 0 | DM224: 0 | DN224: 0 | DO224: 0 | DP224: 0 | DQ224: 0 | DR224: 4 | DS224: 4 | DT224: 0 | DU224: 1 | DV224: 0 | DW224: 0 | DX224: 0 | DY224: 0 | DZ224: 0 | EA224: 0 | EB224: 0 | EC224: 0 | ED224: 0 | EE224: 0 | EF224: 797 | EG224: 519 | EH224: 176 | EI224: 103 | EJ224: 29 | EK224: 11 | EL224: 7 | EM224: 10 | EN224: 6 | EO224: 3 | EP224: 1 | EQ224: 2 | ER224: 831 | ES224: 545 | ET224: 184 | EU224: 103 | EV224: 3 | EW224: 2 | EX224: 1 | EY224: 0 | EZ224: 0 | FA224: 0 | FB224: 0 | FC224: 0 | FD224: 788 | FE224: 515 | FF224: 172 | FG224: 102 | FH224: 5 | FI224: 3 | FJ224: 0 | FK224: 2 | FL224: 3 | FM224: 0 | FN224: 1 | FO224: 2 | FP224: 0 | FQ224: 0 | FR224: 0 | FS224: 0 | FT224: 0 | FU224: 0 | FV224: 0 | FW224: 0 | FX224: 0 | FY224: 0 | FZ224: 0 | GA224: 0 | GB224: 0 | GC224: 0 | GD224: 0 | GE224: 0 | GF224: 0 | GG224: 0 | GH224: 0 | GI224: 0 | GJ224: 0 | GK224: 0 | GL224: 0 | GM224: 0 | GN224: 0 | GO224: 0 | GP224: 0 | GQ224: 0 | GR224: 0 | GS224: 0 | GT224: 0 | GU224: 0 | GV224: 0 | GW224: 0 | GX224: 0 | GY224: 0 | GZ224: 0 | HA224: 0 | HB224: 0 | HC224: 0 | HD224: 0 | HE224: 0 | HF224: 0 | HG224: 0 | HH224: 0 | HI224: 0 | HJ224: 0 | HK224: 0 | HL224: 0 | HM224: 0 | HN224: 0 | HO224: 0 | HP224: 0 | HQ224: 0 | HR224: 0 | HS224: 0 | HT224: 0 | HU224: 0 | HV224: 0 | HW224: 0
A231: TOTAL
A232: =COUNT(A213:A229) -> 11 | B232: =SUM(B213:B229) -> 1296 | C232: =SUM(C213:C229) -> 1268 | D232: 1208 | E232: 1206 | F232: 0 | G232: 0 | H232: 0 | I232: 0 | J232: 1202 | K232: 1202 | L232: 1104 | M232: 1104 | N232: 0 | O232: 0 | P232: 0 | Q232: 0 | R232: 6 | S232: 6 | T232: 0 | U232: 6 | V232: 118 | W232: 116 | X232: 114 | Y232: 0 | Z232: 8 | AA232: 6 | AB232: 4 | AC232: 6 | AD232: 0 | AE232: 0 | AF232: 0 | AG232: 0 | AH232: 0 | AI232: 0 | AJ232: 0 | AK232: 0 | AL232: 0 | AM232: 0 | AN232: 0 | AO232: 0 | AP232: 8 | AQ232: 6 | AR232: 8 | AS232: 8 | AT232: 6 | AU232: 4 | AV232: 0 | AW232: 0 | AX232: 48 | AY232: 10 | AZ232: 46 | BA232: 10 | BB232: 0 | BC232: 0 | BD232: 0 | BE232: 0 | BF232: 0 | BG232: 0 | BH232: 0 | BI232: 0 | BJ232: 506 | BK232: 30 | BL232: 10506 | BM232: 0 | BN232: 0 | BO232: =SUM(BO213:BO229) -> 0 | BP232: 0 | BQ232: 7480 | BR232: 6 | BS232: 4 | BT232: 2110 | BU232: 6 | BV232: 0 | BW232: 26 | BX232: 14 | BY232: 0 | BZ232: 0 | CA232: 0 | CB232: 1146 | CC232: 0 | CD232: 0 | CE232: 0 | CF232: 0 | CG232: 0 | CH232: 0 | CI232: 0 | CJ232: 0 | CK232: 7002 | CL232: 2 | CM232: 4 | CN232: 0 | CO232: 1168 | CP232: 0 | CQ232: 20 | CR232: 0 | CS232: 10 | CT232: 0 | CU232: 0 | CV232: 0 | CW232: 0 | CX232: 0 | CY232: 22 | CZ232: 20 | DA232: 0 | DB232: 0 | DC232: 0 | DD232: 0 | DE232: 0 | DF232: 0 | DG232: 0 | DH232: 0 | DI232: 20 | DJ232: 0 | DK232: 0 | DL232: 0 | DM232: 0 | DN232: 0 | DO232: 0 | DP232: 0 | DQ232: 0 | DR232: 8 | DS232: 8 | DT232: 0 | DU232: 2 | DV232: 0 | DW232: 0 | DX232: 0 | DY232: 0 | DZ232: 0 | EA232: =SUM(EA213:EA229) -> 0 | EB232: 0 | EC232: 0 | ED232: 0 | EE232: 0 | EF232: 1594 | EG232: 1038 | EH232: 352 | EI232: 206 | EJ232: 58 | EK232: 22 | EL232: 14 | EM232: 20 | EN232: 12 | EO232: 6 | EP232: 2 | EQ232: 4 | ER232: 1662 | ES232: 1090 | ET232: 368 | EU232: 206 | EV232: 6 | EW232: 4 | EX232: 2 | EY232: 0 | EZ232: 0 | FA232: 0 | FB232: 0 | FC232: 0 | FD232: 1576 | FE232: 1030 | FF232: 344 | FG232: 204 | FH232: 10 | FI232: 6 | FJ232: 0 | FK232: 4 | FL232: 6 | FM232: 0 | FN232: 2 | FO232: 4 | FP232: 0 | FQ232: 0 | FR232: 0 | FS232: 0 | FT232: 0 | FU232: 0 | FV232: 0 | FW232: 0 | FX232: 0 | FY232: 0 | FZ232: 0 | GA232: 0 | GB232: 0 | GC232: 0 | GD232: 0 | GE232: 0 | GF232: 0 | GG232: 0 | GH232: 0 | GI232: 0 | GJ232: 0 | GK232: 0 | GL232: 0 | GM232: =SUM(GM213:GM229) -> 0 | GN232: 0 | GO232: 0 | GP232: 0 | GQ232: 0 | GR232: 0 | GS232: 0 | GT232: 0 | GU232: 0 | GV232: 0 | GW232: 0 | GX232: 0 | GY232: 0 | GZ232: 0 | HA232: 0 | HB232: 0 | HC232: 0 | HD232: 0 | HE232: 0 | HF232: 0 | HG232: 0 | HH232: 0 | HI232: 0 | HJ232: 0 | HK232: 0 | HL232: 0 | HM232: 0 | HN232: 0 | HO232: 0 | HP232: 0 | HQ232: 0 | HR232: 0 | HS232: 0 | HT232: 0 | HU232: 0 | HV232: 0 | HW232: 0
A233: =CONCATENATE(A213,"-",A214,"-",A215,"-",A216,"-",A217,"-",A218,"-",A219,"-",A220,"-",A221,"-",A222,"-",A223,"-",A224) -> 2-1-3-5-4-6-7-8-9-10-11-T
B234: BAS001 | C234: BAS002 | D234: BAS003 | E234: BAS004 | F234: BAS005 | G234: BAS006 | H234: BAS007 | I234: BAS008 | J234: BAS009 | K234: BAS010 | L234: BAS011 | M234: BAS012 | N234: BAS013 | O234: BAS014 | P234: BAS015 | Q234: BAS016 | R234: BAS017 | S234: BAS018 | T234: BAS019 | U234: BAS020 | V234: BAS021 | W234: BAS022 | X234: BAS023 | Y234: BAS024 | Z234: BAS025 | AA234: BAS026 | AB234: BAS027 | AC234: BAS028 | AD234: BAS029 | AE234: BAS030 | AF234: BAS031 | AG234: BAS032 | AH234: BAS033 | AI234: BAS034 | AJ234: BAS035 | AK234: BAS036 | AL234: BAS037 | AM234: BAS038 | AN234: BAS039 | AO234: BAS040 | AP234: BAS041 | AQ234: BAS042 | AR234: BAS043 | AS234: BAS044 | AT234: BAS045 | AU234: BAS046 | AV234: BAS047 | AW234: BAS048 | AX234: BAS049 | AY234: BAS050 | AZ234: BAS051 | BA234: BAS052 | BB234: BAS053 | BC234: BAS054 | BD234: BAS055 | BE234: BAS056 | BF234: BAS057 | BG234: BAS058 | BH234: BAS059 | BI234: BAS060 | BJ234: BAS061 | BK234: BAS062 | BL234: BAS063 | BM234: BAS064 | BN234: BAS065 | BO234: BAS066 | BP234: BAS067 | BQ234: BAS068 | BR234: BAS069 | BS234: BAS070 | BT234: BAS071 | BU234: BAS072 | BV234: BAS073 | BW234: BAS074 | BX234: BAS075 | BY234: BAS076 | BZ234: BAS077 | CA234: BAS078 | CB234: BAS079 | CC234: BAS080 | CD234: BAS081 | CE234: BAS082 | CF234: BAS083 | CG234: BAS084 | CH234: BAS085 | CI234: BAS086 | CJ234: BAS087 | CK234: BAS088 | CL234: BAS089 | CM234: BAS090 | CN234: BAS091 | CO234: BAS092 | CP234: BAS093 | CQ234: BAS094 | CR234: BAS095 | CS234: BAS096 | CT234: BAS097 | CU234: BAS098 | CV234: BAS099 | CW234: BAS100 | CX234: BAS101 | CY234: BAS102 | CZ234: BAS103 | DA234: BAS104 | DB234: BAS105 | DC234: BAS106 | DD234: BAS107 | DE234: BAS108 | DF234: BAS109 | DG234: BAS110 | DH234: BAS111 | DI234: BAS112 | DJ234: BAS113 | DK234: BAS114 | DL234: BAS115 | DM234: BAS116 | DN234: BAS117 | DO234: BAS118 | DP234: BAS119 | DQ234: BAS120 | DR234: BAS121 | DS234: BAS122 | DT234: BAS123 | DU234: BAS124 | DV234: BAS125 | DW234: BAS126 | DX234: BAS127 | DY234: BAS128 | DZ234: BAS129 | EA234: BAS130 | EB234: BAS131 | EC234: BAS132 | ED234: BAS133 | EE234: BAS134 | EF234: BAS135 | EG234: BAS136 | EH234: BAS137 | EI234: BAS138 | EJ234: BAS139 | EK234: BAS140 | EL234: BAS141 | EM234: BAS142 | EN234: BAS143 | EO234: BAS144 | EP234: BAS145 | EQ234: BAS146 | ER234: BAS147 | ES234: BAS148 | ET234: BAS149 | EU234: BAS150 | EV234: BAS151 | EW234: BAS152 | EX234: BAS153 | EY234: BAS154 | EZ234: BAS155 | FA234: BAS156 | FB234: BAS157 | FC234: BAS158 | FD234: BAS159 | FE234: BAS160 | FF234: BAS161 | FG234: BAS162 | FH234: BAS163 | FI234: BAS164 | FJ234: BAS165 | FK234: BAS166 | FL234: BAS167 | FM234: BAS168 | FN234: BAS169 | FO234: BAS170 | FP234: BAS171 | FQ234: BAS172 | FR234: BAS173 | FS234: BAS174 | FT234: BAS175 | FU234: BAS176 | FV234: BAS177 | FW234: BAS178 | FX234: BAS179 | FY234: BAS180 | FZ234: BAS181 | GA234: BAS182 | GB234: BAS183 | GC234: BAS184 | GD234: BAS185 | GE234: BAS186 | GF234: BAS187 | GG234: BAS188 | GH234: BAS189 | GI234: BAS190 | GJ234: BAS191 | GK234: BAS192 | GL234: BAS193 | GM234: BAS194 | GN234: BAS195 | GO234: BAS196 | GP234: BAS197 | GQ234: BAS198 | GR234: BAS199 | GS234: BAS200 | GT234: BAS201 | GU234: BAS202 | GV234: BAS203 | GW234: BAS204 | GX234: BAS205 | GY234: BAS206 | GZ234: BAS207 | HA234: BAS208 | HB234: BAS209 | HC234: BAS210 | HD234: BAS211 | HE234: BAS212 | HF234: BAS213 | HG234: BAS214 | HH234: BAS215 | HI234: BAS216 | HJ234: BAS217 | HK234: BAS218 | HL234: BAS219 | HM234: BAS220 | HN234: BAS221 | HO234: BAS222 | HP234: BAS223 | HQ234: BAS224 | HR234: BAS225 | HS234: BAS226 | HT234: BAS227 | HU234: BAS228 | HV234: BAS229 | HW234: BAS230
B235: =IF(B234=B212,"SI","NO") -> SI | C235: =IF(C234=C212,"SI","NO") -> SI | D235: SI | E235: SI | F235: SI | G235: SI | H235: SI | I235: SI | J235: SI | K235: SI | L235: SI | M235: SI | N235: SI | O235: SI | P235: SI | Q235: SI | R235: SI | S235: SI | T235: SI | U235: SI | V235: SI | W235: SI | X235: SI | Y235: SI | Z235: SI | AA235: SI | AB235: SI | AC235: SI | AD235: SI | AE235: SI | AF235: SI | AG235: SI | AH235: SI | AI235: SI | AJ235: SI | AK235: SI | AL235: SI | AM235: SI | AN235: SI | AO235: SI | AP235: SI | AQ235: SI | AR235: SI | AS235: SI | AT235: SI | AU235: SI | AV235: SI | AW235: SI | AX235: SI | AY235: SI | AZ235: SI | BA235: SI | BB235: SI | BC235: SI | BD235: SI | BE235: SI | BF235: SI | BG235: SI | BH235: SI | BI235: SI | BJ235: SI | BK235: SI | BL235: SI | BM235: SI | BN235: SI | BO235: =IF(BO234=BO212,"SI","NO") -> SI | BP235: SI | BQ235: SI | BR235: SI | BS235: SI | BT235: SI | BU235: SI | BV235: SI | BW235: SI | BX235: SI | BY235: SI | BZ235: SI | CA235: SI | CB235: SI | CC235: SI | CD235: SI | CE235: SI | CF235: SI | CG235: SI | CH235: SI | CI235: SI | CJ235: SI | CK235: SI | CL235: SI | CM235: SI | CN235: SI | CO235: SI | CP235: SI | CQ235: SI | CR235: SI | CS235: SI | CT235: SI | CU235: SI | CV235: SI | CW235: SI | CX235: SI | CY235: SI | CZ235: SI | DA235: SI | DB235: SI | DC235: SI | DD235: SI | DE235: SI | DF235: SI | DG235: SI | DH235: SI | DI235: SI | DJ235: SI | DK235: SI | DL235: SI | DM235: SI | DN235: SI | DO235: SI | DP235: SI | DQ235: SI | DR235: SI | DS235: SI | DT235: SI | DU235: SI | DV235: SI | DW235: SI | DX235: SI | DY235: SI | DZ235: SI | EA235: =IF(EA234=EA212,"SI","NO") -> SI | EB235: SI | EC235: SI | ED235: SI | EE235: SI | EF235: SI | EG235: SI | EH235: SI | EI235: SI | EJ235: SI | EK235: SI | EL235: SI | EM235: SI | EN235: SI | EO235: SI | EP235: SI | EQ235: SI | ER235: SI | ES235: SI | ET235: SI | EU235: SI | EV235: SI | EW235: SI | EX235: SI | EY235: SI | EZ235: SI | FA235: SI | FB235: SI | FC235: SI | FD235: SI | FE235: SI | FF235: SI | FG235: SI | FH235: SI | FI235: SI | FJ235: SI | FK235: SI | FL235: SI | FM235: SI | FN235: SI | FO235: SI | FP235: SI | FQ235: SI | FR235: SI | FS235: SI | FT235: SI | FU235: SI | FV235: SI | FW235: SI | FX235: SI | FY235: SI | FZ235: SI | GA235: SI | GB235: SI | GC235: SI | GD235: SI | GE235: SI | GF235: SI | GG235: SI | GH235: SI | GI235: SI | GJ235: SI | GK235: SI | GL235: SI | GM235: =IF(GM234=GM212,"SI","NO") -> SI | GN235: SI | GO235: SI | GP235: SI | GQ235: SI | GR235: SI | GS235: SI | GT235: SI | GU235: SI | GV235: SI | GW235: SI | GX235: SI | GY235: SI | GZ235: SI | HA235: SI | HB235: SI | HC235: SI | HD235: SI | HE235: SI | HF235: SI | HG235: SI | HH235: SI | HI235: SI | HJ235: SI | HK235: SI | HL235: SI | HM235: SI | HN235: SI | HO235: =IF(HO234=HO212,"SI","NO") -> SI | HP235: SI | HQ235: SI | HR235: SI | HS235: SI | HT235: SI | HU235: SI | HV235: SI | HW235: SI
A237: ITSVIH1829M
A238: anno | B238: 2024
A239: cod_red | B239: 03
A240: codmic | B240: (Todas)
A241: cod_prov | B241: (Todas)
A242: coddist | B242: (Todas)
A243: cod_estab | B243: (Todas)
A244: cod_eje | B244: (Todas)
B246: Valores
A247: Etiquetas de fila | B247: BAS001 | C247: BAS002 | D247: BAS003 | E247: BAS004 | F247: BAS005 | G247: BAS006 | H247: BAS007 | I247: BAS008 | J247: BAS009 | K247: BAS010 | L247: BAS011 | M247: BAS012 | N247: BAS013 | O247: BAS014 | P247: BAS015 | Q247: BAS016 | R247: BAS017 | S247: BAS018 | T247: BAS019 | U247: BAS020 | V247: BAS021 | W247: BAS022 | X247: BAS023 | Y247: BAS024 | Z247: BAS025 | AA247: BAS026 | AB247: BAS027 | AC247: BAS028 | AD247: BAS029 | AE247: BAS030 | AF247: BAS031 | AG247: BAS032 | AH247: BAS033 | AI247: BAS034 | AJ247: BAS035 | AK247: BAS036 | AL247: BAS037 | AM247: BAS038 | AN247: BAS039 | AO247: BAS040 | AP247: BAS041 | AQ247: BAS042 | AR247: BAS043 | AS247: BAS044 | AT247: BAS045 | AU247: BAS046 | AV247: BAS047 | AW247: BAS048 | AX247: BAS049 | AY247: BAS050 | AZ247: BAS051 | BA247: BAS052 | BB247: BAS053 | BC247: BAS054 | BD247: BAS055 | BE247: BAS056 | BF247: BAS057 | BG247: BAS058 | BH247: BAS059 | BI247: BAS060 | BJ247: BAS061 | BK247: BAS062 | BL247: BAS063 | BM247: BAS064 | BN247: BAS065 | BO247: BAS066 | BP247: BAS067 | BQ247: BAS068 | BR247: BAS069 | BS247: BAS070 | BT247: BAS071 | BU247: BAS072 | BV247: BAS073 | BW247: BAS074 | BX247: BAS075 | BY247: BAS076 | BZ247: BAS077 | CA247: BAS078 | CB247: BAS079 | CC247: BAS080 | CD247: BAS081 | CE247: BAS082 | CF247: BAS083 | CG247: BAS084 | CH247: BAS085 | CI247: BAS086 | CJ247: BAS087 | CK247: BAS088 | CL247: BAS089 | CM247: BAS090 | CN247: BAS091 | CO247: BAS092 | CP247: BAS093 | CQ247: BAS094 | CR247: BAS095 | CS247: BAS096 | CT247: BAS097 | CU247: BAS098 | CV247: BAS099 | CW247: BAS100 | CX247: BAS101 | CY247: BAS102 | CZ247: BAS103 | DA247: BAS104 | DB247: BAS105 | DC247: BAS106 | DD247: BAS107 | DE247: BAS108 | DF247: BAS109 | DG247: BAS110 | DH247: BAS111 | DI247: BAS112 | DJ247: BAS113 | DK247: BAS114 | DL247: BAS115 | DM247: BAS116 | DN247: BAS117 | DO247: BAS118 | DP247: BAS119 | DQ247: BAS120 | DR247: BAS121 | DS247: BAS122 | DT247: BAS123 | DU247: BAS124 | DV247: BAS125 | DW247: BAS126 | DX247: BAS127 | DY247: BAS128 | DZ247: BAS129 | EA247: BAS130 | EB247: BAS131 | EC247: BAS132 | ED247: BAS133 | EE247: BAS134 | EF247: BAS135 | EG247: BAS136 | EH247: BAS137 | EI247: BAS138 | EJ247: BAS139 | EK247: BAS140 | EL247: BAS141 | EM247: BAS142 | EN247: BAS143 | EO247: BAS144 | EP247: BAS145 | EQ247: BAS146 | ER247: BAS147 | ES247: BAS148 | ET247: BAS149 | EU247: BAS150 | EV247: BAS151 | EW247: BAS152 | EX247: BAS153 | EY247: BAS154 | EZ247: BAS155 | FA247: BAS156 | FB247: BAS157 | FC247: BAS158 | FD247: BAS159 | FE247: BAS160 | FF247: BAS161 | FG247: BAS162 | FH247: BAS163 | FI247: BAS164 | FJ247: BAS165 | FK247: BAS166 | FL247: BAS167 | FM247: BAS168 | FN247: BAS169 | FO247: BAS170 | FP247: BAS171 | FQ247: BAS172 | FR247: BAS173 | FS247: BAS174 | FT247: BAS175 | FU247: BAS176 | FV247: BAS177 | FW247: BAS178 | FX247: BAS179 | FY247: BAS180 | FZ247: BAS181 | GA247: BAS182 | GB247: BAS183 | GC247: BAS184 | GD247: BAS185 | GE247: BAS186 | GF247: BAS187 | GG247: BAS188 | GH247: BAS189 | GI247: BAS190 | GJ247: BAS191 | GK247: BAS192 | GL247: BAS193 | GM247: BAS194 | GN247: BAS195 | GO247: BAS196 | GP247: BAS197 | GQ247: BAS198 | GR247: BAS199 | GS247: BAS200 | GT247: BAS201 | GU247: BAS202 | GV247: BAS203 | GW247: BAS204 | GX247: BAS205 | GY247: BAS206 | GZ247: BAS207 | HA247: BAS208 | HB247: BAS209 | HC247: BAS210 | HD247: BAS211 | HE247: BAS212 | HF247: BAS213 | HG247: BAS214 | HH247: BAS215 | HI247: BAS216 | HJ247: BAS217 | HK247: BAS218 | HL247: BAS219 | HM247: BAS220 | HN247: BAS221 | HO247: BAS222 | HP247: BAS223 | HQ247: BAS224 | HR247: BAS225 | HS247: BAS226 | HT247: BAS227 | HU247: BAS228 | HV247: BAS229 | HW247: BAS230
A248: 2 | B248: 3 | C248: 3 | D248: 0 | E248: 0 | F248: 3 | G248: 3 | H248: 0 | I248: 0 | J248: 0 | K248: 0 | L248: 0 | M248: 0 | N248: 1 | O248: 1 | P248: 0 | Q248: 1 | R248: 0 | S248: 0 | T248: 0 | U248: 0 | V248: 0 | W248: 0 | X248: 0 | Y248: 1 | Z248: 0 | AA248: 0 | AB248: 0 | AC248: 0 | AD248: 0 | AE248: 0 | AF248: 0 | AG248: 0 | AH248: 0 | AI248: 0 | AJ248: 0 | AK248: 0 | AL248: 0 | AM248: 0 | AN248: 0 | AO248: 0 | AP248: 0 | AQ248: 0 | AR248: 1 | AS248: 1 | AT248: 0 | AU248: 0 | AV248: 0 | AW248: 0 | AX248: 2 | AY248: 0 | AZ248: 1 | BA248: 0 | BB248: 0 | BC248: 0 | BD248: 0 | BE248: 0 | BF248: 0 | BG248: 0 | BH248: 0 | BI248: 0 | BJ248: 82 | BK248: 2 | BL248: 328 | BM248: 0 | BN248: 0 | BO248: 0 | BP248: 0 | BQ248: 302 | BR248: 1 | BS248: 1 | BT248: 16 | BU248: 0 | BV248: 0 | BW248: 0 | BX248: 0 | BY248: 0 | BZ248: 0 | CA248: 0 | CB248: 10 | CC248: 0 | CD248: 0 | CE248: 0 | CF248: 0 | CG248: 0 | CH248: 0 | CI248: 0 | CJ248: 0 | CK248: 305 | CL248: 0 | CM248: 4 | CN248: 0 | CO248: 17 | CP248: 0 | CQ248: 61 | CR248: 0 | CS248: 0 | CT248: 0 | CU248: 0 | CV248: 0 | CW248: 0 | CX248: 0 | CY248: 0 | CZ248: 0 | DA248: 0 | DB248: 0 | DC248: 0 | DD248: 0 | DE248: 0 | DF248: 0 | DG248: 0 | DH248: 0 | DI248: 0 | DJ248: 0 | DK248: 0 | DL248: 0 | DM248: 0 | DN248: 0 | DO248: 0 | DP248: 0 | DQ248: 0 | DR248: 2 | DS248: 0 | DT248: 0 | DU248: 0 | DV248: 0 | DW248: 0 | DX248: 0 | DY248: 0 | DZ248: 0 | EA248: 0 | EB248: 0 | EC248: 0 | ED248: 0 | EE248: 0 | EF248: 0 | EG248: 0 | EH248: 0 | EI248: 0 | EJ248: 0 | EK248: 0 | EL248: 0 | EM248: 0 | EN248: 0 | EO248: 0 | EP248: 0 | EQ248: 0 | ER248: 0 | ES248: 0 | ET248: 0 | EU248: 0 | EV248: 0 | EW248: 0 | EX248: 0 | EY248: 0 | EZ248: 0 | FA248: 0 | FB248: 0 | FC248: 0 | FD248: 0 | FE248: 0 | FF248: 0 | FG248: 0 | FH248: 0 | FI248: 0 | FJ248: 0 | FK248: 0 | FL248: 0 | FM248: 0 | FN248: 0 | FO248: 0 | FP248: 0 | FQ248: 0 | FR248: 0 | FS248: 0 | FT248: 0 | FU248: 0 | FV248: 0 | FW248: 0 | FX248: 0 | FY248: 0 | FZ248: 0 | GA248: 0 | GB248: 0 | GC248: 0 | GD248: 0 | GE248: 0 | GF248: 0 | GG248: 0 | GH248: 0 | GI248: 0 | GJ248: 0 | GK248: 0 | GL248: 0 | GM248: 0 | GN248: 0 | GO248: 0 | GP248: 0 | GQ248: 0 | GR248: 0 | GS248: 0 | GT248: 0 | GU248: 0 | GV248: 0 | GW248: 0 | GX248: 0 | GY248: 0 | GZ248: 0 | HA248: 0 | HB248: 0 | HC248: 0 | HD248: 0 | HE248: 0 | HF248: 0 | HG248: 0 | HH248: 0 | HI248: 0 | HJ248: 0 | HK248: 0 | HL248: 0 | HM248: 0 | HN248: 0 | HO248: 0 | HP248: 0 | HQ248: 0 | HR248: 0 | HS248: 0 | HT248: 0 | HU248: 0 | HV248: 0 | HW248: 0
A249: 3 | B249: 1 | C249: 1 | D249: 0 | E249: 0 | F249: 0 | G249: 0 | H249: 0 | I249: 0 | J249: 0 | K249: 0 | L249: 0 | M249: 0 | N249: 0 | O249: 0 | P249: 0 | Q249: 0 | R249: 0 | S249: 0 | T249: 0 | U249: 0 | V249: 0 | W249: 0 | X249: 0 | Y249: 0 | Z249: 1 | AA249: 1 | AB249: 0 | AC249: 1 | AD249: 0 | AE249: 0 | AF249: 0 | AG249: 0 | AH249: 0 | AI249: 0 | AJ249: 0 | AK249: 0 | AL249: 0 | AM249: 0 | AN249: 0 | AO249: 0 | AP249: 1 | AQ249: 1 | AR249: 1 | AS249: 1 | AT249: 0 | AU249: 0 | AV249: 0 | AW249: 0 | AX249: 1 | AY249: 0 | AZ249: 1 | BA249: 0 | BB249: 0 | BC249: 0 | BD249: 0 | BE249: 0 | BF249: 0 | BG249: 0 | BH249: 0 | BI249: 0 | BJ249: 35 | BK249: 0 | BL249: 332 | BM249: 0 | BN249: 0 | BO249: 0 | BP249: 0 | BQ249: 280 | BR249: 1 | BS249: 0 | BT249: 46 | BU249: 0 | BV249: 0 | BW249: 0 | BX249: 0 | BY249: 0 | BZ249: 0 | CA249: 0 | CB249: 4 | CC249: 0 | CD249: 0 | CE249: 0 | CF249: 0 | CG249: 0 | CH249: 0 | CI249: 0 | CJ249: 0 | CK249: 283 | CL249: 0 | CM249: 0 | CN249: 0 | CO249: 48 | CP249: 0 | CQ249: 0 | CR249: 0 | CS249: 0 | CT249: 0 | CU249: 0 | CV249: 0 | CW249: 0 | CX249: 0 | CY249: 0 | CZ249: 0 | DA249: 0 | DB249: 0 | DC249: 0 | DD249: 0 | DE249: 0 | DF249: 0 | DG249: 0 | DH249: 0 | DI249: 0 | DJ249: 0 | DK249: 0 | DL249: 0 | DM249: 0 | DN249: 0 | DO249: 0 | DP249: 0 | DQ249: 0 | DR249: 0 | DS249: 0 | DT249: 0 | DU249: 0 | DV249: 0 | DW249: 0 | DX249: 0 | DY249: 0 | DZ249: 0 | EA249: 0 | EB249: 0 | EC249: 0 | ED249: 0 | EE249: 0 | EF249: 0 | EG249: 0 | EH249: 0 | EI249: 0 | EJ249: 0 | EK249: 0 | EL249: 0 | EM249: 0 | EN249: 0 | EO249: 0 | EP249: 0 | EQ249: 0 | ER249: 0 | ES249: 0 | ET249: 0 | EU249: 0 | EV249: 0 | EW249: 0 | EX249: 0 | EY249: 0 | EZ249: 0 | FA249: 0 | FB249: 0 | FC249: 0 | FD249: 0 | FE249: 0 | FF249: 0 | FG249: 0 | FH249: 0 | FI249: 0 | FJ249: 0 | FK249: 0 | FL249: 0 | FM249: 0 | FN249: 0 | FO249: 0 | FP249: 0 | FQ249: 0 | FR249: 0 | FS249: 0 | FT249: 0 | FU249: 0 | FV249: 0 | FW249: 0 | FX249: 0 | FY249: 0 | FZ249: 0 | GA249: 0 | GB249: 0 | GC249: 0 | GD249: 0 | GE249: 0 | GF249: 0 | GG249: 0 | GH249: 0 | GI249: 0 | GJ249: 0 | GK249: 0 | GL249: 0 | GM249: 0 | GN249: 0 | GO249: 0 | GP249: 0 | GQ249: 0 | GR249: 0 | GS249: 0 | GT249: 0 | GU249: 0 | GV249: 0 | GW249: 0 | GX249: 0 | GY249: 0 | GZ249: 0 | HA249: 0 | HB249: 0 | HC249: 0 | HD249: 0 | HE249: 2 | HF249: 0 | HG249: 2 | HH249: 0 | HI249: 0 | HJ249: 0 | HK249: 0 | HL249: 0 | HM249: 0 | HN249: 0 | HO249: 0 | HP249: 0 | HQ249: 0 | HR249: 0 | HS249: 0 | HT249: 0 | HU249: 0 | HV249: 0 | HW249: 0
A250: 1 | B250: 3 | C250: 3 | D250: 1 | E250: 1 | F250: 1 | G250: 1 | H250: 0 | I250: 0 | J250: 0 | K250: 0 | L250: 0 | M250: 0 | N250: 0 | O250: 0 | P250: 0 | Q250: 0 | R250: 1 | S250: 1 | T250: 0 | U250: 1 | V250: 0 | W250: 0 | X250: 0 | Y250: 0 | Z250: 1 | AA250: 1 | AB250: 1 | AC250: 1 | AD250: 0 | AE250: 0 | AF250: 0 | AG250: 0 | AH250: 0 | AI250: 0 | AJ250: 0 | AK250: 0 | AL250: 0 | AM250: 0 | AN250: 0 | AO250: 0 | AP250: 0 | AQ250: 0 | AR250: 0 | AS250: 0 | AT250: 2 | AU250: 0 | AV250: 0 | AW250: 0 | AX250: 1 | AY250: 1 | AZ250: 1 | BA250: 1 | BB250: 0 | BC250: 0 | BD250: 0 | BE250: 0 | BF250: 0 | BG250: 0 | BH250: 0 | BI250: 0 | BJ250: 53 | BK250: 0 | BL250: 218 | BM250: 0 | BN250: 0 | BO250: 0 | BP250: 0 | BQ250: 201 | BR250: 0 | BS250: 0 | BT250: 18 | BU250: 1 | BV250: 0 | BW250: 6 | BX250: 0 | BY250: 0 | BZ250: 0 | CA250: 0 | CB250: 0 | CC250: 0 | CD250: 0 | CE250: 0 | CF250: 0 | CG250: 0 | CH250: 0 | CI250: 0 | CJ250: 0 | CK250: 200 | CL250: 0 | CM250: 0 | CN250: 0 | CO250: 18 | CP250: 0 | CQ250: 0 | CR250: 0 | CS250: 2 | CT250: 0 | CU250: 0 | CV250: 0 | CW250: 0 | CX250: 0 | CY250: 0 | CZ250: 0 | DA250: 0 | DB250: 0 | DC250: 0 | DD250: 0 | DE250: 0 | DF250: 0 | DG250: 0 | DH250: 0 | DI250: 0 | DJ250: 0 | DK250: 0 | DL250: 0 | DM250: 0 | DN250: 0 | DO250: 0 | DP250: 0 | DQ250: 0 | DR250: 1 | DS250: 0 | DT250: 0 | DU250: 0 | DV250: 0 | DW250: 0 | DX250: 0 | DY250: 0 | DZ250: 0 | EA250: 0 | EB250: 0 | EC250: 0 | ED250: 0 | EE250: 0 | EF250: 0 | EG250: 0 | EH250: 0 | EI250: 0 | EJ250: 0 | EK250: 0 | EL250: 0 | EM250: 0 | EN250: 0 | EO250: 0 | EP250: 0 | EQ250: 0 | ER250: 0 | ES250: 0 | ET250: 0 | EU250: 0 | EV250: 0 | EW250: 0 | EX250: 0 | EY250: 0 | EZ250: 0 | FA250: 0 | FB250: 0 | FC250: 0 | FD250: 0 | FE250: 0 | FF250: 0 | FG250: 0 | FH250: 0 | FI250: 0 | FJ250: 0 | FK250: 0 | FL250: 0 | FM250: 0 | FN250: 0 | FO250: 0 | FP250: 0 | FQ250: 0 | FR250: 0 | FS250: 0 | FT250: 0 | FU250: 0 | FV250: 0 | FW250: 0 | FX250: 0 | FY250: 0 | FZ250: 0 | GA250: 0 | GB250: 0 | GC250: 0 | GD250: 0 | GE250: 0 | GF250: 0 | GG250: 0 | GH250: 0 | GI250: 0 | GJ250: 0 | GK250: 0 | GL250: 0 | GM250: 0 | GN250: 0 | GO250: 0 | GP250: 0 | GQ250: 0 | GR250: 0 | GS250: 0 | GT250: 0 | GU250: 0 | GV250: 0 | GW250: 0 | GX250: 0 | GY250: 0 | GZ250: 0 | HA250: 0 | HB250: 0 | HC250: 0 | HD250: 0 | HE250: 0 | HF250: 0 | HG250: 0 | HH250: 0 | HI250: 0 | HJ250: 0 | HK250: 0 | HL250: 0 | HM250: 0 | HN250: 0 | HO250: 0 | HP250: 0 | HQ250: 0 | HR250: 0 | HS250: 0 | HT250: 0 | HU250: 0 | HV250: 0 | HW250: 0
A251: 5 | B251: 3 | C251: 3 | D251: 1 | E251: 1 | F251: 1 | G251: 1 | H251: 0 | I251: 0 | J251: 0 | K251: 0 | L251: 0 | M251: 0 | N251: 1 | O251: 1 | P251: 0 | Q251: 1 | R251: 0 | S251: 0 | T251: 0 | U251: 0 | V251: 0 | W251: 0 | X251: 0 | Y251: 1 | Z251: 1 | AA251: 1 | AB251: 1 | AC251: 1 | AD251: 0 | AE251: 0 | AF251: 0 | AG251: 0 | AH251: 0 | AI251: 0 | AJ251: 0 | AK251: 0 | AL251: 0 | AM251: 0 | AN251: 0 | AO251: 0 | AP251: 0 | AQ251: 0 | AR251: 0 | AS251: 0 | AT251: 1 | AU251: 0 | AV251: 0 | AW251: 0 | AX251: 4 | AY251: 0 | AZ251: 4 | BA251: 0 | BB251: 0 | BC251: 0 | BD251: 0 | BE251: 0 | BF251: 0 | BG251: 0 | BH251: 0 | BI251: 0 | BJ251: 18 | BK251: 3 | BL251: 440 | BM251: 0 | BN251: 0 | BO251: 0 | BP251: 0 | BQ251: 350 | BR251: 1 | BS251: 1 | BT251: 68 | BU251: 0 | BV251: 0 | BW251: 0 | BX251: 0 | BY251: 0 | BZ251: 0 | CA251: 0 | CB251: 26 | CC251: 0 | CD251: 0 | CE251: 0 | CF251: 0 | CG251: 0 | CH251: 0 | CI251: 0 | CJ251: 0 | CK251: 365 | CL251: 1 | CM251: 0 | CN251: 0 | CO251: 47 | CP251: 0 | CQ251: 13 | CR251: 0 | CS251: 0 | CT251: 0 | CU251: 0 | CV251: 0 | CW251: 0 | CX251: 0 | CY251: 1 | CZ251: 1 | DA251: 0 | DB251: 0 | DC251: 0 | DD251: 0 | DE251: 0 | DF251: 0 | DG251: 0 | DH251: 0 | DI251: 0 | DJ251: 0 | DK251: 0 | DL251: 0 | DM251: 0 | DN251: 0 | DO251: 0 | DP251: 0 | DQ251: 0 | DR251: 0 | DS251: 1 | DT251: 0 | DU251: 0 | DV251: 0 | DW251: 0 | DX251: 0 | DY251: 0 | DZ251: 0 | EA251: 0 | EB251: 0 | EC251: 0 | ED251: 0 | EE251: 0 | EF251: 0 | EG251: 0 | EH251: 0 | EI251: 0 | EJ251: 0 | EK251: 0 | EL251: 0 | EM251: 0 | EN251: 0 | EO251: 0 | EP251: 0 | EQ251: 0 | ER251: 0 | ES251: 0 | ET251: 0 | EU251: 0 | EV251: 0 | EW251: 0 | EX251: 0 | EY251: 0 | EZ251: 0 | FA251: 0 | FB251: 0 | FC251: 0 | FD251: 0 | FE251: 0 | FF251: 0 | FG251: 0 | FH251: 0 | FI251: 0 | FJ251: 0 | FK251: 0 | FL251: 0 | FM251: 0 | FN251: 0 | FO251: 0 | FP251: 0 | FQ251: 0 | FR251: 0 | FS251: 0 | FT251: 0 | FU251: 0 | FV251: 0 | FW251: 0 | FX251: 0 | FY251: 0 | FZ251: 0 | GA251: 0 | GB251: 0 | GC251: 0 | GD251: 0 | GE251: 0 | GF251: 0 | GG251: 0 | GH251: 0 | GI251: 0 | GJ251: 0 | GK251: 0 | GL251: 0 | GM251: 0 | GN251: 0 | GO251: 0 | GP251: 0 | GQ251: 0 | GR251: 0 | GS251: 0 | GT251: 0 | GU251: 0 | GV251: 0 | GW251: 0 | GX251: 0 | GY251: 0 | GZ251: 0 | HA251: 0 | HB251: 0 | HC251: 0 | HD251: 0 | HE251: 0 | HF251: 0 | HG251: 0 | HH251: 0 | HI251: 0 | HJ251: 0 | HK251: 0 | HL251: 0 | HM251: 0 | HN251: 0 | HO251: 0 | HP251: 0 | HQ251: 0 | HR251: 0 | HS251: 0 | HT251: 0 | HU251: 0 | HV251: 0 | HW251: 0
A252: 4 | B252: 1 | C252: 1 | D252: 1 | E252: 1 | F252: 1 | G252: 1 | H252: 1 | I252: 1 | J252: 0 | K252: 0 | L252: 0 | M252: 0 | N252: 0 | O252: 0 | P252: 0 | Q252: 0 | R252: 0 | S252: 0 | T252: 0 | U252: 0 | V252: 0 | W252: 0 | X252: 0 | Y252: 0 | Z252: 0 | AA252: 0 | AB252: 0 | AC252: 0 | AD252: 0 | AE252: 0 | AF252: 0 | AG252: 0 | AH252: 0 | AI252: 0 | AJ252: 0 | AK252: 0 | AL252: 0 | AM252: 0 | AN252: 0 | AO252: 0 | AP252: 1 | AQ252: 0 | AR252: 0 | AS252: 0 | AT252: 2 | AU252: 1 | AV252: 0 | AW252: 0 | AX252: 3 | AY252: 1 | AZ252: 3 | BA252: 1 | BB252: 0 | BC252: 0 | BD252: 0 | BE252: 0 | BF252: 0 | BG252: 0 | BH252: 0 | BI252: 0 | BJ252: 20 | BK252: 1 | BL252: 381 | BM252: 0 | BN252: 0 | BO252: 0 | BP252: 0 | BQ252: 325 | BR252: 0 | BS252: 0 | BT252: 44 | BU252: 0 | BV252: 0 | BW252: 0 | BX252: 3 | BY252: 0 | BZ252: 0 | CA252: 0 | CB252: 10 | CC252: 0 | CD252: 0 | CE252: 0 | CF252: 0 | CG252: 0 | CH252: 0 | CI252: 0 | CJ252: 0 | CK252: 328 | CL252: 0 | CM252: 0 | CN252: 0 | CO252: 44 | CP252: 0 | CQ252: 0 | CR252: 0 | CS252: 0 | CT252: 0 | CU252: 0 | CV252: 0 | CW252: 0 | CX252: 0 | CY252: 0 | CZ252: 0 | DA252: 0 | DB252: 0 | DC252: 0 | DD252: 0 | DE252: 0 | DF252: 0 | DG252: 0 | DH252: 0 | DI252: 0 | DJ252: 0 | DK252: 0 | DL252: 0 | DM252: 0 | DN252: 0 | DO252: 0 | DP252: 0 | DQ252: 0 | DR252: 1 | DS252: 3 | DT252: 0 | DU252: 0 | DV252: 0 | DW252: 0 | DX252: 0 | DY252: 0 | DZ252: 0 | EA252: 0 | EB252: 0 | EC252: 0 | ED252: 0 | EE252: 0 | EF252: 0 | EG252: 0 | EH252: 0 | EI252: 0 | EJ252: 0 | EK252: 0 | EL252: 0 | EM252: 0 | EN252: 0 | EO252: 0 | EP252: 0 | EQ252: 0 | ER252: 0 | ES252: 0 | ET252: 0 | EU252: 0 | EV252: 0 | EW252: 0 | EX252: 0 | EY252: 0 | EZ252: 0 | FA252: 0 | FB252: 0 | FC252: 0 | FD252: 0 | FE252: 0 | FF252: 0 | FG252: 0 | FH252: 0 | FI252: 0 | FJ252: 0 | FK252: 0 | FL252: 0 | FM252: 0 | FN252: 0 | FO252: 0 | FP252: 0 | FQ252: 0 | FR252: 0 | FS252: 0 | FT252: 0 | FU252: 0 | FV252: 0 | FW252: 0 | FX252: 0 | FY252: 0 | FZ252: 0 | GA252: 0 | GB252: 0 | GC252: 0 | GD252: 0 | GE252: 0 | GF252: 0 | GG252: 0 | GH252: 0 | GI252: 0 | GJ252: 0 | GK252: 0 | GL252: 0 | GM252: 0 | GN252: 0 | GO252: 0 | GP252: 0 | GQ252: 0 | GR252: 0 | GS252: 0 | GT252: 0 | GU252: 0 | GV252: 0 | GW252: 0 | GX252: 0 | GY252: 0 | GZ252: 0 | HA252: 0 | HB252: 0 | HC252: 0 | HD252: 0 | HE252: 0 | HF252: 0 | HG252: 0 | HH252: 0 | HI252: 0 | HJ252: 0 | HK252: 0 | HL252: 0 | HM252: 0 | HN252: 0 | HO252: 0 | HP252: 0 | HQ252: 0 | HR252: 0 | HS252: 0 | HT252: 0 | HU252: 0 | HV252: 0 | HW252: 0
A253: 6 | B253: 1 | C253: 1 | D253: 1 | E253: 1 | F253: 0 | G253: 0 | H253: 0 | I253: 0 | J253: 0 | K253: 0 | L253: 0 | M253: 0 | N253: 0 | O253: 0 | P253: 0 | Q253: 0 | R253: 0 | S253: 0 | T253: 0 | U253: 0 | V253: 0 | W253: 0 | X253: 0 | Y253: 0 | Z253: 1 | AA253: 1 | AB253: 1 | AC253: 1 | AD253: 0 | AE253: 0 | AF253: 0 | AG253: 0 | AH253: 0 | AI253: 0 | AJ253: 0 | AK253: 0 | AL253: 0 | AM253: 0 | AN253: 0 | AO253: 0 | AP253: 0 | AQ253: 0 | AR253: 0 | AS253: 0 | AT253: 0 | AU253: 0 | AV253: 0 | AW253: 0 | AX253: 2 | AY253: 1 | AZ253: 2 | BA253: 1 | BB253: 0 | BC253: 0 | BD253: 0 | BE253: 0 | BF253: 0 | BG253: 0 | BH253: 0 | BI253: 0 | BJ253: 4 | BK253: 1 | BL253: 301 | BM253: 0 | BN253: 0 | BO253: 0 | BP253: 0 | BQ253: 244 | BR253: 1 | BS253: 0 | BT253: 44 | BU253: 0 | BV253: 0 | BW253: 1 | BX253: 0 | BY253: 0 | BZ253: 0 | CA253: 0 | CB253: 72 | CC253: 0 | CD253: 0 | CE253: 0 | CF253: 0 | CG253: 0 | CH253: 0 | CI253: 0 | CJ253: 0 | CK253: 243 | CL253: 0 | CM253: 1 | CN253: 0 | CO253: 41 | CP253: 0 | CQ253: 0 | CR253: 0 | CS253: 0 | CT253: 0 | CU253: 0 | CV253: 0 | CW253: 0 | CX253: 0 | CY253: 1 | CZ253: 1 | DA253: 0 | DB253: 0 | DC253: 0 | DD253: 0 | DE253: 0 | DF253: 0 | DG253: 0 | DH253: 0 | DI253: 0 | DJ253: 0 | DK253: 0 | DL253: 0 | DM253: 0 | DN253: 0 | DO253: 0 | DP253: 0 | DQ253: 0 | DR253: 1 | DS253: 1 | DT253: 0 | DU253: 0 | DV253: 0 | DW253: 0 | DX253: 0 | DY253: 0 | DZ253: 0 | EA253: 0 | EB253: 0 | EC253: 0 | ED253: 0 | EE253: 0 | EF253: 0 | EG253: 0 | EH253: 0 | EI253: 0 | EJ253: 0 | EK253: 0 | EL253: 0 | EM253: 0 | EN253: 0 | EO253: 0 | EP253: 0 | EQ253: 0 | ER253: 0 | ES253: 0 | ET253: 0 | EU253: 0 | EV253: 0 | EW253: 0 | EX253: 0 | EY253: 0 | EZ253: 0 | FA253: 0 | FB253: 0 | FC253: 0 | FD253: 0 | FE253: 0 | FF253: 0 | FG253: 0 | FH253: 0 | FI253: 0 | FJ253: 0 | FK253: 0 | FL253: 0 | FM253: 0 | FN253: 0 | FO253: 0 | FP253: 0 | FQ253: 0 | FR253: 0 | FS253: 0 | FT253: 0 | FU253: 0 | FV253: 0 | FW253: 0 | FX253: 0 | FY253: 0 | FZ253: 0 | GA253: 0 | GB253: 0 | GC253: 0 | GD253: 0 | GE253: 0 | GF253: 0 | GG253: 0 | GH253: 0 | GI253: 0 | GJ253: 0 | GK253: 0 | GL253: 0 | GM253: 0 | GN253: 0 | GO253: 0 | GP253: 0 | GQ253: 0 | GR253: 0 | GS253: 0 | GT253: 0 | GU253: 0 | GV253: 0 | GW253: 0 | GX253: 0 | GY253: 0 | GZ253: 0 | HA253: 0 | HB253: 0 | HC253: 0 | HD253: 0 | HE253: 0 | HF253: 0 | HG253: 0 | HH253: 0 | HI253: 0 | HJ253: 0 | HK253: 0 | HL253: 0 | HM253: 0 | HN253: 0 | HO253: 0 | HP253: 0 | HQ253: 0 | HR253: 0 | HS253: 0 | HT253: 0 | HU253: 0 | HV253: 0 | HW253: 0
A254: 7 | B254: 2 | C254: 1 | D254: 0 | E254: 0 | F254: 1 | G254: 1 | H254: 0 | I254: 0 | J254: 0 | K254: 0 | L254: 0 | M254: 0 | N254: 1 | O254: 1 | P254: 0 | Q254: 1 | R254: 0 | S254: 0 | T254: 0 | U254: 0 | V254: 0 | W254: 0 | X254: 0 | Y254: 1 | Z254: 0 | AA254: 1 | AB254: 1 | AC254: 1 | AD254: 0 | AE254: 0 | AF254: 0 | AG254: 0 | AH254: 0 | AI254: 0 | AJ254: 0 | AK254: 0 | AL254: 0 | AM254: 0 | AN254: 0 | AO254: 0 | AP254: 0 | AQ254: 0 | AR254: 1 | AS254: 1 | AT254: 0 | AU254: 0 | AV254: 0 | AW254: 0 | AX254: 6 | AY254: 0 | AZ254: 5 | BA254: 0 | BB254: 0 | BC254: 0 | BD254: 0 | BE254: 0 | BF254: 0 | BG254: 0 | BH254: 0 | BI254: 0 | BJ254: 3 | BK254: 2 | BL254: 337 | BM254: 0 | BN254: 0 | BO254: 0 | BP254: 0 | BQ254: 283 | BR254: 0 | BS254: 0 | BT254: 35 | BU254: 0 | BV254: 0 | BW254: 0 | BX254: 0 | BY254: 0 | BZ254: 0 | CA254: 0 | CB254: 91 | CC254: 0 | CD254: 0 | CE254: 0 | CF254: 0 | CG254: 0 | CH254: 0 | CI254: 0 | CJ254: 0 | CK254: 285 | CL254: 1 | CM254: 2 | CN254: 0 | CO254: 35 | CP254: 1 | CQ254: 0 | CR254: 0 | CS254: 1 | CT254: 0 | CU254: 0 | CV254: 0 | CW254: 0 | CX254: 0 | CY254: 0 | CZ254: 0 | DA254: 0 | DB254: 0 | DC254: 0 | DD254: 0 | DE254: 0 | DF254: 0 | DG254: 0 | DH254: 0 | DI254: 0 | DJ254: 0 | DK254: 0 | DL254: 0 | DM254: 0 | DN254: 0 | DO254: 0 | DP254: 0 | DQ254: 0 | DR254: 1 | DS254: 0 | DT254: 0 | DU254: 1 | DV254: 0 | DW254: 0 | DX254: 0 | DY254: 0 | DZ254: 0 | EA254: 0 | EB254: 0 | EC254: 0 | ED254: 0 | EE254: 0 | EF254: 0 | EG254: 0 | EH254: 0 | EI254: 0 | EJ254: 0 | EK254: 0 | EL254: 0 | EM254: 0 | EN254: 0 | EO254: 0 | EP254: 0 | EQ254: 0 | ER254: 0 | ES254: 0 | ET254: 0 | EU254: 0 | EV254: 0 | EW254: 0 | EX254: 0 | EY254: 0 | EZ254: 0 | FA254: 0 | FB254: 0 | FC254: 0 | FD254: 0 | FE254: 0 | FF254: 0 | FG254: 0 | FH254: 0 | FI254: 0 | FJ254: 0 | FK254: 0 | FL254: 0 | FM254: 0 | FN254: 0 | FO254: 0 | FP254: 0 | FQ254: 0 | FR254: 0 | FS254: 0 | FT254: 0 | FU254: 0 | FV254: 0 | FW254: 0 | FX254: 0 | FY254: 0 | FZ254: 0 | GA254: 0 | GB254: 0 | GC254: 0 | GD254: 0 | GE254: 0 | GF254: 0 | GG254: 0 | GH254: 0 | GI254: 0 | GJ254: 0 | GK254: 0 | GL254: 0 | GM254: 0 | GN254: 0 | GO254: 0 | GP254: 0 | GQ254: 0 | GR254: 0 | GS254: 0 | GT254: 0 | GU254: 0 | GV254: 0 | GW254: 0 | GX254: 0 | GY254: 0 | GZ254: 0 | HA254: 0 | HB254: 0 | HC254: 0 | HD254: 0 | HE254: 0 | HF254: 0 | HG254: 0 | HH254: 0 | HI254: 0 | HJ254: 0 | HK254: 0 | HL254: 0 | HM254: 0 | HN254: 0 | HO254: 0 | HP254: 0 | HQ254: 0 | HR254: 0 | HS254: 0 | HT254: 0 | HU254: 0 | HV254: 0 | HW254: 0
A255: 8 | B255: 0 | C255: 0 | D255: 0 | E255: 0 | F255: 0 | G255: 0 | H255: 0 | I255: 0 | J255: 0 | K255: 0 | L255: 0 | M255: 0 | N255: 0 | O255: 0 | P255: 0 | Q255: 0 | R255: 0 | S255: 0 | T255: 0 | U255: 0 | V255: 0 | W255: 0 | X255: 0 | Y255: 0 | Z255: 0 | AA255: 0 | AB255: 0 | AC255: 0 | AD255: 0 | AE255: 0 | AF255: 0 | AG255: 0 | AH255: 0 | AI255: 0 | AJ255: 0 | AK255: 0 | AL255: 0 | AM255: 0 | AN255: 0 | AO255: 0 | AP255: 1 | AQ255: 1 | AR255: 1 | AS255: 1 | AT255: 1 | AU255: 1 | AV255: 1 | AW255: 1 | AX255: 0 | AY255: 0 | AZ255: 0 | BA255: 0 | BB255: 0 | BC255: 0 | BD255: 0 | BE255: 0 | BF255: 0 | BG255: 0 | BH255: 0 | BI255: 0 | BJ255: 7 | BK255: 0 | BL255: 415 | BM255: 0 | BN255: 0 | BO255: 0 | BP255: 0 | BQ255: 373 | BR255: 0 | BS255: 0 | BT255: 40 | BU255: 0 | BV255: 0 | BW255: 0 | BX255: 0 | BY255: 0 | BZ255: 0 | CA255: 0 | CB255: 4 | CC255: 0 | CD255: 0 | CE255: 0 | CF255: 0 | CG255: 0 | CH255: 0 | CI255: 0 | CJ255: 0 | CK255: 359 | CL255: 2 | CM255: 1 | CN255: 0 | CO255: 41 | CP255: 0 | CQ255: 0 | CR255: 0 | CS255: 2 | CT255: 0 | CU255: 0 | CV255: 0 | CW255: 0 | CX255: 0 | CY255: 0 | CZ255: 0 | DA255: 0 | DB255: 0 | DC255: 0 | DD255: 0 | DE255: 0 | DF255: 0 | DG255: 0 | DH255: 0 | DI255: 0 | DJ255: 0 | DK255: 0 | DL255: 0 | DM255: 0 | DN255: 0 | DO255: 0 | DP255: 0 | DQ255: 0 | DR255: 1 | DS255: 0 | DT255: 0 | DU255: 0 | DV255: 0 | DW255: 0 | DX255: 0 | DY255: 0 | DZ255: 0 | EA255: 0 | EB255: 0 | EC255: 0 | ED255: 0 | EE255: 0 | EF255: 0 | EG255: 0 | EH255: 0 | EI255: 0 | EJ255: 0 | EK255: 0 | EL255: 0 | EM255: 0 | EN255: 0 | EO255: 0 | EP255: 0 | EQ255: 0 | ER255: 0 | ES255: 0 | ET255: 0 | EU255: 0 | EV255: 0 | EW255: 0 | EX255: 0 | EY255: 0 | EZ255: 0 | FA255: 0 | FB255: 0 | FC255: 0 | FD255: 0 | FE255: 0 | FF255: 0 | FG255: 0 | FH255: 0 | FI255: 0 | FJ255: 0 | FK255: 0 | FL255: 0 | FM255: 0 | FN255: 0 | FO255: 0 | FP255: 0 | FQ255: 0 | FR255: 0 | FS255: 0 | FT255: 0 | FU255: 0 | FV255: 0 | FW255: 0 | FX255: 0 | FY255: 0 | FZ255: 0 | GA255: 0 | GB255: 0 | GC255: 0 | GD255: 0 | GE255: 0 | GF255: 0 | GG255: 0 | GH255: 0 | GI255: 0 | GJ255: 0 | GK255: 0 | GL255: 0 | GM255: 0 | GN255: 0 | GO255: 0 | GP255: 0 | GQ255: 0 | GR255: 0 | GS255: 0 | GT255: 0 | GU255: 0 | GV255: 0 | GW255: 0 | GX255: 0 | GY255: 0 | GZ255: 0 | HA255: 0 | HB255: 0 | HC255: 0 | HD255: 0 | HE255: 0 | HF255: 0 | HG255: 0 | HH255: 0 | HI255: 0 | HJ255: 0 | HK255: 0 | HL255: 0 | HM255: 0 | HN255: 0 | HO255: 0 | HP255: 0 | HQ255: 0 | HR255: 0 | HS255: 0 | HT255: 0 | HU255: 0 | HV255: 0 | HW255: 0
A256: 9 | B256: 1 | C256: 1 | D256: 0 | E256: 0 | F256: 2 | G256: 1 | H256: 0 | I256: 0 | J256: 0 | K256: 0 | L256: 0 | M256: 0 | N256: 0 | O256: 0 | P256: 0 | Q256: 0 | R256: 0 | S256: 0 | T256: 0 | U256: 0 | V256: 0 | W256: 0 | X256: 0 | Y256: 0 | Z256: 0 | AA256: 0 | AB256: 0 | AC256: 0 | AD256: 0 | AE256: 0 | AF256: 0 | AG256: 0 | AH256: 0 | AI256: 0 | AJ256: 0 | AK256: 0 | AL256: 0 | AM256: 0 | AN256: 0 | AO256: 0 | AP256: 1 | AQ256: 1 | AR256: 1 | AS256: 1 | AT256: 1 | AU256: 1 | AV256: 0 | AW256: 0 | AX256: 4 | AY256: 0 | AZ256: 3 | BA256: 0 | BB256: 0 | BC256: 0 | BD256: 0 | BE256: 0 | BF256: 0 | BG256: 0 | BH256: 0 | BI256: 0 | BJ256: 4 | BK256: 3 | BL256: 435 | BM256: 0 | BN256: 0 | BO256: 0 | BP256: 0 | BQ256: 297 | BR256: 2 | BS256: 1 | BT256: 20 | BU256: 0 | BV256: 0 | BW256: 0 | BX256: 0 | BY256: 0 | BZ256: 0 | CA256: 0 | CB256: 124 | CC256: 0 | CD256: 0 | CE256: 0 | CF256: 0 | CG256: 0 | CH256: 0 | CI256: 0 | CJ256: 0 | CK256: 401 | CL256: 0 | CM256: 0 | CN256: 0 | CO256: 26 | CP256: 0 | CQ256: 60 | CR256: 0 | CS256: 0 | CT256: 0 | CU256: 0 | CV256: 0 | CW256: 0 | CX256: 0 | CY256: 0 | CZ256: 0 | DA256: 0 | DB256: 0 | DC256: 0 | DD256: 0 | DE256: 0 | DF256: 0 | DG256: 0 | DH256: 0 | DI256: 0 | DJ256: 0 | DK256: 0 | DL256: 0 | DM256: 0 | DN256: 0 | DO256: 0 | DP256: 0 | DQ256: 0 | DR256: 1 | DS256: 0 | DT256: 0 | DU256: 0 | DV256: 0 | DW256: 0 | DX256: 0 | DY256: 0 | DZ256: 0 | EA256: 0 | EB256: 0 | EC256: 0 | ED256: 0 | EE256: 0 | EF256: 0 | EG256: 0 | EH256: 0 | EI256: 0 | EJ256: 0 | EK256: 0 | EL256: 0 | EM256: 0 | EN256: 0 | EO256: 0 | EP256: 0 | EQ256: 0 | ER256: 0 | ES256: 0 | ET256: 0 | EU256: 0 | EV256: 0 | EW256: 0 | EX256: 0 | EY256: 0 | EZ256: 0 | FA256: 0 | FB256: 0 | FC256: 0 | FD256: 0 | FE256: 0 | FF256: 0 | FG256: 0 | FH256: 0 | FI256: 0 | FJ256: 0 | FK256: 0 | FL256: 0 | FM256: 0 | FN256: 0 | FO256: 0 | FP256: 0 | FQ256: 0 | FR256: 0 | FS256: 0 | FT256: 0 | FU256: 0 | FV256: 0 | FW256: 0 | FX256: 0 | FY256: 0 | FZ256: 0 | GA256: 0 | GB256: 0 | GC256: 0 | GD256: 0 | GE256: 0 | GF256: 0 | GG256: 0 | GH256: 0 | GI256: 0 | GJ256: 0 | GK256: 0 | GL256: 0 | GM256: 0 | GN256: 0 | GO256: 0 | GP256: 0 | GQ256: 0 | GR256: 0 | GS256: 0 | GT256: 0 | GU256: 0 | GV256: 0 | GW256: 0 | GX256: 0 | GY256: 0 | GZ256: 0 | HA256: 0 | HB256: 0 | HC256: 0 | HD256: 0 | HE256: 0 | HF256: 0 | HG256: 0 | HH256: 0 | HI256: 0 | HJ256: 0 | HK256: 0 | HL256: 0 | HM256: 0 | HN256: 0 | HO256: 0 | HP256: 0 | HQ256: 0 | HR256: 0 | HS256: 0 | HT256: 0 | HU256: 0 | HV256: 0 | HW256: 0
A257: 10 | B257: 2 | C257: 2 | D257: 0 | E257: 0 | F257: 1 | G257: 1 | H257: 0 | I257: 0 | J257: 0 | K257: 0 | L257: 0 | M257: 0 | N257: 1 | O257: 1 | P257: 0 | Q257: 1 | R257: 1 | S257: 1 | T257: 0 | U257: 1 | V257: 0 | W257: 0 | X257: 0 | Y257: 1 | Z257: 0 | AA257: 0 | AB257: 0 | AC257: 0 | AD257: 0 | AE257: 0 | AF257: 0 | AG257: 0 | AH257: 0 | AI257: 0 | AJ257: 0 | AK257: 0 | AL257: 0 | AM257: 0 | AN257: 0 | AO257: 0 | AP257: 1 | AQ257: 1 | AR257: 0 | AS257: 0 | AT257: 1 | AU257: 1 | AV257: 0 | AW257: 0 | AX257: 4 | AY257: 1 | AZ257: 4 | BA257: 1 | BB257: 0 | BC257: 0 | BD257: 0 | BE257: 0 | BF257: 0 | BG257: 0 | BH257: 0 | BI257: 0 | BJ257: 2 | BK257: 2 | BL257: 328 | BM257: 0 | BN257: 0 | BO257: 0 | BP257: 0 | BQ257: 281 | BR257: 3 | BS257: 0 | BT257: 28 | BU257: 2 | BV257: 0 | BW257: 0 | BX257: 0 | BY257: 0 | BZ257: 0 | CA257: 0 | CB257: 124 | CC257: 0 | CD257: 0 | CE257: 0 | CF257: 0 | CG257: 0 | CH257: 0 | CI257: 0 | CJ257: 0 | CK257: 287 | CL257: 0 | CM257: 0 | CN257: 0 | CO257: 29 | CP257: 0 | CQ257: 0 | CR257: 0 | CS257: 0 | CT257: 0 | CU257: 0 | CV257: 0 | CW257: 0 | CX257: 0 | CY257: 0 | CZ257: 0 | DA257: 0 | DB257: 0 | DC257: 0 | DD257: 0 | DE257: 0 | DF257: 0 | DG257: 0 | DH257: 0 | DI257: 0 | DJ257: 0 | DK257: 0 | DL257: 0 | DM257: 0 | DN257: 0 | DO257: 0 | DP257: 0 | DQ257: 0 | DR257: 0 | DS257: 3 | DT257: 0 | DU257: 0 | DV257: 0 | DW257: 0 | DX257: 0 | DY257: 0 | DZ257: 0 | EA257: 0 | EB257: 0 | EC257: 0 | ED257: 0 | EE257: 0 | EF257: 0 | EG257: 0 | EH257: 0 | EI257: 0 | EJ257: 0 | EK257: 0 | EL257: 0 | EM257: 0 | EN257: 0 | EO257: 0 | EP257: 0 | EQ257: 0 | ER257: 0 | ES257: 0 | ET257: 0 | EU257: 0 | EV257: 0 | EW257: 0 | EX257: 0 | EY257: 0 | EZ257: 0 | FA257: 0 | FB257: 0 | FC257: 0 | FD257: 0 | FE257: 0 | FF257: 0 | FG257: 0 | FH257: 0 | FI257: 0 | FJ257: 0 | FK257: 0 | FL257: 0 | FM257: 0 | FN257: 0 | FO257: 0 | FP257: 0 | FQ257: 0 | FR257: 0 | FS257: 0 | FT257: 0 | FU257: 0 | FV257: 0 | FW257: 0 | FX257: 0 | FY257: 0 | FZ257: 0 | GA257: 0 | GB257: 0 | GC257: 0 | GD257: 0 | GE257: 0 | GF257: 0 | GG257: 0 | GH257: 0 | GI257: 0 | GJ257: 0 | GK257: 0 | GL257: 0 | GM257: 0 | GN257: 0 | GO257: 0 | GP257: 0 | GQ257: 0 | GR257: 0 | GS257: 0 | GT257: 0 | GU257: 0 | GV257: 0 | GW257: 0 | GX257: 0 | GY257: 0 | GZ257: 0 | HA257: 0 | HB257: 0 | HC257: 0 | HD257: 0 | HE257: 0 | HF257: 0 | HG257: 0 | HH257: 0 | HI257: 0 | HJ257: 0 | HK257: 0 | HL257: 0 | HM257: 0 | HN257: 0 | HO257: 0 | HP257: 0 | HQ257: 0 | HR257: 0 | HS257: 0 | HT257: 0 | HU257: 0 | HV257: 0 | HW257: 0
A258: 11 | B258: 3 | C258: 3 | D258: 0 | E258: 0 | F258: 3 | G258: 3 | H258: 0 | I258: 0 | J258: 0 | K258: 0 | L258: 0 | M258: 0 | N258: 0 | O258: 0 | P258: 0 | Q258: 0 | R258: 0 | S258: 0 | T258: 0 | U258: 0 | V258: 0 | W258: 0 | X258: 0 | Y258: 0 | Z258: 0 | AA258: 0 | AB258: 0 | AC258: 0 | AD258: 0 | AE258: 0 | AF258: 0 | AG258: 0 | AH258: 0 | AI258: 0 | AJ258: 0 | AK258: 0 | AL258: 0 | AM258: 0 | AN258: 0 | AO258: 0 | AP258: 0 | AQ258: 0 | AR258: 0 | AS258: 0 | AT258: 0 | AU258: 0 | AV258: 0 | AW258: 0 | AX258: 2 | AY258: 0 | AZ258: 2 | BA258: 0 | BB258: 0 | BC258: 0 | BD258: 0 | BE258: 0 | BF258: 0 | BG258: 0 | BH258: 0 | BI258: 0 | BJ258: 2 | BK258: 2 | BL258: 201 | BM258: 0 | BN258: 0 | BO258: 0 | BP258: 0 | BQ258: 158 | BR258: 0 | BS258: 0 | BT258: 35 | BU258: 0 | BV258: 0 | BW258: 1 | BX258: 0 | BY258: 0 | BZ258: 0 | CA258: 0 | CB258: 80 | CC258: 0 | CD258: 0 | CE258: 0 | CF258: 0 | CG258: 0 | CH258: 0 | CI258: 0 | CJ258: 0 | CK258: 162 | CL258: 1 | CM258: 0 | CN258: 0 | CO258: 36 | CP258: 0 | CQ258: 0 | CR258: 0 | CS258: 0 | CT258: 0 | CU258: 0 | CV258: 0 | CW258: 0 | CX258: 0 | CY258: 1 | CZ258: 1 | DA258: 0 | DB258: 0 | DC258: 0 | DD258: 0 | DE258: 0 | DF258: 0 | DG258: 0 | DH258: 0 | DI258: 1 | DJ258: 0 | DK258: 0 | DL258: 0 | DM258: 0 | DN258: 0 | DO258: 0 | DP258: 0 | DQ258: 0 | DR258: 0 | DS258: 0 | DT258: 0 | DU258: 0 | DV258: 0 | DW258: 0 | DX258: 0 | DY258: 0 | DZ258: 0 | EA258: 0 | EB258: 0 | EC258: 0 | ED258: 0 | EE258: 0 | EF258: 0 | EG258: 0 | EH258: 0 | EI258: 0 | EJ258: 0 | EK258: 0 | EL258: 0 | EM258: 0 | EN258: 0 | EO258: 0 | EP258: 0 | EQ258: 0 | ER258: 0 | ES258: 0 | ET258: 0 | EU258: 0 | EV258: 0 | EW258: 0 | EX258: 0 | EY258: 0 | EZ258: 0 | FA258: 0 | FB258: 0 | FC258: 0 | FD258: 0 | FE258: 0 | FF258: 0 | FG258: 0 | FH258: 0 | FI258: 0 | FJ258: 0 | FK258: 0 | FL258: 0 | FM258: 0 | FN258: 0 | FO258: 0 | FP258: 0 | FQ258: 0 | FR258: 0 | FS258: 0 | FT258: 0 | FU258: 0 | FV258: 0 | FW258: 0 | FX258: 0 | FY258: 0 | FZ258: 0 | GA258: 0 | GB258: 0 | GC258: 0 | GD258: 0 | GE258: 0 | GF258: 0 | GG258: 0 | GH258: 0 | GI258: 0 | GJ258: 0 | GK258: 0 | GL258: 0 | GM258: 0 | GN258: 0 | GO258: 0 | GP258: 0 | GQ258: 0 | GR258: 0 | GS258: 0 | GT258: 0 | GU258: 0 | GV258: 0 | GW258: 0 | GX258: 0 | GY258: 0 | GZ258: 0 | HA258: 0 | HB258: 0 | HC258: 0 | HD258: 0 | HE258: 0 | HF258: 0 | HG258: 0 | HH258: 0 | HI258: 0 | HJ258: 0 | HK258: 0 | HL258: 0 | HM258: 0 | HN258: 0 | HO258: 0 | HP258: 0 | HQ258: 0 | HR258: 0 | HS258: 0 | HT258: 0 | HU258: 0 | HV258: 0 | HW258: 0
A259: T | B259: 20 | C259: 19 | D259: 4 | E259: 4 | F259: 13 | G259: 12 | H259: 1 | I259: 1 | J259: 0 | K259: 0 | L259: 0 | M259: 0 | N259: 4 | O259: 4 | P259: 0 | Q259: 4 | R259: 2 | S259: 2 | T259: 0 | U259: 2 | V259: 0 | W259: 0 | X259: 0 | Y259: 4 | Z259: 4 | AA259: 5 | AB259: 4 | AC259: 5 | AD259: 0 | AE259: 0 | AF259: 0 | AG259: 0 | AH259: 0 | AI259: 0 | AJ259: 0 | AK259: 0 | AL259: 0 | AM259: 0 | AN259: 0 | AO259: 0 | AP259: 5 | AQ259: 4 | AR259: 5 | AS259: 5 | AT259: 8 | AU259: 4 | AV259: 1 | AW259: 1 | AX259: 29 | AY259: 4 | AZ259: 26 | BA259: 4 | BB259: 0 | BC259: 0 | BD259: 0 | BE259: 0 | BF259: 0 | BG259: 0 | BH259: 0 | BI259: 0 | BJ259: 230 | BK259: 16 | BL259: 3716 | BM259: 0 | BN259: 0 | BO259: 0 | BP259: 0 | BQ259: 3094 | BR259: 9 | BS259: 3 | BT259: 394 | BU259: 3 | BV259: 0 | BW259: 8 | BX259: 3 | BY259: 0 | BZ259: 0 | CA259: 0 | CB259: 545 | CC259: 0 | CD259: 0 | CE259: 0 | CF259: 0 | CG259: 0 | CH259: 0 | CI259: 0 | CJ259: 0 | CK259: 3218 | CL259: 5 | CM259: 8 | CN259: 0 | CO259: 382 | CP259: 1 | CQ259: 134 | CR259: 0 | CS259: 5 | CT259: 0 | CU259: 0 | CV259: 0 | CW259: 0 | CX259: 0 | CY259: 3 | CZ259: 3 | DA259: 0 | DB259: 0 | DC259: 0 | DD259: 0 | DE259: 0 | DF259: 0 | DG259: 0 | DH259: 0 | DI259: 1 | DJ259: 0 | DK259: 0 | DL259: 0 | DM259: 0 | DN259: 0 | DO259: 0 | DP259: 0 | DQ259: 0 | DR259: 8 | DS259: 8 | DT259: 0 | DU259: 1 | DV259: 0 | DW259: 0 | DX259: 0 | DY259: 0 | DZ259: 0 | EA259: 0 | EB259: 0 | EC259: 0 | ED259: 0 | EE259: 0 | EF259: 0 | EG259: 0 | EH259: 0 | EI259: 0 | EJ259: 0 | EK259: 0 | EL259: 0 | EM259: 0 | EN259: 0 | EO259: 0 | EP259: 0 | EQ259: 0 | ER259: 0 | ES259: 0 | ET259: 0 | EU259: 0 | EV259: 0 | EW259: 0 | EX259: 0 | EY259: 0 | EZ259: 0 | FA259: 0 | FB259: 0 | FC259: 0 | FD259: 0 | FE259: 0 | FF259: 0 | FG259: 0 | FH259: 0 | FI259: 0 | FJ259: 0 | FK259: 0 | FL259: 0 | FM259: 0 | FN259: 0 | FO259: 0 | FP259: 0 | FQ259: 0 | FR259: 0 | FS259: 0 | FT259: 0 | FU259: 0 | FV259: 0 | FW259: 0 | FX259: 0 | FY259: 0 | FZ259: 0 | GA259: 0 | GB259: 0 | GC259: 0 | GD259: 0 | GE259: 0 | GF259: 0 | GG259: 0 | GH259: 0 | GI259: 0 | GJ259: 0 | GK259: 0 | GL259: 0 | GM259: 0 | GN259: 0 | GO259: 0 | GP259: 0 | GQ259: 0 | GR259: 0 | GS259: 0 | GT259: 0 | GU259: 0 | GV259: 0 | GW259: 0 | GX259: 0 | GY259: 0 | GZ259: 0 | HA259: 0 | HB259: 0 | HC259: 0 | HD259: 0 | HE259: 2 | HF259: 0 | HG259: 2 | HH259: 0 | HI259: 0 | HJ259: 0 | HK259: 0 | HL259: 0 | HM259: 0 | HN259: 0 | HO259: 0 | HP259: 0 | HQ259: 0 | HR259: 0 | HS259: 0 | HT259: 0 | HU259: 0 | HV259: 0 | HW259: 0
A266: TOTAL
A267: =COUNT(A248:A264) -> 11 | B267: =SUM(B248:B264) -> 40 | C267: =SUM(C248:C264) -> 38 | D267: 8 | E267: 8 | F267: 26 | G267: 24 | H267: 2 | I267: 2 | J267: 0 | K267: 0 | L267: 0 | M267: 0 | N267: 8 | O267: 8 | P267: 0 | Q267: 8 | R267: 4 | S267: 4 | T267: 0 | U267: 4 | V267: 0 | W267: 0 | X267: 0 | Y267: 8 | Z267: 8 | AA267: 10 | AB267: 8 | AC267: 10 | AD267: 0 | AE267: 0 | AF267: 0 | AG267: 0 | AH267: 0 | AI267: 0 | AJ267: 0 | AK267: 0 | AL267: 0 | AM267: 0 | AN267: 0 | AO267: 0 | AP267: 10 | AQ267: 8 | AR267: 10 | AS267: 10 | AT267: 16 | AU267: 8 | AV267: 2 | AW267: 2 | AX267: 58 | AY267: 8 | AZ267: 52 | BA267: 8 | BB267: 0 | BC267: 0 | BD267: 0 | BE267: 0 | BF267: 0 | BG267: 0 | BH267: 0 | BI267: 0 | BJ267: 460 | BK267: 32 | BL267: 7432 | BM267: 0 | BN267: 0 | BO267: =SUM(BO248:BO264) -> 0 | BP267: 0 | BQ267: 6188 | BR267: 18 | BS267: 6 | BT267: 788 | BU267: 6 | BV267: 0 | BW267: 16 | BX267: 6 | BY267: 0 | BZ267: 0 | CA267: 0 | CB267: 1090 | CC267: 0 | CD267: 0 | CE267: 0 | CF267: 0 | CG267: 0 | CH267: 0 | CI267: 0 | CJ267: 0 | CK267: 6436 | CL267: 10 | CM267: 16 | CN267: 0 | CO267: 764 | CP267: 2 | CQ267: 268 | CR267: 0 | CS267: 10 | CT267: 0 | CU267: 0 | CV267: 0 | CW267: 0 | CX267: 0 | CY267: 6 | CZ267: 6 | DA267: 0 | DB267: 0 | DC267: 0 | DD267: 0 | DE267: 0 | DF267: 0 | DG267: 0 | DH267: 0 | DI267: 2 | DJ267: 0 | DK267: 0 | DL267: 0 | DM267: 0 | DN267: 0 | DO267: 0 | DP267: 0 | DQ267: 0 | DR267: 16 | DS267: 16 | DT267: 0 | DU267: 2 | DV267: 0 | DW267: 0 | DX267: 0 | DY267: 0 | DZ267: 0 | EA267: =SUM(EA248:EA264) -> 0 | EB267: 0 | EC267: 0 | ED267: 0 | EE267: 0 | EF267: 0 | EG267: 0 | EH267: 0 | EI267: 0 | EJ267: 0 | EK267: 0 | EL267: 0 | EM267: 0 | EN267: 0 | EO267: 0 | EP267: 0 | EQ267: 0 | ER267: 0 | ES267: 0 | ET267: 0 | EU267: 0 | EV267: 0 | EW267: 0 | EX267: 0 | EY267: 0 | EZ267: 0 | FA267: 0 | FB267: 0 | FC267: 0 | FD267: 0 | FE267: 0 | FF267: 0 | FG267: 0 | FH267: 0 | FI267: 0 | FJ267: 0 | FK267: 0 | FL267: 0 | FM267: 0 | FN267: 0 | FO267: 0 | FP267: 0 | FQ267: 0 | FR267: 0 | FS267: 0 | FT267: 0 | FU267: 0 | FV267: 0 | FW267: 0 | FX267: 0 | FY267: 0 | FZ267: 0 | GA267: 0 | GB267: 0 | GC267: 0 | GD267: 0 | GE267: 0 | GF267: 0 | GG267: 0 | GH267: 0 | GI267: 0 | GJ267: 0 | GK267: 0 | GL267: 0 | GM267: =SUM(GM248:GM264) -> 0 | GN267: 0 | GO267: 0 | GP267: 0 | GQ267: 0 | GR267: 0 | GS267: 0 | GT267: 0 | GU267: 0 | GV267: 0 | GW267: 0 | GX267: 0 | GY267: 0 | GZ267: 0 | HA267: 0 | HB267: 0 | HC267: 0 | HD267: 0 | HE267: 4 | HF267: 0 | HG267: 4 | HH267: 0 | HI267: 0 | HJ267: 0 | HK267: 0 | HL267: 0 | HM267: 0 | HN267: 0 | HO267: 0 | HP267: 0 | HQ267: 0 | HR267: 0 | HS267: 0 | HT267: 0 | HU267: 0 | HV267: 0 | HW267: 0
A268: =CONCATENATE(A248,"-",A249,"-",A250,"-",A251,"-",A252,"-",A253,"-",A254,"-",A255,"-",A256,"-",A257,"-",A258,"-",A259) -> 2-3-1-5-4-6-7-8-9-10-11-T
